Workbook

Sheet Form Instructions
E2: HVAC Application - Electronic Version
G3: Dominion Energy South Carolina, Inc.
G4: Use Buttons Below to Navigate the Application
G6: Project Information & Signatures | J6: Input Instructions & Application Types | M6: Terms & Conditions
D9: HVAC Unitary | G9: Window Film | J9: Cool Roof | M9: HVAC Chillers | P9: VFDs
G12: Heat Pump Water Heater | J12: Guestroom Controls | M12: Advanced RTU Controls
R15: Version # 15.1
B17: Application and Instructions
B18: The EnergyWise for Your Business Program is designed to help non-residential customers replace aging, inefficient equipment and systems with energy-efficient technologies. The program provides customers with incentives and technical assistance that will facilitate the installation of premium efficient equipment. For each program year (December 1–November 30), EnergyWise for Your Business incentive payments are capped per Customer Federal Tax ID number at $150,000 per Project type. Details of the program, including incentive levels and technical requirements, are subject to change without prior notice. You may go to www.DominionEnergy.com/ForYourBizSC to get the most current program information, or you may call 877-784-7234.
B20: Eligible Participants | K20: Pre-Approval Requirements
B21: EnergyWise for Your Business is open to all non-residential electric customers within our service territory, except for customers eligible for Rate 23 and certain large retail customers who have elected to opt out of the Demand Side Management (DSM) programs by notifying us in writing using the Opt-Out form. | K21: All projects require pre-approval prior to purchasing and installing any equipment except for eligible HVAC Unitary projects with total incentives less than or equal to $5,000, and Heat Pump Water Heaters with total incentives of less than or equal to $1,000. After the application has been pre-approved by us, the customer will be notified in writing, assigned a project identification number, and given any specific instructions. The customer may then purchase and install the pre-approved equipment. For projects not requiring pre-approval, the applicant can purchase and install the qualifying equipment and submit a completed application form and supporting documentation within 60 days of the equipment’s invoice date.
B22: Eligible Equipment
B23: Eligible equipment and incentive amounts are listed on the Equipment Tabs. Eligible equipment include HVAC Unitary equipment, Window Film, Cool Roof, HVAC Chillers, Variable Frequency Drives (VFDs), Heat Pump Water Heater, Guestroom Energy Management, and Advanced RTU Controls. These measures are subject to the associated technical eligibility criteria described on the individual equipment tab. All equipment must be new; used or refurbished equipment is not eligible.
B25: Participation Instructions
B26: Please review the program Terms and Conditions tab and the Equipment Input Instructions tab for all program rules and requirements. Tabs colored Blue should be filled in by applicant.
B27: Step 1
B29: Complete the Project Information tab and at least one blue Equipment tab.
B30: Use the Technical & Input Instructions tab as a reference for what supporting documentation is required.
B31: Submit Completed Applications to: EnergyExperts@SC.DominionEnergyAccount.com.
B32: Step 2
C33: Applications will be processed and we will notify the customer in writing when the review is complete and funds have been reserved. Upon receipt of program pre-approval, customers may purchase and install their energy efficient equipment. We will notify customers if an inspection of the facility is necessary prior to pre-approval. Note: Any changes in the proposed equipment, quantities, or operating conditions must be approved by us prior to implementing.
B34: Step 3
C35: Upon project completion, please return the signed customer acknowledgment at bottom of the pre-approval letter along with proof of purchase. Dominion Energy South Carolina will notify customers if an inspection of the facility is necessary prior to final payment processing. Proof of purchase must include an itemized invoice for all Energy Conservation Measures (ECMs) that may qualify for the EnergyWise for Your Business incentive. Each individual product or model number must include the corresponding costs and quantity. Labor and material must be listed separately when labor is included in the overall Project Costs.
B37: Questions | C37: If you have questions, email EnergyExperts@SC.DominionEnergyAccount.com, | L37: visit www.DominionEnergy.com/ForYourBizSC or call 877-784-7234.

Sheet Project Information
A1: Dominion Energy South Carolina, Inc. (Fill in Blue and Orange Cells Only!)
A2: PROJECT INFORMATION
A3: Application Date | K3: Expected Completion Date
A4: Company Name | C4: FALSE | K4: Electric Account #
A5: Street Address (of the facility) | C5: FALSE | K5: Customer Federal Tax ID
A6: City | C6: FALSE | K6: State | L6: SC | M6: Zip
A7: Building Type (select one) | C7: FALSE | K7: Please indicate "other" type:
A8: CUSTOMER CONTACT INFORMATION | C8: FALSE
A9: Mailing Address:
A10: (where all correspondence will be mailed, including incentive check if payment is to the customer)
A11: City | H11: State | K11: Zip
A12: Contact Person | K12: Title
A13: Telephone No. | K13: Email
A15: CONTRACTOR INFORMATION
A16: Company Name
A17: Street Address
A18: City | H18: State | K18: Zip
A19: Contact Person | K19: Title
A20: Telephone No. | C20: FALSE | K20: Email
A22: Please indicate if the Customer or Contractor should be primary point of contact for this project:
A23: ADDITIONAL PRIMARY POINT OF CONTACT (IF APPLICABLE)
A24: Company Name
A25: Street Address
A26: City | H26: State | K26: Zip
A27: Contact Person | K27: Title
A28: Telephone No. | K28: Email
A30: PAYMENT INFORMATION
A31: Payment to:
A32: Federal Tax ID # (of recipient) | J32: Tax Status of Recipient (select one)
A33: Customer Name | K33: Title
A34: Customer Signature (if payment to contractor, Customer must type his/her name in the orange box to the right and check the box below) | K34: Date (XX/XX/XXXX)
A35: FALSE | B35: I understand and intend that my electronic, PDF or facsimile signature be accepted and have the same force and effect as an original signature.
A37: Checklist & Acknowledgement
A38: APPLICATION CHECKLIST
A39: For faster application processing, please include the following items with your application:
A40: Complete application: Project Information Tab, Customer Acknowledgment checkbox, and at least 1 "blue" Equipment tab. | Q40: FALSE
A41: Electric account number at top of page. Attach copy of electric bill. | Q41: FALSE
A42: The most recent IRS Form W-9 completed for payment recipient. Physical signature is required on the W-9 Form. If payment is to a contractor, both the customer's and the contractor's W-9 Forms must be provided. | Q42: FALSE
A43: Supporting documentation to include manufacturer’s specification (cut) sheets for equipment included in this application. | Q43: FALSE
A44: Customer signature and proof of purchase (contractor receipts), at time of project completion. See Terms and Conditions for invoicing requirements. | C44: FALSE | Q44: FALSE
A45: Applications submitted for processing will be processed in the order in which they are received. Applicants will be notified as to their pre-approval status and/or any pre-inspection requirements within 10 business days from receipt of complete application. Applicants will be notified if post-installation inspections are required.
A47: CUSTOMER ACKNOWLEDGMENT
A48: Authorized Representative | I48: Title
I49: Date (XX/XX/XXXX)
A50: FALSE | B50: By checking this box and typing my name, I hereby certify that all statements made on this application are correct to the best of my knowledge and that I have read and agree to the Terms and Conditions. Furthermore, I understand and intend that my electronic, PDF or facsimile signature be accepted and have the same force and effect as an original signature. Note: Upon completion of project, Dominion Energy South Carolina, Inc. customer of record must sign and return the written pre-approval letter and provide invoices for all energy efficiency measures.
A51: FALSE | B51: For Projects Not Requiring Pre-Approval ≤ $5,000 for HVAC Unitary Projects or ≤ $1,000 for Heat Pump Water Heater Projects Incentive Only: By checking this box and typing my name, I hereby certify that all statements made on this application are correct to the best of my knowledge and that I have read and agree to the Terms and Conditions. Furthermore, I understand and intend that my electronic, PDF or facsimile signature be accepted and have the same force and effect as an original signature. Note: Application must include supporting documentation and copy of invoice that is dated within 60 days before application date.
A52: Dominion Energy South Carolina, Inc. HVAC Application - Electronic Version | N52: Version | O52: 15.1

Sheet ProjectInfo Validation (hidden)
A1: Building Type | B1: Primary Contact | C1: Tax Status | D1: Payment To | E1: Cities
A2: Convenience/C-store | B2: Customer | C2: Corporation | D2: Customer | E2: Adams Run
A3: Fitness/Recreation | B3: Contractor | C3: LLC | D3: Contractor | E3: Aiken
A4: Grocery | B4: Other (fill out below) | C4: Partnership | E4: Allendale
A5: Health Facility | C5: Individual Propiertorship | E5: Arlington Estates
A6: Industrial | C6: Not for Profit | E6: Awendaw
A7: Lodging | E7: Bamberg
A8: Multifamily | E8: Barnwell
A9: Office | E9: Batesburg Leesville
A10: Religious Facility | E10: Bath
A11: Restaurant | E11: Beaufort
A12: Retail | E12: Beech Island
A13: School (K-12) | E13: Blackville
A14: School (University/College) | E14: Blair
A15: Warehouse | E15: Bluffton
A16: Other | E16: Blythewood
E17: Bowman
E18: Branchville
E19: Brunson
E20: Calhoun Falls
E21: Cameron
E22: Canadys
E23: Carlisle
E24: Cayce
E25: Chapin
E26: Chappels
E27: Charleston
E28: Childs
E29: Clarks Hill
E30: Columbia
E31: Coosawatchie
E32: Cope
E33: Cottageville
E34: Cross
E35: Cross Roads
E36: Daniel Island
E37: Daufuskie Island
E38: Denmark
E39: Dorchester
E40: Early Branch
E41: East Lake Hills
E42: Eastover
E43: Edgefield
E44: Edisto Island
E45: Ehrhardt
E46: Elgin
E47: Elko
E48: Elloree
E49: Estill
E50: Eutawville
E51: Fairfax
E52: Folly Beach
E53: Fort Motte
E54: Furman
E55: Garnett
E56: Gaston
E57: Gifford
E58: Gilbert
E59: Gloverville
E60: Goose Creek
E61: Graniteville
E62: Grays Hill
E63: Green Pond
E64: Hampton
E65: Hanahan
E66: Hardeeville
E67: Harleyville
E68: Hilda
E69: Holly Hill
E70: Hollywood
E71: Hopkins
E72: Irmo
E73: Isle of Palms
E74: Jackson
E75: Jacksonboro
E76: James Island
E77: Jenkinsville
E78: Johns Island
E79: Johnston
E80: Ladson
E81: Ladys Island
E82: Langley
E83: Leesville
E84: Lexington
E85: Lincolnville
E86: Little Mountain
E87: Livingston
E88: Lobeco
E89: Lodge
E90: Lugoff
E91: Luray
E92: Martin
E93: Mc Clellanville
E94: Mc Cormick
E95: Modoc
E96: Moncks Corner
E97: Monetta
E98: Montmorenci
E99: Mount Carmel
E100: Mount Pleasant
E101: Muphys Estates
E102: Newberry
E103: North
E104: North Augusta
E105: North Charleston
E106: Northeast
E107: Norway
E108: Oakridge
E109: Okatie
E110: Olar
E111: Olympia
E112: Orangeburg
E113: Parksville
E114: Peak
E115: Pelion
E116: Perry
E117: Pineland
E118: Pomaria
E119: Pontiac
E120: Port Royal
E121: Prosperity
E122: Ravenel
E123: Reevesville
E124: Ridge Spring
E125: Ridgeland
E126: Ridgeville
E127: Ridgeway
E128: Rosewood
E129: Round O
E130: Rowesville
E131: Ruffin
E132: Saint George
E133: Saint Helena Island
E134: Saluda
E135: Santee
E136: Scotia
E137: Seabrook
E138: Sheldon
E139: Sieglers Crossroads
E140: Smoaks
E141: Springfield
E142: State Park
E143: Sullivans Island
E144: Summerville
E145: Swansea
E146: Sycamore
E147: Tillman
E148: Trenton
E149: Troy
E150: Ulmer
E151: Union
E152: University Park
E153: Vance
E154: Varnville
E155: Vaucluse
E156: Wagener
E157: Walterboro
E158: Ward
E159: Warrenville
E160: West Columbia
E161: White Hall
E162: White Rock
E163: Wildwood
E164: Williams
E165: Williston
E166: Windsor
E167: Winnsboro
E168: Yemassee

Sheet Terms and Conditions
A1: Dominion Energy South Carolina, Inc.
A2: TERMS AND CONDITIONS
A3: 1. Eligibility: EnergyWise for Your Business Program (“Program”) incentives are available to non-residential electric customers for the purchase and installation of qualifying energy conservation measures (ECMs) in the Dominion Energy South Carolina service territory, subject to these Terms and Conditions (T&Cs). The process of purchasing and installing ECMs for eligible Customers pursuant to the Program is referred to herein as a “Project” or “Projects”. Customers eligible for Rate 23 and specific large retail customers who have elected to opt out of Demand Side Management programs, by notifying us in writing using the Opt-Out form provided, are not eligible to participate. Dominion Energy South Carolina and our Program implementer (“Implementer”) (together, “We”) reserve the right to deny any application that may result in our exceeding its Program budget. Program incentives are limited, offered on a first-come/first-served basis, and are subject to Project and Customer eligibility and funds availability. For each Program year (December 1 – November 30), Program incentive payments are capped per Customer Federal tax ID number at $150,000 per Project type. 2. Project Types: The Program includes the following five Project types: Lighting Projects, HVAC and Mechanical Projects, Food Service and High Efficiency Equipment Projects, Agriculture Projects and Custom Projects. Lighting projects include Projects that use the Retrofit and New Construction Lighting Application. HVAC and Mechanical Projects include Projects listed on the HVAC Application and the Compressed Air and Motors Application including Unitary HVAC, Chillers, Heat Pump Water Heaters, Window Film, Cool Roof, Variable Frequency Drives, Guestroom Energy Management Systems, Advanced Roof Top Controls, Compressed Air Engineered Nozzles, Zero Loss Condensate Drains and High Efficiency Motors. Food Service and High Efficiency Equipment Projects include all cooking equipment and “plug load” equipment that is incentivized under the Food Service and High-Efficiency Equipment Application. Restaurant cooking equipment, ice machines, vending machine and refrigeration controls, commercial washers/dryers, and lighting that may be included inside the aforementioned equipment are considered Food Service and High Efficiency Equipment Projects. Agriculture Projects include all agriculture equipment that is incentivized under the Agriculture Application. Custom Projects are Projects that can demonstrate cost effective and lasting energy efficiency and do not fall under one of the aforementioned Project types. These Projects are “custom” tailored to the Customer for each Project and cannot receive a prescriptive incentive as the savings varies widely with each Project and technology. Building controls, Building Tune-ups, Whole Building Solutions, System Optimization, Technical Services, and new emerging technologies generally fall under this Project type. The above examples are provided for illustrative purposes only and may not be inclusive of all Projects. 3. Authorization, Program Changes, Suspension, or Cancellation: We may change the Program requirements, incentives or T&Cs, including suspending acceptance of applications or terminating the Program, at any time and without notice. In the event of a Program change, pre-approved applications will be processed to completion under the T&Cs in effect at time of pre-approval. Submission of a completed application does not entitle Customer to Program participation. For all Projects, entitlement to Program participation and our obligation to pay incentives may occur only after we have granted written authorization, which we may grant or not at its sole discretion. 4. Project Approval: Pre-approval is required for all projects except for eligible HVAC Unitary projects with total incentives less than or equal to $5,000 and Heat Pump Water Heater projects with total incentives less than or equal to $1,000. For Projects not requiring pre-approval, the customer may purchase and install the qualifying equipment and submit a completed application form, supporting documentation and invoice within 60 days of the equipment’s invoice date. For Projects requiring pre-approval, we reserve the right to inspect any Project prior to pre-approval. For Projects requiring pre-approval, no project-related ECMs may be ordered or installed prior to the date of our pre-approval. Violation of this prohibition will disqualify the ECM for incentives. Projects must be completed by the date listed on the pre-approval notification letter (within 180 calendar days for retrofit projects or one year for new construction projects). 5. Creditworthiness: An incentive payment is conditioned upon and subject to Customer maintaining its financial creditworthiness and keeping its account in good standing. At any time prior to an issuance of an incentive check, we may request financial information to support its financial due diligence procedures. Customer agrees to assist in this reasonable financial review. If we believe in good faith that the Customer’s account is not in good standing, or if creditworthiness of participant has been diminished, we may reject approval of an incentive payment. 6. Proof of Purchase: Prior to our verification of the ECM installation, Customer must provide copies of all invoices or other appropriate documentation that clearly verifies the costs of purchasing and installing the ECMs, including all material, labor, and equipment discounts. Invoices must indicate a verifiable breakout of all ECMs purchased for installation under the ECM incentives application, including model numbers and quantity. 7. Project Verification: We (or our Third-Party Evaluator “Evaluator”) may conduct an inspection of Customer’s facility to verify pre- and post-installation conditions or verify documentation prior to incentive payment at any time after receipt of an application. No warranty is expressed or implied by this verification. We are not obligated to pay any incentive until it has performed a satisfactory post-installation inspection. Should we determine that ECMs were not installed in accordance with the approved application, or if an unapproved ECM was installed, or if the installation was not consistent with generally accepted engineering/construction practices, changes may be required before payment is issued. Notwithstanding anything to the contrary, should we determine at any point before payment of the incentive that there has been significant deviation in the type, amount, cost or performance of the ECMs underlying this incentive commitment that were set forth in the Program application and pre-approved, we retain the right to revoke this commitment or reduce the final incentive amount accordingly. We reserve this right despite a satisfactory post-installation inspection. Customer agrees to provide prompt notice to us of any significant deviation in the type, amount, cost or performance of the ECMs underlying this incentive commitment that were set forth in the Program application and pre-approved by us. | B3: 8. Customer Tax Obligation: Customer or Customer’s designated contractor is responsible for declaring and paying any and all applicable federal, state, and local taxes that may be owed on any incentive payment. Neither Dominion Energy South Carolina, Inc. nor any of its subsidiaries shall be liable for any federal, state, and local taxes that may be owed on or as a result of any incentive payment. The party receiving the incentive payment (Customer or Contractor) must complete IRS Form W-9 and submit it to us with the incentive application materials. If payment is to a contractor, customer's W-9 must also be provided. 9. Compliance: Customer is responsible for obtaining any and all necessary licenses and permits related to the installation of ECMs. Customer also agrees to comply with all federal, state, and local laws, codes, and regulations related to the installation and disposal of all equipment. 10. Removal of Equipment: Customer agrees to remove and dispose of the equipment being replaced by the ECMs in accordance with all legal requirements. Customer agrees not to re-install any of this equipment in our service territory or transfer it to any other party for such installation. 11. Replacement of Failed Equipment: Customers who install ECMs are expected to replace any of the ECMs that fail with similar or superior energy savings equipment at Customer’s expense. 12. Evaluation Follow-up Visits: With advance notice, we reserve the right to make or to have its contractor(s) make follow-up visits to Customer facilities during the 36 months following completion of the project to provide us with an opportunity to review the operation of the ECMs for Program evaluation purposes. Customer agrees to cooperate with this effort. 13. Contractor Selection: Customer may select any contractor to perform the work contemplated by the application, even after the application is pre-approved by us. However, we reserve the right, in its sole discretion, to prohibit specific contractors from Program participation. 14. No Warranties: Dominion Energy South Carolina, Inc. does not endorse, guarantee, or warrant any particular manufacturer or product and we provide no warranties, express or implied, for any products or services, and herein specifically disclaims any such guarantees or warranties. We are not liable or responsible for any act or omission of any contractor hired by Customer. Customer’s reliance on warranties is limited to any warranties that may arise from, or be provided by contractors, vendors, etc. Customer acknowledges that neither Dominion Energy South Carolina, Inc. nor any of its consultants are responsible for ensuring that the design, engineering, and construction of the facility or installation of the ECMs are proper or comply with any particular laws (including patent laws), codes, regulations, or industry standards. We make no representations of any kind regarding the results to be achieved by the ECMs or the adequacy or safety of such measures. 15. Assumption of Risk and Limitation of Liability: Customer assumes and acknowledges all risks arising from its participation in the Program including but not limited to exposure to the novel coronavirus (“COVID-19”) and releases and discharges Dominion Energy, Inc., Dominion Energy South Carolina, its Implementer, Evaluator, and their respective officers, directors, employees and agents from any liability related thereto. Our sole obligation is limited to paying the properly qualified rebates specified herein. Neither Dominion Energy South Carolina, Inc., any of its subsidiaries, nor its Implementer or Evaluator shall be liable to Customer or any other party for any special, indirect, consequential, or incidental damages, regardless of the theory of recovery, caused by or arising from any activities associated with this Program. 16. Obligations between the Parties: Customer acknowledges that any contractor selected by Customer is not an agent, contractor, or subcontractor of Dominion Energy South Carolina and is an independent contractor engaged by Customer, and that we do not manage or control the contractor’s performance. We shall have no obligation to maintain, remove, or perform any work whatsoever on the ECMs installed. We shall have no liability for a contractor’s failure to perform, for failure of the energy savings measures to function, for any damage to Customer’s premises caused by the contractor, or for any and all damages to property or injuries to persons caused by or associated with the energy savings measures. 17. Miscellaneous: These T&Cs and this application, of which these T&Cs are an integral part, constitute the entire agreement between the parties and supersede all other communications, representations, and understandings. | D3: =B6 -> 0
B8: Version # 15.1

Sheet Equipment Input Instructions
F2: HVAC Application - Electronic Version
E6: HVAC Unitary | H6: Window Film | K6: Cool Roof | N6: HVAC Chillers
E9: VFDs | H9: Heat Pump Water Heater | K9: Guestroom Controls | N9: Advanced RTU Controls
Q11: ="Version # "&'Version Tracking'!C4 -> Version # 15.2
C12: Instructions
C13: The following tabs are available Equipment tabs for the HVAC Application
C14: ▪ | D14: HVAC Unitary - Unitary and split systems, PTACs and PTHPs
C15: ▪ | D15: Window Film - Window glazing on commercial buildings
C16: ▪ | D16: HVAC Chillers - Single speed air-cooled, single speed water-cooled and variable speed water cooled
C17: ▪ | D17: Cool Roof - Reflective roof systems
C18: ▪ | D18: VFDs - For HVAC equipment
C19: ▪ | D19: HPWH - For Heat Pump Water Heaters
C20: ▪ | D20: Guestroom Energy Management- For guestroom controls
C21: ▪ | D21: Advanced RTU Controls - For advanced rooftop controls
C23: 1. | D23: Read technical requirements on each specific Equipment tab.
C24: 2. | D24: Enter make, model, quantity and other specific equipment specifications of equipment being applied for in shaded areas of applicable Equipment tab(s)
C25: 3. | D25: Measure Code Summary tab will be automatically populated based on Equipment tab entries.
C26: 4. | D26: Application packages must be submitted by email.
D27: Email Address: | F27: EnergyExperts@SC.DominionEnergyAccount.com

Sheet HVAC Unitary
A4: C&I Prescriptive - Unitary HVAC
A5: ="Version # "&'Version Tracking'!C4 -> Version # 15.2
A6: Fill in Blue Cells Only!
A7: HVAC UNITARY TECHNICAL REQUIREMENTS & WORKBOOK INSTRUCTIONS
A8: TECHNICAL REQUIREMENTS • Unitary/Single Package and split system cooling equipment must meet Air-Conditioning, Heating, and Refrigeration Institute (AHRI) standards (210/240, 320, or 340/360), be certified by a Nationally Recognized Testing Laboratory (NRTL), and use a minimum ozone-depleting refrigerant (e.g., HCFC or HFC). • Electric Unitary/Single Packaged units and Split Systems for Air Conditioners (AC), Air Source Heat Pumps (HP), Packaged Terminal Air Conditioners (PTAC), and Packaged Terminal Heat Pumps (PTHP) are eligible systems. • Qualifying Split Systems must have both a new condenser and a new coil that meet AHRI specifications. Matched system performance (condenser + coil) must meet or exceed all minimum system requirements for Tier I or Tier II listed in Table 1. • Unitary/Single Package, PTACs, and PTHPs being installed must meet or exceed all minimum system requirements for Tier I or Tier II listed in Table 1. WORKBOOK INSTRUCTIONS • In 2023, new efficiency rating systems were introduced for AC and HP units less than 65,000 BTUh (<5.4 tons) in size. When entering efficiency ratings for these size units in columns K and L, use SEER2 and HSPF2 ratings to meet the minimum efficiency requirements. • Energy efficiency ratings required for each type of system are list below: o Air Conditioners: Unitary/Single Package and Split Systems – SEER2 for less than 5.4 tons and IEER for greater than 5.4 tons. o Air Source Heat Pumps: Unitary/Single Package and Split Systems - SEER2 and HSPF2 for less than 5.4 tons and IEER for greater than 5.4 tons. o Packaged Terminal Air Conditioner (PTAC) – EER for all unit sizes. o Packaged Terminal Heat Pump (PTHP) – EER and COP for all unit sizes. • EER/EER2 ratings from the AHRI certificate must be entered in Column J on the Worksheet regardless of unit type, or whether it affects program incentive. • Cooling (and heating capacity where applicable) in BTUh should be acquired from the AHRI certificate and entered into the application worksheet in column H and I respectively. • Program Incentive will be calculated based on AHRI Cooling BTUh “Tons”- AHRI Cooling where 1 ton = 12,000 BTUh Blue cell must be filled in for calculations to determine if eligible for incentive.
P9: Summary Table
P10: Total kWh | Q10: Total Summer Coincident Peak (kW) | R10: Total Winter Coincident Peak (kW) | S10: Total Incentive
P11: =SUM(P23:P32) -> 0 | Q11: =SUM(Q23:Q32) -> 0 | R11: =SUM(R23:R32) -> 0 | S11: =SUM(S23:S32) -> 0
B16: Input Cells
C17: Data input allowed in shaded cells only. | K17: *If print button malfunctions,
P18: Hide these columns for public facing document
B19: Unitary HVAC
B20: Line Item | C20: Building Type | D20: Device Type | E20: Manufacturer | F20: Model # | G20: Size (tons) | H20: AHRI Cooling Capacity (BTUh) | I20: AHRI Heating Capacity (BTUh) | J20: Unit Efficiency | M20: Quantity | N20: Incentive Requested | P20: Total kWh Saved | Q20: Summer Coincident Peak kW Saved | R20: Winter Coincident Peak kW Saved | S20: Total Incentive | T20: Incentive per Ton or unit | U20: Unit Qualifies
J21: EER or EER2 | K21: SEER2 or IEER | L21: HSPF2 or COP
B22: Ex. | C22: Office | D22: Split System Heat Pump | E22: klanvbk | F22: 32160 | G22: 5 | H22: 61000 | I22: 56000 | J22: 12.5 | K22: 16 | L22: 8 | M22: 1 | N22: =S22 -> 0
B23: 1 | N23: =IFERROR(S23*U23,0) -> 0 | P23: =HVACCalcs!AQ5 -> 0 | Q23: =HVACCalcs!AR5 -> 0 | R23: =HVACCalcs!AS5 -> 0 | S23: =IFERROR(IF(VLOOKUP(D23,Validation!$C$3:$G$9,5,FALSE)="Unit",M23*T23,M23*T23*G23),0) -> 0 | T23: =HVACCalcs!AD5 -> 0 | U23: =IF(HVACCalcs!AC5="Yes",1,0) -> 0
B24: 2 | N24: 0 | P24: =HVACCalcs!AQ6 -> 0 | Q24: =HVACCalcs!AR6 -> 0 | R24: =HVACCalcs!AS6 -> 0 | S24: =IFERROR(IF(VLOOKUP(D24,Validation!$C$3:$G$9,5,FALSE)="Unit",M24*T24,M24*T24*G24),0) -> 0 | T24: =HVACCalcs!AD6 -> 0 | U24: =IF(HVACCalcs!AC6="Yes",1,0) -> 0
B25: 3 | N25: 0 | P25: =HVACCalcs!AQ7 -> 0 | Q25: =HVACCalcs!AR7 -> 0 | R25: =HVACCalcs!AS7 -> 0 | S25: =IFERROR(IF(VLOOKUP(D25,Validation!$C$3:$G$9,5,FALSE)="Unit",M25*T25,M25*T25*G25),0) -> 0 | T25: =HVACCalcs!AD7 -> 0 | U25: =IF(HVACCalcs!AC7="Yes",1,0) -> 0
B26: 4 | N26: 0 | P26: =HVACCalcs!AQ8 -> 0 | Q26: =HVACCalcs!AR8 -> 0 | R26: =HVACCalcs!AS8 -> 0 | S26: =IFERROR(IF(VLOOKUP(D26,Validation!$C$3:$G$9,5,FALSE)="Unit",M26*T26,M26*T26*G26),0) -> 0 | T26: =HVACCalcs!AD8 -> 0 | U26: =IF(HVACCalcs!AC8="Yes",1,0) -> 0
B27: 5 | N27: 0 | P27: =HVACCalcs!AQ9 -> 0 | Q27: =HVACCalcs!AR9 -> 0 | R27: =HVACCalcs!AS9 -> 0 | S27: =IFERROR(IF(VLOOKUP(D27,Validation!$C$3:$G$9,5,FALSE)="Unit",M27*T27,M27*T27*G27),0) -> 0 | T27: =HVACCalcs!AD9 -> 0 | U27: =IF(HVACCalcs!AC9="Yes",1,0) -> 0
B28: 6 | N28: 0 | P28: =HVACCalcs!AQ10 -> 0 | Q28: =HVACCalcs!AR10 -> 0 | R28: =HVACCalcs!AS10 -> 0 | S28: =IFERROR(IF(VLOOKUP(D28,Validation!$C$3:$G$9,5,FALSE)="Unit",M28*T28,M28*T28*G28),0) -> 0 | T28: =HVACCalcs!AD10 -> 0 | U28: =IF(HVACCalcs!AC10="Yes",1,0) -> 0
B29: 7 | N29: 0 | P29: =HVACCalcs!AQ11 -> 0 | Q29: =HVACCalcs!AR11 -> 0 | R29: =HVACCalcs!AS11 -> 0 | S29: =IFERROR(IF(VLOOKUP(D29,Validation!$C$3:$G$9,5,FALSE)="Unit",M29*T29,M29*T29*G29),0) -> 0 | T29: =HVACCalcs!AD11 -> 0 | U29: =IF(HVACCalcs!AC11="Yes",1,0) -> 0
B30: 8 | N30: 0 | P30: =HVACCalcs!AQ12 -> 0 | Q30: =HVACCalcs!AR12 -> 0 | R30: =HVACCalcs!AS12 -> 0 | S30: =IFERROR(IF(VLOOKUP(D30,Validation!$C$3:$G$9,5,FALSE)="Unit",M30*T30,M30*T30*G30),0) -> 0 | T30: =HVACCalcs!AD12 -> 0 | U30: =IF(HVACCalcs!AC12="Yes",1,0) -> 0
B31: 9 | N31: 0 | P31: =HVACCalcs!AQ13 -> 0 | Q31: =HVACCalcs!AR13 -> 0 | R31: =HVACCalcs!AS13 -> 0 | S31: =IFERROR(IF(VLOOKUP(D31,Validation!$C$3:$G$9,5,FALSE)="Unit",M31*T31,M31*T31*G31),0) -> 0 | T31: =HVACCalcs!AD13 -> 0 | U31: =IF(HVACCalcs!AC13="Yes",1,0) -> 0
B32: 10 | N32: 0 | P32: =HVACCalcs!AQ14 -> 0 | Q32: =HVACCalcs!AR14 -> 0 | R32: =HVACCalcs!AS14 -> 0 | S32: =IFERROR(IF(VLOOKUP(D32,Validation!$C$3:$G$9,5,FALSE)="Unit",M32*T32,M32*T32*G32),0) -> 0 | T32: =HVACCalcs!AD14 -> 0 | U32: =IF(HVACCalcs!AC14="Yes",1,0) -> 0
L33: =IFERROR(IF('Project Information'!$N$6="","Please fill in zip code in cell L6 on Project Information tab",IF(OR(VLOOKUP('Project Information'!$N$6,Validation!$B$115:$D$515,3,FALSE)="Charleston",VLOOKUP('Project Information'!$N$6,Validation!$B$115:$D$515,3,FALSE)="Columbia"),1)),"Ineligible zip code. Please check cell L6 on Project Information tab") -> Please fill in zip code in cell L6 on Project Information tab
B36: TABLE 1: QUALIFYING EFFICIENCY AND INCENTIVES
B37: Size Category (tons) | F37: Sub-Category | I37: Tier 1 Minimum Requirement | J37: Tier 1 Incentive | K37: Tier 2 Minimum Requirement | M37: Tier 2 Incentive
B38: Air Conditioners (Cooling Mode) - Unitary and Split Systems
B39: <5.4 | F39: Split System | I39: 15.2 SEER2 | J39: $75/ton | K39: 16.2 SEER2 | M39: $100/ton
F40: Single Package | I40: 14.3 SEER2 | K40: 15.2 SEER2
B41: ≥ 5.4 and < 11.25 | F41: Split System and Single Package | I41: 15.3 IEER | J41: $60/ton | K41: 15.8 IEER | M41: $75/ton
B42: ≥ 11.25 and < 20 | F42: Split System and Single Package | I42: 14.7 IEER | J42: $50/ton | K42: 15.10 IEER | M42: $70/ton
B43: ≥ 20 and < 63.3 | F43: Split System and Single Package | I43: 13.6 IEER | J43: $40/ton | K43: 14.10 IEER | M43: $60/ton
B44: ≥ 63.3 | F44: Split System and Single Package | I44: 11.6 IEER | J44: $15/ton | K44: 12.0 IEER | M44: $20/ton
B45: Air Source Heat Pumps (Cooling Mode) - Unitary and Split Systems
B46: < 5.4 | F46: Split System | I46: 15.2 SEER2 and 7.8 HSPF2 | J46: $100/ton | K46: 16.2 SEER2 and 8.0 HSPF2 | M46: $125/ton
F47: Single Package | I47: 14.3 SEER2 and 7 HSPF2 | J47: $100/ton | K47: 15.2 SEER2 and 7.2 HSPF2 | M47: $125/ton
B48: ≥ 5.4 and < 11.25 | F48: Split System and Single Package | I48: 15.3 IEER | J48: $75/ton | K48: 15.8 IEER | M48: $100/ton
B49: ≥ 11.25 and < 20 | F49: Split System and Single Package | I49: 14.7 IEER | J49: $55/ton | K49: 15.10 IEER | M49: $80/ton
B50: ≥ 20 | F50: Split System and Single Package | I50: 13.6 IEER | J50: $50/ton | K50: 14.10 IEER | M50: $75/ton
B51: Packaged Terminal Air Conditioner (PTAC)
B52: < 0.75 | F52: Single Package | I52: 12.0 EER | J52: $20/unit
B53: ≥ 0.75 and < 1.0 | I53: 11.5 EER | J53: $30/unit
B54: ≥ 1.0 | I54: 10.5 EER | J54: $40/unit
B55: Packaged Terminal Heat Pump (PTHP)
B56: < 0.75 | F56: Single Package | I56: 12.0 EER and 3.3 COP | J56: $40/unit
B57: ≥ 0.75 and < 1.0 | I57: 11.5 EER and 3.2 COP | J57: $50/unit
B58: ≥ 1.0 | I58: 10.3 EER and 3.2 COP | J58: $60/unit
B59: Note: Tons are based on 12,000 BTUH net output per ton.
M60: ="Version " & 'Version Tracking'!C4 -> Version 15.2

Sheet HVACCalcs (hidden)
B2: Proposed Unit Tier Qualification | M2: 2 | N2: 3 | O2: 4
B3: Input sheet row | C3: Device Type | D3: System Type | E3: System Type | F3: Unit Tons | G3: Nominal BTUh | H3: BTUh Cooling | I3: BTUh Heating | J3: Size Category | K3: Rating System | L3: Concat | M3: AC/HP Full Load Lookup Reference | N3: AC/HP Full Load Lookup Reference | O3: AC/HP Full Load Lookup Reference | P3: Proposed Unit Efficiencies | S3: Baseline Efficiencies | V3: Tier 1 required efficiency | Y3: Tier 2 required efficiency | AB3: Tier Achieved | AC3: Unit Qualifies | AD3: Incentive/ton or unit for PTAC/HP | AE3: Quantity | AF3: Total Incentive | AG3: Building Type | AH3: EFLHc | AI3: EFLHh | AJ3: kWh Savings/ton or unit | AM3: kW Savings/ton or unit
P4: EER | Q4: Part Load | R4: COP | S4: Full Load | T4: Part Load | U4: COP | V4: Full Load | W4: Part Load | X4: COP | Y4: Full Load | Z4: Part Load | AA4: COP | AJ4: Cooling Energy Savings | AK4: Heating Energy Savings | AL4: Combined Energy Savings | AM4: Summer Peak CF | AN4: Summer Peak Savings | AO4: Winter Peak CF | AP4: Winter Peak Savings | AQ4: Total kWh Savings | AR4: Summer Peak Coincidence kW Savings | AS4: Winter Peak Coincidence kW Savings
B5: 1 | C5: ='HVAC Unitary'!D23 -> 0 | D5: =IFERROR(VLOOKUP(C5,Validation!$C$3:$E$9,3,FALSE),"") ->  | E5: =IFERROR(VLOOKUP(C5,Validation!$C$3:$F$9,4,FALSE),"") ->  | F5: ='HVAC Unitary'!G23 -> 0 | G5: =F5*12000 -> 0 | H5: ='HVAC Unitary'!H23 -> 0 | I5: ='HVAC Unitary'!I23 -> 0 | J5: =VLOOKUP(G5,INDIRECT(D5&"Baseline"),1) ->  | K5: New | L5: =_xlfn.CONCAT(D5,J5,E5,K5) ->  | M5: =IFERROR(IF(OR($D5="AC",$D5="HP"),VLOOKUP($L5,$F$23:$I$70,M$2,FALSE),0),0) -> 0 | N5: 0 | O5: 0 | P5: ='HVAC Unitary'!J23 -> 0 | Q5: ='HVAC Unitary'!K23 -> 0 | R5: =IF(G5>65000,'HVAC Unitary'!L23,'HVAC Unitary'!L23/IF(D5="PTHP",1,3.413)) -> 0 | S5: =IF($D5="","",IF($D5="PTAC",VLOOKUP($G5,PTACBaseline,3)+VLOOKUP($G5,PTACBaseline,4)*$G5/1000,IF($D5="PTHP",VLOOKUP($G5,PTHPBaseline,3)+VLOOKUP($G5,PTHPBaseline,4)*$G5/1000,IF($D5="AC",VLOOKUP($G5,ACBaseline,M5),IF($D5="HP",VLOOKUP($G5,HPBaseline,M5),""))))) ->  | T5: =IF($D5="","",IF($D5="PTAC",0,IF($D5="PTHP",0,IF($D5="AC",VLOOKUP($G5,ACBaseline,N5),IF($D5="HP",VLOOKUP($G5,HPBaseline,N5),""))))) ->  | U5: =IF($D5="","",IF($D5="PTAC",0,IF($D5="PTHP",VLOOKUP($G5,PTHPBaseline,6)+VLOOKUP($G5,PTHPBaseline,7)*$G5/1000,IF($D5="AC",0,IF($D5="HP",VLOOKUP($G5,HPBaseline,O5),""))))) ->  | V5: =IF($D5="","",IF($D5="PTAC",VLOOKUP($G5,PTACMinEffT1,3),IF($D5="PTHP",VLOOKUP($G5,PTHPMinEffT1,3),IF($D5="AC",VLOOKUP($G5,ACMinEffT1,M5),IF($D5="HP",VLOOKUP($G5,HPMinEffT1,M5),""))))) ->  | W5: =IF($D5="","",IF($D5="PTAC",0,IF($D5="PTHP",0,IF($D5="AC",VLOOKUP($G5,ACMinEffT1,N5),IF($D5="HP",VLOOKUP($G5,HPMinEffT1,N5),""))))) ->  | X5: =IF($D5="","",IF($D5="PTAC",0,IF($D5="PTHP",VLOOKUP($G5,PTHPMinEffT1,5),IF($D5="AC",0,IF($D5="HP",VLOOKUP($G5,HPMinEffT1,O5),""))))) ->  | Y5: =IF($D5="","",IF($D5="PTAC",999,IF($D5="PTHP",999,IF($D5="AC",VLOOKUP($G5,ACMinEffT2,M5),IF($D5="HP",VLOOKUP($G5,HPMinEffT2,M5),""))))) ->  | Z5: =IF($D5="","",IF($D5="PTAC",0,IF($D5="PTHP",0,IF($D5="AC",VLOOKUP($G5,ACMinEffT2,N5),IF($D5="HP",VLOOKUP($G5,HPMinEffT2,N5),""))))) ->  | AA5: =IF($D5="","",IF($D5="PTAC",999,IF($D5="PTHP",999,IF($D5="AC",0,IF($D5="HP",VLOOKUP($G5,HPMinEffT2,O5),""))))) ->  | AB5: =IFERROR(IF(OR(C5=0,F5=0),"-",IF(AND(P5>=Y5,Q5>=Z5,R5>=AA5),"Tier 2",IF(AND(P5>=V5,Q5>=W5,R5>=X5),"Tier 1","-"))),"-") -> - | AC5: =IFERROR(IF(AB5="-","No","Yes"),"No") -> No | AD5: =IF(D5="PTAC",VLOOKUP(G5,PTACMinEffT1,5),IF(D5="PTHP",VLOOKUP(G5,PTHPMinEffT1,7),IF(AB5="Tier 1",IF(D5="AC",VLOOKUP(G5,ACMinEffT1,15),IF(D5="HP",VLOOKUP(G5,HPMinEffT1,21),4)),IF(AB5="Tier 2",IF(D5="AC",VLOOKUP(G5,ACMinEffT2,15),IF(D5="HP",VLOOKUP(G5,HPMinEffT2,21),4)),0)))) -> 0 | AE5: ='HVAC Unitary'!M23 -> 0 | AF5: =AD5*AE5 -> 0 | AG5: ='HVAC Unitary'!C23 -> 0 | AH5: =VLOOKUP(AG5,Validation!$C$13:$G$24,IF(VLOOKUP('Project Information'!$N$6,Validation!$B$116:$D$515,3,FALSE)="Charleston",4,5)) ->  | AI5: =VLOOKUP(AG5,Validation!$C$13:$G$24,IF(VLOOKUP('Project Information'!$N$6,Validation!$B$116:$D$515,3,FALSE)="Charleston",2,3)) ->  | AJ5: =IFERROR(IF(AC5="No",0,H5/1000*(1/IF(OR(D5="AC",D5="HP"),T5,S5)-(1/IF(OR(D5="AC",D5="HP"),Q5,P5)))*AH5),0) -> 0 | AK5: =IFERROR(IF(AC5="No",0,I5/3412*(1/IF(OR(D5="AC",D5="PTAC"),1,U5)-(1/IF(OR(D5="AC",D5="PTAC"),1,R5)))*AI5),0) -> 0 | AL5: =AK5+AJ5 -> 0 | AM5: 0.8 | AN5: =IFERROR(IF(AC5="No",0,H5/1000*((1/S5)-(1/P5))*AM5),0) -> 0 | AO5: =_xlfn.XLOOKUP(C5,Validation!$C$3:$C$9,Validation!$H$3:$H$9) ->  | AP5: =IFERROR(IF(AC5="No",0,IF(D5="HP",I5/3412*((1/U5)-(1/R5)),H5/1000*((1/S5)-(1/P5))))*AO5,0) -> 0 | AQ5: =AL5*$AE5 -> 0 | AR5: =IF(AN5*$AE5 < 0, 0, AN5*$AE5) -> 0 | AS5: =IF(AP5*$AE5 < 0, 0, AP5*$AE5) -> 0
B6: 2 | C6: ='HVAC Unitary'!D24 -> 0 | D6: =IFERROR(VLOOKUP(C6,Validation!$C$3:$E$9,3,FALSE),"") ->  | E6: =IFERROR(VLOOKUP(C6,Validation!$C$3:$F$9,4,FALSE),"") ->  | F6: ='HVAC Unitary'!G24 -> 0 | G6: =F6*12000 -> 0 | H6: ='HVAC Unitary'!H24 -> 0 | I6: ='HVAC Unitary'!I24 -> 0 | K6: New | M6: 0 | N6: 0 | O6: 0 | P6: ='HVAC Unitary'!J24 -> 0 | Q6: ='HVAC Unitary'!K24 -> 0 | R6: =IF(G6>65000,'HVAC Unitary'!L24,'HVAC Unitary'!L24/IF(D6="PTHP",1,3.413)) -> 0 | AB6: - | AC6: =IFERROR(IF(AB6="-","No","Yes"),"No") -> No | AD6: 0 | AE6: ='HVAC Unitary'!M24 -> 0 | AF6: =AD6*AE6 -> 0 | AG6: ='HVAC Unitary'!C24 -> 0 | AH6: =VLOOKUP(AG6,Validation!$C$13:$G$24,IF(VLOOKUP('Project Information'!$N$6,Validation!$B$116:$D$515,3,FALSE)="Charleston",4,5)) ->  | AI6: =VLOOKUP(AG6,Validation!$C$13:$G$24,IF(VLOOKUP('Project Information'!$N$6,Validation!$B$116:$D$515,3,FALSE)="Charleston",2,3)) ->  | AJ6: =IFERROR(IF(AC6="No",0,H6/1000*(1/IF(OR(D6="AC",D6="HP"),T6,S6)-(1/IF(OR(D6="AC",D6="HP"),Q6,P6)))*AH6),0) -> 0 | AK6: =IFERROR(IF(AB6="-",0,I6/3412*(1/IF(OR(D6="AC",D6="PTAC"),1,U6)-(1/IF(OR(D6="AC",D6="PTAC"),1,R6)))*AI6),0) -> 0 | AL6: 0 | AM6: 0.8 | AN6: =IFERROR(IF(AC6="No",0,H6/1000*((1/S6)-(1/P6))*AM6),0) -> 0 | AO6: =_xlfn.XLOOKUP(C6,Validation!$C$3:$C$9,Validation!$H$3:$H$9) ->  | AP6: =IFERROR(IF(AC6="No",0,IF(D6="HP",I6/3412*((1/U6)-(1/R6)),H6/1000*((1/S6)-(1/P6))))*AO6,0) -> 0 | AQ6: =AL6*$AE6 -> 0 | AR6: =IF(AN6*$AE6 < 0, 0, AN6*$AE6) -> 0 | AS6: =IF(AP6*$AE6 < 0, 0, AP6*$AE6) -> 0
B7: 3 | C7: ='HVAC Unitary'!D25 -> 0 | D7: =IFERROR(VLOOKUP(C7,Validation!$C$3:$E$9,3,FALSE),"") ->  | E7: =IFERROR(VLOOKUP(C7,Validation!$C$3:$F$9,4,FALSE),"") ->  | F7: ='HVAC Unitary'!G25 -> 0 | G7: 0 | H7: ='HVAC Unitary'!H25 -> 0 | I7: ='HVAC Unitary'!I25 -> 0 | K7: New | M7: 0 | N7: 0 | O7: 0 | P7: ='HVAC Unitary'!J25 -> 0 | Q7: ='HVAC Unitary'!K25 -> 0 | R7: =IF(G7>65000,'HVAC Unitary'!L25,'HVAC Unitary'!L25/IF(D7="PTHP",1,3.413)) -> 0 | AB7: - | AC7: No | AD7: 0 | AE7: ='HVAC Unitary'!M25 -> 0 | AF7: 0 | AG7: ='HVAC Unitary'!C25 -> 0 | AH7: =VLOOKUP(AG7,Validation!$C$13:$G$24,IF(VLOOKUP('Project Information'!$N$6,Validation!$B$116:$D$515,3,FALSE)="Charleston",4,5)) ->  | AI7: =VLOOKUP(AG7,Validation!$C$13:$G$24,IF(VLOOKUP('Project Information'!$N$6,Validation!$B$116:$D$515,3,FALSE)="Charleston",2,3)) ->  | AJ7: 0 | AK7: 0 | AL7: 0 | AM7: 0.8 | AN7: 0 | AO7: =_xlfn.XLOOKUP(C7,Validation!$C$3:$C$9,Validation!$H$3:$H$9) ->  | AP7: 0 | AQ7: 0 | AR7: 0 | AS7: 0
B8: 4 | C8: ='HVAC Unitary'!D26 -> 0 | D8: =IFERROR(VLOOKUP(C8,Validation!$C$3:$E$9,3,FALSE),"") ->  | E8: =IFERROR(VLOOKUP(C8,Validation!$C$3:$F$9,4,FALSE),"") ->  | F8: ='HVAC Unitary'!G26 -> 0 | G8: 0 | H8: ='HVAC Unitary'!H26 -> 0 | I8: ='HVAC Unitary'!I26 -> 0 | K8: New | M8: 0 | N8: 0 | O8: 0 | P8: ='HVAC Unitary'!J26 -> 0 | Q8: ='HVAC Unitary'!K26 -> 0 | R8: =IF(G8>65000,'HVAC Unitary'!L26,'HVAC Unitary'!L26/IF(D8="PTHP",1,3.413)) -> 0 | AB8: - | AC8: No | AD8: 0 | AE8: ='HVAC Unitary'!M26 -> 0 | AF8: 0 | AG8: ='HVAC Unitary'!C26 -> 0 | AH8: =VLOOKUP(AG8,Validation!$C$13:$G$24,IF(VLOOKUP('Project Information'!$N$6,Validation!$B$116:$D$515,3,FALSE)="Charleston",4,5)) ->  | AI8: =VLOOKUP(AG8,Validation!$C$13:$G$24,IF(VLOOKUP('Project Information'!$N$6,Validation!$B$116:$D$515,3,FALSE)="Charleston",2,3)) ->  | AJ8: 0 | AK8: 0 | AL8: 0 | AM8: 0.8 | AN8: 0 | AO8: =_xlfn.XLOOKUP(C8,Validation!$C$3:$C$9,Validation!$H$3:$H$9) ->  | AP8: 0 | AQ8: 0 | AR8: 0 | AS8: 0
B9: 5 | C9: ='HVAC Unitary'!D27 -> 0 | D9: =IFERROR(VLOOKUP(C9,Validation!$C$3:$E$9,3,FALSE),"") ->  | E9: =IFERROR(VLOOKUP(C9,Validation!$C$3:$F$9,4,FALSE),"") ->  | F9: ='HVAC Unitary'!G27 -> 0 | G9: 0 | H9: ='HVAC Unitary'!H27 -> 0 | I9: ='HVAC Unitary'!I27 -> 0 | K9: New | M9: 0 | N9: 0 | O9: 0 | P9: ='HVAC Unitary'!J27 -> 0 | Q9: ='HVAC Unitary'!K27 -> 0 | R9: =IF(G9>65000,'HVAC Unitary'!L27,'HVAC Unitary'!L27/IF(D9="PTHP",1,3.413)) -> 0 | AB9: =IFERROR(IF(OR(C9=0,F9=0),"-",IF(AND(P9>=Y9,Q9>=Z9,R9>=AA9),"Tier 2",IF(AND(P9>=V9,Q9>=W9,R9>=X9),"Tier 1","-"))),"-") -> - | AC9: No | AD9: 0 | AE9: ='HVAC Unitary'!M27 -> 0 | AF9: 0 | AG9: ='HVAC Unitary'!C27 -> 0 | AH9: =VLOOKUP(AG9,Validation!$C$13:$G$24,IF(VLOOKUP('Project Information'!$N$6,Validation!$B$116:$D$515,3,FALSE)="Charleston",4,5)) ->  | AI9: =VLOOKUP(AG9,Validation!$C$13:$G$24,IF(VLOOKUP('Project Information'!$N$6,Validation!$B$116:$D$515,3,FALSE)="Charleston",2,3)) ->  | AJ9: 0 | AK9: 0 | AL9: 0 | AM9: 0.8 | AN9: 0 | AO9: =_xlfn.XLOOKUP(C9,Validation!$C$3:$C$9,Validation!$H$3:$H$9) ->  | AP9: 0 | AQ9: 0 | AR9: 0 | AS9: 0
B10: 6 | C10: ='HVAC Unitary'!D28 -> 0 | D10: =IFERROR(VLOOKUP(C10,Validation!$C$3:$E$9,3,FALSE),"") ->  | E10: =IFERROR(VLOOKUP(C10,Validation!$C$3:$F$9,4,FALSE),"") ->  | F10: ='HVAC Unitary'!G28 -> 0 | G10: 0 | H10: ='HVAC Unitary'!H28 -> 0 | I10: ='HVAC Unitary'!I28 -> 0 | K10: New | M10: 0 | N10: 0 | O10: 0 | P10: ='HVAC Unitary'!J28 -> 0 | Q10: ='HVAC Unitary'!K28 -> 0 | R10: =IF(G10>65000,'HVAC Unitary'!L28,'HVAC Unitary'!L28/IF(D10="PTHP",1,3.413)) -> 0 | AB10: =IFERROR(IF(OR(C10=0,F10=0),"-",IF(AND(P10>=Y10,Q10>=Z10,R10>=AA10),"Tier 2",IF(AND(P10>=V10,Q10>=W10,R10>=X10),"Tier 1","-"))),"-") -> - | AC10: No | AD10: 0 | AE10: ='HVAC Unitary'!M28 -> 0 | AF10: 0 | AG10: ='HVAC Unitary'!C28 -> 0 | AH10: =VLOOKUP(AG10,Validation!$C$13:$G$24,IF(VLOOKUP('Project Information'!$N$6,Validation!$B$116:$D$515,3,FALSE)="Charleston",4,5)) ->  | AI10: =VLOOKUP(AG10,Validation!$C$13:$G$24,IF(VLOOKUP('Project Information'!$N$6,Validation!$B$116:$D$515,3,FALSE)="Charleston",2,3)) ->  | AJ10: 0 | AK10: 0 | AL10: 0 | AM10: 0.8 | AN10: 0 | AO10: =_xlfn.XLOOKUP(C10,Validation!$C$3:$C$9,Validation!$H$3:$H$9) ->  | AP10: 0 | AQ10: 0 | AR10: 0 | AS10: 0
B11: 7 | C11: ='HVAC Unitary'!D29 -> 0 | D11: =IFERROR(VLOOKUP(C11,Validation!$C$3:$E$9,3,FALSE),"") ->  | E11: =IFERROR(VLOOKUP(C11,Validation!$C$3:$F$9,4,FALSE),"") ->  | F11: ='HVAC Unitary'!G29 -> 0 | G11: 0 | H11: ='HVAC Unitary'!H29 -> 0 | I11: ='HVAC Unitary'!I29 -> 0 | K11: New | M11: 0 | N11: 0 | O11: 0 | P11: ='HVAC Unitary'!J29 -> 0 | Q11: ='HVAC Unitary'!K29 -> 0 | R11: =IF(G11>65000,'HVAC Unitary'!L29,'HVAC Unitary'!L29/IF(D11="PTHP",1,3.413)) -> 0 | AB11: - | AC11: No | AD11: 0 | AE11: ='HVAC Unitary'!M29 -> 0 | AF11: 0 | AG11: ='HVAC Unitary'!C29 -> 0 | AH11: =VLOOKUP(AG11,Validation!$C$13:$G$24,IF(VLOOKUP('Project Information'!$N$6,Validation!$B$116:$D$515,3,FALSE)="Charleston",4,5)) ->  | AI11: =VLOOKUP(AG11,Validation!$C$13:$G$24,IF(VLOOKUP('Project Information'!$N$6,Validation!$B$116:$D$515,3,FALSE)="Charleston",2,3)) ->  | AJ11: 0 | AK11: 0 | AL11: 0 | AM11: 0.8 | AN11: 0 | AO11: =_xlfn.XLOOKUP(C11,Validation!$C$3:$C$9,Validation!$H$3:$H$9) ->  | AP11: 0 | AQ11: 0 | AR11: 0 | AS11: 0
B12: 8 | C12: ='HVAC Unitary'!D30 -> 0 | D12: =IFERROR(VLOOKUP(C12,Validation!$C$3:$E$9,3,FALSE),"") ->  | E12: =IFERROR(VLOOKUP(C12,Validation!$C$3:$F$9,4,FALSE),"") ->  | F12: ='HVAC Unitary'!G30 -> 0 | G12: 0 | H12: ='HVAC Unitary'!H30 -> 0 | I12: ='HVAC Unitary'!I30 -> 0 | K12: New | M12: 0 | N12: 0 | O12: 0 | P12: ='HVAC Unitary'!J30 -> 0 | Q12: ='HVAC Unitary'!K30 -> 0 | R12: =IF(G12>65000,'HVAC Unitary'!L30,'HVAC Unitary'!L30/IF(D12="PTHP",1,3.413)) -> 0 | AB12: - | AC12: No | AD12: 0 | AE12: ='HVAC Unitary'!M30 -> 0 | AF12: 0 | AG12: ='HVAC Unitary'!C30 -> 0 | AH12: =VLOOKUP(AG12,Validation!$C$13:$G$24,IF(VLOOKUP('Project Information'!$N$6,Validation!$B$116:$D$515,3,FALSE)="Charleston",4,5)) ->  | AI12: =VLOOKUP(AG12,Validation!$C$13:$G$24,IF(VLOOKUP('Project Information'!$N$6,Validation!$B$116:$D$515,3,FALSE)="Charleston",2,3)) ->  | AJ12: 0 | AK12: 0 | AL12: 0 | AM12: 0.8 | AN12: 0 | AO12: =_xlfn.XLOOKUP(C12,Validation!$C$3:$C$9,Validation!$H$3:$H$9) ->  | AP12: 0 | AQ12: 0 | AR12: 0 | AS12: 0
B13: 9 | C13: ='HVAC Unitary'!D31 -> 0 | D13: =IFERROR(VLOOKUP(C13,Validation!$C$3:$E$9,3,FALSE),"") ->  | E13: =IFERROR(VLOOKUP(C13,Validation!$C$3:$F$9,4,FALSE),"") ->  | F13: ='HVAC Unitary'!G31 -> 0 | G13: 0 | H13: ='HVAC Unitary'!H31 -> 0 | I13: ='HVAC Unitary'!I31 -> 0 | K13: New | M13: 0 | N13: 0 | O13: 0 | P13: ='HVAC Unitary'!J31 -> 0 | Q13: ='HVAC Unitary'!K31 -> 0 | R13: =IF(G13>65000,'HVAC Unitary'!L31,'HVAC Unitary'!L31/IF(D13="PTHP",1,3.413)) -> 0 | S13: =IF(D13="","",IF(D13="PTAC",VLOOKUP(G13,PTACBaseline,3)+VLOOKUP(G13,PTACBaseline,4)*G13/1000,IF(D13="PTHP",VLOOKUP(G13,PTHPBaseline,3)+VLOOKUP(G13,PTHPBaseline,4)*G13/1000,0))) ->  | AB13: - | AC13: No | AD13: 0 | AE13: ='HVAC Unitary'!M31 -> 0 | AF13: 0 | AG13: ='HVAC Unitary'!C31 -> 0 | AH13: =VLOOKUP(AG13,Validation!$C$13:$G$24,IF(VLOOKUP('Project Information'!$N$6,Validation!$B$116:$D$515,3,FALSE)="Charleston",4,5)) ->  | AI13: =VLOOKUP(AG13,Validation!$C$13:$G$24,IF(VLOOKUP('Project Information'!$N$6,Validation!$B$116:$D$515,3,FALSE)="Charleston",2,3)) ->  | AJ13: 0 | AK13: 0 | AL13: 0 | AM13: 0.8 | AN13: 0 | AO13: =_xlfn.XLOOKUP(C13,Validation!$C$3:$C$9,Validation!$H$3:$H$9) ->  | AP13: 0 | AQ13: 0 | AR13: 0 | AS13: 0
B14: 10 | C14: ='HVAC Unitary'!D32 -> 0 | D14: =IFERROR(VLOOKUP(C14,Validation!$C$3:$E$9,3,FALSE),"") ->  | E14: =IFERROR(VLOOKUP(C14,Validation!$C$3:$F$9,4,FALSE),"") ->  | F14: ='HVAC Unitary'!G32 -> 0 | G14: 0 | H14: ='HVAC Unitary'!H32 -> 0 | I14: ='HVAC Unitary'!I32 -> 0 | K14: New | M14: 0 | N14: 0 | O14: 0 | P14: ='HVAC Unitary'!J32 -> 0 | Q14: ='HVAC Unitary'!K32 -> 0 | R14: =IF(G14>65000,'HVAC Unitary'!L32,'HVAC Unitary'!L32/IF(D14="PTHP",1,3.413)) -> 0 | S14: =IF(D14="","",IF(D14="PTAC",VLOOKUP(G14,PTACBaseline,3)+VLOOKUP(G14,PTACBaseline,4)*G14/1000,IF(D14="PTHP",VLOOKUP(G14,PTHPBaseline,3)+VLOOKUP(G14,PTHPBaseline,4)*G14/1000,0))) ->  | AB14: - | AC14: No | AD14: 0 | AE14: ='HVAC Unitary'!M32 -> 0 | AF14: 0 | AG14: ='HVAC Unitary'!C32 -> 0 | AH14: =VLOOKUP(AG14,Validation!$C$13:$G$24,IF(VLOOKUP('Project Information'!$N$6,Validation!$B$116:$D$515,3,FALSE)="Charleston",4,5)) ->  | AI14: =VLOOKUP(AG14,Validation!$C$13:$G$24,IF(VLOOKUP('Project Information'!$N$6,Validation!$B$116:$D$515,3,FALSE)="Charleston",2,3)) ->  | AJ14: 0 | AK14: 0 | AL14: 0 | AM14: 0.8 | AN14: 0 | AO14: =_xlfn.XLOOKUP(C14,Validation!$C$3:$C$9,Validation!$H$3:$H$9) ->  | AP14: 0 | AQ14: 0 | AR14: 0 | AS14: 0
B20: Baseline Lookup Column Refernces for AC/HP
G21: Lookup Column Value
B22: Btu/h | C22: System Type | D22: S/P | E22: Rating | F22: Concat | G22: Full Load | H22: Part Load | I22: Heating
B23: 0 | C23: AC | D23: S | E23: Old | F23: =_xlfn.CONCAT(C23,B23,D23,E23) -> AC0SOld | G23: 9 | H23: 12
B24: 45000 | C24: AC | D24: S | E24: Old | F24: =_xlfn.CONCAT(C24,B24,D24,E24) -> AC45000SOld | G24: 9 | H24: 12
B25: 65000 | C25: AC | D25: S | E25: Old | F25: AC65000SOld | G25: 4 | H25: 7
B26: 135000 | C26: AC | D26: S | E26: Old | F26: AC135000SOld | G26: 4 | H26: 7
B27: 240000 | C27: AC | D27: S | E27: Old | F27: AC240000SOld | G27: 4 | H27: 7
B28: 760000 | C28: AC | D28: S | E28: Old | F28: AC760000SOld | G28: 4 | H28: 7
B29: 0 | C29: AC | D29: P | E29: Old | F29: AC0POld | G29: 10 | H29: 13
B30: 45000 | C30: AC | D30: P | E30: Old | F30: AC45000POld | G30: 10 | H30: 13
B31: 65000 | C31: AC | D31: P | E31: Old | F31: AC65000POld | G31: 4 | H31: 7
B32: 135000 | C32: AC | D32: P | E32: Old | F32: AC135000POld | G32: 4 | H32: 7
B33: 240000 | C33: AC | D33: P | E33: Old | F33: AC240000POld | G33: 4 | H33: 7
B34: 760000 | C34: AC | D34: P | E34: Old | F34: AC760000POld | G34: 4 | H34: 7
B35: 0 | C35: AC | D35: S | E35: New | F35: =_xlfn.CONCAT(C35,B35,D35,E35) -> AC0SNew | G35: 3 | H35: 6
B36: 45000 | C36: AC | D36: S | E36: New | F36: =_xlfn.CONCAT(C36,B36,D36,E36) -> AC45000SNew | G36: 3 | H36: 6
B37: 65000 | C37: AC | D37: S | E37: New | F37: AC65000SNew | G37: 4 | H37: 7
B38: 135000 | C38: AC | D38: S | E38: New | F38: AC135000SNew | G38: 4 | H38: 7
B39: 240000 | C39: AC | D39: S | E39: New | F39: AC240000SNew | G39: 4 | H39: 7
B40: 760000 | C40: AC | D40: S | E40: New | F40: AC760000SNew | G40: 4 | H40: 7
B41: 0 | C41: AC | D41: P | E41: New | F41: AC0PNew | G41: 4 | H41: 7
B42: 45000 | C42: AC | D42: P | E42: New | F42: AC45000PNew | G42: 4 | H42: 7
B43: 65000 | C43: AC | D43: P | E43: New | F43: AC65000PNew | G43: 4 | H43: 7
B44: 135000 | C44: AC | D44: P | E44: New | F44: AC135000PNew | G44: 4 | H44: 7
B45: 240000 | C45: AC | D45: P | E45: New | F45: AC240000PNew | G45: 4 | H45: 7
B46: 760000 | C46: AC | D46: P | E46: New | F46: AC760000PNew | G46: 4 | H46: 7
B47: 0 | C47: HP | D47: S | E47: Old | F47: =_xlfn.CONCAT(C47,B47,D47,E47) -> HP0SOld | G47: 12 | H47: 15 | I47: 18
B48: 45000 | C48: HP | D48: S | E48: Old | F48: =_xlfn.CONCAT(C48,B48,D48,E48) -> HP45000SOld | G48: 12 | H48: 15 | I48: 18
B49: 65000 | C49: HP | D49: S | E49: Old | F49: HP65000SOld | G49: 4 | H49: 7 | I49: 10
B50: 135000 | C50: HP | D50: S | E50: Old | F50: HP135000SOld | G50: 4 | H50: 7 | I50: 10
B51: 240000 | C51: HP | D51: S | E51: Old | F51: HP240000SOld | G51: 4 | H51: 7 | I51: 10
B52: 760000 | C52: HP | D52: S | E52: Old | F52: HP760000SOld | G52: 4 | H52: 7 | I52: 10
B53: 0 | C53: HP | D53: P | E53: Old | F53: HP0POld | G53: 13 | H53: 16 | I53: 19
B54: 45000 | C54: HP | D54: P | E54: Old | F54: HP45000POld | G54: 13 | H54: 16 | I54: 19
B55: 65000 | C55: HP | D55: P | E55: Old | F55: HP65000POld | G55: 4 | H55: 7 | I55: 10
B56: 135000 | C56: HP | D56: P | E56: Old | F56: HP135000POld | G56: 4 | H56: 7 | I56: 10
B57: 240000 | C57: HP | D57: P | E57: Old | F57: HP240000POld | G57: 4 | H57: 7 | I57: 10
B58: 760000 | C58: HP | D58: P | E58: Old | F58: HP760000POld | G58: 4 | H58: 7 | I58: 10
B59: 0 | C59: HP | D59: S | E59: New | F59: =_xlfn.CONCAT(C59,B59,D59,E59) -> HP0SNew | G59: 3 | H59: 6 | I59: 9
B60: 45000 | C60: HP | D60: S | E60: New | F60: =_xlfn.CONCAT(C60,B60,D60,E60) -> HP45000SNew | G60: 3 | H60: 6 | I60: 9
B61: 65000 | C61: HP | D61: S | E61: New | F61: HP65000SNew | G61: 4 | H61: 7 | I61: 10
B62: 135000 | C62: HP | D62: S | E62: New | F62: HP135000SNew | G62: 4 | H62: 7 | I62: 10
B63: 240000 | C63: HP | D63: S | E63: New | F63: HP240000SNew | G63: 4 | H63: 7 | I63: 10
B64: 760000 | C64: HP | D64: S | E64: New | F64: HP760000SNew | G64: 4 | H64: 7 | I64: 10
B65: 0 | C65: HP | D65: P | E65: New | F65: HP0PNew | G65: 4 | H65: 7 | I65: 10
B66: 45000 | C66: HP | D66: P | E66: New | F66: HP45000PNew | G66: 4 | H66: 7 | I66: 10
B67: 65000 | C67: HP | D67: P | E67: New | F67: HP65000PNew | G67: 4 | H67: 7 | I67: 10
B68: 135000 | C68: HP | D68: P | E68: New | F68: HP135000PNew | G68: 4 | H68: 7 | I68: 10
B69: 240000 | C69: HP | D69: P | E69: New | F69: HP240000PNew | G69: 4 | H69: 7 | I69: 10
B70: 760000 | C70: HP | D70: P | E70: New | F70: HP760000PNew | G70: 4 | H70: 7 | I70: 10

Sheet HVACLookups (hidden)
A1: P | B1: 30000 | C1: Electric | D1: =VLOOKUP(B1,B7:I12,IF(AND(B1<65000,A1="U"),4,3)) -> 11.7
B3: 1 | C3: 2 | D3: 3 | E3: 4 | F3: 5 | G3: 6 | H3: 7 | I3: 8 | J3: 9 | K3: 10 | L3: 11 | M3: 12 | N3: 13 | O3: 14 | Y3: 1 | Z3: 2 | AA3: 3 | AB3: 4 | AC3: 5 | AD3: 6 | AE3: 7 | AF3: 8 | AG3: 9 | AH3: 10 | AI3: 11 | AJ3: 12 | AK3: 13 | AL3: 14 | AM3: 15 | AN3: 16 | AX3: 1 | AY3: 2 | AZ3: 3 | BA3: 4 | BB3: 5 | BC3: 6 | BD3: 7 | BE3: 8 | BF3: 9 | BG3: 10 | BH3: 11 | BI3: 12 | BJ3: 13 | BK3: 14
B4: Air Conditioning - Unitary and Split System baseline efficiency* | Y4: Minimum Efficiencies For Incentives - AC Units (Tier 1) | AX4: Air Conditioning - Baseline Checks Tier 1
D5: EER2/EER - Full Load | G5: SEER2/IEER - Part Load | J5: EER - Full Load | M5: SEER - Part Load | AA5: EER2/EER - Full Load | AD5: SEER2/IEER - Part Load | AG5: EER - Full Load | AJ5: SEER - Part Load | AM5: Incentive | AZ5: EER2/EER - Full Load | BC5: SEER2/IEER - Part Load | BF5: EER - Full Load | BI5: SEER - Part Load
B6: Btu/h | C6: Tons | D6: S | E6: P | F6: Unit | G6: S | H6: P | I6: Unit | J6: S | K6: P | L6: Unit | M6: S | N6: P | O6: Unit | Y6: Btu/h | Z6: Tons | AA6: S | AB6: P | AC6: Unit | AD6: S | AE6: P | AF6: Unit | AG6: S | AH6: P | AI6: Unit | AJ6: S | AK6: P | AL6: Unit | AM6: Amount | AN6: Unit | AX6: Btu/h | AY6: Tons | AZ6: S | BA6: P | BB6: Unit | BC6: S | BD6: P | BE6: Unit | BF6: S | BG6: P | BH6: Unit | BI6: S | BJ6: P | BK6: Unit
B7: 0 | C7: 0 | D7: 11.7 | E7: 10.6 | F7: EER2 | G7: 14.3 | H7: 13.4 | I7: SEER2 | J7: =D7/0.95 -> 12.31578947 | K7: =E7/0.95 -> 11.15789474 | L7: EER | M7: =G7/0.95 -> 15.05263158 | N7: =H7/0.95 -> 14.10526316 | O7: SEER | Y7: 0 | Z7: =Y7/12000 -> 0 | AC7: EER2 | AD7: 15.2 | AE7: 14.3 | AF7: SEER2 | AI7: EER | AJ7: =AD7/0.95 -> 16 | AK7: 15 | AL7: SEER | AM7: 75 | AN7: Ton | AX7: 0 | AY7: 0 | AZ7: =IF(OR(AA7="",$D$7=""),"",(AA7/$D$7)) ->  | BA7: =IF(OR(AB7="",$E$7=""),"",(AB7/$E$7)) ->  | BB7: EER2 | BC7: =IF(OR(AD7="",$G$7=""),"",(AD7/$G$7)) -> 1.062937063 | BD7: =IF(OR(AE7="",$H$7=""),"",(AE7/$H$7)) -> 1.067164179 | BE7: SEER2 | BF7: =IF(OR(AG7="",$J$7=""),"",(AG7/$J$7)) ->  | BG7: =IF(OR(AH7="",$K$7=""),"",(AH7/$K$7)) ->  | BH7: EER | BI7: =IF(OR(AJ7="",$M$7=""),"",(AJ7/$M$7)) -> 1.062937063 | BJ7: =IF(OR(AK7="",$N$7=""),"",(AK7/$N$7)) -> 1.063432836 | BK7: SEER
B8: 45000 | C8: 3.75 | D8: 11.2 | E8: 10.6 | F8: EER2 | G8: 13.8 | H8: 13.4 | I8: SEER2 | J8: =D8/0.95 -> 11.78947368 | K8: =E8/0.95 -> 11.15789474 | L8: EER | M8: =G8/0.95 -> 14.52631579 | N8: =H8/0.95 -> 14.10526316 | O8: SEER | Y8: 45000 | Z8: 3.75 | AC8: EER2 | AD8: 15.2 | AE8: 14.3 | AF8: SEER2 | AI8: EER | AJ8: =AD8/0.95 -> 16 | AK8: 15 | AL8: SEER | AM8: 75 | AN8: Ton | AX8: 45000 | AY8: 3.75 | AZ8: =IF(OR(AA8="",$D$8=""),"",(AA8/$D$8)) ->  | BA8: =IF(OR(AB8="",$E$8=""),"",(AB8/$E$8)) ->  | BB8: EER2 | BC8: =IF(OR(AD8="",$G$8=""),"",(AD8/$G$8)) -> 1.101449275 | BD8: =IF(OR(AE8="",$H$8=""),"",(AE8/$H$8)) -> 1.067164179 | BE8: SEER2 | BF8: =IF(OR(AG8="",$J$8=""),"",(AG8/$J$8)) ->  | BG8: =IF(OR(AH8="",$K$8=""),"",(AH8/$K$8)) ->  | BH8: EER | BI8: =IF(OR(AJ8="",$M$8=""),"",(AJ8/$M$8)) -> 1.101449275 | BJ8: =IF(OR(AK8="",$N$8=""),"",(AK8/$N$8)) -> 1.063432836 | BK8: SEER
B9: 65000 | C9: =B9/12000 -> 5.416666667 | E9: 11 | F9: EER | H9: 14.6 | I9: IEER | L9: EER | O9: IEER | Y9: 65000 | Z9: 5.416666667 | AC9: EER | AE9: 15.3 | AF9: IEER | AM9: 60 | AN9: Ton | AX9: 65000 | AY9: =AX9/12000 -> 5.416666667 | AZ9: =IF(OR(AA9="",$D$9=""),"",(AA9/$D$9)) ->  | BA9: =IF(OR(AB9="",$E$9=""),"",(AB9/$E$9)) ->  | BB9: EER | BC9: =IF(OR(AD9="",$G$9=""),"",(AD9/$G$9)) ->  | BD9: =IF(OR(AE9="",$H$9=""),"",(AE9/$H$9)) -> 1.047945205 | BE9: IEER | BF9: =IF(OR(AG9="",$J$9=""),"",(AG9/$J$9)) ->  | BG9: =IF(OR(AH9="",$K$9=""),"",(AH9/$K$9)) ->  | BH9: EER | BI9: =IF(OR(AJ9="",$M$9=""),"",(AJ9/$M$9)) ->  | BJ9: =IF(OR(AK9="",$N$9=""),"",(AK9/$N$9)) ->  | BK9: IEER
B10: 135000 | C10: 11.25 | E10: 10.8 | F10: EER | H10: 14 | I10: IEER | L10: EER | O10: IEER | Y10: 135000 | Z10: 11.25 | AC10: EER | AE10: 14.7 | AF10: IEER | AM10: 50 | AN10: Ton | AX10: 135000 | AY10: 11.25 | AZ10: =IF(OR(AA10="",$D$10=""),"",(AA10/$D$10)) ->  | BA10: =IF(OR(AB10="",$E$10=""),"",(AB10/$E$10)) ->  | BB10: EER | BC10: =IF(OR(AD10="",$G$10=""),"",(AD10/$G$10)) ->  | BD10: =IF(OR(AE10="",$H$10=""),"",(AE10/$H$10)) -> 1.05 | BE10: IEER | BF10: =IF(OR(AG10="",$J$10=""),"",(AG10/$J$10)) ->  | BG10: =IF(OR(AH10="",$K$10=""),"",(AH10/$K$10)) ->  | BH10: EER | BI10: =IF(OR(AJ10="",$M$10=""),"",(AJ10/$M$10)) ->  | BJ10: =IF(OR(AK10="",$N$10=""),"",(AK10/$N$10)) ->  | BK10: IEER
B11: 240000 | C11: 20 | E11: 9.8 | F11: EER | H11: 13 | I11: IEER | L11: EER | O11: IEER | Y11: 240000 | Z11: 20 | AC11: EER | AE11: 13.6 | AF11: IEER | AM11: 40 | AN11: Ton | AX11: 240000 | AY11: 20 | AZ11: =IF(OR(AA11="",$D$11=""),"",(AA11/$D$11)) ->  | BA11: =IF(OR(AB11="",$E$11=""),"",(AB11/$E$11)) ->  | BB11: EER | BC11: =IF(OR(AD11="",$G$11=""),"",(AD11/$G$11)) ->  | BD11: =IF(OR(AE11="",$H$11=""),"",(AE11/$H$11)) -> 1.046153846 | BE11: IEER | BF11: =IF(OR(AG11="",$J$11=""),"",(AG11/$J$11)) ->  | BG11: =IF(OR(AH11="",$K$11=""),"",(AH11/$K$11)) ->  | BH11: EER | BI11: =IF(OR(AJ11="",$M$11=""),"",(AJ11/$M$11)) ->  | BJ11: =IF(OR(AK11="",$N$11=""),"",(AK11/$N$11)) ->  | BK11: IEER
B12: 760000 | C12: 63.33333333 | E12: 9.5 | F12: EER | H12: 11 | I12: IEER | L12: EER | O12: IEER | Y12: 760000 | Z12: 63.33333333 | AC12: EER | AE12: 11.6 | AF12: IEER | AM12: 15 | AN12: Ton | AX12: 760000 | AY12: 63.33333333 | AZ12: =IF(OR(AA12="",$D$12=""),"",(AA12/$D$12)) ->  | BA12: =IF(OR(AB12="",$E$12=""),"",(AB12/$E$12)) ->  | BB12: EER | BC12: =IF(OR(AD12="",$G$12=""),"",(AD12/$G$12)) ->  | BD12: =IF(OR(AE12="",$H$12=""),"",(AE12/$H$12)) -> 1.054545455 | BE12: IEER | BF12: =IF(OR(AG12="",$J$12=""),"",(AG12/$J$12)) ->  | BG12: =IF(OR(AH12="",$K$12=""),"",(AH12/$K$12)) ->  | BH12: EER | BI12: =IF(OR(AJ12="",$M$12=""),"",(AJ12/$M$12)) ->  | BJ12: =IF(OR(AK12="",$N$12=""),"",(AK12/$N$12)) ->  | BK12: IEER
C14: *Black text from CEAM. Red text from AR TRM v9.2. Blue text is calculated from CEAM conversion factors | Y14: Minimum Efficiencies For Incentives - AC Units (Tier 2) | AX14: Air Conditioning - Baseline Checks Tier 2
AA15: EER2/EER - Full Load | AD15: SEER2/IEER - Part Load | AG15: EER - Full Load | AJ15: SEER - Part Load | AM15: Incentive | AZ15: EER2/EER - Full Load | BC15: SEER2/IEER - Part Load | BF15: EER - Full Load | BI15: SEER - Part Load
Y16: Btu/h | Z16: Tons | AA16: S | AB16: P | AC16: Unit | AD16: S | AE16: P | AF16: Unit | AG16: S | AH16: P | AI16: Unit | AJ16: S | AK16: P | AL16: Unit | AM16: Amount | AN16: Unit | AX16: Btu/h | AY16: Tons | AZ16: S | BA16: P | BB16: Unit | BC16: S | BD16: P | BE16: Unit | BF16: S | BG16: P | BH16: Unit | BI16: S | BJ16: P | BK16: Unit
Y17: 0 | Z17: =Y17/12000 -> 0 | AC17: EER2 | AD17: 16.15 | AE17: 15.2 | AF17: SEER2 | AI17: EER | AJ17: =AD17/0.95 -> 17 | AK17: =AE17/0.95 -> 16 | AL17: SEER | AM17: 100 | AN17: Ton | AX17: 0 | AY17: 0 | AZ17: =IF(OR(AA17="",$D$7=""),"",(AA17/$D$7)) ->  | BA17: =IF(OR(AB17="",$E$7=""),"",(AB17/$E$7)) ->  | BB17: EER2 | BC17: =IF(OR(AD17="",$G$7=""),"",(AD17/$G$7)) -> 1.129370629 | BD17: =IF(OR(AE17="",$H$7=""),"",(AE17/$H$7)) -> 1.134328358 | BE17: SEER2 | BF17: =IF(OR(AG17="",$J$7=""),"",(AG17/$J$7)) ->  | BG17: =IF(OR(AH17="",$K$7=""),"",(AH17/$K$7)) ->  | BH17: EER | BI17: =IF(OR(AJ17="",$M$7=""),"",(AJ17/$M$7)) -> 1.129370629 | BJ17: =IF(OR(AK17="",$N$7=""),"",(AK17/$N$7)) -> 1.134328358 | BK17: SEER
Y18: 45000 | Z18: =Y18/12000 -> 3.75 | AC18: EER2 | AD18: 16.15 | AE18: 15.2 | AF18: SEER2 | AI18: EER | AJ18: =AD18/0.95 -> 17 | AK18: =AE18/0.95 -> 16 | AL18: SEER | AM18: 100 | AN18: Ton | AX18: 45000 | AY18: 3.75 | AZ18: =IF(OR(AA18="",$D$8=""),"",(AA18/$D$8)) ->  | BA18: =IF(OR(AB18="",$E$8=""),"",(AB18/$E$8)) ->  | BB18: EER2 | BC18: =IF(OR(AD18="",$G$8=""),"",(AD18/$G$8)) -> 1.170289855 | BD18: =IF(OR(AE18="",$H$8=""),"",(AE18/$H$8)) -> 1.134328358 | BE18: SEER2 | BF18: =IF(OR(AG18="",$J$8=""),"",(AG18/$J$8)) ->  | BG18: =IF(OR(AH18="",$K$8=""),"",(AH18/$K$8)) ->  | BH18: EER | BI18: =IF(OR(AJ18="",$M$8=""),"",(AJ18/$M$8)) -> 1.170289855 | BJ18: =IF(OR(AK18="",$N$8=""),"",(AK18/$N$8)) -> 1.134328358 | BK18: SEER
Y19: 65000 | Z19: 5.416666667 | AC19: EER | AE19: 15.8 | AF19: IEER | AM19: 75 | AN19: Ton | AX19: 65000 | AY19: =AX19/12000 -> 5.416666667 | AZ19: =IF(OR(AA19="",$D$9=""),"",(AA19/$D$9)) ->  | BA19: =IF(OR(AB19="",$E$9=""),"",(AB19/$E$9)) ->  | BB19: EER | BC19: =IF(OR(AD19="",$G$9=""),"",(AD19/$G$9)) ->  | BD19: =IF(OR(AE19="",$H$9=""),"",(AE19/$H$9)) -> 1.082191781 | BE19: IEER | BF19: =IF(OR(AG19="",$J$9=""),"",(AG19/$J$9)) ->  | BG19: =IF(OR(AH19="",$K$9=""),"",(AH19/$K$9)) ->  | BH19: EER | BI19: =IF(OR(AJ19="",$M$9=""),"",(AJ19/$M$9)) ->  | BJ19: =IF(OR(AK19="",$N$9=""),"",(AK19/$N$9)) ->  | BK19: IEER
Y20: 135000 | Z20: 11.25 | AC20: EER | AE20: 15.1 | AF20: IEER | AM20: 70 | AN20: Ton | AX20: 135000 | AY20: 11.25 | AZ20: =IF(OR(AA20="",$D$10=""),"",(AA20/$D$10)) ->  | BA20: =IF(OR(AB20="",$E$10=""),"",(AB20/$E$10)) ->  | BB20: EER | BC20: =IF(OR(AD20="",$G$10=""),"",(AD20/$G$10)) ->  | BD20: =IF(OR(AE20="",$H$10=""),"",(AE20/$H$10)) -> 1.078571429 | BE20: IEER | BF20: =IF(OR(AG20="",$J$10=""),"",(AG20/$J$10)) ->  | BG20: =IF(OR(AH20="",$K$10=""),"",(AH20/$K$10)) ->  | BH20: EER | BI20: =IF(OR(AJ20="",$M$10=""),"",(AJ20/$M$10)) ->  | BJ20: =IF(OR(AK20="",$N$10=""),"",(AK20/$N$10)) ->  | BK20: IEER
Y21: 240000 | Z21: 20 | AC21: EER | AE21: 14.1 | AF21: IEER | AM21: 60 | AN21: Ton | AX21: 240000 | AY21: 20 | AZ21: =IF(OR(AA21="",$D$11=""),"",(AA21/$D$11)) ->  | BA21: =IF(OR(AB21="",$E$11=""),"",(AB21/$E$11)) ->  | BB21: EER | BC21: =IF(OR(AD21="",$G$11=""),"",(AD21/$G$11)) ->  | BD21: =IF(OR(AE21="",$H$11=""),"",(AE21/$H$11)) -> 1.084615385 | BE21: IEER | BF21: =IF(OR(AG21="",$J$11=""),"",(AG21/$J$11)) ->  | BG21: =IF(OR(AH21="",$K$11=""),"",(AH21/$K$11)) ->  | BH21: EER | BI21: =IF(OR(AJ21="",$M$11=""),"",(AJ21/$M$11)) ->  | BJ21: =IF(OR(AK21="",$N$11=""),"",(AK21/$N$11)) ->  | BK21: IEER
Y22: 760000 | Z22: 63.33333333 | AC22: EER | AE22: 12 | AF22: IEER | AM22: 20 | AN22: Ton | AX22: 760000 | AY22: 63.33333333 | AZ22: =IF(OR(AA22="",$D$12=""),"",(AA22/$D$12)) ->  | BA22: =IF(OR(AB22="",$E$12=""),"",(AB22/$E$12)) ->  | BB22: EER | BC22: =IF(OR(AD22="",$G$12=""),"",(AD22/$G$12)) ->  | BD22: =IF(OR(AE22="",$H$12=""),"",(AE22/$H$12)) -> 1.090909091 | BE22: IEER | BF22: =IF(OR(AG22="",$J$12=""),"",(AG22/$J$12)) ->  | BG22: =IF(OR(AH22="",$K$12=""),"",(AH22/$K$12)) ->  | BH22: EER | BI22: =IF(OR(AJ22="",$M$12=""),"",(AJ22/$M$12)) ->  | BJ22: =IF(OR(AK22="",$N$12=""),"",(AK22/$N$12)) ->  | BK22: IEER
B25: 1 | C25: 2 | D25: 3 | E25: 4 | F25: 5 | G25: 6 | H25: 7 | I25: 8 | J25: 9 | K25: 10 | L25: 11 | M25: 12 | N25: 13 | O25: 14 | P25: 15 | Q25: 16 | R25: 17 | S25: 18 | T25: 19 | U25: 20 | Y25: 1 | Z25: 2 | AA25: 3 | AB25: 4 | AC25: 5 | AD25: 6 | AE25: 7 | AF25: 8 | AG25: 9 | AH25: 10 | AI25: 11 | AJ25: 12 | AK25: 13 | AL25: 14 | AM25: 15 | AN25: 16 | AO25: 17 | AP25: 18 | AQ25: 19 | AR25: 20 | AS25: 21 | AT25: 22 | AX25: 1 | AY25: 2 | AZ25: 3 | BA25: 4 | BB25: 5 | BC25: 6 | BD25: 7 | BE25: 8 | BF25: 9 | BG25: 10 | BH25: 11 | BI25: 12 | BJ25: 13 | BK25: 14 | BL25: 15 | BM25: 16 | BN25: 17 | BO25: 18 | BP25: 19 | BQ25: 20
B26: Heat Pumps - Unitary and Split System baseline efficiency | Y26: Minimum Efficiencies For Incentives - HP units - (Tier 1) | AX26: Heat Pumps - Baseline Checks Tier 1
D27: EER2/EER - Full Load | G27: SEER2/IEER - Part Load | J27: HSPF2/COP - Heating Eff | M27: EER - Full Load | P27: SEER - Part Load | S27: HSPF as COP - Heating Eff | V27: HSPF | AA27: EER2/EER - Full Load | AD27: SEER2/IEER - Part Load | AG27: HSPF2/COP Heating Eff | AJ27: EER - Full Load | AM27: SEER - Part Load | AP27: HSPF as COP - Heating Eff | AS27: Incentive | AU27: HSPF | AZ27: EER2/EER - Full Load | BC27: SEER2/IEER - Part Load | BF27: HSPF2/COP Heating Eff | BI27: EER - Full Load | BL27: SEER - Part Load | BO27: HSPF as COP - Heating Eff
B28: Btu/h | C28: Tons | D28: S | E28: P | F28: Unit | G28: S | H28: P | I28: Unit | J28: S | K28: P | L28: Unit | M28: S | N28: P | O28: Unit | P28: S | Q28: P | R28: Unit | S28: S | T28: P | U28: Unit | V28: S | W28: P | Y28: Btu/h | Z28: Tons | AA28: S | AB28: P | AC28: Unit | AD28: S | AE28: P | AF28: Unit | AG28: S | AH28: P | AI28: Unit | AJ28: S | AK28: P | AL28: Unit | AM28: S | AN28: P | AO28: Unit | AP28: S | AQ28: P | AR28: Unit | AS28: Amount | AT28: Unit | AU28: S | AV28: P | AX28: Btu/h | AY28: Tons | AZ28: S | BA28: P | BB28: Unit | BC28: S | BD28: P | BE28: Unit | BF28: S | BG28: P | BH28: Unit | BI28: S | BJ28: P | BK28: Unit | BL28: S | BM28: P | BN28: Unit | BO28: S | BP28: P | BQ28: Unit
B29: 0 | C29: =B29/12000 -> 0 | D29: 11.7 | E29: 10.6 | F29: EER2 | G29: 14.3 | H29: 13.4 | I29: SEER2 | J29: =7.5/3.413 -> 2.197480223 | K29: =6.7/3.413 -> 1.963082332 | L29: COP | M29: =D29/0.95 -> 12.31578947 | N29: =E29/0.95 -> 11.15789474 | O29: EER | P29: =G29/0.95 -> 15.05263158 | Q29: =H29/0.95 -> 14.10526316 | R29: SEER | S29: =J29/0.85 -> 2.58527085 | T29: =K29/0.84 -> 2.337002776 | U29: COP | V29: =S29*3.413 -> 8.823529412 | W29: =T29*3.413 -> 7.976190476 | Y29: 0 | Z29: =Y29/12000 -> 0 | AC29: EER2 | AD29: 15.2 | AE29: 14.3 | AF29: SEER2 | AG29: =7.8/3.413 -> 2.285379432 | AH29: =7/3.413 -> 2.050981541 | AI29: COP | AL29: EER | AM29: =AD29/0.95 -> 16 | AN29: 15 | AO29: SEER | AP29: =9.1/3.413 -> 2.666276004 | AQ29: =8.3/3.413 -> 2.431878113 | AR29: COP | AS29: 100 | AT29: ton | AU29: =AP29*3.413 -> 9.1 | AV29: =AQ29*3.413 -> 8.3 | AX29: 0 | AY29: =AX29/12000 -> 0 | AZ29: =IF(OR(AA29="",$D$29=""),"",(AA29/$D$29)) ->  | BA29: =IF(OR(AB29="",$E$29=""),"",(AB29/$E$29)) ->  | BB29: EER2 | BC29: =IF(OR(AD29="",$G$29=""),"",(AD29/$G$29)) -> 1.062937063 | BD29: =IF(OR(AE29="",$H$29=""),"",(AE29/$H$29)) -> 1.067164179 | BE29: SEER2 | BF29: =IF(OR(AG29="",$J$29=""),"",(AG29/$J$29)) -> 1.04 | BG29: =IF(OR(AH29="",$K$29=""),"",(AH29/$K$29)) -> 1.044776119 | BH29: COP | BI29: =IF(OR(AJ29="",$M$29=""),"",(AJ29/$M$29)) ->  | BJ29: =IF(OR(AK29="",$N$29=""),"",(AK29/$N$29)) ->  | BK29: EER | BL29: =IF(OR(AM29="",$P$29=""),"",(AM29/$P$29)) -> 1.062937063 | BM29: =IF(OR(AN29="",$Q$29=""),"",(AN29/$Q$29)) -> 1.063432836 | BN29: SEER | BO29: =IF(OR(AP29="",$S$29=""),"",(AP29/$S$29)) -> 1.031333333 | BP29: =IF(OR(AQ29="",$T$29=""),"",(AQ29/$T$29)) -> 1.040597015 | BQ29: COP
B30: 45000 | C30: =B30/12000 -> 3.75 | D30: 11.7 | E30: 10.6 | F30: EER2 | G30: 14.3 | H30: 13.4 | I30: SEER2 | J30: =7.5/3.413 -> 2.197480223 | K30: =6.7/3.413 -> 1.963082332 | L30: COP | M30: =D30/0.95 -> 12.31578947 | N30: =E30/0.95 -> 11.15789474 | O30: EER | P30: =G30/0.95 -> 15.05263158 | Q30: =H30/0.95 -> 14.10526316 | R30: SEER | S30: =J30/0.85 -> 2.58527085 | T30: =K30/0.84 -> 2.337002776 | U30: COP | V30: =S30*3.413 -> 8.823529412 | W30: =T30*3.413 -> 7.976190476 | Y30: 45000 | Z30: =Y30/12000 -> 3.75 | AC30: EER2 | AD30: 15.2 | AE30: 14.3 | AF30: SEER2 | AG30: =7.8/3.413 -> 2.285379432 | AH30: =7/3.413 -> 2.050981541 | AI30: COP | AL30: EER | AM30: =AD30/0.95 -> 16 | AN30: 15 | AO30: SEER | AP30: =9.1/3.413 -> 2.666276004 | AQ30: =8.3/3.413 -> 2.431878113 | AR30: COP | AS30: 100 | AT30: ton | AU30: =AP30*3.413 -> 9.1 | AV30: =AQ30*3.413 -> 8.3 | AX30: 45000 | AY30: =AX30/12000 -> 3.75 | AZ30: =IF(OR(AA30="",$D$30=""),"",(AA30/$D$30)) ->  | BA30: =IF(OR(AB30="",$E$30=""),"",(AB30/$E$30)) ->  | BB30: EER2 | BC30: =IF(OR(AD30="",$G$30=""),"",(AD30/$G$30)) -> 1.062937063 | BD30: =IF(OR(AE30="",$H$30=""),"",(AE30/$H$30)) -> 1.067164179 | BE30: SEER2 | BF30: =IF(OR(AG30="",$J$30=""),"",(AG30/$J$30)) -> 1.04 | BG30: =IF(OR(AH30="",$K$30=""),"",(AH30/$K$30)) -> 1.044776119 | BH30: COP | BI30: =IF(OR(AJ30="",$M$30=""),"",(AJ30/$M$30)) ->  | BJ30: =IF(OR(AK30="",$N$30=""),"",(AK30/$N$30)) ->  | BK30: EER | BL30: =IF(OR(AM30="",$P$30=""),"",(AM30/$P$30)) -> 1.062937063 | BM30: =IF(OR(AN30="",$Q$30=""),"",(AN30/$Q$30)) -> 1.063432836 | BN30: SEER | BO30: =IF(OR(AP30="",$S$30=""),"",(AP30/$S$30)) -> 1.031333333 | BP30: =IF(OR(AQ30="",$T$30=""),"",(AQ30/$T$30)) -> 1.040597015 | BQ30: COP
B31: 65000 | C31: =B31/12000 -> 5.416666667 | E31: 10.8 | F31: EER | H31: 13.9 | I31: IEER | K31: 3.4 | L31: COP | Y31: 65000 | Z31: 5.416666667 | AC31: EER | AE31: 15.3 | AF31: IEER | AH31: 0 | AI31: COP | AL31: EER | AS31: 75 | AT31: ton | AX31: 65000 | AY31: =AX31/12000 -> 5.416666667 | AZ31: =IF(OR(AA31="",$D$31=""),"",(AA31/$D$31)) ->  | BA31: =IF(OR(AB31="",$E$31=""),"",(AB31/$E$31)) ->  | BB31: EER | BC31: =IF(OR(AD31="",$G$31=""),"",(AD31/$G$31)) ->  | BD31: =IF(OR(AE31="",$H$31=""),"",(AE31/$H$31)) -> 1.100719424 | BE31: IEER | BF31: =IF(OR(AG31="",$J$31=""),"",(AG31/$J$31)) ->  | BG31: =IF(OR(AH31="",$K$31=""),"",(AH31/$K$31)) -> 0 | BH31: COP | BI31: =IF(OR(AJ31="",$M$31=""),"",(AJ31/$M$31)) ->  | BJ31: =IF(OR(AK31="",$N$31=""),"",(AK31/$N$31)) ->  | BL31: =IF(OR(AM31="",$P$31=""),"",(AM31/$P$31)) ->  | BM31: =IF(OR(AN31="",$Q$31=""),"",(AN31/$Q$31)) ->  | BO31: =IF(OR(AP31="",$S$31=""),"",(AP31/$S$31)) ->  | BP31: =IF(OR(AQ31="",$T$31=""),"",(AQ31/$T$31)) -> 
B32: 135000 | C32: 11.25 | E32: 10.4 | F32: EER | H32: 13.3 | I32: IEER | K32: 3.3 | L32: COP | Y32: 135000 | Z32: 11.25 | AC32: EER | AE32: 14.7 | AF32: IEER | AH32: 0 | AI32: COP | AL32: EER | AS32: 55 | AT32: ton | AX32: 135000 | AY32: 11.25 | AZ32: =IF(OR(AA32="",$D$32=""),"",(AA32/$D$32)) ->  | BA32: =IF(OR(AB32="",$E$32=""),"",(AB32/$E$32)) ->  | BB32: EER | BC32: =IF(OR(AD32="",$G$32=""),"",(AD32/$G$32)) ->  | BD32: =IF(OR(AE32="",$H$32=""),"",(AE32/$H$32)) -> 1.105263158 | BE32: IEER | BF32: =IF(OR(AG32="",$J$32=""),"",(AG32/$J$32)) ->  | BG32: =IF(OR(AH32="",$K$32=""),"",(AH32/$K$32)) -> 0 | BH32: COP | BI32: =IF(OR(AJ32="",$M$32=""),"",(AJ32/$M$32)) ->  | BJ32: =IF(OR(AK32="",$N$32=""),"",(AK32/$N$32)) ->  | BL32: =IF(OR(AM32="",$P$32=""),"",(AM32/$P$32)) ->  | BM32: =IF(OR(AN32="",$Q$32=""),"",(AN32/$Q$32)) ->  | BO32: =IF(OR(AP32="",$S$32=""),"",(AP32/$S$32)) ->  | BP32: =IF(OR(AQ32="",$T$32=""),"",(AQ32/$T$32)) -> 
B33: 240000 | C33: 20 | E33: 9.3 | F33: EER | H33: 12.3 | I33: IEER | K33: 3.2 | L33: COP | Y33: 240000 | Z33: 20 | AC33: EER | AE33: 13.6 | AF33: IEER | AH33: 0 | AI33: COP | AL33: EER | AS33: 50 | AT33: ton | AX33: 240000 | AY33: 20 | AZ33: =IF(OR(AA33="",$D$33=""),"",(AA33/$D$33)) ->  | BA33: =IF(OR(AB33="",$E$33=""),"",(AB33/$E$33)) ->  | BB33: EER | BC33: =IF(OR(AD33="",$G$33=""),"",(AD33/$G$33)) ->  | BD33: =IF(OR(AE33="",$H$33=""),"",(AE33/$H$33)) -> 1.105691057 | BE33: IEER | BF33: =IF(OR(AG33="",$J$33=""),"",(AG33/$J$33)) ->  | BG33: =IF(OR(AH33="",$K$33=""),"",(AH33/$K$33)) -> 0 | BH33: COP | BI33: =IF(OR(AJ33="",$M$33=""),"",(AJ33/$M$33)) ->  | BJ33: =IF(OR(AK33="",$N$33=""),"",(AK33/$N$33)) ->  | BL33: =IF(OR(AM33="",$P$33=""),"",(AM33/$P$33)) ->  | BM33: =IF(OR(AN33="",$Q$33=""),"",(AN33/$Q$33)) ->  | BO33: =IF(OR(AP33="",$S$33=""),"",(AP33/$S$33)) ->  | BP33: =IF(OR(AQ33="",$T$33=""),"",(AQ33/$T$33)) -> 
C35: *Black text from CEAM. Red text from AR TRM v9.2. Blue text is calculated from CEAM conversion factors | Y35: Minimum Efficiencies For Incentives - HP units - (Tier 2) | AX35: Heat Pumps - Baseline Checks Tier 2
AA36: EER2/EER - Full Load | AD36: SEER2/IEER - Part Load | AG36: HSPF2/COP Heating Eff | AJ36: EER - Full Load | AM36: SEER - Part Load | AP36: HSPF as COP - Heating Eff | AS36: Incentive | AU36: HSPF | AZ36: EER2/EER - Full Load | BC36: SEER2/IEER - Part Load | BF36: HSPF2/COP Heating Eff | BI36: EER - Full Load | BL36: SEER - Part Load | BO36: HSPF as COP - Heating Eff
Y37: Btu/h | Z37: Tons | AA37: S | AB37: P | AC37: Unit | AD37: S | AE37: P | AF37: Unit | AG37: S | AH37: P | AI37: Unit | AJ37: S | AK37: P | AL37: Unit | AM37: S | AN37: P | AO37: Unit | AP37: S | AQ37: P | AR37: Unit | AS37: Amount | AT37: Unit | AU37: S | AV37: P | AX37: Btu/h | AY37: Tons | AZ37: S | BA37: P | BB37: Unit | BC37: S | BD37: P | BE37: Unit | BF37: S | BG37: P | BH37: Unit | BI37: S | BJ37: P | BK37: Unit | BL37: S | BM37: P | BN37: Unit | BO37: S | BP37: P | BQ37: Unit
Y38: 0 | Z38: =Y38/12000 -> 0 | AC38: EER2 | AD38: 16.15 | AE38: 15.2 | AF38: SEER2 | AG38: =8/3.413 -> 2.343978904 | AH38: =7.2/3.413 -> 2.109581014 | AI38: COP | AL38: EER | AM38: =AD38/0.95 -> 17 | AN38: =AE38/0.95 -> 16 | AO38: SEER | AP38: =9.4/3.413 -> 2.754175212 | AQ38: =8.5/3.413 -> 2.490477586 | AR38: COP | AS38: 125 | AT38: ton | AU38: =AP38*3.413 -> 9.4 | AV38: =AQ38*3.413 -> 8.5 | AX38: 0 | AY38: =AX38/12000 -> 0 | AZ38: =IF(OR(AA38="",$D$29=""),"",(AA38/$D$29)) ->  | BA38: =IF(OR(AB38="",$E$29=""),"",(AB38/$E$29)) ->  | BB38: EER2 | BC38: =IF(OR(AD38="",$G$29=""),"",(AD38/$G$29)) -> 1.129370629 | BD38: =IF(OR(AE38="",$H$29=""),"",(AE38/$H$29)) -> 1.134328358 | BE38: SEER2 | BF38: =IF(OR(AG38="",$J$29=""),"",(AG38/$J$29)) -> 1.066666667 | BG38: =IF(OR(AH38="",$K$29=""),"",(AH38/$K$29)) -> 1.074626866 | BH38: COP | BI38: =IF(OR(AJ38="",$M$29=""),"",(AJ38/$M$29)) ->  | BJ38: =IF(OR(AK38="",$N$29=""),"",(AK38/$N$29)) ->  | BK38: EER | BL38: =IF(OR(AM38="",$P$29=""),"",(AM38/$P$29)) -> 1.129370629 | BM38: =IF(OR(AN38="",$Q$29=""),"",(AN38/$Q$29)) -> 1.134328358 | BN38: SEER | BO38: =IF(OR(AP38="",$S$29=""),"",(AP38/$S$29)) -> 1.065333333 | BP38: =IF(OR(AQ38="",$T$29=""),"",(AQ38/$T$29)) -> 1.065671642 | BQ38: COP
Y39: 45000 | Z39: =Y39/12000 -> 3.75 | AC39: EER2 | AD39: 16.15 | AE39: 15.2 | AF39: SEER2 | AG39: =8/3.413 -> 2.343978904 | AH39: =7.2/3.413 -> 2.109581014 | AI39: COP | AL39: EER | AM39: =AD39/0.95 -> 17 | AN39: =AE39/0.95 -> 16 | AO39: SEER | AP39: =9.4/3.413 -> 2.754175212 | AQ39: =8.5/3.413 -> 2.490477586 | AR39: COP | AS39: 125 | AT39: ton | AU39: =AP39*3.413 -> 9.4 | AV39: =AQ39*3.413 -> 8.5 | AX39: 45000 | AY39: =AX39/12000 -> 3.75 | AZ39: =IF(OR(AA39="",$D$30=""),"",(AA39/$D$30)) ->  | BA39: =IF(OR(AB39="",$E$30=""),"",(AB39/$E$30)) ->  | BB39: EER2 | BC39: =IF(OR(AD39="",$G$30=""),"",(AD39/$G$30)) -> 1.129370629 | BD39: =IF(OR(AE39="",$H$30=""),"",(AE39/$H$30)) -> 1.134328358 | BE39: SEER2 | BF39: =IF(OR(AG39="",$J$30=""),"",(AG39/$J$30)) -> 1.066666667 | BG39: =IF(OR(AH39="",$K$30=""),"",(AH39/$K$30)) -> 1.074626866 | BH39: COP | BI39: =IF(OR(AJ39="",$M$30=""),"",(AJ39/$M$30)) ->  | BJ39: =IF(OR(AK39="",$N$30=""),"",(AK39/$N$30)) ->  | BK39: EER | BL39: =IF(OR(AM39="",$P$30=""),"",(AM39/$P$30)) -> 1.129370629 | BM39: =IF(OR(AN39="",$Q$30=""),"",(AN39/$Q$30)) -> 1.134328358 | BN39: SEER | BO39: =IF(OR(AP39="",$S$30=""),"",(AP39/$S$30)) -> 1.065333333 | BP39: =IF(OR(AQ39="",$T$30=""),"",(AQ39/$T$30)) -> 1.065671642 | BQ39: COP
Y40: 65000 | Z40: 5.416666667 | AC40: EER | AE40: 15.8 | AF40: IEER | AH40: 0 | AI40: COP | AS40: 100 | AT40: ton | AX40: 65000 | AY40: =AX40/12000 -> 5.416666667 | AZ40: =IF(OR(AA40="",$D$31=""),"",(AA40/$D$31)) ->  | BA40: =IF(OR(AB40="",$E$31=""),"",(AB40/$E$31)) ->  | BB40: EER | BC40: =IF(OR(AD40="",$G$31=""),"",(AD40/$G$31)) ->  | BD40: =IF(OR(AE40="",$H$31=""),"",(AE40/$H$31)) -> 1.136690647 | BE40: IEER | BF40: =IF(OR(AG40="",$J$31=""),"",(AG40/$J$31)) ->  | BG40: =IF(OR(AH40="",$K$31=""),"",(AH40/$K$31)) -> 0 | BH40: COP | BI40: =IF(OR(AJ40="",$M$31=""),"",(AJ40/$M$31)) ->  | BJ40: =IF(OR(AK40="",$N$31=""),"",(AK40/$N$31)) ->  | BL40: =IF(OR(AM40="",$P$31=""),"",(AM40/$P$31)) ->  | BM40: =IF(OR(AN40="",$Q$31=""),"",(AN40/$Q$31)) ->  | BO40: =IF(OR(AP40="",$S$31=""),"",(AP40/$S$31)) ->  | BP40: =IF(OR(AQ40="",$T$31=""),"",(AQ40/$T$31)) -> 
Y41: 135000 | Z41: 11.25 | AC41: EER | AE41: 15.1 | AF41: IEER | AH41: 0 | AI41: COP | AS41: 80 | AT41: ton | AX41: 135000 | AY41: 11.25 | AZ41: =IF(OR(AA41="",$D$32=""),"",(AA41/$D$32)) ->  | BA41: =IF(OR(AB41="",$E$32=""),"",(AB41/$E$32)) ->  | BB41: EER | BC41: =IF(OR(AD41="",$G$32=""),"",(AD41/$G$32)) ->  | BD41: =IF(OR(AE41="",$H$32=""),"",(AE41/$H$32)) -> 1.135338346 | BE41: IEER | BF41: =IF(OR(AG41="",$J$32=""),"",(AG41/$J$32)) ->  | BG41: =IF(OR(AH41="",$K$32=""),"",(AH41/$K$32)) -> 0 | BH41: COP | BI41: =IF(OR(AJ41="",$M$32=""),"",(AJ41/$M$32)) ->  | BJ41: =IF(OR(AK41="",$N$32=""),"",(AK41/$N$32)) ->  | BL41: =IF(OR(AM41="",$P$32=""),"",(AM41/$P$32)) ->  | BM41: =IF(OR(AN41="",$Q$32=""),"",(AN41/$Q$32)) ->  | BO41: =IF(OR(AP41="",$S$32=""),"",(AP41/$S$32)) ->  | BP41: =IF(OR(AQ41="",$T$32=""),"",(AQ41/$T$32)) -> 
Y42: 240000 | Z42: 20 | AC42: EER | AE42: 14.1 | AF42: IEER | AH42: 0 | AI42: COP | AS42: 75 | AT42: ton | AX42: 240000 | AY42: 20 | AZ42: =IF(OR(AA42="",$D$33=""),"",(AA42/$D$33)) ->  | BA42: =IF(OR(AB42="",$E$33=""),"",(AB42/$E$33)) ->  | BB42: EER | BC42: =IF(OR(AD42="",$G$33=""),"",(AD42/$G$33)) ->  | BD42: =IF(OR(AE42="",$H$33=""),"",(AE42/$H$33)) -> 1.146341463 | BE42: IEER | BF42: =IF(OR(AG42="",$J$33=""),"",(AG42/$J$33)) ->  | BG42: =IF(OR(AH42="",$K$33=""),"",(AH42/$K$33)) -> 0 | BH42: COP | BI42: =IF(OR(AJ42="",$M$33=""),"",(AJ42/$M$33)) ->  | BJ42: =IF(OR(AK42="",$N$33=""),"",(AK42/$N$33)) ->  | BL42: =IF(OR(AM42="",$P$33=""),"",(AM42/$P$33)) ->  | BM42: =IF(OR(AN42="",$Q$33=""),"",(AN42/$Q$33)) ->  | BO42: =IF(OR(AP42="",$S$33=""),"",(AP42/$S$33)) ->  | BP42: =IF(OR(AQ42="",$T$33=""),"",(AQ42/$T$33)) -> 
B47: 1 | C47: 2 | D47: 3 | E47: 4 | F47: 5 | N47: 1 | O47: 2 | P47: 3 | Q47: 4 | R47: 5 | Y47: 1 | Z47: 2 | AA47: 3 | AB47: 4
B48: PTAC | N48: PTAC - Minimum Efficiencies allowed | Y48: PTAC - Baseline checks
D49: Baseline Cooling Efficiency | P49: Minimum Cooling Efficiency | R49: Incentive | AA49: Minimum Cooling Efficiency
B50: Btu/h | C50: Tons | D50: Standard and Non-Standard | E50: Capacity Multiplier | F50: Unit | N50: Btu/h | O50: Tons | P50: Standard and Non-Standard | Q50: Unit | R50: Amount | S50: Unit | Y50: Btu/h | Z50: Tons | AA50: Standard and Non-Standard | AB50: Unit
B51: 0 | C51: =B51/12000 -> 0 | D51: 11.9 | E51: 0 | F51: EER | N51: 0 | O51: =N51/12000 -> 0 | P51: 12 | Q51: EER | R51: 20 | S51: Unit | Y51: 0 | Z51: =Y51/12000 -> 0 | AB51: EER
B52: 7000 | C52: =B52/12000 -> 0.5833333333 | D52: 14 | E52: -0.3 | F52: EER | N52: 9000 | O52: =N52/12000 -> 0.75 | P52: 11.5 | Q52: EER | R52: 30 | S52: Unit | Y52: 9000 | Z52: =Y52/12000 -> 0.75 | AB52: EER
B53: 15000 | C53: =B53/12000 -> 1.25 | D53: 9.5 | E53: 0 | F53: EER | N53: 12000 | O53: =N53/12000 -> 1 | P53: 10.5 | Q53: EER | R53: 40 | S53: Unit | Y53: 12000 | Z53: =Y53/12000 -> 1 | AB53: EER
B57: 1 | C57: 2 | D57: 3 | E57: 4 | F57: 5 | G57: 6 | H57: 7 | I57: 8 | N57: 1 | O57: 2 | P57: 3 | Q57: 4 | R57: 5 | S57: 6 | Y57: 1 | Z57: 2 | AA57: 3 | AB57: 4 | AC57: 5 | AD57: 6
B58: PTHP | N58: PTHP - Minimum Efficiencies allowed | Y58: PTHP - Minimum Efficiencies allowed
D59: Baseline Cooling Efficiency | G59: Baseline Heating Efficiency | P59: Minimum Cooling Efficiency | R59: Minimum Heating Efficiency | T59: Incentive | AA59: Minimum Cooling Efficiency | AC59: Minimum Heating Efficiency
B60: Btu/h | C60: Tons | D60: Standard and Non-Standard | E60: Capacity Multiplier | F60: Unit | G60: Standard and Non-Standard | H60: Capacity Multiplier | I60: Unit | N60: Btu/h | O60: Tons | P60: Standard and Non-Standard | Q60: Unit | R60: Standard and Non-Standard | S60: Unit | T60: Amount | U60: Unit | Y60: Btu/h | Z60: Tons | AA60: Standard and Non-Standard | AB60: Unit | AC60: Standard and Non-Standard | AD60: Unit
B61: 0 | C61: =B61/12000 -> 0 | D61: 11.9 | E61: 0 | F61: EER | G61: 3.3 | H61: 0 | I61: COP | N61: 0 | O61: =N61/12000 -> 0 | P61: 12 | Q61: EER | R61: 3.3 | S61: COP | T61: 40 | U61: Unit | Y61: 0 | Z61: =Y61/12000 -> 0 | AB61: EER | AD61: COP
B62: 7000 | C62: =B62/12000 -> 0.5833333333 | D62: 14 | E62: -0.3 | F62: EER | G62: 3.7 | H62: -0.052 | I62: COP | N62: 9000 | O62: =N62/12000 -> 0.75 | P62: 11.5 | Q62: EER | R62: 3.2 | S62: COP | T62: 50 | U62: Unit | Y62: 9000 | Z62: =Y62/12000 -> 0.75 | AB62: EER | AD62: COP
B63: 15000 | C63: 1.25 | D63: 9.5 | E63: 0 | F63: EER | G63: 2.9 | H63: 0 | I63: COP | N63: 12000 | O63: =N63/12000 -> 1 | P63: 10.3 | Q63: EER | R63: 3.2 | S63: COP | T63: 60 | U63: Unit | Y63: 12000 | Z63: =Y63/12000 -> 1 | AB63: EER | AD63: COP

Sheet Window Film
A1: Fill in Blue Cells Only!
A2: WINDOW FILM TECHNICAL REQUIREMENTS AND INCENTIVES
A3: ▪ To qualify for an incentive window film must be installed on south, east or west facing windows and cover the entire window. Installation on north facing windows is not eligible. ▪ Window film must have a maximum Solar Heat Gain Coefficient (SHGC) of 0.24 or less. ▪ Square feet installed must be entered as a whole number. Blue cells must be filled in for calculations to determine if eligible for incentive.
A4: Building Type | B4: Location/Floor/Suite # | C4: Total Square Feet Installed | D4: Number of Windows | E4: Film Manufacturer & Product Code/Model | F4: SHGC | G4: Incentive Per Sq. Ft. | H4: Window Facing Orientation | I4: Total Incentive | L4: Incentive | M4: Window Orientation | N4: kWh/SF | O4: kW/SF | P4: Therms/SF | Q4: kWh | R4: kW | S4: Therms
G5: =CONCATENATE("$",L5,"/sq. ft.") -> $1/sq. ft. | I5: =IF(OR(AND(F5>0,F5<=0.24,A5<>"")),C5*1,0) -> 0 | L5: 1 | M5: South | N5: =IF(I5=0,0,VLOOKUP($A5,'Window Film Lookups'!$C$9:$F$22,2,FALSE)) -> 0 | O5: =IF(I5=0,0,VLOOKUP($A5,'Window Film Lookups'!$C$9:$F$22,4,FALSE)) -> 0 | P5: =IF(I5=0,0,VLOOKUP($A5,'Window Film Lookups'!$C$9:$F$22,3,FALSE)) -> 0 | Q5: =N5*$C5 -> 0 | R5: =O5*$C5 -> 0 | S5: 0
G6: =CONCATENATE("$",L6,"/sq. ft.") -> $1/sq. ft. | I6: =IF(OR(AND(F6>0,F6<=0.24,A6<>"")),C6*1,0) -> 0 | L6: =L5 -> 1 | M6: East | N6: =IF(I6=0,0,VLOOKUP($A6,'Window Film Lookups'!$C$9:$F$22,2,FALSE)) -> 0 | O6: =IF(I6=0,0,VLOOKUP($A6,'Window Film Lookups'!$C$9:$F$22,4,FALSE)) -> 0 | P6: =IF(I6=0,0,VLOOKUP($A6,'Window Film Lookups'!$C$9:$F$22,3,FALSE)) -> 0 | Q6: =N6*$C6 -> 0 | R6: =O6*$C6 -> 0 | S6: =P6*$C6 -> 0
G7: $1/sq. ft. | I7: =IF(OR(AND(F7>0,F7<=0.24,A7<>"")),C7*1,0) -> 0 | L7: =L6 -> 1 | M7: West | N7: =IF(I7=0,0,VLOOKUP($A7,'Window Film Lookups'!$C$9:$F$22,2,FALSE)) -> 0 | O7: =IF(I7=0,0,VLOOKUP($A7,'Window Film Lookups'!$C$9:$F$22,4,FALSE)) -> 0 | P7: =IF(I7=0,0,VLOOKUP($A7,'Window Film Lookups'!$C$9:$F$22,3,FALSE)) -> 0 | Q7: 0 | R7: 0 | S7: 0
G8: $1/sq. ft. | I8: =IF(OR(AND(F8>0,F8<=0.24,A8<>"")),C8*1,0) -> 0 | L8: 1 | N8: =IF(I8=0,0,VLOOKUP($A8,'Window Film Lookups'!$C$9:$F$22,2,FALSE)) -> 0 | O8: =IF(I8=0,0,VLOOKUP($A8,'Window Film Lookups'!$C$9:$F$22,4,FALSE)) -> 0 | P8: =IF(I8=0,0,VLOOKUP($A8,'Window Film Lookups'!$C$9:$F$22,3,FALSE)) -> 0 | Q8: 0 | R8: 0 | S8: 0
A9: Total Requested Incentive | I9: =SUM(I5:I8) -> 0
I11: ="Version " & 'Version Tracking'!C4 -> Version 15.2

Sheet Cool Roof
A1: Fill in Blue Cells Only!
A2: COOL ROOF TECHNICAL REQUIREMENTS AND INCENTIVES
A3: ▪ Roof coverings must be certified by CRRC (Cool Roof Rating Council). ▪ The roof must have at least an initial rated reflectance of 0.65, and a rated reflectance of 0.50 after 3 years of exposure. ▪ The roof covering can’t be ballasted, or otherwise mostly covered with other materials. ▪ Roof must be located over an air-conditioned space. Blue cells must be filled in for calculations to determine if qualifies for an incentive.
A4: Building Type | B4: Roofing Brand/Manufacturer & Product Code/ Model | C4: Cool Roof Application | D4: Initial Reflectance | E4: Aged Reflectanace | F4: Roof Area (sq. ft.) | G4: Incentive Per Sq. Ft. | H4: Total Incentive | K4: Location | L4: ESF | M4: DSF | N4: kWh | O4: kW | P4: kWh/SF | Q4: kW/SF
G5: 0.1 | H5: =IF(OR(D5="",E5="",F5=""),0,IF(OR(K5=$L$16,K5=$L$17),K5,IF(AND(D5>=0.65,E5>=0.5),F5*0.1,0))) -> 0 | K5: =IFERROR(IF(A5="","",IF('Project Information'!$N$6="",$L$16,VLOOKUP('Project Information'!$N$6,Validation!$B$115:$D$515,3,FALSE))),$L$17) ->  | L5: =IFERROR(INDEX(Validation!D$52:D$87,MATCH(1,($A5=Validation!$B$52:$B$87)*($K5=Validation!$C$52:$C$87),0)),0) -> 0 | M5: =IFERROR(INDEX(Validation!E$52:E$87,MATCH(1,($A5=Validation!$B$52:$B$87)*($K5=Validation!$C$52:$C$87),0)),0) -> 0 | N5: =$F5*L5 -> 0 | O5: =$F5*M5 -> 0 | P5: =IFERROR(N5/F5,0) -> 0 | Q5: =IFERROR(O5/F5,0) -> 0
G6: 0.1 | H6: =IF(OR(D6="",E6="",F6=""),0,IF(OR(K6=$L$16,K6=$L$17),K6,IF(AND(D6>=0.65,E6>=0.5),F6*0.1,0))) -> 0 | K6: =IFERROR(IF(A6="","",IF('Project Information'!$N$6="",$L$16,VLOOKUP('Project Information'!$N$6,Validation!$B$115:$D$515,3,FALSE))),$L$17) ->  | L6: =IFERROR(INDEX(Validation!D$52:D$87,MATCH(1,($A6=Validation!$B$52:$B$87)*($K6=Validation!$C$52:$C$87),0)),0) -> 0 | M6: =IFERROR(INDEX(Validation!E$52:E$87,MATCH(1,($A6=Validation!$B$52:$B$87)*($K6=Validation!$C$52:$C$87),0)),0) -> 0 | N6: =$F6*L6 -> 0 | O6: =$F6*M6 -> 0 | P6: =IFERROR(N6/F6,0) -> 0 | Q6: =IFERROR(O6/F6,0) -> 0
G7: 0.1 | H7: 0 | K7: =IFERROR(IF(A7="","",IF('Project Information'!$N$6="",$L$16,VLOOKUP('Project Information'!$N$6,Validation!$B$115:$D$515,3,FALSE))),$L$17) ->  | L7: =IFERROR(INDEX(Validation!D$52:D$87,MATCH(1,($A7=Validation!$B$52:$B$87)*($K7=Validation!$C$52:$C$87),0)),0) -> 0 | M7: =IFERROR(INDEX(Validation!E$52:E$87,MATCH(1,($A7=Validation!$B$52:$B$87)*($K7=Validation!$C$52:$C$87),0)),0) -> 0 | N7: 0 | O7: 0 | P7: 0 | Q7: 0
G8: 0.1 | H8: 0 | K8: =IFERROR(IF(A8="","",IF('Project Information'!$N$6="",$L$16,VLOOKUP('Project Information'!$N$6,Validation!$B$115:$D$515,3,FALSE))),$L$17) ->  | L8: =IFERROR(INDEX(Validation!D$52:D$87,MATCH(1,($A8=Validation!$B$52:$B$87)*($K8=Validation!$C$52:$C$87),0)),0) -> 0 | M8: =IFERROR(INDEX(Validation!E$52:E$87,MATCH(1,($A8=Validation!$B$52:$B$87)*($K8=Validation!$C$52:$C$87),0)),0) -> 0 | N8: 0 | O8: 0 | P8: 0 | Q8: 0
A9: Total Requested Incentive | H9: =SUM(H5:H8) -> 0
H11: ="Version " & 'Version Tracking'!C4 -> Version 15.2
N12: Summary Table
N13: Total kWh | O13: Total Summer Coincident Peak (kW) | P13: Total Incentive
N14: =SUM(N5:N8) -> 0 | O14: =SUM(O5:O8) -> 0 | P14: =H9 -> 0
K16: Missing zip code message: | L16: Fill in zip code in cell L6 on Project Information tab
K17: Non-eligible zip code message: | L17: Ineligible zip code. Please check cell L6 on Project Information tab

Sheet Window Film Lookups (hidden)
C2: Data Provided from the evaluator
C5: BuildingTypeWF | D5: Annual window film savings/sq. ft.
D6: Measure | E6: Measure | F6: Measure Coincident Summer Elec. Peak Differential
D7: Total Elec. Differential | E7: Total Gas Differential | F7: (kW)
D8: (kWh) | E8: (Therms)
C9: Elementary School | D9: 5 | E9: 0.159 | F9: 0.002
C10: Fast Food | D10: 12 | E10: -0.379 | F10: 0.004
C11: Full Restaurant | D11: 11 | E11: -0.367 | F11: 0.004
C12: Grocery | D12: 2 | E12: -0.52 | F12: 0.002
C13: High School | D13: 6 | E13: 0.047 | F13: 0.002
C14: Hospital | D14: 35 | E14: 2.2 | F14: 0.005
C15: Large Hotel | D15: 7 | E15: 0.009 | F15: 0.002
C16: Large Office | D16: 16 | E16: 0.046 | F16: 0.004
C17: OutPatient | D17: 32 | E17: 1.102 | F17: 0.005
C18: Retail | D18: 10 | E18: -0.335 | F18: 0.004
C19: Small Hotel | D19: 12 | E19: -0.131 | F19: 0.003
C20: Small Office | D20: 12 | E20: -0.253 | F20: 0.004
C21: Strip Mall | D21: 9 | E21: -0.43 | F21: 0.004
C22: Warehouse | D22: 6 | E22: -0.325 | F22: 0.003

Sheet HVAC Chillers
A1: Fill in Blue Cells Only!
A2: HVAC CHILLER TECHNICAL REQUIREMENTS
A3: ▪ Air and water cooled chilling packages used in a single chiller HVAC are eligible systems. ▪ If the chiller serves HVAC and non-HVAC loads, the non-HVAC load may not exceed 25 percent of the chiller’s rated capacity. ▪ Chillers being installed must meet the full load and Integrated Part Load Value (IPLV) efficiency values. ▪ For chillers that are manufactured with variable frequency devices (VFDs) as part of the chiller package, the VFDs will not be independently eligible for additional incentives. ▪ Chillers with a VFD controlling the compressor must be applied for using Table 2. ▪ Water chilling equipment must meet current Air-Conditioning and Refrigeration Institute (ARI) standards 550/590, be UL listed, and use a minimum ozone-depleting refrigerant. ▪ Chillers purchased and installed for backup or redundant systems are not eligible for incentives.
A5: INCENTIVE CALCULATION INSTRUCTIONS
A6: Incentives are available for high-efficiency base units and any incremental part load efficiency improvements. To calculate total incentive, follow these steps: Step 1 Identify the appropriate table for reviewing the eligibility requirements and calculating the incentive. Use Table 1 to review the requirements and enter information for single-speed chillers. Use EER for Full Load value for Air Cooled Chillers and kW/Ton for Full Load value of Water Cooled Chillers Use Table 2 to review the requirements and enter information for VFD-controlled chillers. Use EER for Full Load value for Air Cooled Chillers and kW/Ton for Full Load value of Water Cooled Chillers Base Unit Incentive is calculated by the following formula: Chiller Size (Net Tons) x Base Unit Incentive = Base Total Incentive Performance Incentive is calculated as follows: ▪ Air Cooled Chillers (Capped at $125/ton for VFD-controlled air cooled chillers) [(Proposed Equipment Unit Efficiency – Minimum Incentive Efficiency) x 10] x Chiller Size (Net Tons) x Performance Incentive = Performance Total Incentive ▪ Water Cooled Chillers [(Minimum Incentive Efficiency – Proposed Equipment Unit Efficiency) x 100] x Chiller Size (Net Tons) x Performance Incentive = Performance Total Incentive The efficiency value (EER, IPLV, or kW/ton) that represents the greater difference between the Minimum Incentive Efficiency and the Proposed Equipment Unit Efficiency should be used in calculating the incentive. Step 2 Complete Table 1A or Table 2A with the Chiller Plant Operating Parameters. Be sure to insert total estimated plant load (Tons). Blue Cells must be filled in for calculations to determine if qualifies for an incentive.
A8: TABLE 1: HVAC CHILLER INCENTIVES - SINGLE-SPEED CHILLERS
A9: Type | B9: Unit Size - ARI Net Tons | C9: Minimum Efficiency (Full Load and IPLV) | D9: Building Type | E9: Proposed Equipment | I9: Incentives
E10: Chiller Size (Net Tons) | F10: Full Load | H10: IPLV | I10: Base Unit Incentive per Ton | J10: Base Total Incentive | K10: Performance Incentive per Ton | L10: Performance Total Incentive | M10: Requested Incentive | Q10: Chiller Type | R10: Single Speed or VFD Controlled | S10: Base Unit Efficiency | U10: Comm_Coincidence_Factor_Summer | V10: Comm_Coincidence_Factor_Winter | W10: EFLHC | X10: Total kWh Saved | Y10: Total kW Summer Saved | Z10: Total kW Winter Saved
S11: Full Load (EER for Air-Cooled) | T11: IPLV
A12: Air Cooled Chiller with Condenser | B12: < 150 tons | C12: ≥ 10.2 EER | I12: 20 | J12: =IF(AND(F12>=10.2,H12>=13.34),E12*I12,0) -> 0 | K12: 3 | L12: =IF(OR(AND(J12>0,(F12-10.2)>=(H12-13.34))),(F12-10.2)*10*E12*K12,IF(OR(AND(J12>0,(F12-10.2)<(H12-13.34))),(H12-13.34)*10*E12*K12,0)) -> 0 | M12: =J12+L12 -> 0 | Q12: ACC | R12: Single Speed | S12: =ROUND(IF($R12="Single Speed",INDEX('Program Info Tables'!$P$4:$S$7,IF(ISNA(MATCH($E12,'Program Info Tables'!$O$4:$O$7,1)),1,MATCH($E12,'Program Info Tables'!$O$4:$O$7,1)+1),MATCH($Q12,'Program Info Tables'!$P$3:$S$3,0)),IF($R12="VFD Controlled",INDEX('Program Info Tables'!$P$4:$S$7,IF(ISNA(MATCH($E12,'Program Info Tables'!$O$4:$O$7,1)),1,MATCH($E12,'Program Info Tables'!$O$4:$O$7,1)+1),MATCH($Q12,'Program Info Tables'!$P$3:$S$3,0)),"")),3) -> 9.554 | T12: =ROUND(IF($R12="Single Speed",INDEX('Program Info Tables'!$P$11:$S$14,IF(ISNA(MATCH($E12,'Program Info Tables'!$O$4:$O$7,1)),1,MATCH($E12,'Program Info Tables'!$O$4:$O$7,1)+1),MATCH($Q12,'Program Info Tables'!$P$3:$S$3,0)),IF($R12="VFD Controlled",INDEX('Program Info Tables'!$P$11:$S$14,IF(ISNA(MATCH($E12,'Program Info Tables'!$O$4:$O$7,1)),1,MATCH($E12,'Program Info Tables'!$O$4:$O$7,1)+1),MATCH($Q12,'Program Info Tables'!$P$3:$S$3,0)),"")),3) -> 10.408 | U12: 0.8 | V12: 0.09 | W12: =IFERROR(VLOOKUP(D12,Validation!$B$582:$E$594,4,0),"") ->  | X12: =IFERROR(IF(Q12="ACC",E12*((12/T12)-(12/H12))*W12,E12*(T12-H12)*W12),"") ->  | Y12: =IFERROR(IF(Q12="ACC",E12*((12/S12)-(12/F12))*U12,E12*(S12-F12)*U12),"") ->  | Z12: =IFERROR(IF(Q12="ACC",E12*((12/S12)-(12/F12))*V12,E12*(S12-F12)*V12),"") -> 
C13: ≥ 13.34 IPLV
B14: ≥ 150 tons | C14: ≥ 10.2 EER | I14: 20 | J14: =IF(AND(F14>=10.2,H14>=13.6),E14*I14,0) -> 0 | K14: 3 | L14: =IF(OR(AND(J14>0,(F14-10.2)>=(H14-13.6))),(F14-10.2)*10*E14*K14,IF(OR(AND(J14>0,(F14-10.2)<(H14-13.6))),(H14-13.6)*10*E14*K14,0)) -> 0 | M14: =J14+L14 -> 0 | Q14: ACC | R14: Single Speed | S14: =ROUND(IF($R14="Single Speed",INDEX('Program Info Tables'!$P$4:$S$7,IF(ISNA(MATCH($E14,'Program Info Tables'!$O$4:$O$7,1)),1,MATCH($E14,'Program Info Tables'!$O$4:$O$7,1)+1),MATCH($Q14,'Program Info Tables'!$P$3:$S$3,0)),IF($R14="VFD Controlled",INDEX('Program Info Tables'!$P$4:$S$7,IF(ISNA(MATCH($E14,'Program Info Tables'!$O$4:$O$7,1)),1,MATCH($E14,'Program Info Tables'!$O$4:$O$7,1)+1),MATCH($Q14,'Program Info Tables'!$P$3:$S$3,0)),"")),3) -> 9.554 | T14: =ROUND(IF($R14="Single Speed",INDEX('Program Info Tables'!$P$11:$S$14,IF(ISNA(MATCH($E14,'Program Info Tables'!$O$4:$O$7,1)),1,MATCH($E14,'Program Info Tables'!$O$4:$O$7,1)+1),MATCH($Q14,'Program Info Tables'!$P$3:$S$3,0)),IF($R14="VFD Controlled",INDEX('Program Info Tables'!$P$11:$S$14,IF(ISNA(MATCH($E14,'Program Info Tables'!$O$4:$O$7,1)),1,MATCH($E14,'Program Info Tables'!$O$4:$O$7,1)+1),MATCH($Q14,'Program Info Tables'!$P$3:$S$3,0)),"")),3) -> 10.408 | U14: 0.8 | V14: 0.09 | W14: =IFERROR(VLOOKUP(D14,Validation!$B$582:$E$594,4,0),"") ->  | X14: =IFERROR(IF(Q14="ACC",E14*((12/T14)-(12/H14))*W14,E14*(T14-H14)*W14),"") ->  | Y14: =IFERROR(IF(Q14="ACC",E14*((12/S14)-(12/F14))*U14,E14*(S14-F14)*U14),"") ->  | Z14: 0
C15: ≥ 13.6 IPLV
A16: Water Cooled Screw Chillers | B16: < 150 tons | C16: ≤ 0.71 kW/ton | I16: 35 | J16: =IF(OR(AND(F16<=0.71,F16>0,H16<=0.56,H16>0)),E16*I16,0) -> 0 | K16: 4 | L16: =IF(OR(AND(J16>0,(0.71-F16)>=(0.56-H16))),(0.71-F16)*100*E16*K16,IF(OR(AND(J16>0,(0.71-F16)<(0.56-H16))),(0.56-H16)*100*E16*K16,0)) -> 0 | M16: =J16+L16 -> 0 | Q16: WCSC | R16: Single Speed | S16: =ROUND(IF($R16="Single Speed",INDEX('Program Info Tables'!$P$4:$S$7,IF(ISNA(MATCH($E16,'Program Info Tables'!$O$4:$O$7,1)),1,MATCH($E16,'Program Info Tables'!$O$4:$O$7,1)+1),MATCH($Q16,'Program Info Tables'!$P$3:$S$3,0)),IF($R16="VFD Controlled",INDEX('Program Info Tables'!$P$4:$S$7,IF(ISNA(MATCH($E16,'Program Info Tables'!$O$4:$O$7,1)),1,MATCH($E16,'Program Info Tables'!$O$4:$O$7,1)+1),MATCH($Q16,'Program Info Tables'!$P$3:$S$3,0)),"")),3) -> 0.79 | T16: =ROUND(IF($R16="Single Speed",INDEX('Program Info Tables'!$P$11:$S$14,IF(ISNA(MATCH($E16,'Program Info Tables'!$O$4:$O$7,1)),1,MATCH($E16,'Program Info Tables'!$O$4:$O$7,1)+1),MATCH($Q16,'Program Info Tables'!$P$3:$S$3,0)),IF($R16="VFD Controlled",INDEX('Program Info Tables'!$P$11:$S$14,IF(ISNA(MATCH($E16,'Program Info Tables'!$O$4:$O$7,1)),1,MATCH($E16,'Program Info Tables'!$O$4:$O$7,1)+1),MATCH($Q16,'Program Info Tables'!$P$3:$S$3,0)),"")),3) -> 0.676 | U16: 0.8 | V16: 0.09 | W16: =IFERROR(VLOOKUP(D16,Validation!$B$582:$E$594,4,0),"") ->  | X16: =IFERROR(IF(Q16="ACC",E16*((12/T16)-(12/H16))*W16,E16*(T16-H16)*W16),"") ->  | Y16: =IFERROR(IF(Q16="ACC",E16*((12/S16)-(12/F16))*U16,E16*(S16-F16)*U16),"") -> 0 | Z16: 0
C17: ≤ 0.56 IPLV
B18: ≥ 150 tons and < 300 tons | C18: ≤ 0.58 kW//ton | I18: 35 | J18: =IF(OR(AND(F18<=0.58,F18>0,H18<=0.47,H18>0)),E18*I18,0) -> 0 | K18: 3 | L18: =IF(OR(AND(J18>0,(0.58-F18)>=(0.47-H18))),(0.58-F18)*100*E18*K18,IF(OR(AND(J18>0,(0.58-F18)<(0.47-H18))),(0.47-H18)*100*E18*K18,0)) -> 0 | M18: =J18+L18 -> 0 | Q18: WCSC | R18: Single Speed | S18: =ROUND(IF($R18="Single Speed",INDEX('Program Info Tables'!$P$4:$S$7,IF(ISNA(MATCH($E18,'Program Info Tables'!$O$4:$O$7,1)),1,MATCH($E18,'Program Info Tables'!$O$4:$O$7,1)+1),MATCH($Q18,'Program Info Tables'!$P$3:$S$3,0)),IF($R18="VFD Controlled",INDEX('Program Info Tables'!$P$4:$S$7,IF(ISNA(MATCH($E18,'Program Info Tables'!$O$4:$O$7,1)),1,MATCH($E18,'Program Info Tables'!$O$4:$O$7,1)+1),MATCH($Q18,'Program Info Tables'!$P$3:$S$3,0)),"")),3) -> 0.79 | T18: =ROUND(IF($R18="Single Speed",INDEX('Program Info Tables'!$P$11:$S$14,IF(ISNA(MATCH($E18,'Program Info Tables'!$O$4:$O$7,1)),1,MATCH($E18,'Program Info Tables'!$O$4:$O$7,1)+1),MATCH($Q18,'Program Info Tables'!$P$3:$S$3,0)),IF($R18="VFD Controlled",INDEX('Program Info Tables'!$P$11:$S$14,IF(ISNA(MATCH($E18,'Program Info Tables'!$O$4:$O$7,1)),1,MATCH($E18,'Program Info Tables'!$O$4:$O$7,1)+1),MATCH($Q18,'Program Info Tables'!$P$3:$S$3,0)),"")),3) -> 0.676 | U18: 0.8 | V18: 0.09 | W18: =IFERROR(VLOOKUP(D18,Validation!$B$582:$E$594,4,0),"") ->  | X18: =IFERROR(IF(Q18="ACC",E18*((12/T18)-(12/H18))*W18,E18*(T18-H18)*W18),"") ->  | Y18: =IFERROR(IF(Q18="ACC",E18*((12/S18)-(12/F18))*U18,E18*(S18-F18)*U18),"") -> 0 | Z18: 0
C19: ≤ 0.47 IPLV
B20: ≥ 300 | C20: ≤ 0.56 kW/ton | I20: 25 | J20: =IF(OR(AND(F20<=0.56,F20>0,H20<=0.45,H20>0)),E20*I20,0) -> 0 | K20: 2 | L20: =IF(OR(AND(J20>0,(0.56-F20)>=(0.45-H20))),(0.56-F20)*100*E20*K20,IF(OR(AND(J20>0,(0.56-F20)<(0.45-H20))),(0.45-H20)*100*E20*K20,0)) -> 0 | M20: =J20+L20 -> 0 | Q20: WCSC | R20: Single Speed | S20: =ROUND(IF($R20="Single Speed",INDEX('Program Info Tables'!$P$4:$S$7,IF(ISNA(MATCH($E20,'Program Info Tables'!$O$4:$O$7,1)),1,MATCH($E20,'Program Info Tables'!$O$4:$O$7,1)+1),MATCH($Q20,'Program Info Tables'!$P$3:$S$3,0)),IF($R20="VFD Controlled",INDEX('Program Info Tables'!$P$4:$S$7,IF(ISNA(MATCH($E20,'Program Info Tables'!$O$4:$O$7,1)),1,MATCH($E20,'Program Info Tables'!$O$4:$O$7,1)+1),MATCH($Q20,'Program Info Tables'!$P$3:$S$3,0)),"")),3) -> 0.79 | T20: =ROUND(IF($R20="Single Speed",INDEX('Program Info Tables'!$P$11:$S$14,IF(ISNA(MATCH($E20,'Program Info Tables'!$O$4:$O$7,1)),1,MATCH($E20,'Program Info Tables'!$O$4:$O$7,1)+1),MATCH($Q20,'Program Info Tables'!$P$3:$S$3,0)),IF($R20="VFD Controlled",INDEX('Program Info Tables'!$P$11:$S$14,IF(ISNA(MATCH($E20,'Program Info Tables'!$O$4:$O$7,1)),1,MATCH($E20,'Program Info Tables'!$O$4:$O$7,1)+1),MATCH($Q20,'Program Info Tables'!$P$3:$S$3,0)),"")),3) -> 0.676 | U20: 0.8 | V20: 0.09 | W20: =IFERROR(VLOOKUP(D20,Validation!$B$582:$E$594,4,0),"") ->  | X20: =IFERROR(IF(Q20="ACC",E20*((12/T20)-(12/H20))*W20,E20*(T20-H20)*W20),"") ->  | Y20: =IFERROR(IF(Q20="ACC",E20*((12/S20)-(12/F20))*U20,E20*(S20-F20)*U20),"") -> 0 | Z20: 0
C21: ≤ 0.45 IPLV
A22: Water Cooled Reciprocating Chillers | B22: < 150 tons | C22: ≤ 0.71 kW/ton | I22: 35 | J22: =IF(OR(AND(F22<=0.71,F22>0,H22<=0.56,H22>0)),E22*I22,0) -> 0 | K22: 4 | L22: =IF(OR(AND(J22>0,(0.71-F22)>=(0.56-H22))),(0.71-F22)*100*E22*K22,IF(OR(AND(J22>0,(0.71-F22)<(0.56-H22))),(0.56-H22)*100*E22*K22,0)) -> 0 | M22: =J22+L22 -> 0 | Q22: WCRC | R22: Single Speed | S22: =ROUND(IF($R22="Single Speed",INDEX('Program Info Tables'!$P$4:$S$7,IF(ISNA(MATCH($E22,'Program Info Tables'!$O$4:$O$7,1)),1,MATCH($E22,'Program Info Tables'!$O$4:$O$7,1)+1),MATCH($Q22,'Program Info Tables'!$P$3:$S$3,0)),IF($R22="VFD Controlled",INDEX('Program Info Tables'!$P$4:$S$7,IF(ISNA(MATCH($E22,'Program Info Tables'!$O$4:$O$7,1)),1,MATCH($E22,'Program Info Tables'!$O$4:$O$7,1)+1),MATCH($Q22,'Program Info Tables'!$P$3:$S$3,0)),"")),3) -> 0.837 | T22: =ROUND(IF($R22="Single Speed",INDEX('Program Info Tables'!$P$11:$S$14,IF(ISNA(MATCH($E22,'Program Info Tables'!$O$4:$O$7,1)),1,MATCH($E22,'Program Info Tables'!$O$4:$O$7,1)+1),MATCH($Q22,'Program Info Tables'!$P$3:$S$3,0)),IF($R22="VFD Controlled",INDEX('Program Info Tables'!$P$11:$S$14,IF(ISNA(MATCH($E22,'Program Info Tables'!$O$4:$O$7,1)),1,MATCH($E22,'Program Info Tables'!$O$4:$O$7,1)+1),MATCH($Q22,'Program Info Tables'!$P$3:$S$3,0)),"")),3) -> 0.696 | U22: 1.8 | V22: 0.09 | W22: =IFERROR(VLOOKUP(D22,Validation!$B$582:$E$594,4,0),"") ->  | X22: =IFERROR(IF(Q22="ACC",E22*((12/T22)-(12/H22))*W22,E22*(T22-H22)*W22),"") ->  | Y22: =IFERROR(IF(Q22="ACC",E22*((12/S22)-(12/F22))*U22,E22*(S22-F22)*U22),"") -> 0 | Z22: 0
C23: ≤ 0.56 IPLV
B24: ≥ 150 tons and < 300 tons | C24: ≤ 0.58 kW//ton | I24: 35 | J24: =IF(OR(AND(F24<=0.58,F24>0,H24<=0.47,H24>0)),E24*I24,0) -> 0 | K24: 3 | L24: =IF(OR(AND(J24>0,(0.58-F24)>=(0.47-H24))),(0.58-F24)*100*E24*K24,IF(OR(AND(J24>0,(0.58-F24)<(0.47-H24))),(0.47-H24)*100*E24*K24,0)) -> 0 | M24: =J24+L24 -> 0 | Q24: WCRC | R24: Single Speed | S24: =ROUND(IF($R24="Single Speed",INDEX('Program Info Tables'!$P$4:$S$7,IF(ISNA(MATCH($E24,'Program Info Tables'!$O$4:$O$7,1)),1,MATCH($E24,'Program Info Tables'!$O$4:$O$7,1)+1),MATCH($Q24,'Program Info Tables'!$P$3:$S$3,0)),IF($R24="VFD Controlled",INDEX('Program Info Tables'!$P$4:$S$7,IF(ISNA(MATCH($E24,'Program Info Tables'!$O$4:$O$7,1)),1,MATCH($E24,'Program Info Tables'!$O$4:$O$7,1)+1),MATCH($Q24,'Program Info Tables'!$P$3:$S$3,0)),"")),3) -> 0.837 | T24: =ROUND(IF($R24="Single Speed",INDEX('Program Info Tables'!$P$11:$S$14,IF(ISNA(MATCH($E24,'Program Info Tables'!$O$4:$O$7,1)),1,MATCH($E24,'Program Info Tables'!$O$4:$O$7,1)+1),MATCH($Q24,'Program Info Tables'!$P$3:$S$3,0)),IF($R24="VFD Controlled",INDEX('Program Info Tables'!$P$11:$S$14,IF(ISNA(MATCH($E24,'Program Info Tables'!$O$4:$O$7,1)),1,MATCH($E24,'Program Info Tables'!$O$4:$O$7,1)+1),MATCH($Q24,'Program Info Tables'!$P$3:$S$3,0)),"")),3) -> 0.696 | U24: 2.8 | V24: 0.09 | W24: =IFERROR(VLOOKUP(D24,Validation!$B$582:$E$594,4,0),"") ->  | X24: =IFERROR(IF(Q24="ACC",E24*((12/T24)-(12/H24))*W24,E24*(T24-H24)*W24),"") ->  | Y24: =IFERROR(IF(Q24="ACC",E24*((12/S24)-(12/F24))*U24,E24*(S24-F24)*U24),"") -> 0 | Z24: 0
C25: ≤ 0.47 IPLV
B26: ≥ 300 | C26: ≤ 0.56 kW/ton | I26: 25 | J26: =IF(OR(AND(F26<=0.56,F26>0,H26<=0.45,H26>0)),E26*I26,0) -> 0 | K26: 2 | L26: =IF(OR(AND(J26>0,(0.56-F26)>=(0.45-H26))),(0.56-F26)*100*E26*K26,IF(OR(AND(J26>0,(0.56-F26)<(0.45-H26))),(0.45-H26)*100*E26*K26,0)) -> 0 | M26: =J26+L26 -> 0 | Q26: WCRC | R26: Single Speed | S26: =ROUND(IF($R26="Single Speed",INDEX('Program Info Tables'!$P$4:$S$7,IF(ISNA(MATCH($E26,'Program Info Tables'!$O$4:$O$7,1)),1,MATCH($E26,'Program Info Tables'!$O$4:$O$7,1)+1),MATCH($Q26,'Program Info Tables'!$P$3:$S$3,0)),IF($R26="VFD Controlled",INDEX('Program Info Tables'!$P$4:$S$7,IF(ISNA(MATCH($E26,'Program Info Tables'!$O$4:$O$7,1)),1,MATCH($E26,'Program Info Tables'!$O$4:$O$7,1)+1),MATCH($Q26,'Program Info Tables'!$P$3:$S$3,0)),"")),3) -> 0.837 | T26: =ROUND(IF($R26="Single Speed",INDEX('Program Info Tables'!$P$11:$S$14,IF(ISNA(MATCH($E26,'Program Info Tables'!$O$4:$O$7,1)),1,MATCH($E26,'Program Info Tables'!$O$4:$O$7,1)+1),MATCH($Q26,'Program Info Tables'!$P$3:$S$3,0)),IF($R26="VFD Controlled",INDEX('Program Info Tables'!$P$11:$S$14,IF(ISNA(MATCH($E26,'Program Info Tables'!$O$4:$O$7,1)),1,MATCH($E26,'Program Info Tables'!$O$4:$O$7,1)+1),MATCH($Q26,'Program Info Tables'!$P$3:$S$3,0)),"")),3) -> 0.696 | U26: 3.8 | V26: 0.09 | W26: =IFERROR(VLOOKUP(D26,Validation!$B$582:$E$594,4,0),"") ->  | X26: =IFERROR(IF(Q26="ACC",E26*((12/T26)-(12/H26))*W26,E26*(T26-H26)*W26),"") ->  | Y26: =IFERROR(IF(Q26="ACC",E26*((12/S26)-(12/F26))*U26,E26*(S26-F26)*U26),"") -> 0 | Z26: 0
C27: ≤ 0.45 IPLV
A28: Water Cooled Centrifugal Chillers | B28: < 300 tons | C28: ≤ 0.59 kW/ton | I28: 20 | J28: =IF(OR(AND(F28<=0.59,F28>0,H28<=0.56,H28>0)),E28*I28,0) -> 0 | K28: 3 | L28: =IF(OR(AND(J28>0,(0.59-F28)>=(0.56-H28))),(0.59-F28)*100*E28*K28,IF(OR(AND(J28>0,(0.59-F28)<(0.56-H28))),(0.56-H28)*100*E28*K28,0)) -> 0 | M28: =J28+L28 -> 0 | Q28: WCCC | R28: Single Speed | S28: =ROUND(IF($R28="Single Speed",INDEX('Program Info Tables'!$P$4:$S$7,IF(ISNA(MATCH($E28,'Program Info Tables'!$O$4:$O$7,1)),1,MATCH($E28,'Program Info Tables'!$O$4:$O$7,1)+1),MATCH($Q28,'Program Info Tables'!$P$3:$S$3,0)),IF($R28="VFD Controlled",INDEX('Program Info Tables'!$P$4:$S$7,IF(ISNA(MATCH($E28,'Program Info Tables'!$O$4:$O$7,1)),1,MATCH($E28,'Program Info Tables'!$O$4:$O$7,1)+1),MATCH($Q28,'Program Info Tables'!$P$3:$S$3,0)),"")),3) -> 0.703 | T28: =ROUND(IF($R28="Single Speed",INDEX('Program Info Tables'!$P$11:$S$14,IF(ISNA(MATCH($E28,'Program Info Tables'!$O$4:$O$7,1)),1,MATCH($E28,'Program Info Tables'!$O$4:$O$7,1)+1),MATCH($Q28,'Program Info Tables'!$P$3:$S$3,0)),IF($R28="VFD Controlled",INDEX('Program Info Tables'!$P$11:$S$14,IF(ISNA(MATCH($E28,'Program Info Tables'!$O$4:$O$7,1)),1,MATCH($E28,'Program Info Tables'!$O$4:$O$7,1)+1),MATCH($Q28,'Program Info Tables'!$P$3:$S$3,0)),"")),3) -> 0.67 | U28: 0.8 | V28: 0.09 | W28: =IFERROR(VLOOKUP(D28,Validation!$B$582:$E$594,4,0),"") ->  | X28: =IFERROR(IF(Q28="ACC",E28*((12/T28)-(12/H28))*W28,E28*(T28-H28)*W28),"") ->  | Y28: =IFERROR(IF(Q28="ACC",E28*((12/S28)-(12/F28))*U28,E28*(S28-F28)*U28),"") -> 0 | Z28: 0
C29: ≤ 0.56 IPLV
B30: ≥ 300 and < 600 tons | C30: ≤ 0.56 kW/ton | I30: 20 | J30: =IF(OR(AND(F30<=0.56,F30>0,H30<=0.53,H30>0)),E30*I30,0) -> 0 | K30: 3 | L30: =IF(OR(AND(J30>0,(0.56-F30)>=(0.53-H30))),(0.56-F30)*100*E30*K30,IF(OR(AND(J30>0,(0.56-F30)<(0.53-H30))),(0.53-H30)*100*E30*K30,0)) -> 0 | M30: =J30+L30 -> 0 | Q30: WCCC | R30: Single Speed | S30: =ROUND(IF($R30="Single Speed",INDEX('Program Info Tables'!$P$4:$S$7,IF(ISNA(MATCH($E30,'Program Info Tables'!$O$4:$O$7,1)),1,MATCH($E30,'Program Info Tables'!$O$4:$O$7,1)+1),MATCH($Q30,'Program Info Tables'!$P$3:$S$3,0)),IF($R30="VFD Controlled",INDEX('Program Info Tables'!$P$4:$S$7,IF(ISNA(MATCH($E30,'Program Info Tables'!$O$4:$O$7,1)),1,MATCH($E30,'Program Info Tables'!$O$4:$O$7,1)+1),MATCH($Q30,'Program Info Tables'!$P$3:$S$3,0)),"")),3) -> 0.703 | T30: =ROUND(IF($R30="Single Speed",INDEX('Program Info Tables'!$P$11:$S$14,IF(ISNA(MATCH($E30,'Program Info Tables'!$O$4:$O$7,1)),1,MATCH($E30,'Program Info Tables'!$O$4:$O$7,1)+1),MATCH($Q30,'Program Info Tables'!$P$3:$S$3,0)),IF($R30="VFD Controlled",INDEX('Program Info Tables'!$P$11:$S$14,IF(ISNA(MATCH($E30,'Program Info Tables'!$O$4:$O$7,1)),1,MATCH($E30,'Program Info Tables'!$O$4:$O$7,1)+1),MATCH($Q30,'Program Info Tables'!$P$3:$S$3,0)),"")),3) -> 0.67 | U30: 0.8 | V30: 0.09 | W30: =IFERROR(VLOOKUP(D30,Validation!$B$582:$E$594,4,0),"") ->  | X30: =IFERROR(IF(Q30="ACC",E30*((12/T30)-(12/H30))*W30,E30*(T30-H30)*W30),"") ->  | Y30: =IFERROR(IF(Q30="ACC",E30*((12/S30)-(12/F30))*U30,E30*(S30-F30)*U30),"") -> 0 | Z30: 0
C31: ≤ 0.53 IPLV
B32: ≥ 600 tons | C32: ≤ 0.55 kW/ton | I32: 20 | J32: =IF(OR(AND(F32<=0.55,F32>0,H32<=0.52,H32>0)),E32*I32,0) -> 0 | K32: 2 | L32: =IF(OR(AND(J32>0,(0.55-F32)>=(0.52-H32))),(0.55-F32)*100*E32*K32,IF(OR(AND(J32>0,(0.55-F32)<(0.52-H32))),(0.52-H32)*100*E32*K32,0)) -> 0 | M32: =J32+L32 -> 0 | Q32: WCCC | R32: Single Speed | S32: =ROUND(IF($R32="Single Speed",INDEX('Program Info Tables'!$P$4:$S$7,IF(ISNA(MATCH($E32,'Program Info Tables'!$O$4:$O$7,1)),1,MATCH($E32,'Program Info Tables'!$O$4:$O$7,1)+1),MATCH($Q32,'Program Info Tables'!$P$3:$S$3,0)),IF($R32="VFD Controlled",INDEX('Program Info Tables'!$P$4:$S$7,IF(ISNA(MATCH($E32,'Program Info Tables'!$O$4:$O$7,1)),1,MATCH($E32,'Program Info Tables'!$O$4:$O$7,1)+1),MATCH($Q32,'Program Info Tables'!$P$3:$S$3,0)),"")),3) -> 0.703 | T32: =ROUND(IF($R32="Single Speed",INDEX('Program Info Tables'!$P$11:$S$14,IF(ISNA(MATCH($E32,'Program Info Tables'!$O$4:$O$7,1)),1,MATCH($E32,'Program Info Tables'!$O$4:$O$7,1)+1),MATCH($Q32,'Program Info Tables'!$P$3:$S$3,0)),IF($R32="VFD Controlled",INDEX('Program Info Tables'!$P$11:$S$14,IF(ISNA(MATCH($E32,'Program Info Tables'!$O$4:$O$7,1)),1,MATCH($E32,'Program Info Tables'!$O$4:$O$7,1)+1),MATCH($Q32,'Program Info Tables'!$P$3:$S$3,0)),"")),3) -> 0.67 | U32: 0.8 | V32: 0.09 | W32: =IFERROR(VLOOKUP(D32,Validation!$B$582:$E$594,4,0),"") ->  | X32: =IFERROR(IF(Q32="ACC",E32*((12/T32)-(12/H32))*W32,E32*(T32-H32)*W32),"") ->  | Y32: =IFERROR(IF(Q32="ACC",E32*((12/S32)-(12/F32))*U32,E32*(S32-F32)*U32),"") -> 0 | Z32: 0
C33: ≤ 0.52 IPLV
A35: TABLE 1A: CHILLER PLANT OPERATING PARAMETERS
A36: Chiller Type | B36: Tons | C36: Evaporator | G36: Condenser | K36: Peak kW/ton | M36: IPLV kW/ton
C37: Gallons per minute | E37: Entering Water Temperature | F37: Leaving Water Temperature | G37: Gallons per minute | I37: Entering Water Temperature | J37: Leaving Water Temperature
A38: Water Cooled Centrifugal Chillers | B38: 1000 | C38: 1500 | E38: 56 F | F38: 40 F | G38: 3000 | I38: 76 F | J38: 85.22 F | K38: 0.545 | M38: 0.498
A44: TABLE 2: HVAC CHILLER INCENTIVES - VFD-CONTROLLED CHILLERS
A45: Type | B45: Unit Size - ARI Net Tons | C45: Minimum Efficiency (Full Load and IPLV) | D45: Building Type | E45: Proposed Equipment | I45: Incentives
E46: Chiller Size (Net Tons) | F46: Full Load | H46: IPLV | I46: Base Unit Incentive per Ton | J46: Base Total Incentive | K46: Performance Incentive per Ton (Capped at $125/ton for air cooled chillers) | L46: Performance Total Incentive | M46: Requested Incentive | Q46: Chiller Type | R46: Single Speed or VFD Controlled | S46: Base Unit Efficiency | U46: Comm_Coincidence_Factor | V46: Comm_Coincidence_Factor_Winter | W46: EFLHC | X46: Total kWh Saved | Y46: Total kW Summer Saved | Z46: Total kW Winter Saved
S47: Full Load (EER for Air-Cooled) | T47: IPLV
A48: Air Cooled Chiller with Condenser | B48: < 150 tons | C48: 10.2 EER | I48: 10 | J48: =IF(AND(F48>=10.2,H48>=13.34),E48*I48,0) -> 0 | K48: 4 | L48: =IF(AND(J48>0,(F48-10.2)>=(H48-13.36),((F48-10.2)*10*E48*K48)>=(125*E48)),125*E48,IF(AND(J48>0,(F48-10.2)>=(H48-13.36),((F48-10.2)*10*E48*K48)<(125*E48)),(F48-10.2)*10*E48*K48,IF(AND(J48>0,(F48-10.2)<(H48-13.36),((H48-13.36)*10*E48*K48)>=(125*E48)),125*E48,IF(AND(J48>0,(F48-10.2)<(H48-13.36),((H48-13.36)*10*E48*K48)<(125*E48)),(H48-13.36)*10*E48*K48,0)))) -> 0 | M48: =J48+L48 -> 0 | Q48: ACC | R48: VFD Controlled | S48: =ROUND(IF($R48="Single Speed",INDEX('Program Info Tables'!$P$4:$S$7,IF(ISNA(MATCH($E48,'Program Info Tables'!$O$4:$O$7,1)),1,MATCH($E48,'Program Info Tables'!$O$4:$O$7,1)+1),MATCH($Q48,'Program Info Tables'!$P$3:$S$3,0)),IF($R48="VFD Controlled",INDEX('Program Info Tables'!$P$4:$S$7,IF(ISNA(MATCH($E48,'Program Info Tables'!$O$4:$O$7,1)),1,MATCH($E48,'Program Info Tables'!$O$4:$O$7,1)+1),MATCH($Q48,'Program Info Tables'!$P$3:$S$3,0)),"")),3) -> 9.554 | T48: =ROUND(IF($R48="Single Speed",INDEX('Program Info Tables'!$P$11:$S$14,IF(ISNA(MATCH($E48,'Program Info Tables'!$O$4:$O$7,1)),1,MATCH($E48,'Program Info Tables'!$O$4:$O$7,1)+1),MATCH($Q48,'Program Info Tables'!$P$3:$S$3,0)),IF($R48="VFD Controlled",INDEX('Program Info Tables'!$P$11:$S$14,IF(ISNA(MATCH($E48,'Program Info Tables'!$O$4:$O$7,1)),1,MATCH($E48,'Program Info Tables'!$O$4:$O$7,1)+1),MATCH($Q48,'Program Info Tables'!$P$3:$S$3,0)),"")),3) -> 10.408 | U48: 0.8 | V48: 0.09 | W48: =IFERROR(VLOOKUP(D48,Validation!$B$582:$E$594,4,0),"") ->  | X48: =IFERROR(IF(Q48="ACC",E48*((12/T48)-(12/H48))*W48,E48*(T48-H48)*W48),"") ->  | Y48: =IFERROR(IF(Q48="ACC",E48*((12/S48)-(12/F48))*U48,E48*(S48-F48)*U48),"") ->  | Z48: =IFERROR(IF(Q48="ACC",E48*((12/S48)-(12/F48))*V48,E48*(S48-F48)*V48),"") -> 
C49: 13.36 IPLV
B50: ≥ 150 tons | C50: 10.2 EER | I50: 10 | J50: =IF(AND(F50>=10.2,H50>=13.6),E50*I50,0) -> 0 | K50: 4 | L50: =IF(AND(J50>0,(F50-10.2)>=(H50-13.8),((F50-10.2)*10*E50*K50)>=(125*E50)),125*E50,IF(AND(J50>0,(F50-10.2)>=(H50-13.8),((F50-10.2)*10*E50*K50)<(125*E50)),(F50-10.2)*10*E50*K50,IF(AND(J50>0,(F50-10.2)<(H50-13.8),((H50-13.8)*10*E50*K50)>=(125*E50)),125*E50,IF(AND(J50>0,(F50-10.2)<(H50-13.8),((H50-13.8)*10*E50*K50)<(125*E50)),(H50-13.8)*10*E50*K50,0)))) -> 0 | M50: =J50+L50 -> 0 | Q50: ACC | R50: VFD Controlled | S50: =ROUND(IF($R50="Single Speed",INDEX('Program Info Tables'!$P$4:$S$7,IF(ISNA(MATCH($E50,'Program Info Tables'!$O$4:$O$7,1)),1,MATCH($E50,'Program Info Tables'!$O$4:$O$7,1)+1),MATCH($Q50,'Program Info Tables'!$P$3:$S$3,0)),IF($R50="VFD Controlled",INDEX('Program Info Tables'!$P$4:$S$7,IF(ISNA(MATCH($E50,'Program Info Tables'!$O$4:$O$7,1)),1,MATCH($E50,'Program Info Tables'!$O$4:$O$7,1)+1),MATCH($Q50,'Program Info Tables'!$P$3:$S$3,0)),"")),3) -> 9.554 | T50: =ROUND(IF($R50="Single Speed",INDEX('Program Info Tables'!$P$11:$S$14,IF(ISNA(MATCH($E50,'Program Info Tables'!$O$4:$O$7,1)),1,MATCH($E50,'Program Info Tables'!$O$4:$O$7,1)+1),MATCH($Q50,'Program Info Tables'!$P$3:$S$3,0)),IF($R50="VFD Controlled",INDEX('Program Info Tables'!$P$11:$S$14,IF(ISNA(MATCH($E50,'Program Info Tables'!$O$4:$O$7,1)),1,MATCH($E50,'Program Info Tables'!$O$4:$O$7,1)+1),MATCH($Q50,'Program Info Tables'!$P$3:$S$3,0)),"")),3) -> 10.408 | U50: 0.8 | V50: 0.09 | W50: =IFERROR(VLOOKUP(D50,Validation!$B$582:$E$594,4,0),"") ->  | X50: =IFERROR(IF(Q50="ACC",E50*((12/T50)-(12/H50))*W50,E50*(T50-H50)*W50),"") ->  | Y50: =IFERROR(IF(Q50="ACC",E50*((12/S50)-(12/F50))*U50,E50*(S50-F50)*U50),"") ->  | Z50: 0
C51: 13.8 IPLV
A52: Water Cooled Screw Chillers | B52: < 150 tons | C52: ≤ 0.73 kW/ton | I52: 20 | J52: =IF(OR(AND(F52<=0.73,F52>0,H52<=0.54,H52>0)),E52*I52,0) -> 0 | K52: 6 | L52: =IF(OR(AND(J52>0,(0.73-F52)>=(0.54-H52))),(0.73-F52)*100*E52*K52,IF(OR(AND(J52>0,(0.73-F52)<(0.54-H52))),(0.54-H52)*100*E52*K52,0)) -> 0 | M52: =J52+L52 -> 0 | Q52: WCSC | R52: VFD Controlled | S52: =ROUND(IF($R52="Single Speed",INDEX('Program Info Tables'!$P$4:$S$7,IF(ISNA(MATCH($E52,'Program Info Tables'!$O$4:$O$7,1)),1,MATCH($E52,'Program Info Tables'!$O$4:$O$7,1)+1),MATCH($Q52,'Program Info Tables'!$P$3:$S$3,0)),IF($R52="VFD Controlled",INDEX('Program Info Tables'!$P$4:$S$7,IF(ISNA(MATCH($E52,'Program Info Tables'!$O$4:$O$7,1)),1,MATCH($E52,'Program Info Tables'!$O$4:$O$7,1)+1),MATCH($Q52,'Program Info Tables'!$P$3:$S$3,0)),"")),3) -> 0.79 | T52: =ROUND(IF($R52="Single Speed",INDEX('Program Info Tables'!$P$11:$S$14,IF(ISNA(MATCH($E52,'Program Info Tables'!$O$4:$O$7,1)),1,MATCH($E52,'Program Info Tables'!$O$4:$O$7,1)+1),MATCH($Q52,'Program Info Tables'!$P$3:$S$3,0)),IF($R52="VFD Controlled",INDEX('Program Info Tables'!$P$11:$S$14,IF(ISNA(MATCH($E52,'Program Info Tables'!$O$4:$O$7,1)),1,MATCH($E52,'Program Info Tables'!$O$4:$O$7,1)+1),MATCH($Q52,'Program Info Tables'!$P$3:$S$3,0)),"")),3) -> 0.676 | U52: 0.8 | V52: 0.09 | W52: =IFERROR(VLOOKUP(D52,Validation!$B$582:$E$594,4,0),"") ->  | X52: =IFERROR(IF(Q52="ACC",E52*((12/T52)-(12/H52))*W52,E52*(T52-H52)*W52),"") ->  | Y52: =IFERROR(IF(Q52="ACC",E52*((12/S52)-(12/F52))*U52,E52*(S52-F52)*U52),"") -> 0 | Z52: 0
C53: ≤ 0.54 IPLV
B54: ≥ 150 tons and < 300 tons | C54: ≤ 0.61 kW/ton | I54: 15 | J54: =IF(OR(AND(F54<=0.61,F54>0,H54<=0.44,H54>0)),E54*I54,0) -> 0 | K54: 6 | L54: =IF(OR(AND(J54>0,(0.61-F54)>=(0.44-H54))),(0.61-F54)*100*E54*K54,IF(OR(AND(J54>0,(0.61-F54)<(0.44-H54))),(0.44-H54)*100*E54*K54,0)) -> 0 | M54: =J54+L54 -> 0 | Q54: WCSC | R54: VFD Controlled | S54: =ROUND(IF($R54="Single Speed",INDEX('Program Info Tables'!$P$4:$S$7,IF(ISNA(MATCH($E54,'Program Info Tables'!$O$4:$O$7,1)),1,MATCH($E54,'Program Info Tables'!$O$4:$O$7,1)+1),MATCH($Q54,'Program Info Tables'!$P$3:$S$3,0)),IF($R54="VFD Controlled",INDEX('Program Info Tables'!$P$4:$S$7,IF(ISNA(MATCH($E54,'Program Info Tables'!$O$4:$O$7,1)),1,MATCH($E54,'Program Info Tables'!$O$4:$O$7,1)+1),MATCH($Q54,'Program Info Tables'!$P$3:$S$3,0)),"")),3) -> 0.79 | T54: =ROUND(IF($R54="Single Speed",INDEX('Program Info Tables'!$P$11:$S$14,IF(ISNA(MATCH($E54,'Program Info Tables'!$O$4:$O$7,1)),1,MATCH($E54,'Program Info Tables'!$O$4:$O$7,1)+1),MATCH($Q54,'Program Info Tables'!$P$3:$S$3,0)),IF($R54="VFD Controlled",INDEX('Program Info Tables'!$P$11:$S$14,IF(ISNA(MATCH($E54,'Program Info Tables'!$O$4:$O$7,1)),1,MATCH($E54,'Program Info Tables'!$O$4:$O$7,1)+1),MATCH($Q54,'Program Info Tables'!$P$3:$S$3,0)),"")),3) -> 0.676 | U54: 0.8 | V54: 0.09 | W54: =IFERROR(VLOOKUP(D54,Validation!$B$582:$E$594,4,0),"") ->  | X54: =IFERROR(IF(Q54="ACC",E54*((12/T54)-(12/H54))*W54,E54*(T54-H54)*W54),"") ->  | Y54: =IFERROR(IF(Q54="ACC",E54*((12/S54)-(12/F54))*U54,E54*(S54-F54)*U54),"") -> 0 | Z54: 0
C55: ≤ 0.44 IPLV
B56: ≥ 300 | C56: ≤ 0.58 kW/ton | I56: 10 | J56: =IF(OR(AND(F56<=0.58,F56>0,H56<=0.44,H56>0)),E56*I56,0) -> 0 | K56: 3 | L56: =IF(OR(AND(J56>0,(0.58-F56)>=(0.44-H56))),(0.58-F56)*100*E56*K56,IF(OR(AND(J56>0,(0.58-F56)<(0.44-H56))),(0.44-H56)*100*E56*K56,0)) -> 0 | M56: =J56+L56 -> 0 | Q56: WCSC | R56: VFD Controlled | S56: =ROUND(IF($R56="Single Speed",INDEX('Program Info Tables'!$P$4:$S$7,IF(ISNA(MATCH($E56,'Program Info Tables'!$O$4:$O$7,1)),1,MATCH($E56,'Program Info Tables'!$O$4:$O$7,1)+1),MATCH($Q56,'Program Info Tables'!$P$3:$S$3,0)),IF($R56="VFD Controlled",INDEX('Program Info Tables'!$P$4:$S$7,IF(ISNA(MATCH($E56,'Program Info Tables'!$O$4:$O$7,1)),1,MATCH($E56,'Program Info Tables'!$O$4:$O$7,1)+1),MATCH($Q56,'Program Info Tables'!$P$3:$S$3,0)),"")),3) -> 0.79 | T56: =ROUND(IF($R56="Single Speed",INDEX('Program Info Tables'!$P$11:$S$14,IF(ISNA(MATCH($E56,'Program Info Tables'!$O$4:$O$7,1)),1,MATCH($E56,'Program Info Tables'!$O$4:$O$7,1)+1),MATCH($Q56,'Program Info Tables'!$P$3:$S$3,0)),IF($R56="VFD Controlled",INDEX('Program Info Tables'!$P$11:$S$14,IF(ISNA(MATCH($E56,'Program Info Tables'!$O$4:$O$7,1)),1,MATCH($E56,'Program Info Tables'!$O$4:$O$7,1)+1),MATCH($Q56,'Program Info Tables'!$P$3:$S$3,0)),"")),3) -> 0.676 | U56: 0.8 | V56: 0.09 | W56: =IFERROR(VLOOKUP(D56,Validation!$B$582:$E$594,4,0),"") ->  | X56: =IFERROR(IF(Q56="ACC",E56*((12/T56)-(12/H56))*W56,E56*(T56-H56)*W56),"") ->  | Y56: =IFERROR(IF(Q56="ACC",E56*((12/S56)-(12/F56))*U56,E56*(S56-F56)*U56),"") -> 0 | Z56: 0
C57: ≤ 0.44 IPLV
A58: Water Cooled Reciprocating Chillers | B58: < 150 tons | C58: ≤ 0.73 kW/ton | I58: 20 | J58: =IF(OR(AND(F58<=0.73,F58>0,H58<=0.54,H58>0)),E58*I58,0) -> 0 | K58: 6 | L58: =IF(OR(AND(J58>0,(0.73-F58)>=(0.54-H58))),(0.73-F58)*100*E58*K58,IF(OR(AND(J58>0,(0.73-F58)<(0.54-H58))),(0.54-H58)*100*E58*K58,0)) -> 0 | M58: =J58+L58 -> 0 | Q58: WCRC | R58: VFD Controlled | S58: =ROUND(IF($R58="Single Speed",INDEX('Program Info Tables'!$P$4:$S$7,IF(ISNA(MATCH($E58,'Program Info Tables'!$O$4:$O$7,1)),1,MATCH($E58,'Program Info Tables'!$O$4:$O$7,1)+1),MATCH($Q58,'Program Info Tables'!$P$3:$S$3,0)),IF($R58="VFD Controlled",INDEX('Program Info Tables'!$P$4:$S$7,IF(ISNA(MATCH($E58,'Program Info Tables'!$O$4:$O$7,1)),1,MATCH($E58,'Program Info Tables'!$O$4:$O$7,1)+1),MATCH($Q58,'Program Info Tables'!$P$3:$S$3,0)),"")),3) -> 0.837 | T58: =ROUND(IF($R58="Single Speed",INDEX('Program Info Tables'!$P$11:$S$14,IF(ISNA(MATCH($E58,'Program Info Tables'!$O$4:$O$7,1)),1,MATCH($E58,'Program Info Tables'!$O$4:$O$7,1)+1),MATCH($Q58,'Program Info Tables'!$P$3:$S$3,0)),IF($R58="VFD Controlled",INDEX('Program Info Tables'!$P$11:$S$14,IF(ISNA(MATCH($E58,'Program Info Tables'!$O$4:$O$7,1)),1,MATCH($E58,'Program Info Tables'!$O$4:$O$7,1)+1),MATCH($Q58,'Program Info Tables'!$P$3:$S$3,0)),"")),3) -> 0.696 | U58: 1.8 | V58: 0.09 | W58: =IFERROR(VLOOKUP(D58,Validation!$B$582:$E$594,4,0),"") ->  | X58: =IFERROR(IF(Q58="ACC",E58*((12/T58)-(12/H58))*W58,E58*(T58-H58)*W58),"") ->  | Y58: =IFERROR(IF(Q58="ACC",E58*((12/S58)-(12/F58))*U58,E58*(S58-F58)*U58),"") -> 0 | Z58: 0
C59: ≤ 0.54 IPLV
B60: ≥ 150 tons and < 300 tons | C60: ≤ 0.61 kW/ton | I60: 15 | J60: =IF(OR(AND(F60<=0.61,F60>0,H60<=0.44,H60>0)),E60*I60,0) -> 0 | K60: 6 | L60: =IF(OR(AND(J60>0,(0.61-F60)>=(0.44-H60))),(0.61-F60)*100*E60*K60,IF(OR(AND(J60>0,(0.61-F60)<(0.44-H60))),(0.44-H60)*100*E60*K60,0)) -> 0 | M60: =J60+L60 -> 0 | Q60: WCRC | R60: VFD Controlled | S60: =ROUND(IF($R60="Single Speed",INDEX('Program Info Tables'!$P$4:$S$7,IF(ISNA(MATCH($E60,'Program Info Tables'!$O$4:$O$7,1)),1,MATCH($E60,'Program Info Tables'!$O$4:$O$7,1)+1),MATCH($Q60,'Program Info Tables'!$P$3:$S$3,0)),IF($R60="VFD Controlled",INDEX('Program Info Tables'!$P$4:$S$7,IF(ISNA(MATCH($E60,'Program Info Tables'!$O$4:$O$7,1)),1,MATCH($E60,'Program Info Tables'!$O$4:$O$7,1)+1),MATCH($Q60,'Program Info Tables'!$P$3:$S$3,0)),"")),3) -> 0.837 | T60: =ROUND(IF($R60="Single Speed",INDEX('Program Info Tables'!$P$11:$S$14,IF(ISNA(MATCH($E60,'Program Info Tables'!$O$4:$O$7,1)),1,MATCH($E60,'Program Info Tables'!$O$4:$O$7,1)+1),MATCH($Q60,'Program Info Tables'!$P$3:$S$3,0)),IF($R60="VFD Controlled",INDEX('Program Info Tables'!$P$11:$S$14,IF(ISNA(MATCH($E60,'Program Info Tables'!$O$4:$O$7,1)),1,MATCH($E60,'Program Info Tables'!$O$4:$O$7,1)+1),MATCH($Q60,'Program Info Tables'!$P$3:$S$3,0)),"")),3) -> 0.696 | U60: 2.8 | V60: 0.09 | W60: =IFERROR(VLOOKUP(D60,Validation!$B$582:$E$594,4,0),"") ->  | X60: =IFERROR(IF(Q60="ACC",E60*((12/T60)-(12/H60))*W60,E60*(T60-H60)*W60),"") ->  | Y60: =IFERROR(IF(Q60="ACC",E60*((12/S60)-(12/F60))*U60,E60*(S60-F60)*U60),"") -> 0 | Z60: 0
C61: ≤ 0.44 IPLV
B62: ≥ 300 | C62: ≤ 0.58 kW/ton | I62: 10 | J62: =IF(OR(AND(F62<=0.58,F62>0,H62<=0.44,H62>0)),E62*I62,0) -> 0 | K62: 3 | L62: =IF(OR(AND(J62>0,(0.58-F62)>=(0.44-H62))),(0.58-F62)*100*E62*K62,IF(OR(AND(J62>0,(0.58-F62)<(0.44-H62))),(0.44-H62)*100*E62*K62,0)) -> 0 | M62: =J62+L62 -> 0 | Q62: WCRC | R62: VFD Controlled | S62: =ROUND(IF($R62="Single Speed",INDEX('Program Info Tables'!$P$4:$S$7,IF(ISNA(MATCH($E62,'Program Info Tables'!$O$4:$O$7,1)),1,MATCH($E62,'Program Info Tables'!$O$4:$O$7,1)+1),MATCH($Q62,'Program Info Tables'!$P$3:$S$3,0)),IF($R62="VFD Controlled",INDEX('Program Info Tables'!$P$4:$S$7,IF(ISNA(MATCH($E62,'Program Info Tables'!$O$4:$O$7,1)),1,MATCH($E62,'Program Info Tables'!$O$4:$O$7,1)+1),MATCH($Q62,'Program Info Tables'!$P$3:$S$3,0)),"")),3) -> 0.837 | T62: =ROUND(IF($R62="Single Speed",INDEX('Program Info Tables'!$P$11:$S$14,IF(ISNA(MATCH($E62,'Program Info Tables'!$O$4:$O$7,1)),1,MATCH($E62,'Program Info Tables'!$O$4:$O$7,1)+1),MATCH($Q62,'Program Info Tables'!$P$3:$S$3,0)),IF($R62="VFD Controlled",INDEX('Program Info Tables'!$P$11:$S$14,IF(ISNA(MATCH($E62,'Program Info Tables'!$O$4:$O$7,1)),1,MATCH($E62,'Program Info Tables'!$O$4:$O$7,1)+1),MATCH($Q62,'Program Info Tables'!$P$3:$S$3,0)),"")),3) -> 0.696 | U62: 3.8 | V62: 0.09 | W62: =IFERROR(VLOOKUP(D62,Validation!$B$582:$E$594,4,0),"") ->  | X62: =IFERROR(IF(Q62="ACC",E62*((12/T62)-(12/H62))*W62,E62*(T62-H62)*W62),"") ->  | Y62: =IFERROR(IF(Q62="ACC",E62*((12/S62)-(12/F62))*U62,E62*(S62-F62)*U62),"") -> 0 | Z62: 0
C63: ≤ 0.44 IPLV
A64: Water Cooled Centrifugal Chillers | B64: < 300 tons | C64: ≤ 0.59 kW/ton | I64: 10 | J64: =IF(OR(AND(F64<=0.59,F64>0,H64<=0.42,H64>0)),E64*I64,0) -> 0 | K64: 5 | L64: =IF(OR(AND(J64>0,(0.59-F64)>=(0.42-H64))),(0.59-F64)*100*E64*K64,IF(OR(AND(J64>0,(0.59-F64)<(0.42-H64))),(0.42-H64)*100*E64*K64,0)) -> 0 | M64: =J64+L64 -> 0 | Q64: WCCC | R64: VFD Controlled | S64: =ROUND(IF($R64="Single Speed",INDEX('Program Info Tables'!$P$4:$S$7,IF(ISNA(MATCH($E64,'Program Info Tables'!$O$4:$O$7,1)),1,MATCH($E64,'Program Info Tables'!$O$4:$O$7,1)+1),MATCH($Q64,'Program Info Tables'!$P$3:$S$3,0)),IF($R64="VFD Controlled",INDEX('Program Info Tables'!$P$4:$S$7,IF(ISNA(MATCH($E64,'Program Info Tables'!$O$4:$O$7,1)),1,MATCH($E64,'Program Info Tables'!$O$4:$O$7,1)+1),MATCH($Q64,'Program Info Tables'!$P$3:$S$3,0)),"")),3) -> 0.703 | T64: =ROUND(IF($R64="Single Speed",INDEX('Program Info Tables'!$P$11:$S$14,IF(ISNA(MATCH($E64,'Program Info Tables'!$O$4:$O$7,1)),1,MATCH($E64,'Program Info Tables'!$O$4:$O$7,1)+1),MATCH($Q64,'Program Info Tables'!$P$3:$S$3,0)),IF($R64="VFD Controlled",INDEX('Program Info Tables'!$P$11:$S$14,IF(ISNA(MATCH($E64,'Program Info Tables'!$O$4:$O$7,1)),1,MATCH($E64,'Program Info Tables'!$O$4:$O$7,1)+1),MATCH($Q64,'Program Info Tables'!$P$3:$S$3,0)),"")),3) -> 0.67 | U64: 0.8 | V64: 0.09 | W64: =IFERROR(VLOOKUP(D64,Validation!$B$582:$E$594,4,0),"") ->  | X64: =IFERROR(IF(Q64="ACC",E64*((12/T64)-(12/H64))*W64,E64*(T64-H64)*W64),"") ->  | Y64: =IFERROR(IF(Q64="ACC",E64*((12/S64)-(12/F64))*U64,E64*(S64-F64)*U64),"") -> 0 | Z64: 0
C65: ≤ 0.42 IPLV
B66: ≥ 300 and < 600 tons | C66: ≤ 0.58 kW/ton | I66: 10 | J66: =IF(OR(AND(F66<=0.58,F66>0,H66<=0.38,H66>0)),E66*I66,0) -> 0 | K66: 4 | L66: =IF(OR(AND(J66>0,(0.58-F66)>=(0.38-H66))),(0.58-F66)*100*E66*K66,IF(OR(AND(J66>0,(0.58-F66)<(0.38-H66))),(0.38-H66)*100*E66*K66,0)) -> 0 | M66: =J66+L66 -> 0 | Q66: WCCC | R66: VFD Controlled | S66: =ROUND(IF($R66="Single Speed",INDEX('Program Info Tables'!$P$4:$S$7,IF(ISNA(MATCH($E66,'Program Info Tables'!$O$4:$O$7,1)),1,MATCH($E66,'Program Info Tables'!$O$4:$O$7,1)+1),MATCH($Q66,'Program Info Tables'!$P$3:$S$3,0)),IF($R66="VFD Controlled",INDEX('Program Info Tables'!$P$4:$S$7,IF(ISNA(MATCH($E66,'Program Info Tables'!$O$4:$O$7,1)),1,MATCH($E66,'Program Info Tables'!$O$4:$O$7,1)+1),MATCH($Q66,'Program Info Tables'!$P$3:$S$3,0)),"")),3) -> 0.703 | T66: =ROUND(IF($R66="Single Speed",INDEX('Program Info Tables'!$P$11:$S$14,IF(ISNA(MATCH($E66,'Program Info Tables'!$O$4:$O$7,1)),1,MATCH($E66,'Program Info Tables'!$O$4:$O$7,1)+1),MATCH($Q66,'Program Info Tables'!$P$3:$S$3,0)),IF($R66="VFD Controlled",INDEX('Program Info Tables'!$P$11:$S$14,IF(ISNA(MATCH($E66,'Program Info Tables'!$O$4:$O$7,1)),1,MATCH($E66,'Program Info Tables'!$O$4:$O$7,1)+1),MATCH($Q66,'Program Info Tables'!$P$3:$S$3,0)),"")),3) -> 0.67 | U66: 0.8 | V66: 0.09 | W66: =IFERROR(VLOOKUP(D66,Validation!$B$582:$E$594,4,0),"") ->  | X66: =IFERROR(IF(Q66="ACC",E66*((12/T66)-(12/H66))*W66,E66*(T66-H66)*W66),"") ->  | Y66: =IFERROR(IF(Q66="ACC",E66*((12/S66)-(12/F66))*U66,E66*(S66-F66)*U66),"") -> 0 | Z66: 0
C67: ≤ 0.38 IPLV
B68: ≥ 600 tons | C68: ≤ 0.57 kW/ton | I68: 10 | J68: =IF(OR(AND(F68<=0.57,F68>0,H68<=0.38,H68>0)),E68*I68,0) -> 0 | K68: 3 | L68: =IF(OR(AND(J68>0,(0.57-F68)>=(0.38-H68))),(0.57-F68)*100*E68*K68,IF(OR(AND(J68>0,(0.57-F68)<(0.38-H68))),(0.38-H68)*100*E68*K68,0)) -> 0 | M68: =J68+L68 -> 0 | Q68: WCCC | R68: VFD Controlled | S68: =ROUND(IF($R68="Single Speed",INDEX('Program Info Tables'!$P$4:$S$7,IF(ISNA(MATCH($E68,'Program Info Tables'!$O$4:$O$7,1)),1,MATCH($E68,'Program Info Tables'!$O$4:$O$7,1)+1),MATCH($Q68,'Program Info Tables'!$P$3:$S$3,0)),IF($R68="VFD Controlled",INDEX('Program Info Tables'!$P$4:$S$7,IF(ISNA(MATCH($E68,'Program Info Tables'!$O$4:$O$7,1)),1,MATCH($E68,'Program Info Tables'!$O$4:$O$7,1)+1),MATCH($Q68,'Program Info Tables'!$P$3:$S$3,0)),"")),3) -> 0.703 | T68: =ROUND(IF($R68="Single Speed",INDEX('Program Info Tables'!$P$11:$S$14,IF(ISNA(MATCH($E68,'Program Info Tables'!$O$4:$O$7,1)),1,MATCH($E68,'Program Info Tables'!$O$4:$O$7,1)+1),MATCH($Q68,'Program Info Tables'!$P$3:$S$3,0)),IF($R68="VFD Controlled",INDEX('Program Info Tables'!$P$11:$S$14,IF(ISNA(MATCH($E68,'Program Info Tables'!$O$4:$O$7,1)),1,MATCH($E68,'Program Info Tables'!$O$4:$O$7,1)+1),MATCH($Q68,'Program Info Tables'!$P$3:$S$3,0)),"")),3) -> 0.67 | U68: 0.8 | V68: 0.09 | W68: =IFERROR(VLOOKUP(D68,Validation!$B$582:$E$594,4,0),"") ->  | X68: =IFERROR(IF(Q68="ACC",E68*((12/T68)-(12/H68))*W68,E68*(T68-H68)*W68),"") ->  | Y68: =IFERROR(IF(Q68="ACC",E68*((12/S68)-(12/F68))*U68,E68*(S68-F68)*U68),"") -> 0 | Z68: 0
C69: ≤ 0.38 IPLV
A71: TABLE 2A: CHILLER PLANT OPERATING PARAMETERS
A72: Chiller Type | B72: Tons | C72: Evaporator | G72: Condenser | K72: Peak kW/ton | M72: IPLV kW/ton
C73: Gallons per minute | E73: Entering Water Temperature | F73: Leaving Water Temperature | G73: Gallons per minute | I73: Entering Water Temperature | J73: Leaving Water Temperature
A74: Water Cooled Centrifugal Chillers | B74: 1000 | C74: 1500 | E74: 56 F | F74: 40 F | G74: 3000 | I74: 76 F | J74: 85.22 F | K74: 0.545 | M74: 0.498
M79: ="Version " & 'Version Tracking'!C4 -> Version 15.2

Sheet Validation (hidden)
C2: Equipment Name | D2: Measure Code | E2: System Type | F2: Split/Packaged | G2: Incentive Per | H2: Winter Peak CF
C3: Split System A/C | D3: S | E3: AC | F3: S | G3: Ton | H3: 0.03
C4: Unitary A/C | D4: U | E4: AC | F4: P | G4: Ton | H4: 0.03
C5: Split System Heat Pump | D5: SH | E5: HP | F5: S | G5: Ton | H5: 0.3
C6: Unitary Heat Pump | D6: UH | E6: HP | F6: P | G6: Ton | H6: 0.3
C7: Packaged Terminal A/C | D7: PTAC | E7: PTAC | F7: P | G7: Unit | H7: 0.28
C8: Packaged Terminal Heat Pump | D8: PTHP | E8: PTHP | F8: P | G8: Unit | H8: 0.28
D11: EFLHHEAT | F11: EFLHCOOL
B12: 3.2.2 Equivalent Full Load Hours | C12: HVAC Measure Building Type | D12: Charleston | E12: Columbia | F12: Charleston | G12: Columbia
C13: Assembly | D13: 475 | E13: 565 | F13: 3141 | G13: 2888
C14: Education | D14: 434 | E14: 516 | F14: 1694 | G14: 1558
C15: Garage | D15: 226 | E15: 269 | F15: 2340 | G15: 2151
C16: Grocery | D16: 454 | E16: 540 | F16: 1966 | G16: 1807
C17: Health | D17: 371 | E17: 442 | F17: 3285 | G17: 3021
C18: Industrial | D18: 188 | E18: 224 | F18: 2149 | G18: 1976
C19: Lodging | D19: 464 | E19: 552 | F19: 2311 | G19: 2125
C20: Multi-Family | D20: 353 | E20: 420 | F20: 1960 | G20: 1802
C21: Office | D21: 418 | E21: 497 | F21: 3056 | G21: 2810
C22: Retail | D22: 348 | E22: 415 | F22: 1430 | G22: 1315
C23: Warehouse | D23: 381 | E23: 453 | F23: 558 | G23: 513
C24: Other | D24: 530 | E24: 631 | F24: 2068 | G24: 1901
H27: Convenience/C-Store | I27: =_xlfn.CONCAT(H27,"|",H27,"|") -> Convenience/C-Store|Convenience/C-Store|
H28: Fitness/Recreation | I28: =_xlfn.CONCAT(H28,"|",H28,"|") -> Fitness/Recreation |Fitness/Recreation |
H29: Grocery | I29: Grocery|Grocery|
B30: Minimum Roof Area by Building Type | H30: Health Facility | I30: Health Facility|Health Facility|
B31: Building Type | C31: Minimum Area (sq. ft.) | H31: Industrial | I31: Industrial|Industrial|
B32: Office-small | C32: 5500 | H32: Lodging | I32: Lodging|Lodging|
B33: Office-medium | C33: 17875.94825 | H33: Multifamily | I33: Multifamily|Multifamily|
B34: Office-large | C34: 38352.99536 | H34: Office | I34: Office|Office|
B35: Hotel-small | C35: 10800.61493 | H35: Religious Facility | I35: Religious Facility|Religious Facility|
B36: Hotel-large | C36: 21300.05566 | H36: Restaurant | I36: Restaurant|Restaurant|
B37: Hospital | C37: 40250 | H37: Retail | I37: Retail|Retail|
B38: Warehouse-conditioned | C38: 49495.14916 | H38: School | I38: School|School|
B39: Retail-stand alone | C39: 24692.3019 | H39: University | I39: University|University|
B40: Retail-strip mall | C40: 22499.80107 | H40: Warehouse | I40: Warehouse|Warehouse|
B41: School-primary | C41: 73958.82561 | H41: Other | I41: Other|Other|
B42: School-secondary | C42: 128112.0568
B43: Other | C43: 39348.88625
B45: Cool Roof Location
B46: Charleston
B47: Columbia
B48: Greenville
B51: Building Type | C51: Location | D51: ESF | E51: DSF
B52: Office-small | C52: Charleston | D52: 0.2207568025 | E52: 9.586192702e-05
B53: Office-small | C53: Columbia | D53: 0.2136058597 | E53: 8.820172383e-05
B54: Office-small | C54: Greenville | D54: 0.1769502735 | E54: 8.595657212e-05
B55: Office-medium | C55: Charleston | D55: 0.3185688753 | E55: 0.00020566853
B56: Office-medium | C56: Columbia | D56: 0.2966564837 | E56: 0.0001941262053
B57: Office-medium | C57: Greenville | D57: 0.222496248 | E57: 0.0001566842754
B58: Office-large | C58: Charleston | D58: 0.408236143 | E58: 0.0003382017461
B59: Office-large | C59: Columbia | D59: 0.3735404169 | E59: 0.0001029069558
B60: Office-large | C60: Greenville | D60: 0.2769139061 | E60: 0.0001043845458
B61: Hotel-small | C61: Charleston | D61: 0.285299581 | E61: 4.888055016e-05
B62: Hotel-small | C62: Columbia | D62: 0.2427567116 | E62: 6.157704947e-05
B63: Hotel-small | C63: Greenville | D63: 0.1327985698 | E63: 6.480556934e-05
B64: Hotel-large | C64: Charleston | D64: 0.815165861 | E64: 5.886275697e-05
B65: Hotel-large | C65: Columbia | D65: 0.7244556554 | E65: 0.0001572155516
B66: Hotel-large | C66: Greenville | D66: 0.643070798 | E66: 0.0001259973233
B67: Hospital | C67: Charleston | D67: 0.838585862 | E67: 0.0001149988113
B68: Hospital | C68: Columbia | D68: 0.831890979 | E68: 0.0001445750309
B69: Hospital | C69: Greenville | D69: 0.7959318651 | E69: 0.000126582841
B70: Warehouse-conditioned | C70: Charleston | D70: 0.2223801271 | E70: 7.979973931e-05
B71: Warehouse-conditioned | C71: Columbia | D71: 0.2144184151 | E71: 7.774822514e-05
B72: Warehouse-conditioned | C72: Greenville | D72: 0.1785618058 | E72: 6.972905545e-05
B73: Retail-stand alone | C73: Charleston | D73: 0.7863460752 | E73: 0.0002269399598
B74: Retail-stand alone | C74: Columbia | D74: 0.7536808956 | E74: 0.0002324935125
B75: Retail-stand alone | C75: Greenville | D75: 0.6925369088 | E75: 0.0001880124429
B76: Retail-strip mall | C76: Charleston | D76: 0.8016159433 | E76: 0.0001016537876
B77: Retail-strip mall | C77: Columbia | D77: 0.7676493753 | E77: 0.0001728197502
B78: Retail-strip mall | C78: Greenville | D78: 0.723086621 | E78: 0.0001629383295
B79: School-primary | C79: Charleston | D79: 0.9627914915 | E79: 0.0003562929749
B80: School-primary | C80: Columbia | D80: 0.9043298546 | E80: 0.0003860923935
B81: School-primary | C81: Greenville | D81: 0.7931385557 | E81: 0.0003293620443
B82: School-secondary | C82: Charleston | D82: 1.019679714 | E82: 0.0003220204329
B83: School-secondary | C83: Columbia | D83: 0.9789453486 | E83: 0.0003563680978
B84: School-secondary | C84: Greenville | D84: 0.9072888624 | E84: 0.0003156026919
B85: Other | C85: Charleston | D85: 0.6072205887 | E85: 0.0001771982924
B86: Other | C86: Columbia | D86: 0.5729027269 | E86: 0.0001794658633
B87: Other | C87: Greenville | D87: 0.5038885831 | E87: 0.0001572777901
B90: county | C90: Cool Roof Representative Zone
B91: Abbeville | C91: Columbia
B92: Aiken | C92: Columbia
B93: Allendale | C93: Columbia
B94: Bamberg | C94: Columbia
B95: Barnwell | C95: Columbia
B96: Beaufort | C96: Charleston
B97: Berkeley | C97: Charleston
B98: Calhoun | C98: Columbia
B99: Charleston | C99: Charleston
B100: Colleton | C100: Charleston
B101: Dorchester | C101: Charleston
B102: Edgefield | C102: Columbia
B103: Fairfield | C103: Columbia
B104: Hampton | C104: Charleston
B105: Jasper | C105: Charleston
B106: Lexington | C106: Columbia
B107: McCormick | C107: Columbia
B108: Orangeburg | C108: Columbia
B109: Richland | C109: Columbia
B110: Richland/Fairfield | C110: Columbia
B111: Richland/Kershaw | C111: Columbia
B112: Saluda | C112: Columbia
B115: Zip | C115: County | D115: Cool Roof Zone
B116: 29901 | C116: Beaufort | D116: =VLOOKUP(C116,$B$91:$C$112,2,FALSE) -> Charleston
B117: =B116+1 -> 29902 | C117: Beaufort | D117: =VLOOKUP(C117,$B$91:$C$112,2,FALSE) -> Charleston
B118: 29902 | C118: Beaufort | D118: Charleston
B119: 29902 | C119: Beaufort | D119: Charleston
B120: =B119+1 -> 29903 | C120: Beaufort | D120: Charleston
B121: =B120+1 -> 29904 | C121: Beaufort | D121: Charleston
B122: 29906 | C122: Beaufort | D122: Charleston
B123: 29906 | C123: Beaufort | D123: Charleston
B124: 29910 | C124: Beaufort | D124: Charleston
B125: 29910 | C125: Beaufort | D125: Charleston
B126: 29910 | C126: Beaufort | D126: Charleston
B127: 29910 | C127: Beaufort | D127: Charleston
B128: =B127+1 -> 29911 | C128: Beaufort | D128: Charleston
B129: 29911 | C129: Hampton | D129: Charleston
B130: 29913 | C130: Hampton | D130: Charleston
B131: 29914 | C131: Beaufort | D131: Charleston
B132: 29915 | C132: Beaufort | D132: Charleston
B133: 29916 | C133: Hampton | D133: Charleston
B134: 29918 | C134: Hampton | D134: Charleston
B135: 29922 | C135: Hampton | D135: Charleston
B136: 29923 | C136: Hampton | D136: Charleston
B137: 29924 | C137: Hampton | D137: Charleston
B138: 29925 | C138: Beaufort | D138: Charleston
B139: 29926 | C139: Beaufort | D139: Charleston
B140: 29928 | C140: Beaufort | D140: Charleston
B141: 29933 | C141: Hampton | D141: Charleston
B142: 29935 | C142: Beaufort | D142: Charleston
B143: 29936 | C143: Jasper | D143: Charleston
B144: 29945 | C144: Jasper | D144: Charleston
B145: 29945 | C145: Jasper | D145: Charleston
B146: 29931 | C146: Beaufort | D146: Charleston
B147: 29938 | C147: Beaufort | D147: Charleston
B148: 29939 | C148: Hampton | D148: Charleston
B149: 29943 | C149: Jasper | D149: Charleston
B150: 29944 | C150: Hampton | D150: Charleston
B151: 29936 | C151: Jasper | D151: Charleston
B152: 29927 | C152: Jasper | D152: Charleston
B153: 29941 | C153: Beaufort | D153: Charleston
B154: 29943 | C154: Jasper | D154: Charleston
B155: 29929 | C155: Colleton | D155: Charleston
B156: 29932 | C156: Hampton | D156: Charleston
B157: 29934 | C157: Jasper | D157: Charleston
B158: 29936 | C158: Jasper | D158: Charleston
B159: 29936 | C159: Jasper | D159: Charleston
B160: 29016 | C160: Richland/Fairfield | D160: Columbia
B161: 29044 | C161: Richland | D161: Columbia
B162: 29045 | C162: Richland/Kershaw | D162: Columbia
B163: 29052 | C163: Richland | D163: Columbia
B164: 29061 | C164: Richland | D164: Columbia
B165: 29177 | C165: Richland | D165: Columbia
B166: 29201 | C166: Richland | D166: Columbia
B167: 29202 | C167: Richland | D167: Columbia
B168: 29203 | C168: Richland | D168: Columbia
B169: 29204 | C169: Richland | D169: Columbia
B170: 29205 | C170: Richland | D170: Columbia
B171: 29206 | C171: Richland | D171: Columbia
B172: 29207 | C172: Richland | D172: Columbia
B173: 29208 | C173: Richland | D173: Columbia
B174: 29209 | C174: Richland | D174: Columbia
B175: 29211 | C175: Richland | D175: Columbia
B176: 29216 | C176: Richland | D176: Columbia
B177: =B176+1 -> 29217 | C177: Richland | D177: Columbia
B178: =B177+1 -> 29218 | C178: Richland | D178: Columbia
B179: =B178+1 -> 29219 | C179: Richland | D179: Columbia
B180: =B179+1 -> 29220 | C180: Richland | D180: Columbia
B181: 29214 | C181: Richland | D181: =VLOOKUP(C181,$B$91:$C$112,2,FALSE) -> Columbia
B182: =B181+1 -> 29215 | C182: Richland | D182: Columbia
B183: =B182+1 -> 29216 | C183: Richland | D183: Columbia
B184: =B183+1 -> 29217 | C184: Richland | D184: Columbia
B185: =B184+1 -> 29218 | C185: Richland | D185: Columbia
B186: =B185+1 -> 29219 | C186: Richland | D186: Columbia
B187: 29210 | C187: Richland | D187: Columbia
B188: =B187+1 -> 29211 | C188: Richland | D188: Columbia
B189: =B188+1 -> 29212 | C189: Richland | D189: Columbia
B190: 29212 | C190: Richland | D190: Columbia
B191: 29215 | C191: Richland | D191: Columbia
B192: =B191+1 -> 29216 | C192: Richland | D192: Columbia
B193: =B192+1 -> 29217 | C193: Richland | D193: Columbia
B194: =B193+1 -> 29218 | C194: Richland | D194: Columbia
B195: 29223 | C195: Richland | D195: =VLOOKUP(C195,$B$91:$C$112,2,FALSE) -> Columbia
B196: 29240 | C196: Richland | D196: Columbia
B197: 29250 | C197: Richland | D197: Columbia
B198: 29260 | C198: Richland | D198: Columbia
B199: 29260 | C199: Richland | D199: Columbia
B200: 29290 | C200: Richland | D200: Columbia
B201: 29292 | C201: Richland | D201: Columbia
B202: 29147 | C202: Richland | D202: Columbia
B203: 29461 | C203: Berkeley | D203: Charleston
B204: 29445 | C204: Berkeley | D204: Charleston
B205: 29456 | C205: Berkeley | D205: Charleston
B206: 29436 | C206: Berkeley | D206: Charleston
B207: 29461 | C207: Berkeley | D207: Charleston
B208: 29920 | C208: Berkeley | D208: Charleston
B209: 29437 | C209: Charleston | D209: Charleston
B210: 29439 | C210: Charleston | D210: Charleston
B211: 29422 | C211: Charleston | D211: Charleston
B212: 29470 | C212: Charleston | D212: Charleston
... 373 more rows

Sheet Program Info Tables (hidden)
B1: Program Info Tables For Chiller
B2: Full Load Efficiencies (EER for Air Cooled) (Single Speed) | H2: Full Load Efficiencies (EER for Air Cooled) (VFD Controlled) | O2: Baseline Full Load Efficiencies (EER for Air Cooled) (Single Speed and VFD)
B3: Tonnage Under | C3: ACC | D3: WCSC | E3: WCRC | F3: WCCC | H3: Tonnage Under | I3: ACC | J3: WCSC | K3: WCRC | L3: WCCC | O3: Tonnage Under | P3: ACC | Q3: WCSC | R3: WCRC | S3: WCCC
B4: 150 | C4: 10.2 | D4: 0.71 | E4: 0.71 | F4: 0.59 | H4: 150 | I4: 10.2 | J4: 0.73 | K4: 0.73 | L4: 0.59 | O4: 150 | P4: =12/1.256 -> 9.554140127 | Q4: 0.79 | R4: 0.837 | S4: 0.703
B5: 300 | C5: 10.2 | D5: 0.58 | E5: 0.58 | F5: 0.59 | H5: 300 | I5: 10.2 | J5: 0.61 | K5: 0.61 | L5: 0.59 | O5: 300 | P5: =12/1.256 -> 9.554140127 | Q5: 0.718 | R5: 0.837 | S5: 0.634
B6: 600 | C6: 10.2 | D6: 0.56 | E6: 0.56 | F6: 0.56 | H6: 600 | I6: 10.2 | J6: 0.58 | K6: 0.58 | L6: 0.58 | O6: 600 | P6: =12/1.256 -> 9.554140127 | Q6: 0.639 | R6: 0.837 | S6: 0.577
B7: 10000 | C7: 10.2 | D7: 0.56 | E7: 0.56 | F7: 0.55 | H7: 10000 | I7: 10.2 | J7: 0.58 | K7: 0.58 | L7: 0.57 | O7: 10000 | P7: 9.554140127 | Q7: 0.639 | R7: 0.837 | S7: 0.577
B9: IPLV Efficiencies (Single Speed) | H9: IPLV Efficiencies (VFD Controlled) | O9: Baseline IPLV Efficiencies (EER for Air Cooled) (Single Speed and VFD)
B10: Tonnage Under | C10: ACC | D10: WCSC | E10: WCRC | F10: WCCC | H10: Tonnage Under | I10: ACC | J10: WCSC | K10: WCRC | L10: WCCC | O10: Tonnage Under | P10: ACC | Q10: WCSC | R10: WCRC | S10: WCCC
B11: 150 | C11: 13.34 | D11: 0.56 | E11: 0.56 | F11: 0.56 | H11: 150 | I11: 13.36 | J11: 0.54 | K11: 0.54 | L11: 0.42 | O11: 150 | P11: =12/1.153 -> 10.40763226 | Q11: 0.676 | R11: 0.696 | S11: 0.67
B12: 300 | C12: 13.6 | D12: 0.47 | E12: 0.47 | F12: 0.56 | H12: 300 | I12: 13.8 | J12: 0.44 | K12: 0.44 | L12: 0.42 | O12: 300 | P12: =12/1.153 -> 10.40763226 | Q12: 0.628 | R12: 0.696 | S12: 0.596
B13: 600 | C13: 13.6 | D13: 0.45 | E13: 0.45 | F13: 0.53 | H13: 600 | I13: 13.8 | J13: 0.44 | K13: 0.44 | L13: 0.38 | O13: 600 | P13: 10.40763226 | Q13: 0.572 | R13: 0.696 | S13: 0.55
B14: 10000 | C14: 13.6 | D14: 0.45 | E14: 0.45 | F14: 0.52 | H14: 10000 | I14: 13.8 | J14: 0.44 | K14: 0.44 | L14: 0.38 | O14: 10000 | P14: 10.40763226 | Q14: 0.572 | R14: 0.696 | S14: 0.55
B16: Chiller Incentives (Base) ($/ton) (Single Speed) | H16: Chiller Incentives (Base) ($/ton) (VFD Controlled)
B17: Tonnage Under | C17: ACC | D17: WCSC | E17: WCRC | F17: WCCC | H17: Tonnage Under | I17: ACC | J17: WCSC | K17: WCRC | L17: WCCC
B18: 150 | C18: 20 | D18: 35 | E18: 35 | F18: 20 | H18: 150 | I18: 10 | J18: 20 | K18: 20 | L18: 10
B19: 300 | C19: 20 | D19: 35 | E19: 35 | F19: 20 | H19: 300 | I19: 10 | J19: 15 | K19: 15 | L19: 10
B20: 600 | C20: 20 | D20: 25 | E20: 25 | F20: 20 | H20: 600 | I20: 10 | J20: 10 | K20: 10 | L20: 10
B21: 10000 | C21: 20 | D21: 25 | E21: 25 | F21: 20 | H21: 10000 | I21: 10 | J21: 10 | K21: 10 | L21: 10
B23: Chiller Incentives (Performance) ($/ton) (Single Speed) | H23: Chiller Incentives (Performance) ($/ton) (VFD Controlled)
B24: Tonnage Under | C24: ACC | D24: WCSC | E24: WCRC | F24: WCCC | H24: Tonnage Under | I24: ACC | J24: WCSC | K24: WCRC | L24: WCCC
B25: 150 | C25: 3 | D25: 4 | E25: 4 | F25: 3 | H25: 150 | I25: 4 | J25: 6 | K25: 6 | L25: 5
B26: 300 | C26: 3 | D26: 3 | E26: 3 | F26: 3 | H26: 300 | I26: 4 | J26: 6 | K26: 6 | L26: 5
B27: 600 | C27: 3 | D27: 2 | E27: 2 | F27: 3 | H27: 600 | I27: 4 | J27: 3 | K27: 3 | L27: 4
B28: 10000 | C28: 3 | D28: 2 | E28: 2 | F28: 2 | H28: 10000 | I28: 4 | J28: 3 | K28: 3 | L28: 3

Sheet VFDs
B1: Fill in Blue Cells Only!
B2: HVAC VARIABLE FREQUENCY DRIVES TECHNICAL REQUIREMENTS
B3: Replacement of failed VFDs or those installed in new construction do not qualify for incentives. Only VFD installations not required by South Carolina Code IECC 2009 are eligible for incentives. Incentives will be provided for the installation of new VFDs controlled by an automatic signal in response to varying air or water flow. Types of VFD installation are listed in Table 1. Incentives will be for VFDs from .25–100 horsepower (HP) for the HVAC applications listed in Table 2. Table 3 shows the controlling parameters for the VFDs. For chilled water and heating pump installations, at least 75 percent of pump capacity must be controlled by two-way valves. Controlled motors must operate a minimum of 2,000 hours per year. The following HVAC VFD applications are NOT eligible for these incentives: ▪ Forward curve fans with inlet guide vanes ▪ Variable pitch vane-axial fans ▪ Replacement of a failed VFD ▪ VFD used solely for balancing a constant flow ▪ Control of existing two-speed cooling tower fan ▪ Two-speed control of a fan or pump ▪ Mitigation of oversized motor installation
B4: Published manufacturer’s information must be submitted with each application to demonstrate compliance for each of the following criteria: ▪ 15 millisecond minimum ride through on the VFD control at full load and no inertia ▪ Auto restart ▪ Flying restart (start into rotating motor, speed search) ▪ Under voltage trip 85 percent or less ▪ Minimum 3 percent in-line reactor or equivalent (choke, isolation transformer) based on drive HP ▪ 95 percent minimum drive efficiency at full load and full speed ▪ 0.95 minimum displacement power factor
B6: IMPORTANT INFORMATION ABOUT VFDs
B7: ▪ It is good engineering practice to ensure that the application of VFDs within a facility does not cause excessive facility harmonic distortion. ▪ If the cable length between a VFD and controlled motor is greater than 50 feet, additional motor winding insulation on the first few windings, or the installation of an LC filter on the output of the inverter, might be required. ▪ The VFD should be grounded in accordance with the manufacturer’s grounding requirements for noise, as long as the requirement complies with applicable electric codes. ▪ The facility owner might want to consider: VFD startup by manufacturer representative, overcurrent trip protection, and critical frequency lockout. See IEEE 519 for further information.
B9: Table 1: VFD Installation Type
D11: SAF = | E11: HVAC Supply | F11: CWP = | G11: Chilled Water Pump
D12: RAF = | E12: HVAC Return | F12: HWP = | G12: Heat Water Pump
D13: CTF = | E13: Cooling Tower Fan | F13: WHP = | G13: Water Source Heat Pump Circulator Loop
B15: Table 2: VFD Size and Incentive
D17: 75 | F17: when Horse Power is 0.25 - 1.00
D18: 50 | F18: / HP when Horse Power is greater than 1.00
B20: Table 3: Controlling Parameters
D22: DP = Differential Pressure | F22: DT = Differential Temperature | H22: Other: (Specify)
B24: Variable Frequency Drives
B25: Installation Type (Table 1 above) | C25: Building Type | D25: Manufacturer / Model | E25: VFD & Motor Horsepower (Table 2 above) | F25: Controlling Parameter (Table 3 above) | G25: Other | H25: Quantity | I25: Location/Designation | J25: Requested Incentive | O25: Electric Energy Savings (kWh) | P25: Demand Savings Summer(kW) | Q25: Demand Savings Winter(kW) | R25: Incentive Per Unit
J27: =IF(E27="","",IF(E27<=1,75*H27,50*E27*H27)) ->  | O27: =Validation!K526 ->  | P27: =Validation!L526 ->  | Q27: =Validation!M526 ->  | R27: =IFERROR(J27/H27,0) -> 0
O28: =Validation!K527 ->  | P28: =Validation!L527 ->  | Q28: =Validation!M527 ->  | R28: 0
O29: =Validation!K528 ->  | P29: =Validation!L528 ->  | Q29: =Validation!M528 ->  | R29: 0
O30: =Validation!K529 ->  | P30: =Validation!L529 ->  | Q30: =Validation!M529 ->  | R30: 0
O31: =Validation!K530 ->  | P31: =Validation!L530 ->  | Q31: =Validation!M530 ->  | R31: 0
O32: =Validation!K531 ->  | P32: =Validation!L531 ->  | Q32: =Validation!M531 ->  | R32: 0
O33: =Validation!K532 ->  | P33: =Validation!L532 ->  | Q33: =Validation!M532 ->  | R33: 0
O34: =Validation!K533 ->  | P34: =Validation!L533 ->  | Q34: =Validation!M533 ->  | R34: 0
O35: =Validation!K534 ->  | P35: =Validation!L534 ->  | Q35: =Validation!M534 ->  | R35: 0
B36: Total Requested Incentive | J36: =SUM(J26:K35) -> 0 | O36: =SUM(O26:O35) -> 0 | P36: =SUM(P26:P35) -> 0 | Q36: =Validation!M535 -> 0 | R36: 0
K38: ="Version " & 'Version Tracking'!C4 -> Version 15.2

Sheet HPWH
A1: Fill in Blue Cells Only!
A3: HEAT PUMP WATER HEATER (HPWH) TECHNICAL REQUIREMENTS AND INCENTIVES
A4: TECHNICAL REQUIREMENTS • Light commercial Heat Pump Water Heater (HPWH) must meet ENERGY STAR v5.0 specifications. Minimum efficiency requirements are listed below as well as an eligible product list: o Integrated HPWH - 240 Volt: Units are rated in UEF and have a minimum requirement of 3.30 to qualify. o Integrated HPWH - 120 Volt: Units are rated in UEF and have a minimum requirement of 2.20 to qualify. o Split-system HPWH: Units are rated in UEF and have a minimum requirement of 2.20 to qualify. • All HPWH must be 20 gallons or larger storage capacity up to 120 gallons storage capacity to qualify. • Is not designed to provide outlet hot water at temperatures greater than 180 °F • Commercial HPWH rated in COP are not allowed through this prescriptive offering. Please reach out to your program team to inquire about the Custom program for these units. WORKBOOK INSTRUCTIONS • All blue fields below for a HPWH must be filled in to qualify on a given row. • For a HPWH installed in a conditioned space, enter Heating and Cooling System Type. This is not needed if installed in an unconditioned space.
A7: Light Commercial HPWH ENERGY STAR v5.0 eligible product list: https://www.energystar.gov/productfinder/product/certified-heat-pump-water-heaters/results
I8: If water heater will be located in a conditioned space, specify HVAC type
A9: Building Type | B9: Device Type | C9: Manufacturer | D9: Model # | E9: HPWH Capacity (Gallons) | F9: UEF | G9: First Hour Rating (FHR) | H9: Water Heater Location | I9: Heating System | J9: Cooling System | K9: Quantity | L9: Incentive Rate | M9: Qualifies | N9: Total Incentive | R9: Incentive Per unit | S9: kWh | T9: Winter kW | U9: Total Incentive
L10: ="$"&'HPWH Validation'!$A$1&"/unit" -> $500/unit | M10: ='HPWH Calcs'!P9 ->  | N10: =U10 -> 0 | R10: =IFERROR(U10/K10,0) -> 0 | S10: ='HPWH Calcs'!AJ9 -> 0 | T10: ='HPWH Calcs'!AK9 -> 0 | U10: ='HPWH Calcs'!AO9 -> 0
L11: ="$"&'HPWH Validation'!$A$1&"/unit" -> $500/unit | M11: ='HPWH Calcs'!P10 ->  | N11: 0 | R11: =IFERROR(U11/K11,0) -> 0 | S11: ='HPWH Calcs'!AJ10 -> 0 | T11: ='HPWH Calcs'!AK10 -> 0 | U11: ='HPWH Calcs'!AO10 -> 0
L12: ="$"&'HPWH Validation'!$A$1&"/unit" -> $500/unit | M12: ='HPWH Calcs'!P11 ->  | N12: 0 | R12: 0 | S12: ='HPWH Calcs'!AJ11 -> 0 | T12: ='HPWH Calcs'!AK11 -> 0 | U12: ='HPWH Calcs'!AO11 -> 0
L13: ="$"&'HPWH Validation'!$A$1&"/unit" -> $500/unit | M13: ='HPWH Calcs'!P12 ->  | N13: 0 | R13: 0 | S13: ='HPWH Calcs'!AJ12 -> 0 | T13: ='HPWH Calcs'!AK12 -> 0 | U13: ='HPWH Calcs'!AO12 -> 0
L14: ="$"&'HPWH Validation'!$A$1&"/unit" -> $500/unit | M14: ='HPWH Calcs'!P13 ->  | N14: 0 | R14: 0 | S14: ='HPWH Calcs'!AJ13 -> 0 | T14: ='HPWH Calcs'!AK13 -> 0 | U14: ='HPWH Calcs'!AO13 -> 0
L15: ="$"&'HPWH Validation'!$A$1&"/unit" -> $500/unit | M15: ='HPWH Calcs'!P14 ->  | N15: 0 | R15: 0 | S15: ='HPWH Calcs'!AJ14 -> 0 | T15: ='HPWH Calcs'!AK14 -> 0 | U15: ='HPWH Calcs'!AO14 -> 0
L16: ="$"&'HPWH Validation'!$A$1&"/unit" -> $500/unit | M16: ='HPWH Calcs'!P15 ->  | N16: 0 | R16: 0 | S16: ='HPWH Calcs'!AJ15 -> 0 | T16: ='HPWH Calcs'!AK15 -> 0 | U16: ='HPWH Calcs'!AO15 -> 0
L17: ="$"&'HPWH Validation'!$A$1&"/unit" -> $500/unit | M17: ='HPWH Calcs'!P16 ->  | N17: 0 | R17: 0 | S17: ='HPWH Calcs'!AJ16 -> 0 | T17: ='HPWH Calcs'!AK16 -> 0 | U17: ='HPWH Calcs'!AO16 -> 0
L18: ="$"&'HPWH Validation'!$A$1&"/unit" -> $500/unit | M18: ='HPWH Calcs'!P17 ->  | N18: 0 | R18: 0 | S18: ='HPWH Calcs'!AJ17 -> 0 | T18: ='HPWH Calcs'!AK17 -> 0 | U18: ='HPWH Calcs'!AO17 -> 0
L19: ="$"&'HPWH Validation'!$A$1&"/unit" -> $500/unit | M19: ='HPWH Calcs'!P18 ->  | N19: 0 | R19: 0 | S19: ='HPWH Calcs'!AJ18 -> 0 | T19: ='HPWH Calcs'!AK18 -> 0 | U19: ='HPWH Calcs'!AO18 -> 0
A20: Total Requested Incentive | N20: =SUM(N10:N19) -> 0
L21: Error Messages:
K22: 1 | L22: =_xlfn.XLOOKUP(K22,'HPWH Validation'!$A$29:$A$31,'HPWH Validation'!$C$29:$C$31) -> No. Please fill in all blue cells. | N22: ="Version " & 'Version Tracking'!C4 -> Version 15.2
K23: 2 | L23: =_xlfn.XLOOKUP(K23,'HPWH Validation'!$A$29:$A$31,'HPWH Validation'!$C$29:$C$31) -> No. Efficiency doesn't meet minimum requirements.

Sheet HPWH Calcs (hidden)
M6: Error Message
A7: Inputs | M7: 1 | N7: 2 | V7: UEF as mx+b, x = volume | AJ7: Per Unit | AM7: Totals
A8: Building Type | B8: Device Type | C8: Manufacturer | D8: Model Number | E8: Volume of tank | F8: UEFpost | G8: FHR | H8: Water Heater Location | I8: Conditioned Space Heating Type | J8: Conditioned Space Cooling Type | K8: Quantity | L8: Qualifying UEF | M8: All blue cells filled in? | N8: Unit meets efficiency requirement? | O8: Result | P8: Qualifies | Q8: ρ | R8: Cp | S8: Tout | T8: Tin | U8: Draw Pattern | V8: UEF m value | W8: UEF b value | X8: UEFbase | Y8: Consumption/cap | Z8: Annual Consumption | AA8: LF_conditioned space | AB8: COPcool_HP | AC8: COPheat_HP | AD8: %natural Gas | AE8: LM | AF8: HPWHWasteheatcool | AG8: HPWHWasteheatheat | AH8: DHWsavings | AI8: Winter CF | AJ8: kWh Savings per Unit | AK8: Winter kW Savings per Unit | AL8: Incentive per Unit | AM8: kWh Savings per Unit | AN8: Winter kW Savings per Unit | AO8: Total Incentive | AQ8: $/kWh
A9: =HPWH!A10 -> 0 | B9: =HPWH!B10 -> 0 | C9: =HPWH!C10 -> 0 | D9: =HPWH!D10 -> 0 | E9: =HPWH!E10 -> 0 | F9: =HPWH!F10 -> 0 | G9: =HPWH!G10 -> 0 | H9: =HPWH!H10 -> 0 | I9: =HPWH!I10 -> 0 | J9: =HPWH!J10 -> 0 | K9: =HPWH!K10 -> 0 | L9: =_xlfn.XLOOKUP(B9,'HPWH Validation'!$A$23:$A$25,'HPWH Validation'!$B$23:$B$25) ->  | M9: =IF(AND(A9<>0,B9<>0,C9<>0,D9<>0,E9<>0,F9<>0,G9<>0,H9<>0,K9<>0),"Yes","No") -> No | N9: =IF(F9>=L9,"Yes","No") ->  | O9: =IF(M9="Yes",IF(N9="Yes",0,$N$7),$M$7) -> 1 | P9: =IF(SUM(A9:H9,K9)=0,"",_xlfn.XLOOKUP(O9,'HPWH Validation'!$A$29:$A$31,'HPWH Validation'!$B$29:$B$31)) ->  | Q9: 8.33 | R9: 1 | S9: 125 | T9: ='HPWH Validation'!$O$10 -> 69.4 | U9: =VLOOKUP(G9,'HPWH Validation'!$B$5:$D$8,3) -> Very Small | V9: =_xlfn.XLOOKUP(U9,IF(E9<=55,'HPWH Validation'!$B$12:$B$15,'HPWH Validation'!$B$16:$B$19),IF(E9<=55,'HPWH Validation'!$E$12:$E$15,'HPWH Validation'!$E$16:$E$19)) -> -0.0008 | W9: =_xlfn.XLOOKUP(U9,IF(E9<=55,'HPWH Validation'!$B$12:$B$15,'HPWH Validation'!$B$16:$B$19),IF(E9<=55,'HPWH Validation'!$F$12:$F$15,'HPWH Validation'!$F$16:$F$19)) -> 0.8808 | X9: =V9*E9+W9 -> 0.8808 | Y9: =_xlfn.XLOOKUP(A9,HPWHBldgList,'HPWH Validation'!$L$4:$L$17) ->  | Z9: =E9*Y9 ->  | AA9: =IF(H9="Conditioned Space",1,0) -> 0 | AB9: 3.08 | AC9: =_xlfn.XLOOKUP(I9,'HPWH Validation'!$P$4:$P$5,'HPWH Validation'!$Q$4:$Q$5) ->  | AD9: 0 | AE9: 1.33 | AF9: =IF(J9="A/C",((((S9-T9)*Z9*Q9*R9*(1-1/F9))*AA9*25%*AE9)/(AB9*3412))*1,0) -> 0 | AG9: =IF(OR(I9="Electric Resistance Heat",I9="Heat Pump"),((((S9-T9)*Z9*Q9*R9*(1-1/F9))*AA9*35%)/(AC9*3412))*1,0) -> 0 | AH9: =((S9-T9)*Z9*Q9*R9*(1/X9-1/F9))/3412 ->  | AI9: =0.53 -> 0.53 | AJ9: =IF($P9="Yes",AH9-AG9+AF9,0) -> 0 | AK9: =AJ9/6461*AI9 -> 0 | AL9: ='HPWH Validation'!$A$1 -> 500 | AM9: =IF($P9="Yes",$K9*AJ9,0) -> 0 | AN9: 0 | AO9: =IF($P9="Yes",$K9*AL9,0) -> 0 | AQ9: =IFERROR(AO9/AM9,"") -> 
A10: =HPWH!A11 -> 0 | B10: =HPWH!B11 -> 0 | C10: =HPWH!C11 -> 0 | D10: =HPWH!D11 -> 0 | E10: =HPWH!E11 -> 0 | F10: =HPWH!F11 -> 0 | G10: =HPWH!G11 -> 0 | H10: =HPWH!H11 -> 0 | I10: =HPWH!I11 -> 0 | J10: =HPWH!J11 -> 0 | K10: =HPWH!K11 -> 0 | L10: =_xlfn.XLOOKUP(B10,'HPWH Validation'!$A$23:$A$25,'HPWH Validation'!$B$23:$B$25) ->  | M10: =IF(AND(A10<>0,B10<>0,C10<>0,D10<>0,E10<>0,F10<>0,G10<>0,H10<>0,K10<>0),"Yes","No") -> No | N10: =IF(F10>=L10,"Yes","No") ->  | O10: =IF(M10="Yes",IF(N10="Yes",0,$N$7),$M$7) -> 1 | P10: =IF(SUM(A10:H10,K10)=0,"",_xlfn.XLOOKUP(O10,'HPWH Validation'!$A$29:$A$31,'HPWH Validation'!$B$29:$B$31)) ->  | Q10: 8.33 | R10: 1 | S10: 125 | T10: ='HPWH Validation'!$O$10 -> 69.4 | U10: =VLOOKUP(G10,'HPWH Validation'!$B$5:$D$8,3) -> Very Small | V10: =_xlfn.XLOOKUP(U10,IF(E10<=55,'HPWH Validation'!$B$12:$B$15,'HPWH Validation'!$B$16:$B$19),IF(E10<=55,'HPWH Validation'!$E$12:$E$15,'HPWH Validation'!$E$16:$E$19)) -> -0.0008 | W10: =_xlfn.XLOOKUP(U10,IF(E10<=55,'HPWH Validation'!$B$12:$B$15,'HPWH Validation'!$B$16:$B$19),IF(E10<=55,'HPWH Validation'!$F$12:$F$15,'HPWH Validation'!$F$16:$F$19)) -> 0.8808 | X10: =V10*E10+W10 -> 0.8808 | Y10: =_xlfn.XLOOKUP(A10,HPWHBldgList,'HPWH Validation'!$L$4:$L$17) ->  | AA10: 0 | AB10: 3.08 | AC10: =_xlfn.XLOOKUP(I10,'HPWH Validation'!$P$4:$P$5,'HPWH Validation'!$Q$4:$Q$5) ->  | AD10: 0 | AE10: 1.33 | AF10: =IF(J10="A/C",((((S10-T10)*Z10*Q10*R10*(1-1/F10))*AA10*25%*AE10)/(AB10*3412))*1,0) -> 0 | AG10: =IF(OR(I10="Electric Resistance Heat",I10="Heat Pump"),((((S10-T10)*Z10*Q10*R10*(1-1/F10))*AA10*35%)/(AC10*3412))*1,0) -> 0 | AI10: =0.53 -> 0.53 | AJ10: =IF($P10="Yes",AH10-AG10+AF10,0) -> 0 | AK10: 0 | AL10: ='HPWH Validation'!$A$1 -> 500 | AM10: 0 | AN10: 0 | AO10: =IF($P10="Yes",$K10*AL10,0) -> 0 | AQ10: =IFERROR(AO10/AM10,"") -> 
A11: =HPWH!A12 -> 0 | B11: =HPWH!B12 -> 0 | C11: =HPWH!C12 -> 0 | D11: =HPWH!D12 -> 0 | E11: =HPWH!E12 -> 0 | F11: =HPWH!F12 -> 0 | G11: =HPWH!G12 -> 0 | H11: =HPWH!H12 -> 0 | I11: =HPWH!I12 -> 0 | J11: =HPWH!J12 -> 0 | K11: =HPWH!K12 -> 0 | L11: =_xlfn.XLOOKUP(B11,'HPWH Validation'!$A$23:$A$25,'HPWH Validation'!$B$23:$B$25) ->  | M11: No | O11: 1 | P11: =IF(SUM(A11:H11,K11)=0,"",_xlfn.XLOOKUP(O11,'HPWH Validation'!$A$29:$A$31,'HPWH Validation'!$B$29:$B$31)) ->  | Q11: 8.33 | R11: 1 | S11: 125 | T11: ='HPWH Validation'!$O$10 -> 69.4 | U11: =VLOOKUP(G11,'HPWH Validation'!$B$5:$D$8,3) -> Very Small | V11: =_xlfn.XLOOKUP(U11,IF(E11<=55,'HPWH Validation'!$B$12:$B$15,'HPWH Validation'!$B$16:$B$19),IF(E11<=55,'HPWH Validation'!$E$12:$E$15,'HPWH Validation'!$E$16:$E$19)) -> -0.0008 | W11: =_xlfn.XLOOKUP(U11,IF(E11<=55,'HPWH Validation'!$B$12:$B$15,'HPWH Validation'!$B$16:$B$19),IF(E11<=55,'HPWH Validation'!$F$12:$F$15,'HPWH Validation'!$F$16:$F$19)) -> 0.8808 | X11: 0.8808 | Y11: =_xlfn.XLOOKUP(A11,HPWHBldgList,'HPWH Validation'!$L$4:$L$17) ->  | AA11: 0 | AB11: 3.08 | AC11: =_xlfn.XLOOKUP(I11,'HPWH Validation'!$P$4:$P$5,'HPWH Validation'!$Q$4:$Q$5) ->  | AD11: 0 | AE11: 1.33 | AF11: 0 | AG11: 0 | AI11: 0.53 | AJ11: 0 | AK11: 0 | AL11: ='HPWH Validation'!$A$1 -> 500 | AM11: 0 | AN11: 0 | AO11: 0
A12: =HPWH!A13 -> 0 | B12: =HPWH!B13 -> 0 | C12: =HPWH!C13 -> 0 | D12: =HPWH!D13 -> 0 | E12: =HPWH!E13 -> 0 | F12: =HPWH!F13 -> 0 | G12: =HPWH!G13 -> 0 | H12: =HPWH!H13 -> 0 | I12: =HPWH!I13 -> 0 | J12: =HPWH!J13 -> 0 | K12: =HPWH!K13 -> 0 | L12: =_xlfn.XLOOKUP(B12,'HPWH Validation'!$A$23:$A$25,'HPWH Validation'!$B$23:$B$25) ->  | M12: No | O12: 1 | P12: =IF(SUM(A12:H12,K12)=0,"",_xlfn.XLOOKUP(O12,'HPWH Validation'!$A$29:$A$31,'HPWH Validation'!$B$29:$B$31)) ->  | Q12: 8.33 | R12: 1 | S12: 125 | T12: ='HPWH Validation'!$O$10 -> 69.4 | U12: =VLOOKUP(G12,'HPWH Validation'!$B$5:$D$8,3) -> Very Small | V12: =_xlfn.XLOOKUP(U12,IF(E12<=55,'HPWH Validation'!$B$12:$B$15,'HPWH Validation'!$B$16:$B$19),IF(E12<=55,'HPWH Validation'!$E$12:$E$15,'HPWH Validation'!$E$16:$E$19)) -> -0.0008 | W12: =_xlfn.XLOOKUP(U12,IF(E12<=55,'HPWH Validation'!$B$12:$B$15,'HPWH Validation'!$B$16:$B$19),IF(E12<=55,'HPWH Validation'!$F$12:$F$15,'HPWH Validation'!$F$16:$F$19)) -> 0.8808 | X12: 0.8808 | Y12: =_xlfn.XLOOKUP(A12,HPWHBldgList,'HPWH Validation'!$L$4:$L$17) ->  | AA12: 0 | AB12: 3.08 | AC12: =_xlfn.XLOOKUP(I12,'HPWH Validation'!$P$4:$P$5,'HPWH Validation'!$Q$4:$Q$5) ->  | AD12: 0 | AE12: 1.33 | AF12: 0 | AG12: 0 | AI12: 0.53 | AJ12: 0 | AK12: 0 | AL12: ='HPWH Validation'!$A$1 -> 500 | AM12: 0 | AN12: 0 | AO12: 0
A13: =HPWH!A14 -> 0 | B13: =HPWH!B14 -> 0 | C13: =HPWH!C14 -> 0 | D13: =HPWH!D14 -> 0 | E13: =HPWH!E14 -> 0 | F13: =HPWH!F14 -> 0 | G13: =HPWH!G14 -> 0 | H13: =HPWH!H14 -> 0 | I13: =HPWH!I14 -> 0 | J13: =HPWH!J14 -> 0 | K13: =HPWH!K14 -> 0 | L13: =_xlfn.XLOOKUP(B13,'HPWH Validation'!$A$23:$A$25,'HPWH Validation'!$B$23:$B$25) ->  | M13: No | O13: 1 | P13: =IF(SUM(A13:H13,K13)=0,"",_xlfn.XLOOKUP(O13,'HPWH Validation'!$A$29:$A$31,'HPWH Validation'!$B$29:$B$31)) ->  | Q13: 8.33 | R13: 1 | S13: 125 | T13: ='HPWH Validation'!$O$10 -> 69.4 | U13: =VLOOKUP(G13,'HPWH Validation'!$B$5:$D$8,3) -> Very Small | V13: =_xlfn.XLOOKUP(U13,IF(E13<=55,'HPWH Validation'!$B$12:$B$15,'HPWH Validation'!$B$16:$B$19),IF(E13<=55,'HPWH Validation'!$E$12:$E$15,'HPWH Validation'!$E$16:$E$19)) -> -0.0008 | W13: =_xlfn.XLOOKUP(U13,IF(E13<=55,'HPWH Validation'!$B$12:$B$15,'HPWH Validation'!$B$16:$B$19),IF(E13<=55,'HPWH Validation'!$F$12:$F$15,'HPWH Validation'!$F$16:$F$19)) -> 0.8808 | X13: 0.8808 | Y13: =_xlfn.XLOOKUP(A13,HPWHBldgList,'HPWH Validation'!$L$4:$L$17) ->  | AA13: 0 | AB13: 3.08 | AC13: =_xlfn.XLOOKUP(I13,'HPWH Validation'!$P$4:$P$5,'HPWH Validation'!$Q$4:$Q$5) ->  | AD13: 0 | AE13: 1.33 | AF13: 0 | AG13: 0 | AI13: 0.53 | AJ13: 0 | AK13: 0 | AL13: ='HPWH Validation'!$A$1 -> 500 | AM13: 0 | AN13: 0 | AO13: 0
A14: =HPWH!A15 -> 0 | B14: =HPWH!B15 -> 0 | C14: =HPWH!C15 -> 0 | D14: =HPWH!D15 -> 0 | E14: =HPWH!E15 -> 0 | F14: =HPWH!F15 -> 0 | G14: =HPWH!G15 -> 0 | H14: =HPWH!H15 -> 0 | I14: =HPWH!I15 -> 0 | J14: =HPWH!J15 -> 0 | K14: =HPWH!K15 -> 0 | L14: =_xlfn.XLOOKUP(B14,'HPWH Validation'!$A$23:$A$25,'HPWH Validation'!$B$23:$B$25) ->  | M14: No | O14: 1 | P14: =IF(SUM(A14:H14,K14)=0,"",_xlfn.XLOOKUP(O14,'HPWH Validation'!$A$29:$A$31,'HPWH Validation'!$B$29:$B$31)) ->  | Q14: 8.33 | R14: 1 | S14: 125 | T14: ='HPWH Validation'!$O$10 -> 69.4 | U14: =VLOOKUP(G14,'HPWH Validation'!$B$5:$D$8,3) -> Very Small | V14: =_xlfn.XLOOKUP(U14,IF(E14<=55,'HPWH Validation'!$B$12:$B$15,'HPWH Validation'!$B$16:$B$19),IF(E14<=55,'HPWH Validation'!$E$12:$E$15,'HPWH Validation'!$E$16:$E$19)) -> -0.0008 | W14: =_xlfn.XLOOKUP(U14,IF(E14<=55,'HPWH Validation'!$B$12:$B$15,'HPWH Validation'!$B$16:$B$19),IF(E14<=55,'HPWH Validation'!$F$12:$F$15,'HPWH Validation'!$F$16:$F$19)) -> 0.8808 | X14: 0.8808 | Y14: =_xlfn.XLOOKUP(A14,HPWHBldgList,'HPWH Validation'!$L$4:$L$17) ->  | AA14: 0 | AB14: 3.08 | AC14: =_xlfn.XLOOKUP(I14,'HPWH Validation'!$P$4:$P$5,'HPWH Validation'!$Q$4:$Q$5) ->  | AD14: 0 | AE14: 1.33 | AF14: 0 | AG14: 0 | AI14: 0.53 | AJ14: 0 | AK14: 0 | AL14: ='HPWH Validation'!$A$1 -> 500 | AM14: 0 | AN14: 0 | AO14: 0
A15: =HPWH!A16 -> 0 | B15: =HPWH!B16 -> 0 | C15: =HPWH!C16 -> 0 | D15: =HPWH!D16 -> 0 | E15: =HPWH!E16 -> 0 | F15: =HPWH!F16 -> 0 | G15: =HPWH!G16 -> 0 | H15: =HPWH!H16 -> 0 | I15: =HPWH!I16 -> 0 | J15: =HPWH!J16 -> 0 | K15: =HPWH!K16 -> 0 | L15: =_xlfn.XLOOKUP(B15,'HPWH Validation'!$A$23:$A$25,'HPWH Validation'!$B$23:$B$25) ->  | M15: No | O15: 1 | P15: =IF(SUM(A15:H15,K15)=0,"",_xlfn.XLOOKUP(O15,'HPWH Validation'!$A$29:$A$31,'HPWH Validation'!$B$29:$B$31)) ->  | Q15: 8.33 | R15: 1 | S15: 125 | T15: ='HPWH Validation'!$O$10 -> 69.4 | U15: =VLOOKUP(G15,'HPWH Validation'!$B$5:$D$8,3) -> Very Small | V15: =_xlfn.XLOOKUP(U15,IF(E15<=55,'HPWH Validation'!$B$12:$B$15,'HPWH Validation'!$B$16:$B$19),IF(E15<=55,'HPWH Validation'!$E$12:$E$15,'HPWH Validation'!$E$16:$E$19)) -> -0.0008 | W15: =_xlfn.XLOOKUP(U15,IF(E15<=55,'HPWH Validation'!$B$12:$B$15,'HPWH Validation'!$B$16:$B$19),IF(E15<=55,'HPWH Validation'!$F$12:$F$15,'HPWH Validation'!$F$16:$F$19)) -> 0.8808 | X15: 0.8808 | Y15: =_xlfn.XLOOKUP(A15,HPWHBldgList,'HPWH Validation'!$L$4:$L$17) ->  | AA15: 0 | AB15: 3.08 | AC15: =_xlfn.XLOOKUP(I15,'HPWH Validation'!$P$4:$P$5,'HPWH Validation'!$Q$4:$Q$5) ->  | AD15: 0 | AE15: 1.33 | AF15: 0 | AG15: 0 | AI15: 0.53 | AJ15: 0 | AK15: 0 | AL15: ='HPWH Validation'!$A$1 -> 500 | AM15: 0 | AN15: 0 | AO15: 0
A16: =HPWH!A17 -> 0 | B16: =HPWH!B17 -> 0 | C16: =HPWH!C17 -> 0 | D16: =HPWH!D17 -> 0 | E16: =HPWH!E17 -> 0 | F16: =HPWH!F17 -> 0 | G16: =HPWH!G17 -> 0 | H16: =HPWH!H17 -> 0 | I16: =HPWH!I17 -> 0 | J16: =HPWH!J17 -> 0 | K16: =HPWH!K17 -> 0 | L16: =_xlfn.XLOOKUP(B16,'HPWH Validation'!$A$23:$A$25,'HPWH Validation'!$B$23:$B$25) ->  | M16: No | O16: 1 | P16: =IF(SUM(A16:H16,K16)=0,"",_xlfn.XLOOKUP(O16,'HPWH Validation'!$A$29:$A$31,'HPWH Validation'!$B$29:$B$31)) ->  | Q16: 8.33 | R16: 1 | S16: 125 | T16: ='HPWH Validation'!$O$10 -> 69.4 | U16: =VLOOKUP(G16,'HPWH Validation'!$B$5:$D$8,3) -> Very Small | V16: =_xlfn.XLOOKUP(U16,IF(E16<=55,'HPWH Validation'!$B$12:$B$15,'HPWH Validation'!$B$16:$B$19),IF(E16<=55,'HPWH Validation'!$E$12:$E$15,'HPWH Validation'!$E$16:$E$19)) -> -0.0008 | W16: =_xlfn.XLOOKUP(U16,IF(E16<=55,'HPWH Validation'!$B$12:$B$15,'HPWH Validation'!$B$16:$B$19),IF(E16<=55,'HPWH Validation'!$F$12:$F$15,'HPWH Validation'!$F$16:$F$19)) -> 0.8808 | X16: 0.8808 | Y16: =_xlfn.XLOOKUP(A16,HPWHBldgList,'HPWH Validation'!$L$4:$L$17) ->  | AA16: 0 | AB16: 3.08 | AC16: =_xlfn.XLOOKUP(I16,'HPWH Validation'!$P$4:$P$5,'HPWH Validation'!$Q$4:$Q$5) ->  | AD16: 0 | AE16: 1.33 | AF16: 0 | AG16: 0 | AI16: 0.53 | AJ16: 0 | AK16: 0 | AL16: ='HPWH Validation'!$A$1 -> 500 | AM16: 0 | AN16: 0 | AO16: 0
A17: =HPWH!A18 -> 0 | B17: =HPWH!B18 -> 0 | C17: =HPWH!C18 -> 0 | D17: =HPWH!D18 -> 0 | E17: =HPWH!E18 -> 0 | F17: =HPWH!F18 -> 0 | G17: =HPWH!G18 -> 0 | H17: =HPWH!H18 -> 0 | I17: =HPWH!I18 -> 0 | J17: =HPWH!J18 -> 0 | K17: =HPWH!K18 -> 0 | L17: =_xlfn.XLOOKUP(B17,'HPWH Validation'!$A$23:$A$25,'HPWH Validation'!$B$23:$B$25) ->  | M17: No | O17: 1 | P17: =IF(SUM(A17:H17,K17)=0,"",_xlfn.XLOOKUP(O17,'HPWH Validation'!$A$29:$A$31,'HPWH Validation'!$B$29:$B$31)) ->  | Q17: 8.33 | R17: 1 | S17: 125 | T17: ='HPWH Validation'!$O$10 -> 69.4 | U17: =VLOOKUP(G17,'HPWH Validation'!$B$5:$D$8,3) -> Very Small | V17: =_xlfn.XLOOKUP(U17,IF(E17<=55,'HPWH Validation'!$B$12:$B$15,'HPWH Validation'!$B$16:$B$19),IF(E17<=55,'HPWH Validation'!$E$12:$E$15,'HPWH Validation'!$E$16:$E$19)) -> -0.0008 | W17: =_xlfn.XLOOKUP(U17,IF(E17<=55,'HPWH Validation'!$B$12:$B$15,'HPWH Validation'!$B$16:$B$19),IF(E17<=55,'HPWH Validation'!$F$12:$F$15,'HPWH Validation'!$F$16:$F$19)) -> 0.8808 | X17: 0.8808 | Y17: =_xlfn.XLOOKUP(A17,HPWHBldgList,'HPWH Validation'!$L$4:$L$17) ->  | AA17: 0 | AB17: 3.08 | AC17: =_xlfn.XLOOKUP(I17,'HPWH Validation'!$P$4:$P$5,'HPWH Validation'!$Q$4:$Q$5) ->  | AD17: 0 | AE17: 1.33 | AF17: 0 | AG17: 0 | AI17: 0.53 | AJ17: 0 | AK17: 0 | AL17: ='HPWH Validation'!$A$1 -> 500 | AM17: 0 | AN17: 0 | AO17: 0
A18: =HPWH!A19 -> 0 | B18: =HPWH!B19 -> 0 | C18: =HPWH!C19 -> 0 | D18: =HPWH!D19 -> 0 | E18: =HPWH!E19 -> 0 | F18: =HPWH!F19 -> 0 | G18: =HPWH!G19 -> 0 | H18: =HPWH!H19 -> 0 | I18: =HPWH!I19 -> 0 | J18: =HPWH!J19 -> 0 | K18: =HPWH!K19 -> 0 | L18: =_xlfn.XLOOKUP(B18,'HPWH Validation'!$A$23:$A$25,'HPWH Validation'!$B$23:$B$25) ->  | M18: No | O18: 1 | P18: =IF(SUM(A18:H18,K18)=0,"",_xlfn.XLOOKUP(O18,'HPWH Validation'!$A$29:$A$31,'HPWH Validation'!$B$29:$B$31)) ->  | Q18: 8.33 | R18: 1 | S18: 125 | T18: ='HPWH Validation'!$O$10 -> 69.4 | U18: =VLOOKUP(G18,'HPWH Validation'!$B$5:$D$8,3) -> Very Small | V18: =_xlfn.XLOOKUP(U18,IF(E18<=55,'HPWH Validation'!$B$12:$B$15,'HPWH Validation'!$B$16:$B$19),IF(E18<=55,'HPWH Validation'!$E$12:$E$15,'HPWH Validation'!$E$16:$E$19)) -> -0.0008 | W18: =_xlfn.XLOOKUP(U18,IF(E18<=55,'HPWH Validation'!$B$12:$B$15,'HPWH Validation'!$B$16:$B$19),IF(E18<=55,'HPWH Validation'!$F$12:$F$15,'HPWH Validation'!$F$16:$F$19)) -> 0.8808 | X18: 0.8808 | Y18: =_xlfn.XLOOKUP(A18,HPWHBldgList,'HPWH Validation'!$L$4:$L$17) ->  | AA18: 0 | AB18: 3.08 | AC18: =_xlfn.XLOOKUP(I18,'HPWH Validation'!$P$4:$P$5,'HPWH Validation'!$Q$4:$Q$5) ->  | AD18: 0 | AE18: 1.33 | AF18: 0 | AG18: 0 | AI18: 0.53 | AJ18: 0 | AK18: 0 | AL18: ='HPWH Validation'!$A$1 -> 500 | AM18: 0 | AN18: 0 | AO18: 0

Sheet HPWH Validation (hidden)
A1: 500 | B1: Incentive ($/unit)
D2: From IL TRM v13 | K2: From IL TRM v13
D3: Storage Water Heater Draw Pattern | K3: Building Type | L3: Consumption/Cap | N3: HPWH Type | O3: HPWH Location | P3: HPWH Space Heating Type | Q3: COP | R3: HPWH Space Cooling Type
B4: ≥ FHR | C4: < FHR | D4: Draw Pattern | E4: First Hour Rating (gallons) | K4: Convenience | L4: 528 | N4: Integrated HPWH, 240V | O4: Unconditioned Space | P4: Electric Resistance Heat | Q4: 1 | R4: A/C
B5: 0 | C5: 18 | D5: Very Small | E5: ≥ 0 and < 18 | K5: Education | L5: 568 | N5: Integrated HPWH, 120V | O5: Conditioned Space | P5: Heat pump | Q5: 2.04 | R5: No A/C
B6: 18 | C6: 51 | D6: Low | E6: ≥ 18 and < 51 | K6: Grocery | L6: 528 | N6: Split-system HPWH | P6: Other/None
B7: 51 | C7: 75 | D7: Medium | E7: ≥ 51 and < 75 | K7: Health | L7: 788
B8: 75 | C8: 9999 | D8: High | E8: ≥ 75 | K8: Large Office | L8: 511
K9: Large Retail | L9: 528 | N9: ODC recommended value 7/21/25 - from Incoming water temperature for Census Division 5 is 69.4F according to LBNL report "Calculating Average Hot Water Mixes of Residential Plumbing Fixtures", June 2020.
K10: Lodging | L10: 715 | N10: South Carolina | O10: 69.4
A11: Rated storage volume | B11: Draw pattern | C11: FHR 451,452 | D11: UEF453 | E11: m | F11: b | K11: Other Commercial | L11: 341
A12: ≥ 20 gal and ≤ 55 gal | B12: Very Small | C12: 0 ≤ FHR < 18 | D12: 0.8808 − (0.0008 × Vr) | E12: -0.0008 | F12: 0.8808 | K12: Restaurant | L12: 622
B13: Low | C13: 18 ≤ FHR < 51 | D13: 0.9254 − (0.0003 × Vr) | E13: -0.0003 | F13: 0.9254 | K13: Small Office | L13: 511
B14: Medium | C14: 51 ≤ FHR < 75 | D14: 0.9307 − (0.0002 × Vr) | E14: -0.0002 | F14: 0.9307 | K14: Small Retail | L14: 528
B15: High | C15: 75 ≤ FHR | D15: 0.9349 − (0.0001 × Vr) | E15: -0.0001 | F15: 0.9349 | K15: Warehouse | L15: 341
A16: > 55 gal and ≤ 120 gal | B16: Very small | C16: 0 ≤ FHR < 18 | D16: 1.9236 − (0.0011 × Vr) | E16: -0.0011 | F16: 1.9236 | K16: Nursing | L16: 672
B17: Low | C17: 18 ≤ FHR < 51 | D17: 2.0440 − (0.0011 × Vr) | E17: -0.0011 | F17: 2.044 | K17: Multi-Family | L17: 894
B18: Medium | C18: 51 ≤ FHR < 75 | D18: 2.1171 − (0.0011 × Vr) | E18: -0.0011 | F18: 2.1171
B19: High | C19: 75 ≤ FHR | D19: 2.2418 − (0.0011 × Vr) | E19: -0.0011 | F19: 2.2418
A22: HPWH Type | B22: Qualifying UEF
A23: Integrated HPWH, 240V | B23: 3.3
A24: Integrated HPWH, 120V | B24: 2.2
A25: Split-system HPWH | B25: 2.2
A28: Error Number | B28: Error Message | C28: Qualifies
A29: 0 | B29: Yes | C29: Yes
A30: 1 | B30: Error message 1 - See below | C30: No. Please fill in all blue cells.
A31: 2 | B31: Error message 2 - See below | C31: No. Efficiency doesn't meet minimum requirements.

Sheet Guestroom Energy Management
A1: Fill in Blue Cells Only!
A3: GUESTROOM ENERGY MANAGEMENT TECHNICAL REQUIREMENTS AND INCENTIVES
A4: To qualify for an incentive: ▪ Guestroom Energy Management system must control the HVAC unit in the guest/dorm room with occupancy controls and can optionally control the lighting. ▪ The occupancy-based control system must include, but not be limited to, infrared sensors, ultrasonic sensors, door magnetic strip sensors, and/or card-key sensors ▪ The controls must set back/set up the temperature 5 degrees or 10 degrees when unoccupied ▪ Only Packaged Terminal Air Conditioner (PTAC) or Packaged Terminal Heat Pump (PTHP) are eligible HVAC units to control. ▪ If other HVAC system types are desired to be controlled, please contact your Program representative about the Custom Program. Workbook Instructions: ▪ All blue cells below are required to be filled in to calculate if qualifies for incentive.
A5: Guestroom Energy Management Controls
A6: Business Type | B6: Manufacturer | C6: Model | D6: Controlled Equipment | E6: Controlled HVAC Equipment | F6: Temperature Setback Controls | G6: Quantity | H6: Incentive Rate | I6: Qualifies | J6: Total Incentive | N6: Incentive Per unit | O6: kWh | P6: Winter kW | Q6: Total Incentive
H7: $100/controlled unit | I7: ='GREM Calculations'!K9 ->  | J7: =Q7 -> 0 | N7: =Q7/G7 ->  | O7: ='GREM Calculations'!P9 -> 0 | P7: ='GREM Calculations'!Q9 -> 0 | Q7: ='GREM Calculations'!S9 -> 0
H8: $100/controlled unit | I8: ='GREM Calculations'!K10 ->  | J8: =Q8 -> 0 | N8: =Q8/G8 ->  | O8: ='GREM Calculations'!P10 -> 0 | P8: ='GREM Calculations'!Q10 -> 0 | Q8: ='GREM Calculations'!S10 -> 0
H9: $100/controlled unit | I9: ='GREM Calculations'!K11 ->  | J9: 0 | O9: ='GREM Calculations'!P11 -> 0 | P9: ='GREM Calculations'!Q11 -> 0 | Q9: ='GREM Calculations'!S11 -> 0
H10: $100/controlled unit | I10: ='GREM Calculations'!K12 ->  | J10: 0 | O10: ='GREM Calculations'!P12 -> 0 | P10: ='GREM Calculations'!Q12 -> 0 | Q10: ='GREM Calculations'!S12 -> 0
H11: $100/controlled unit | I11: ='GREM Calculations'!K13 ->  | J11: 0 | O11: ='GREM Calculations'!P13 -> 0 | P11: ='GREM Calculations'!Q13 -> 0 | Q11: ='GREM Calculations'!S13 -> 0
H12: $100/controlled unit | I12: ='GREM Calculations'!K14 ->  | J12: 0 | O12: ='GREM Calculations'!P14 -> 0 | P12: ='GREM Calculations'!Q14 -> 0 | Q12: ='GREM Calculations'!S14 -> 0
H13: $100/controlled unit | I13: ='GREM Calculations'!K15 ->  | J13: 0 | O13: ='GREM Calculations'!P15 -> 0 | P13: ='GREM Calculations'!Q15 -> 0 | Q13: ='GREM Calculations'!S15 -> 0
H14: $100/controlled unit | I14: ='GREM Calculations'!K16 ->  | J14: 0 | O14: ='GREM Calculations'!P16 -> 0 | P14: ='GREM Calculations'!Q16 -> 0 | Q14: ='GREM Calculations'!S16 -> 0
H15: $100/controlled unit | I15: ='GREM Calculations'!K17 ->  | J15: 0 | O15: ='GREM Calculations'!P17 -> 0 | P15: ='GREM Calculations'!Q17 -> 0 | Q15: ='GREM Calculations'!S17 -> 0
H16: $100/controlled unit | I16: ='GREM Calculations'!K18 ->  | J16: 0 | O16: ='GREM Calculations'!P18 -> 0 | P16: ='GREM Calculations'!Q18 -> 0 | Q16: ='GREM Calculations'!S18 -> 0
A17: Total Requested Incentive | J17: =SUM(J7:J16) -> 0
J19: ="Version " & 'Version Tracking'!C4 -> Version 15.2

Sheet GREM Calculations (hidden)
B8: Business Type | C8: Manufacturer | D8: Model | E8: Controlled Equipment | F8: Controlled HVAC Equipment | G8: Degree Setback Design | H8: Quantity | I8: CFw | J8: All blue cells filled in? | K8: Qualifies | L8: Temp Control | M8: concat | N8: kWh/unit | O8: Winter kW/unit | P8: Total kWh | Q8: Total Winter kW | R8: Incentive/unit | S8: Incentive | T8: EUL | V8: $/kWh
A9: 1 | B9: ='Guestroom Energy Management'!A7 -> 0 | C9: ='Guestroom Energy Management'!B7 -> 0 | D9: ='Guestroom Energy Management'!C7 -> 0 | E9: ='Guestroom Energy Management'!D7 -> 0 | F9: ='Guestroom Energy Management'!E7 -> 0 | G9: ='Guestroom Energy Management'!F7 -> 0 | H9: ='Guestroom Energy Management'!G7 -> 0 | I9: ='GREM Validation'!$B$10 -> 8.8e-05 | J9: =IF(AND(B9<>0,C9<>0,D9<>0,E9<>0,F9<>0,G9<>0,H9<>0),"Yes",IF(AND(B9=0,E9=0,F9=0,G9=0,H9=0),"","No. Please fill in all blue cells")) ->  | K9: =IF(J9="","",J9) ->  | L9: =IFERROR(_xlfn.XLOOKUP(G9,DegSetback,'GREM Validation'!$C$2:$C$3),0) -> 0 | M9: =B9&L9&E9&F9 -> 0000 | N9: =IF(K9="Yes",_xlfn.XLOOKUP(M9,'GREM Validation'!$AB$3:$AB$26,'GREM Validation'!$AC$3:$AC$26),0) -> 0 | O9: =IF(K9="Yes",_xlfn.XLOOKUP(M9,'GREM Validation'!$AB$3:$AB$26,'GREM Validation'!$AD$3:$AD$26),0) -> 0 | P9: =N9*$H9 -> 0 | Q9: =O9*$H9 -> 0 | R9: =IF(K9="Yes",'GREM Validation'!$K$1,0) -> 0 | S9: =R9*H9 -> 0 | T9: 15 | V9: =S9/P9 -> 
A10: 2 | B10: ='Guestroom Energy Management'!A8 -> 0 | C10: ='Guestroom Energy Management'!B8 -> 0 | D10: ='Guestroom Energy Management'!C8 -> 0 | E10: ='Guestroom Energy Management'!D8 -> 0 | F10: ='Guestroom Energy Management'!E8 -> 0 | G10: ='Guestroom Energy Management'!F8 -> 0 | H10: ='Guestroom Energy Management'!G8 -> 0 | I10: ='GREM Validation'!$B$10 -> 8.8e-05 | J10: =IF(AND(B10<>0,C10<>0,D10<>0,E10<>0,F10<>0,G10<>0,H10<>0),"Yes",IF(AND(B10=0,E10=0,F10=0,G10=0,H10=0),"","No. Please fill in all blue cells")) ->  | K10: =IF(J10="","",J10) ->  | L10: =IFERROR(_xlfn.XLOOKUP(G10,DegSetback,'GREM Validation'!$C$2:$C$3),0) -> 0 | M10: =B10&L10&E10&F10 -> 0000 | N10: =IF(K10="Yes",_xlfn.XLOOKUP(M10,'GREM Validation'!$AB$3:$AB$26,'GREM Validation'!$AC$3:$AC$26),0) -> 0 | O10: =IF(K10="Yes",_xlfn.XLOOKUP(M10,'GREM Validation'!$AB$3:$AB$26,'GREM Validation'!$AD$3:$AD$26),0) -> 0 | P10: 0 | Q10: 0 | R10: =IF(K10="Yes",'GREM Validation'!$K$1,0) -> 0 | S10: =R10*H10 -> 0 | T10: 15 | V10: =S10/P10 -> 
A11: 3 | B11: ='Guestroom Energy Management'!A9 -> 0 | C11: ='Guestroom Energy Management'!B9 -> 0 | D11: ='Guestroom Energy Management'!C9 -> 0 | E11: ='Guestroom Energy Management'!D9 -> 0 | F11: ='Guestroom Energy Management'!E9 -> 0 | G11: ='Guestroom Energy Management'!F9 -> 0 | H11: ='Guestroom Energy Management'!G9 -> 0 | I11: ='GREM Validation'!$B$10 -> 8.8e-05 | J11: =IF(AND(B11<>0,C11<>0,D11<>0,E11<>0,F11<>0,G11<>0,H11<>0),"Yes",IF(AND(B11=0,E11=0,F11=0,G11=0,H11=0),"","No. Please fill in all blue cells")) ->  | L11: =IFERROR(_xlfn.XLOOKUP(G11,DegSetback,'GREM Validation'!$C$2:$C$3),0) -> 0 | M11: 0000 | N11: =IF(K11="Yes",_xlfn.XLOOKUP(M11,'GREM Validation'!$AB$3:$AB$26,'GREM Validation'!$AC$3:$AC$26),0) -> 0 | O11: =IF(K11="Yes",_xlfn.XLOOKUP(M11,'GREM Validation'!$AB$3:$AB$26,'GREM Validation'!$AD$3:$AD$26),0) -> 0 | P11: 0 | Q11: 0 | R11: =IF(K11="Yes",'GREM Validation'!$K$1,0) -> 0 | S11: 0 | T11: 15
A12: 4 | B12: ='Guestroom Energy Management'!A10 -> 0 | C12: ='Guestroom Energy Management'!B10 -> 0 | D12: ='Guestroom Energy Management'!C10 -> 0 | E12: ='Guestroom Energy Management'!D10 -> 0 | F12: ='Guestroom Energy Management'!E10 -> 0 | G12: ='Guestroom Energy Management'!F10 -> 0 | H12: ='Guestroom Energy Management'!G10 -> 0 | I12: ='GREM Validation'!$B$10 -> 8.8e-05 | L12: =IFERROR(_xlfn.XLOOKUP(G12,DegSetback,'GREM Validation'!$C$2:$C$3),0) -> 0 | M12: 0000 | N12: =IF(K12="Yes",_xlfn.XLOOKUP(M12,'GREM Validation'!$AB$3:$AB$26,'GREM Validation'!$AC$3:$AC$26),0) -> 0 | O12: =IF(K12="Yes",_xlfn.XLOOKUP(M12,'GREM Validation'!$AB$3:$AB$26,'GREM Validation'!$AD$3:$AD$26),0) -> 0 | P12: 0 | Q12: 0 | R12: =IF(K12="Yes",'GREM Validation'!$K$1,0) -> 0 | S12: 0 | T12: 15
A13: 5 | B13: ='Guestroom Energy Management'!A11 -> 0 | C13: ='Guestroom Energy Management'!B11 -> 0 | D13: ='Guestroom Energy Management'!C11 -> 0 | E13: ='Guestroom Energy Management'!D11 -> 0 | F13: ='Guestroom Energy Management'!E11 -> 0 | G13: ='Guestroom Energy Management'!F11 -> 0 | H13: ='Guestroom Energy Management'!G11 -> 0 | I13: ='GREM Validation'!$B$10 -> 8.8e-05 | L13: =IFERROR(_xlfn.XLOOKUP(G13,DegSetback,'GREM Validation'!$C$2:$C$3),0) -> 0 | M13: 0000 | N13: =IF(K13="Yes",_xlfn.XLOOKUP(M13,'GREM Validation'!$AB$3:$AB$26,'GREM Validation'!$AC$3:$AC$26),0) -> 0 | O13: =IF(K13="Yes",_xlfn.XLOOKUP(M13,'GREM Validation'!$AB$3:$AB$26,'GREM Validation'!$AD$3:$AD$26),0) -> 0 | P13: 0 | Q13: 0 | R13: =IF(K13="Yes",'GREM Validation'!$K$1,0) -> 0 | S13: 0 | T13: 15
A14: 6 | B14: ='Guestroom Energy Management'!A12 -> 0 | C14: ='Guestroom Energy Management'!B12 -> 0 | D14: ='Guestroom Energy Management'!C12 -> 0 | E14: ='Guestroom Energy Management'!D12 -> 0 | F14: ='Guestroom Energy Management'!E12 -> 0 | G14: ='Guestroom Energy Management'!F12 -> 0 | H14: ='Guestroom Energy Management'!G12 -> 0 | I14: ='GREM Validation'!$B$10 -> 8.8e-05 | L14: =IFERROR(_xlfn.XLOOKUP(G14,DegSetback,'GREM Validation'!$C$2:$C$3),0) -> 0 | M14: 0000 | N14: =IF(K14="Yes",_xlfn.XLOOKUP(M14,'GREM Validation'!$AB$3:$AB$26,'GREM Validation'!$AC$3:$AC$26),0) -> 0 | O14: =IF(K14="Yes",_xlfn.XLOOKUP(M14,'GREM Validation'!$AB$3:$AB$26,'GREM Validation'!$AD$3:$AD$26),0) -> 0 | P14: 0 | Q14: 0 | R14: =IF(K14="Yes",'GREM Validation'!$K$1,0) -> 0 | S14: 0 | T14: 15
A15: 7 | B15: ='Guestroom Energy Management'!A13 -> 0 | C15: ='Guestroom Energy Management'!B13 -> 0 | D15: ='Guestroom Energy Management'!C13 -> 0 | E15: ='Guestroom Energy Management'!D13 -> 0 | F15: ='Guestroom Energy Management'!E13 -> 0 | G15: ='Guestroom Energy Management'!F13 -> 0 | H15: ='Guestroom Energy Management'!G13 -> 0 | I15: ='GREM Validation'!$B$10 -> 8.8e-05 | L15: =IFERROR(_xlfn.XLOOKUP(G15,DegSetback,'GREM Validation'!$C$2:$C$3),0) -> 0 | M15: 0000 | N15: =IF(K15="Yes",_xlfn.XLOOKUP(M15,'GREM Validation'!$AB$3:$AB$26,'GREM Validation'!$AC$3:$AC$26),0) -> 0 | O15: =IF(K15="Yes",_xlfn.XLOOKUP(M15,'GREM Validation'!$AB$3:$AB$26,'GREM Validation'!$AD$3:$AD$26),0) -> 0 | P15: 0 | Q15: 0 | R15: =IF(K15="Yes",'GREM Validation'!$K$1,0) -> 0 | S15: 0 | T15: 15
A16: 8 | B16: ='Guestroom Energy Management'!A14 -> 0 | C16: ='Guestroom Energy Management'!B14 -> 0 | D16: ='Guestroom Energy Management'!C14 -> 0 | E16: ='Guestroom Energy Management'!D14 -> 0 | F16: ='Guestroom Energy Management'!E14 -> 0 | G16: ='Guestroom Energy Management'!F14 -> 0 | H16: ='Guestroom Energy Management'!G14 -> 0 | I16: ='GREM Validation'!$B$10 -> 8.8e-05 | L16: =IFERROR(_xlfn.XLOOKUP(G16,DegSetback,'GREM Validation'!$C$2:$C$3),0) -> 0 | M16: 0000 | N16: =IF(K16="Yes",_xlfn.XLOOKUP(M16,'GREM Validation'!$AB$3:$AB$26,'GREM Validation'!$AC$3:$AC$26),0) -> 0 | O16: =IF(K16="Yes",_xlfn.XLOOKUP(M16,'GREM Validation'!$AB$3:$AB$26,'GREM Validation'!$AD$3:$AD$26),0) -> 0 | P16: 0 | Q16: 0 | R16: =IF(K16="Yes",'GREM Validation'!$K$1,0) -> 0 | S16: 0 | T16: 15
A17: 9 | B17: ='Guestroom Energy Management'!A15 -> 0 | C17: ='Guestroom Energy Management'!B15 -> 0 | D17: ='Guestroom Energy Management'!C15 -> 0 | E17: ='Guestroom Energy Management'!D15 -> 0 | F17: ='Guestroom Energy Management'!E15 -> 0 | G17: ='Guestroom Energy Management'!F15 -> 0 | H17: ='Guestroom Energy Management'!G15 -> 0 | I17: ='GREM Validation'!$B$10 -> 8.8e-05 | L17: =IFERROR(_xlfn.XLOOKUP(G17,DegSetback,'GREM Validation'!$C$2:$C$3),0) -> 0 | M17: 0000 | N17: =IF(K17="Yes",_xlfn.XLOOKUP(M17,'GREM Validation'!$AB$3:$AB$26,'GREM Validation'!$AC$3:$AC$26),0) -> 0 | O17: =IF(K17="Yes",_xlfn.XLOOKUP(M17,'GREM Validation'!$AB$3:$AB$26,'GREM Validation'!$AD$3:$AD$26),0) -> 0 | P17: 0 | Q17: 0 | R17: =IF(K17="Yes",'GREM Validation'!$K$1,0) -> 0 | S17: 0 | T17: 15
A18: 10 | B18: ='Guestroom Energy Management'!A16 -> 0 | C18: ='Guestroom Energy Management'!B16 -> 0 | D18: ='Guestroom Energy Management'!C16 -> 0 | E18: ='Guestroom Energy Management'!D16 -> 0 | F18: ='Guestroom Energy Management'!E16 -> 0 | G18: ='Guestroom Energy Management'!F16 -> 0 | H18: ='Guestroom Energy Management'!G16 -> 0 | I18: ='GREM Validation'!$B$10 -> 8.8e-05 | L18: =IFERROR(_xlfn.XLOOKUP(G18,DegSetback,'GREM Validation'!$C$2:$C$3),0) -> 0 | M18: 0000 | N18: =IF(K18="Yes",_xlfn.XLOOKUP(M18,'GREM Validation'!$AB$3:$AB$26,'GREM Validation'!$AC$3:$AC$26),0) -> 0 | O18: =IF(K18="Yes",_xlfn.XLOOKUP(M18,'GREM Validation'!$AB$3:$AB$26,'GREM Validation'!$AD$3:$AD$26),0) -> 0 | P18: 0 | Q18: 0 | R18: =IF(K18="Yes",'GREM Validation'!$K$1,0) -> 0 | S18: 0 | T18: 15

Sheet GREM Validation (hidden)
A1: Business Type | B1: Degree Setback | C1: Degree Setback | D1: ControlType | E1: HVAC Type | J1: Incentive | K1: 100 | L1: $/unit
A2: Hotel | B2: 5 degrees | C2: 5 | D2: HVAC Only | E2: PTAC | Q2: Lodging Type | R2: Degree Setback Design | S2: Controlled Equipment Scope | T2: HVAC Type | U2: Climate Zone | V2: TX CZ5 kWh/unit | W2: TX CZ2 kWh/unit | X2: Normalized Dallas to SC CDD | Y2: Normalized El Paso to SC CDD | Z2: Average kWh/unit (SC) | AB2: CONCANTENATED VALUES | AC2: kWh/unit | AD2: Winter kW/unit1
A3: Motel | B3: 10 degrees | C3: 10 | D3: HVAC and Lighting | E3: PTHP | H3: TX TRM - CZ2 - Dallas and CZ5 El Paso used - Values are per unit | Q3: Dorm | R3: 10 | S3: HVAC and Lighting | T3: PTAC | U3: 3 | V3: =O41 -> 450 | W3: =O40 -> 511 | X3: =W3*$J$44 -> 404.7372792 | Y3: =V3*$J$45 -> 412.3773508 | Z3: =AVERAGE(X3:Y3) -> 408.557315 | AB3: Dorm10HVAC and LightingPTAC | AC3: =Z3 -> 408.557315 | AD3: =AC3*$B$10 -> 0.03595304372
A4: Dorm | H4: Table 259. Lodging Occupancy Sensors—Motel per Room Energy and Peak Demand Savings | Q4: Dorm | R4: 10 | S4: HVAC and Lighting | T4: PTHP | U4: 3 | V4: =K41 -> 448 | W4: =K40 -> 505 | X4: =W4*$J$44 -> 399.9849823 | Y4: =V4*$J$45 -> 410.5445626 | Z4: =AVERAGE(X4:Y4) -> 405.2647724 | AB4: Dorm10HVAC and LightingPTHP | AC4: 405.2647724 | AD4: =AC4*$B$10 -> 0.03566329997
H5: Heat Pump | L5: Electric Resistance | Q5: Dorm | R5: 10 | S5: HVAC Only | T5: PTAC | U5: 3 | V5: =M41 -> 153 | W5: =M40 -> 304 | X5: 240.7830389 | Y5: 140.2082993 | Z5: 190.4956691 | AB5: Dorm10HVAC OnlyPTAC | AC5: 190.4956691 | AD5: 0.01676361888
H6: 5-degree setup/setback offset | Q6: Dorm | R6: 10 | S6: HVAC Only | T6: PTHP | U6: 3 | V6: =I41 -> 151 | W6: =I40 -> 293 | X6: 232.0704947 | Y6: 138.375511 | Z6: 185.2230029 | AB6: Dorm10HVAC OnlyPTHP | AC6: 185.2230029 | AD6: 0.01629962425
H7: HVAC only | J7: HVAC and lighting | L7: HVAC only | N7: HVAC and lighting | Q7: Dorm | R7: 5 | S7: HVAC and Lighting | T7: PTAC | U7: 3 | V7: =O36 -> 326 | W7: =O35 -> 428 | X7: 338.9971731 | Y7: 298.7444808 | Z7: 318.870827 | AB7: Dorm5HVAC and LightingPTAC | AC7: 318.870827 | AD7: 0.02806063277
H8: kW | I8: kWh | J8: kW | K8: kWh | L8: kW | M8: kWh | N8: kW | O8: kWh | Q8: Dorm | R8: 5 | S8: HVAC and Lighting | T8: PTHP | U8: 3 | V8: =K36 -> 327 | W8: =K35 -> 425 | X8: 336.6210247 | Y8: 299.6608749 | Z8: 318.1409498 | AB8: Dorm5HVAC and LightingPTHP | AC8: 318.1409498 | AD8: 0.02799640358
A9: Winter peak coincidence factor developed by ICF on 2/25/2025 | G9: Dallas CZ2 | H9: 0.076 | I9: 315 | J9: 0.091 | K9: 443 | L9: 0.076 | M9: 365 | N9: 0.091 | O9: 485 | Q9: Dorm | R9: 5 | S9: HVAC Only | T9: PTAC | U9: 3 | V9: =M36 -> 110 | W9: =M35 -> 223 | X9: 176.6270318 | Y9: 100.8033524 | Z9: 138.7151921 | AB9: Dorm5HVAC OnlyPTAC | AC9: 138.7151921 | AD9: 0.01220693691
A10: CFw = | B10: 8.8e-05 | C10: kW/kWh | G10: El Paso CZ5 | H10: 0.063 | I10: 251 | J10: 0.078 | K10: 379 | L10: 0.063 | M10: 283 | N10: 0.078 | O10: 406 | Q10: Dorm | R10: 5 | S10: HVAC Only | T10: PTHP | U10: 3 | V10: =I36 -> 110 | W10: =I35 -> 214 | X10: 169.4985866 | Y10: 100.8033524 | Z10: 135.1509695 | AB10: Dorm5HVAC OnlyPTHP | AC10: 135.1509695 | AD10: 0.01189328532
H11: 10-degree setup/setback offset | Q11: Hotel | R11: 10 | S11: HVAC and Lighting | T11: PTAC | U11: 3 | V11: =O28 -> 501 | W11: =O27 -> 676 | X11: 535.4254417 | Y11: 459.1134505 | Z11: 497.2694461 | AB11: Hotel10HVAC and LightingPTAC | AC11: 497.2694461 | AD11: 0.04375971126
H12: HVAC only | J12: HVAC and lighting | L12: HVAC only | N12: HVAC and lighting | Q12: Hotel | R12: 10 | S12: HVAC and Lighting | T12: PTHP | U12: 3 | V12: =K28 -> 479 | W12: =K27 -> 617 | X12: 488.694523 | Y12: 438.95278 | Z12: 463.8236515 | AB12: Hotel10HVAC and LightingPTHP | AC12: 463.8236515 | AD12: 0.04081648133
H13: kW | I13: kWh | J13: kW | K13: kWh | L13: kW | M13: kWh | N13: kW | O13: kWh | Q13: Hotel | R13: 10 | S13: HVAC Only | T13: PTAC | U13: 3 | V13: =M28 -> 338 | W13: =M27 -> 517 | X13: 409.489576 | Y13: 309.7412101 | Z13: 359.6153931 | AB13: Hotel10HVAC OnlyPTAC | AC13: 359.6153931 | AD13: 0.03164615459
G14: Dallas CZ2 | H14: 0.146 | I14: 559 | J14: 0.161 | K14: 686 | L14: 0.146 | M14: 640 | N14: 0.161 | O14: 761 | Q14: Hotel | R14: 10 | S14: HVAC Only | T14: PTHP | U14: 3 | V14: =I28 -> 312 | W14: =I27 -> 452 | X14: 358.0063604 | Y14: 285.9149632 | Z14: 321.9606618 | AB14: Hotel10HVAC OnlyPTHP | AC14: 321.9606618 | AD14: 0.02833253824
G15: El Paso CZ5 | H15: 0.118 | I15: 432 | J15: 0.133 | K15: 561 | L15: 0.118 | M15: 482 | N15: 0.133 | O15: 607 | Q15: Hotel | R15: 5 | S15: HVAC and Lighting | T15: PTAC | U15: 3 | V15: =O23 -> 380 | W15: =O22 -> 505 | X15: 399.9849823 | Y15: 348.2297629 | Z15: 374.1073726 | AB15: Hotel5HVAC and LightingPTAC | AC15: 374.1073726 | AD15: 0.03292144879
Q16: Hotel | R16: 5 | S16: HVAC and Lighting | T16: PTHP | U16: 3 | V16: =K23 -> 360 | W16: =K22 -> 452 | X16: 358.0063604 | Y16: 329.9018806 | Z16: 343.9541205 | AB16: Hotel5HVAC and LightingPTHP | AC16: 343.9541205 | AD16: 0.03026796261
H17: Table 260. Lodging Occupancy Sensors—Hotel per Room Energy and Peak Demand Savings | Q17: Hotel | R17: 5 | S17: HVAC Only | T17: PTAC | U17: 3 | V17: =M23 -> 196 | W17: =M22 -> 303 | X17: 239.9909894 | Y17: 179.6132461 | Z17: 209.8021178 | AB17: Hotel5HVAC OnlyPTAC | AC17: 209.8021178 | AD17: 0.01846258636
H18: Heat Pump | L18: Electric Resistance | Q18: Hotel | R18: 5 | S18: HVAC Only | T18: PTHP | U18: 3 | V18: =I23 -> 178 | W18: =I22 -> 258 | X18: 204.3487633 | Y18: 163.1181521 | Z18: 183.7334577 | AB18: Hotel5HVAC OnlyPTHP | AC18: 183.7334577 | AD18: 0.01616854427
H19: 5-degree setup/setback offset | Q19: Motel | R19: 10 | S19: HVAC and Lighting | T19: PTAC | U19: 3 | V19: =O15 -> 607 | W19: =O14 -> 761 | X19: 602.7496466 | Y19: 556.2512265 | Z19: 579.5004366 | AB19: Motel10HVAC and LightingPTAC | AC19: 579.5004366 | AD19: 0.05099603842
H20: HVAC only | J20: HVAC and lighting | L20: HVAC only | N20: HVAC and lighting | Q20: Motel | R20: 10 | S20: HVAC and Lighting | T20: PTHP | U20: 3 | V20: =K15 -> 561 | W20: =K14 -> 686 | X20: 543.3459364 | Y20: 514.0970973 | Z20: 528.7215168 | AB20: Motel10HVAC and LightingPTHP | AC20: 528.7215168 | AD20: 0.04652749348
H21: kW | I21: kWh | J21: kW | K21: kWh | L21: kW | M21: kWh | N21: kW | O21: kWh | Q21: Motel | R21: 10 | S21: HVAC Only | T21: PTAC | U21: 3 | V21: =M15 -> 482 | W21: =M14 -> 640 | X21: 506.9116608 | Y21: 441.7019624 | Z21: 474.3068116 | AB21: Motel10HVAC OnlyPTAC | AC21: 474.3068116 | AD21: 0.04173899942
G22: Dallas CZ2 | H22: 0.073 | I22: 258 | J22: 0.093 | K22: 452 | L22: 0.073 | M22: 303 | N22: 0.093 | O22: 505 | Q22: Motel | R22: 10 | S22: HVAC Only | T22: PTHP | U22: 3 | V22: =I15 -> 432 | W22: =I14 -> 559 | X22: 442.7556537 | Y22: 395.8822567 | Z22: 419.3189552 | AB22: Motel10HVAC OnlyPTHP | AC22: 419.3189552 | AD22: 0.03690006806
G23: El Paso CZ5 | H23: 0.056 | I23: 178 | J23: 0.075 | K23: 360 | L23: 0.056 | M23: 196 | N23: 0.075 | O23: 380 | Q23: Motel | R23: 5 | S23: HVAC and Lighting | T23: PTAC | U23: 3 | V23: =O10 -> 406 | W23: =O9 -> 485 | X23: 384.1439929 | Y23: 372.0560098 | Z23: 378.1000014 | AB23: Motel5HVAC and LightingPTAC | AC23: 378.1000014 | AD23: 0.03327280012
H24: 10-degree setup/setback offset | Q24: Motel | R24: 5 | S24: HVAC and Lighting | T24: PTHP | U24: 3 | V24: =K10 -> 379 | W24: =K9 -> 443 | X24: 350.8779152 | Y24: 347.3133688 | Z24: 349.095642 | AB24: Motel5HVAC and LightingPTHP | AC24: 349.095642 | AD24: 0.03072041649
H25: HVAC only | J25: HVAC and lighting | L25: HVAC only | N25: HVAC and lighting | Q25: Motel | R25: 5 | S25: HVAC Only | T25: PTAC | U25: 3 | V25: =M10 -> 283 | W25: =M9 -> 365 | X25: 289.0980565 | Y25: 259.3395339 | Z25: 274.2187952 | AB25: Motel5HVAC OnlyPTAC | AC25: 274.2187952 | AD25: 0.02413125398
H26: kW | I26: kWh | J26: kW | K26: kWh | L26: kW | M26: kWh | N26: kW | O26: kWh | Q26: Motel | R26: 5 | S26: HVAC Only | T26: PTHP | U26: 3 | V26: =I10 -> 251 | W26: =I9 -> 315 | X26: 249.495583 | Y26: 230.0149223 | Z26: 239.7552527 | AB26: Motel5HVAC OnlyPTHP | AC26: 239.7552527 | AD26: 0.02109846224
G27: Dallas CZ2 | H27: 0.134 | I27: 452 | J27: 0.154 | K27: 617 | L27: 0.134 | M27: 517 | N27: 0.154 | O27: 676 | AB27: 1: Winter peak demand developed by ICF
G28: El Paso CZ5 | H28: 0.106 | I28: 312 | J28: 0.126 | K28: 479 | L28: 0.106 | M28: 338 | N28: 0.126 | O28: 501
H30: Table 261. Lodging Occupancy Sensors—Dormitory per Room Energy and Peak Demand Savings
H31: Heat Pump | L31: Electric Resistance
H32: 5-degree setup/setback offset
H33: HVAC only | J33: HVAC and lighting | L33: HVAC only | N33: HVAC and lighting
H34: kW | I34: kWh | J34: kW | K34: kWh | L34: kW | M34: kWh | N34: kW | O34: kWh
G35: Dallas CZ2 | H35: 0.048 | I35: 214 | J35: 0.076 | K35: 425 | L35: 0.048 | M35: 223 | N35: 0.076 | O35: 428
G36: El Paso CZ5 | H36: 0.031 | I36: 110 | J36: 0.059 | K36: 327 | L36: 0.031 | M36: 110 | N36: 0.059 | O36: 326
H37: 10-degree setup/setback offset
H38: HVAC only | J38: HVAC and lighting | L38: HVAC only | N38: HVAC and lighting
H39: kW | I39: kWh | J39: kW | K39: kWh | L39: kW | M39: kWh | N39: kW | O39: kWh
G40: Dallas CZ2 | H40: 0.078 | I40: 293 | J40: 0.105 | K40: 505 | L40: 0.078 | M40: 304 | N40: 0.105 | O40: 511
G41: El Paso CZ5 | H41: 0.045 | I41: 151 | J41: 0.06 | K41: 448 | L41: 0.045 | M41: 153 | N41: 0.06 | O41: 450
I43: CDD65 | J43: Ratio of Avg. SC CDD/TX CDD
A44: Assuming: | B44: sqft per hotel room | C44: sqft per motel room | H44: Dallas | I44: 2830 | J44: =I48/I44 -> 0.79204947
B45: 420 | C45: 350 | H45: El Paso | I45: 2446 | J45: =I48/I45 -> 0.9163941128
H46: Charleston | I46: 2328
H47: Columbia | I47: 2155
H48: Avg. SC | I48: =AVERAGE(I46:I47) -> 2241.5

Sheet Advanced RTU Controls
A1: Fill in Blue Cells Only!
A3: ADVANCED RTU CONTROLS (ARC) TECHNICAL REQUIREMENTS AND INCENTIVES
A4: To qualify for an incentive: ▪ Advanced control systems must be installed on existing packaged rooftop units serving constant volume HVAC systems. ▪ Existing rooftop units must be air-cooled and utilize direct expansion (DX) cooling technology. ▪ Existing rooftop units must have a functional economizer. ▪ Existing rooftop units must be 3 nominal tons or higher to qualify. ▪ The following are not eligible: ▪ Advanced control systems installed on new packaged rooftop units ▪ Advanced control systems installed on existing variable-air-volume (VAV) distribution systems ▪ Advanced controls installed on split DX cooling systems (the condenser and compressor are packaged separately from the evaporator) ▪ Packaged equipment with single-phase supply fans ▪ Qualifying advanced rooftop unit controls must meet one of the three configurations below: ▪ 1 - Demand Controlled Ventilation (DCV) Only ▪ 2 - DCV and 2-speed fan control ▪ 3 - DCV and multi-speed fan control Workbook Instructions: ▪ All blue cells must be filled in to calculate qualification. ▪ For the equipment name in Column F, enter the name of the unit(s) or area(s) served if equipment doesn't have a name/tag.
A5: Advanced Rooftop Unit Controls
A6: Business Type | B6: ARC Manufacturer | C6: ARC Model | D6: Control Methodology | E6: Heating Fuel | F6: Controlled HVAC Equipment Name(s) | G6: Heating Capacity (BTU/hr) | H6: Cooling Capacity (BTU/hr) | I6: Quantity of units | J6: Incentive Rate | K6: Qualifies | L6: Total Incentive | P6: Incentive Per unit | Q6: kWh | R6: Winter kW | S6: Total Incentive
J7: ="$"&'ARC Validation'!$J$13&"/unit" -> $350/unit | K7: ='ARC Calculations'!U9 ->  | L7: =S7 -> 0 | P7: =IFERROR(S7/I7,0) -> 0 | Q7: ='ARC Calculations'!W9 -> 0 | R7: ='ARC Calculations'!X9 -> 0 | S7: ='ARC Calculations'!Y9 -> 0
J8: ="$"&'ARC Validation'!$J$13&"/unit" -> $350/unit | K8: ='ARC Calculations'!U10 ->  | L8: =S8 -> 0 | P8: =IFERROR(S8/I8,0) -> 0 | Q8: ='ARC Calculations'!W10 -> 0 | R8: ='ARC Calculations'!X10 -> 0 | S8: ='ARC Calculations'!Y10 -> 0
J9: ="$"&'ARC Validation'!$J$13&"/unit" -> $350/unit | K9: ='ARC Calculations'!U11 ->  | L9: 0 | P9: 0 | Q9: ='ARC Calculations'!W11 -> 0 | R9: ='ARC Calculations'!X11 -> 0 | S9: ='ARC Calculations'!Y11 -> 0
J10: ="$"&'ARC Validation'!$J$13&"/unit" -> $350/unit | K10: ='ARC Calculations'!U12 ->  | L10: 0 | P10: 0 | Q10: ='ARC Calculations'!W12 -> 0 | R10: ='ARC Calculations'!X12 -> 0 | S10: ='ARC Calculations'!Y12 -> 0
J11: ="$"&'ARC Validation'!$J$13&"/unit" -> $350/unit | K11: ='ARC Calculations'!U13 ->  | L11: 0 | P11: 0 | Q11: ='ARC Calculations'!W13 -> 0 | R11: ='ARC Calculations'!X13 -> 0 | S11: ='ARC Calculations'!Y13 -> 0
J12: ="$"&'ARC Validation'!$J$13&"/unit" -> $350/unit | K12: ='ARC Calculations'!U14 ->  | L12: 0 | P12: 0 | Q12: ='ARC Calculations'!W14 -> 0 | R12: ='ARC Calculations'!X14 -> 0 | S12: ='ARC Calculations'!Y14 -> 0
J13: ="$"&'ARC Validation'!$J$13&"/unit" -> $350/unit | K13: ='ARC Calculations'!U15 ->  | L13: 0 | P13: 0 | Q13: ='ARC Calculations'!W15 -> 0 | R13: ='ARC Calculations'!X15 -> 0 | S13: ='ARC Calculations'!Y15 -> 0
J14: ="$"&'ARC Validation'!$J$13&"/unit" -> $350/unit | K14: ='ARC Calculations'!U16 ->  | L14: 0 | P14: 0 | Q14: ='ARC Calculations'!W16 -> 0 | R14: ='ARC Calculations'!X16 -> 0 | S14: ='ARC Calculations'!Y16 -> 0
J15: ="$"&'ARC Validation'!$J$13&"/unit" -> $350/unit | K15: ='ARC Calculations'!U17 ->  | L15: 0 | P15: 0 | Q15: ='ARC Calculations'!W17 -> 0 | R15: ='ARC Calculations'!X17 -> 0 | S15: ='ARC Calculations'!Y17 -> 0
J16: ="$"&'ARC Validation'!$J$13&"/unit" -> $350/unit | K16: ='ARC Calculations'!U18 ->  | L16: 0 | P16: 0 | Q16: ='ARC Calculations'!W18 -> 0 | R16: ='ARC Calculations'!X18 -> 0 | S16: ='ARC Calculations'!Y18 -> 0
J17: ="$"&'ARC Validation'!$J$13&"/unit" -> $350/unit | K17: ='ARC Calculations'!U19 ->  | L17: 0 | P17: 0 | Q17: ='ARC Calculations'!W19 -> 0 | R17: ='ARC Calculations'!X19 -> 0 | S17: ='ARC Calculations'!Y19 -> 0
J18: ="$"&'ARC Validation'!$J$13&"/unit" -> $350/unit | K18: ='ARC Calculations'!U20 ->  | L18: 0 | P18: 0 | Q18: ='ARC Calculations'!W20 -> 0 | R18: ='ARC Calculations'!X20 -> 0 | S18: ='ARC Calculations'!Y20 -> 0
J19: ="$"&'ARC Validation'!$J$13&"/unit" -> $350/unit | K19: ='ARC Calculations'!U21 ->  | L19: 0 | P19: 0 | Q19: ='ARC Calculations'!W21 -> 0 | R19: ='ARC Calculations'!X21 -> 0 | S19: ='ARC Calculations'!Y21 -> 0
J20: ="$"&'ARC Validation'!$J$13&"/unit" -> $350/unit | K20: ='ARC Calculations'!U22 ->  | L20: 0 | P20: 0 | Q20: ='ARC Calculations'!W22 -> 0 | R20: ='ARC Calculations'!X22 -> 0 | S20: ='ARC Calculations'!Y22 -> 0
J21: ="$"&'ARC Validation'!$J$13&"/unit" -> $350/unit | K21: ='ARC Calculations'!U23 ->  | L21: 0 | P21: 0 | Q21: ='ARC Calculations'!W23 -> 0 | R21: ='ARC Calculations'!X23 -> 0 | S21: ='ARC Calculations'!Y23 -> 0
J22: ="$"&'ARC Validation'!$J$13&"/unit" -> $350/unit | K22: ='ARC Calculations'!U24 ->  | L22: 0 | P22: 0 | Q22: ='ARC Calculations'!W24 -> 0 | R22: ='ARC Calculations'!X24 -> 0 | S22: ='ARC Calculations'!Y24 -> 0
J23: ="$"&'ARC Validation'!$J$13&"/unit" -> $350/unit | K23: ='ARC Calculations'!U25 ->  | L23: 0 | P23: 0 | Q23: ='ARC Calculations'!W25 -> 0 | R23: ='ARC Calculations'!X25 -> 0 | S23: ='ARC Calculations'!Y25 -> 0
J24: ="$"&'ARC Validation'!$J$13&"/unit" -> $350/unit | K24: ='ARC Calculations'!U26 ->  | L24: 0 | P24: 0 | Q24: ='ARC Calculations'!W26 -> 0 | R24: ='ARC Calculations'!X26 -> 0 | S24: ='ARC Calculations'!Y26 -> 0
J25: ="$"&'ARC Validation'!$J$13&"/unit" -> $350/unit | K25: ='ARC Calculations'!U27 ->  | L25: 0 | P25: 0 | Q25: ='ARC Calculations'!W27 -> 0 | R25: ='ARC Calculations'!X27 -> 0 | S25: ='ARC Calculations'!Y27 -> 0
J26: ="$"&'ARC Validation'!$J$13&"/unit" -> $350/unit | K26: ='ARC Calculations'!U28 ->  | L26: 0 | P26: 0 | Q26: ='ARC Calculations'!W28 -> 0 | R26: ='ARC Calculations'!X28 -> 0 | S26: ='ARC Calculations'!Y28 -> 0
A27: Total Requested Incentive | L27: =SUM(L7:L26) -> 0
J28: Error Messages:
I29: 1 | J29: =_xlfn.XLOOKUP(I29,'ARC Validation'!$A$53:$A$55,'ARC Validation'!$C$53:$C$55) -> No. Please fill in all blue cells. | L29: ="Version " & 'Version Tracking'!C4 -> Version 15.2
I30: 2 | J30: =_xlfn.XLOOKUP(I30,'ARC Validation'!$A$53:$A$55,'ARC Validation'!$C$53:$C$55) -> No. Please fill in zip code on Project Information tab

Sheet ARC Calculations (hidden)
K6: Zip Code | R6: Error Message
K7: ='Project Information'!N6 -> 0 | R7: 1 | S7: 2 | T7: 0 | W7: Totals
A8: Business Type | B8: ARC Manufacturer | C8: ARC Model | D8: Control Methodology | E8: Heating Fuel | F8: Controlled HVAC Equipment Name(s) | G8: Heating Capacity (BTU/hr) | H8: Cooling Capacity (BTU/hr) | I8: Quantity | J8: Control Method | K8: City | L8: Heating Type | M8: ER Heating kWh/ton | N8: HP Heating kWh/ton | O8: Heating kWh savings/ton | P8: Cooling kWh savings/ton | Q8: Winter Demand kW/kWh | R8: All blue cells filled in? | S8: Zip Code filled in? | T8: Result | U8: Qualifies | V8: Unit Incentive | W8: Total kWh Savings | X8: Total Winter kW Savings | Y8: Total Incentive | Z8: Total kWh Savings per unit | AA8: Total Winter kW Savings per unit | AC8: $/kWh
A9: ='Advanced RTU Controls'!A7 -> 0 | B9: ='Advanced RTU Controls'!B7 -> 0 | C9: ='Advanced RTU Controls'!C7 -> 0 | D9: ='Advanced RTU Controls'!D7 -> 0 | E9: ='Advanced RTU Controls'!E7 -> 0 | F9: ='Advanced RTU Controls'!F7 -> 0 | G9: ='Advanced RTU Controls'!G7 -> 0 | H9: ='Advanced RTU Controls'!H7 -> 0 | I9: ='Advanced RTU Controls'!I7 -> 0 | J9: =_xlfn.XLOOKUP(D9,ControlMethod,'ARC Validation'!$M$2:$M$4) ->  | K9: =IFERROR(_xlfn.XLOOKUP($K$7,Validation!$B$116:$B$515,Validation!$D$116:$D$515),0) -> 0 | L9: =_xlfn.XLOOKUP(E9,HtgType,'ARC Validation'!$P$2:$P$4) ->  | M9: =IF(OR(E9=0,E9="Other"),0,IF(K9="Charleston",INDEX('ARC Validation'!$B$20:$D$32,MATCH(A9,ARCBusType,0),MATCH(J9,'ARC Validation'!$B$2:$D$2,0)),IF(K9="Columbia",INDEX('ARC Validation'!$E$20:$G$32,MATCH(A9,ARCBusType,0),MATCH(J9,'ARC Validation'!$B$2:$D$2,0))))) -> 0 | N9: =IF(OR(E9=0,E9="Other"),0,IF(K9="Charleston",INDEX('ARC Validation'!$B$3:$D$15,MATCH(A9,ARCBusType,0),MATCH(J9,'ARC Validation'!$B$2:$D$2,0)),IF(K9="Columbia",INDEX('ARC Validation'!$E$3:$G$15,MATCH(A9,ARCBusType,0),MATCH(J9,'ARC Validation'!$B$2:$D$2,0))))) -> 0 | O9: =IF(L9=1,M9,IF(L9=2,N9,0)) ->  | P9: =IF(K9="Charleston",INDEX('ARC Validation'!$B$37:$D$49,MATCH(A9,ARCBusType,0),MATCH(J9,'ARC Validation'!$B$2:$D$2,0)),IF(K9="Columbia",INDEX('ARC Validation'!$E$37:$G$49,MATCH(A9,ARCBusType,0),MATCH(J9,'ARC Validation'!$B$2:$D$2,0)))) -> FALSE | Q9: =_xlfn.XLOOKUP(J9,'ARC Validation'!$J$8:$J$10,'ARC Validation'!$I$8:$I$10) ->  | R9: =IF(AND(A9<>0,B9<>0,C9<>0,D9<>0,E9<>0,F9<>0,G9<>0,H9<>0,I9<>0),"Yes","No") -> No | S9: =IF(OR(K9="Charleston",K9="Columbia"),"Yes","No") -> No | T9: =IF(R9="Yes",IF(S9="Yes",0,$S$7),$R$7) -> 1 | U9: =IF(SUM(A9:I9)=0,"",_xlfn.XLOOKUP(T9,'ARC Validation'!$A$53:$A$55,'ARC Validation'!$B$53:$B$55)) ->  | V9: =IF(U9="Yes",'ARC Validation'!$J$13,0) -> 0 | W9: =IF($U9="Yes",(O9*G9/12000+P9*H9/12000)*I9,0) -> 0 | X9: =IF(U9="Yes",W9*Q9,0) -> 0 | Y9: =IF(U9="Yes",I9*V9,0) -> 0 | Z9: =W9/I9 ->  | AA9: =X9/I9 ->  | AC9: =Y9/W9 -> 
A10: ='Advanced RTU Controls'!A8 -> 0 | B10: ='Advanced RTU Controls'!B8 -> 0 | C10: ='Advanced RTU Controls'!C8 -> 0 | D10: ='Advanced RTU Controls'!D8 -> 0 | E10: ='Advanced RTU Controls'!E8 -> 0 | F10: ='Advanced RTU Controls'!F8 -> 0 | G10: ='Advanced RTU Controls'!G8 -> 0 | H10: ='Advanced RTU Controls'!H8 -> 0 | I10: ='Advanced RTU Controls'!I8 -> 0 | J10: =_xlfn.XLOOKUP(D10,ControlMethod,'ARC Validation'!$M$2:$M$4) ->  | K10: =IFERROR(_xlfn.XLOOKUP($K$7,Validation!$B$116:$B$515,Validation!$D$116:$D$515),0) -> 0 | L10: =_xlfn.XLOOKUP(E10,HtgType,'ARC Validation'!$P$2:$P$4) ->  | M10: =IF(OR(E10=0,E10="Other"),0,IF(K10="Charleston",INDEX('ARC Validation'!$B$20:$D$32,MATCH(A10,ARCBusType,0),MATCH(J10,'ARC Validation'!$B$2:$D$2,0)),IF(K10="Columbia",INDEX('ARC Validation'!$E$20:$G$32,MATCH(A10,ARCBusType,0),MATCH(J10,'ARC Validation'!$B$2:$D$2,0))))) -> 0 | N10: =IF(OR(E10=0,E10="Other"),0,IF(K10="Charleston",INDEX('ARC Validation'!$B$3:$D$15,MATCH(A10,ARCBusType,0),MATCH(J10,'ARC Validation'!$B$2:$D$2,0)),IF(K10="Columbia",INDEX('ARC Validation'!$E$3:$G$15,MATCH(A10,ARCBusType,0),MATCH(J10,'ARC Validation'!$B$2:$D$2,0))))) -> 0 | O10: =IF(L10=1,M10,IF(L10=2,N10,0)) ->  | P10: =IF(K10="Charleston",INDEX('ARC Validation'!$B$37:$D$49,MATCH(A10,ARCBusType,0),MATCH(J10,'ARC Validation'!$B$2:$D$2,0)),IF(K10="Columbia",INDEX('ARC Validation'!$E$37:$G$49,MATCH(A10,ARCBusType,0),MATCH(J10,'ARC Validation'!$B$2:$D$2,0)))) -> FALSE | Q10: =_xlfn.XLOOKUP(J10,'ARC Validation'!$J$8:$J$10,'ARC Validation'!$I$8:$I$10) ->  | R10: No | S10: No | T10: =IF(R10="Yes",IF(S10="Yes",0,$S$7),$R$7) -> 1 | U10: =IF(SUM(A10:I10)=0,"",_xlfn.XLOOKUP(T10,'ARC Validation'!$A$53:$A$55,'ARC Validation'!$B$53:$B$55)) ->  | V10: =IF(U10="Yes",'ARC Validation'!$J$13,0) -> 0 | W10: 0 | X10: 0 | Y10: 0 | Z10: =W10/I10 ->  | AA10: =X10/I10 ->  | AC10: =Y10/W10 -> 
A11: ='Advanced RTU Controls'!A9 -> 0 | B11: ='Advanced RTU Controls'!B9 -> 0 | C11: ='Advanced RTU Controls'!C9 -> 0 | D11: ='Advanced RTU Controls'!D9 -> 0 | E11: ='Advanced RTU Controls'!E9 -> 0 | F11: ='Advanced RTU Controls'!F9 -> 0 | G11: ='Advanced RTU Controls'!G9 -> 0 | H11: ='Advanced RTU Controls'!H9 -> 0 | I11: ='Advanced RTU Controls'!I9 -> 0 | J11: =_xlfn.XLOOKUP(D11,ControlMethod,'ARC Validation'!$M$2:$M$4) ->  | K11: =IFERROR(_xlfn.XLOOKUP($K$7,Validation!$B$116:$B$515,Validation!$D$116:$D$515),0) -> 0 | L11: =_xlfn.XLOOKUP(E11,HtgType,'ARC Validation'!$P$2:$P$4) ->  | M11: =IF(OR(E11=0,E11="Other"),0,IF(K11="Charleston",INDEX('ARC Validation'!$B$20:$D$32,MATCH(A11,ARCBusType,0),MATCH(J11,'ARC Validation'!$B$2:$D$2,0)),IF(K11="Columbia",INDEX('ARC Validation'!$E$20:$G$32,MATCH(A11,ARCBusType,0),MATCH(J11,'ARC Validation'!$B$2:$D$2,0))))) -> 0 | N11: =IF(OR(E11=0,E11="Other"),0,IF(K11="Charleston",INDEX('ARC Validation'!$B$3:$D$15,MATCH(A11,ARCBusType,0),MATCH(J11,'ARC Validation'!$B$2:$D$2,0)),IF(K11="Columbia",INDEX('ARC Validation'!$E$3:$G$15,MATCH(A11,ARCBusType,0),MATCH(J11,'ARC Validation'!$B$2:$D$2,0))))) -> 0 | P11: =IF(K11="Charleston",INDEX('ARC Validation'!$B$37:$D$49,MATCH(A11,ARCBusType,0),MATCH(J11,'ARC Validation'!$B$2:$D$2,0)),IF(K11="Columbia",INDEX('ARC Validation'!$E$37:$G$49,MATCH(A11,ARCBusType,0),MATCH(J11,'ARC Validation'!$B$2:$D$2,0)))) -> FALSE | Q11: =_xlfn.XLOOKUP(J11,'ARC Validation'!$J$8:$J$10,'ARC Validation'!$I$8:$I$10) ->  | R11: No | S11: No | T11: 1 | U11: =IF(SUM(A11:I11)=0,"",_xlfn.XLOOKUP(T11,'ARC Validation'!$A$53:$A$55,'ARC Validation'!$B$53:$B$55)) ->  | V11: =IF(U11="Yes",'ARC Validation'!$J$13,0) -> 0 | W11: 0 | X11: 0 | Y11: 0
A12: ='Advanced RTU Controls'!A10 -> 0 | B12: ='Advanced RTU Controls'!B10 -> 0 | C12: ='Advanced RTU Controls'!C10 -> 0 | D12: ='Advanced RTU Controls'!D10 -> 0 | E12: ='Advanced RTU Controls'!E10 -> 0 | F12: ='Advanced RTU Controls'!F10 -> 0 | G12: ='Advanced RTU Controls'!G10 -> 0 | H12: ='Advanced RTU Controls'!H10 -> 0 | I12: ='Advanced RTU Controls'!I10 -> 0 | J12: =_xlfn.XLOOKUP(D12,ControlMethod,'ARC Validation'!$M$2:$M$4) ->  | K12: =IFERROR(_xlfn.XLOOKUP($K$7,Validation!$B$116:$B$515,Validation!$D$116:$D$515),0) -> 0 | L12: =_xlfn.XLOOKUP(E12,HtgType,'ARC Validation'!$P$2:$P$4) ->  | M12: =IF(OR(E12=0,E12="Other"),0,IF(K12="Charleston",INDEX('ARC Validation'!$B$20:$D$32,MATCH(A12,ARCBusType,0),MATCH(J12,'ARC Validation'!$B$2:$D$2,0)),IF(K12="Columbia",INDEX('ARC Validation'!$E$20:$G$32,MATCH(A12,ARCBusType,0),MATCH(J12,'ARC Validation'!$B$2:$D$2,0))))) -> 0 | N12: =IF(OR(E12=0,E12="Other"),0,IF(K12="Charleston",INDEX('ARC Validation'!$B$3:$D$15,MATCH(A12,ARCBusType,0),MATCH(J12,'ARC Validation'!$B$2:$D$2,0)),IF(K12="Columbia",INDEX('ARC Validation'!$E$3:$G$15,MATCH(A12,ARCBusType,0),MATCH(J12,'ARC Validation'!$B$2:$D$2,0))))) -> 0 | P12: =IF(K12="Charleston",INDEX('ARC Validation'!$B$37:$D$49,MATCH(A12,ARCBusType,0),MATCH(J12,'ARC Validation'!$B$2:$D$2,0)),IF(K12="Columbia",INDEX('ARC Validation'!$E$37:$G$49,MATCH(A12,ARCBusType,0),MATCH(J12,'ARC Validation'!$B$2:$D$2,0)))) -> FALSE | Q12: =_xlfn.XLOOKUP(J12,'ARC Validation'!$J$8:$J$10,'ARC Validation'!$I$8:$I$10) ->  | R12: No | S12: No | T12: 1 | U12: =IF(SUM(A12:I12)=0,"",_xlfn.XLOOKUP(T12,'ARC Validation'!$A$53:$A$55,'ARC Validation'!$B$53:$B$55)) ->  | V12: =IF(U12="Yes",'ARC Validation'!$J$13,0) -> 0 | W12: 0 | X12: 0 | Y12: 0
A13: ='Advanced RTU Controls'!A11 -> 0 | B13: ='Advanced RTU Controls'!B11 -> 0 | C13: ='Advanced RTU Controls'!C11 -> 0 | D13: ='Advanced RTU Controls'!D11 -> 0 | E13: ='Advanced RTU Controls'!E11 -> 0 | F13: ='Advanced RTU Controls'!F11 -> 0 | G13: ='Advanced RTU Controls'!G11 -> 0 | H13: ='Advanced RTU Controls'!H11 -> 0 | I13: ='Advanced RTU Controls'!I11 -> 0 | J13: =_xlfn.XLOOKUP(D13,ControlMethod,'ARC Validation'!$M$2:$M$4) ->  | K13: =IFERROR(_xlfn.XLOOKUP($K$7,Validation!$B$116:$B$515,Validation!$D$116:$D$515),0) -> 0 | L13: =_xlfn.XLOOKUP(E13,HtgType,'ARC Validation'!$P$2:$P$4) ->  | M13: =IF(OR(E13=0,E13="Other"),0,IF(K13="Charleston",INDEX('ARC Validation'!$B$20:$D$32,MATCH(A13,ARCBusType,0),MATCH(J13,'ARC Validation'!$B$2:$D$2,0)),IF(K13="Columbia",INDEX('ARC Validation'!$E$20:$G$32,MATCH(A13,ARCBusType,0),MATCH(J13,'ARC Validation'!$B$2:$D$2,0))))) -> 0 | N13: =IF(OR(E13=0,E13="Other"),0,IF(K13="Charleston",INDEX('ARC Validation'!$B$3:$D$15,MATCH(A13,ARCBusType,0),MATCH(J13,'ARC Validation'!$B$2:$D$2,0)),IF(K13="Columbia",INDEX('ARC Validation'!$E$3:$G$15,MATCH(A13,ARCBusType,0),MATCH(J13,'ARC Validation'!$B$2:$D$2,0))))) -> 0 | P13: =IF(K13="Charleston",INDEX('ARC Validation'!$B$37:$D$49,MATCH(A13,ARCBusType,0),MATCH(J13,'ARC Validation'!$B$2:$D$2,0)),IF(K13="Columbia",INDEX('ARC Validation'!$E$37:$G$49,MATCH(A13,ARCBusType,0),MATCH(J13,'ARC Validation'!$B$2:$D$2,0)))) -> FALSE | Q13: =_xlfn.XLOOKUP(J13,'ARC Validation'!$J$8:$J$10,'ARC Validation'!$I$8:$I$10) ->  | R13: No | S13: No | T13: 1 | U13: =IF(SUM(A13:I13)=0,"",_xlfn.XLOOKUP(T13,'ARC Validation'!$A$53:$A$55,'ARC Validation'!$B$53:$B$55)) ->  | V13: =IF(U13="Yes",'ARC Validation'!$J$13,0) -> 0 | W13: 0 | X13: 0 | Y13: 0
A14: ='Advanced RTU Controls'!A12 -> 0 | B14: ='Advanced RTU Controls'!B12 -> 0 | C14: ='Advanced RTU Controls'!C12 -> 0 | D14: ='Advanced RTU Controls'!D12 -> 0 | E14: ='Advanced RTU Controls'!E12 -> 0 | F14: ='Advanced RTU Controls'!F12 -> 0 | G14: ='Advanced RTU Controls'!G12 -> 0 | H14: ='Advanced RTU Controls'!H12 -> 0 | I14: ='Advanced RTU Controls'!I12 -> 0 | J14: =_xlfn.XLOOKUP(D14,ControlMethod,'ARC Validation'!$M$2:$M$4) ->  | K14: =IFERROR(_xlfn.XLOOKUP($K$7,Validation!$B$116:$B$515,Validation!$D$116:$D$515),0) -> 0 | L14: =_xlfn.XLOOKUP(E14,HtgType,'ARC Validation'!$P$2:$P$4) ->  | M14: =IF(OR(E14=0,E14="Other"),0,IF(K14="Charleston",INDEX('ARC Validation'!$B$20:$D$32,MATCH(A14,ARCBusType,0),MATCH(J14,'ARC Validation'!$B$2:$D$2,0)),IF(K14="Columbia",INDEX('ARC Validation'!$E$20:$G$32,MATCH(A14,ARCBusType,0),MATCH(J14,'ARC Validation'!$B$2:$D$2,0))))) -> 0 | N14: =IF(OR(E14=0,E14="Other"),0,IF(K14="Charleston",INDEX('ARC Validation'!$B$3:$D$15,MATCH(A14,ARCBusType,0),MATCH(J14,'ARC Validation'!$B$2:$D$2,0)),IF(K14="Columbia",INDEX('ARC Validation'!$E$3:$G$15,MATCH(A14,ARCBusType,0),MATCH(J14,'ARC Validation'!$B$2:$D$2,0))))) -> 0 | P14: =IF(K14="Charleston",INDEX('ARC Validation'!$B$37:$D$49,MATCH(A14,ARCBusType,0),MATCH(J14,'ARC Validation'!$B$2:$D$2,0)),IF(K14="Columbia",INDEX('ARC Validation'!$E$37:$G$49,MATCH(A14,ARCBusType,0),MATCH(J14,'ARC Validation'!$B$2:$D$2,0)))) -> FALSE | Q14: =_xlfn.XLOOKUP(J14,'ARC Validation'!$J$8:$J$10,'ARC Validation'!$I$8:$I$10) ->  | R14: No | S14: No | T14: 1 | U14: =IF(SUM(A14:I14)=0,"",_xlfn.XLOOKUP(T14,'ARC Validation'!$A$53:$A$55,'ARC Validation'!$B$53:$B$55)) ->  | V14: =IF(U14="Yes",'ARC Validation'!$J$13,0) -> 0 | W14: 0 | X14: 0 | Y14: 0
A15: ='Advanced RTU Controls'!A13 -> 0 | B15: ='Advanced RTU Controls'!B13 -> 0 | C15: ='Advanced RTU Controls'!C13 -> 0 | D15: ='Advanced RTU Controls'!D13 -> 0 | E15: ='Advanced RTU Controls'!E13 -> 0 | F15: ='Advanced RTU Controls'!F13 -> 0 | G15: ='Advanced RTU Controls'!G13 -> 0 | H15: ='Advanced RTU Controls'!H13 -> 0 | I15: ='Advanced RTU Controls'!I13 -> 0 | J15: =_xlfn.XLOOKUP(D15,ControlMethod,'ARC Validation'!$M$2:$M$4) ->  | K15: =IFERROR(_xlfn.XLOOKUP($K$7,Validation!$B$116:$B$515,Validation!$D$116:$D$515),0) -> 0 | L15: =_xlfn.XLOOKUP(E15,HtgType,'ARC Validation'!$P$2:$P$4) ->  | M15: =IF(OR(E15=0,E15="Other"),0,IF(K15="Charleston",INDEX('ARC Validation'!$B$20:$D$32,MATCH(A15,ARCBusType,0),MATCH(J15,'ARC Validation'!$B$2:$D$2,0)),IF(K15="Columbia",INDEX('ARC Validation'!$E$20:$G$32,MATCH(A15,ARCBusType,0),MATCH(J15,'ARC Validation'!$B$2:$D$2,0))))) -> 0 | N15: =IF(OR(E15=0,E15="Other"),0,IF(K15="Charleston",INDEX('ARC Validation'!$B$3:$D$15,MATCH(A15,ARCBusType,0),MATCH(J15,'ARC Validation'!$B$2:$D$2,0)),IF(K15="Columbia",INDEX('ARC Validation'!$E$3:$G$15,MATCH(A15,ARCBusType,0),MATCH(J15,'ARC Validation'!$B$2:$D$2,0))))) -> 0 | P15: =IF(K15="Charleston",INDEX('ARC Validation'!$B$37:$D$49,MATCH(A15,ARCBusType,0),MATCH(J15,'ARC Validation'!$B$2:$D$2,0)),IF(K15="Columbia",INDEX('ARC Validation'!$E$37:$G$49,MATCH(A15,ARCBusType,0),MATCH(J15,'ARC Validation'!$B$2:$D$2,0)))) -> FALSE | Q15: =_xlfn.XLOOKUP(J15,'ARC Validation'!$J$8:$J$10,'ARC Validation'!$I$8:$I$10) ->  | R15: No | S15: No | T15: 1 | U15: =IF(SUM(A15:I15)=0,"",_xlfn.XLOOKUP(T15,'ARC Validation'!$A$53:$A$55,'ARC Validation'!$B$53:$B$55)) ->  | V15: =IF(U15="Yes",'ARC Validation'!$J$13,0) -> 0 | W15: 0 | X15: 0 | Y15: 0
A16: ='Advanced RTU Controls'!A14 -> 0 | B16: ='Advanced RTU Controls'!B14 -> 0 | C16: ='Advanced RTU Controls'!C14 -> 0 | D16: ='Advanced RTU Controls'!D14 -> 0 | E16: ='Advanced RTU Controls'!E14 -> 0 | F16: ='Advanced RTU Controls'!F14 -> 0 | G16: ='Advanced RTU Controls'!G14 -> 0 | H16: ='Advanced RTU Controls'!H14 -> 0 | I16: ='Advanced RTU Controls'!I14 -> 0 | J16: =_xlfn.XLOOKUP(D16,ControlMethod,'ARC Validation'!$M$2:$M$4) ->  | K16: =IFERROR(_xlfn.XLOOKUP($K$7,Validation!$B$116:$B$515,Validation!$D$116:$D$515),0) -> 0 | L16: =_xlfn.XLOOKUP(E16,HtgType,'ARC Validation'!$P$2:$P$4) ->  | M16: =IF(OR(E16=0,E16="Other"),0,IF(K16="Charleston",INDEX('ARC Validation'!$B$20:$D$32,MATCH(A16,ARCBusType,0),MATCH(J16,'ARC Validation'!$B$2:$D$2,0)),IF(K16="Columbia",INDEX('ARC Validation'!$E$20:$G$32,MATCH(A16,ARCBusType,0),MATCH(J16,'ARC Validation'!$B$2:$D$2,0))))) -> 0 | N16: =IF(OR(E16=0,E16="Other"),0,IF(K16="Charleston",INDEX('ARC Validation'!$B$3:$D$15,MATCH(A16,ARCBusType,0),MATCH(J16,'ARC Validation'!$B$2:$D$2,0)),IF(K16="Columbia",INDEX('ARC Validation'!$E$3:$G$15,MATCH(A16,ARCBusType,0),MATCH(J16,'ARC Validation'!$B$2:$D$2,0))))) -> 0 | P16: =IF(K16="Charleston",INDEX('ARC Validation'!$B$37:$D$49,MATCH(A16,ARCBusType,0),MATCH(J16,'ARC Validation'!$B$2:$D$2,0)),IF(K16="Columbia",INDEX('ARC Validation'!$E$37:$G$49,MATCH(A16,ARCBusType,0),MATCH(J16,'ARC Validation'!$B$2:$D$2,0)))) -> FALSE | Q16: =_xlfn.XLOOKUP(J16,'ARC Validation'!$J$8:$J$10,'ARC Validation'!$I$8:$I$10) ->  | R16: No | S16: No | T16: 1 | U16: =IF(SUM(A16:I16)=0,"",_xlfn.XLOOKUP(T16,'ARC Validation'!$A$53:$A$55,'ARC Validation'!$B$53:$B$55)) ->  | V16: =IF(U16="Yes",'ARC Validation'!$J$13,0) -> 0 | W16: 0 | X16: 0 | Y16: 0
A17: ='Advanced RTU Controls'!A15 -> 0 | B17: ='Advanced RTU Controls'!B15 -> 0 | C17: ='Advanced RTU Controls'!C15 -> 0 | D17: ='Advanced RTU Controls'!D15 -> 0 | E17: ='Advanced RTU Controls'!E15 -> 0 | F17: ='Advanced RTU Controls'!F15 -> 0 | G17: ='Advanced RTU Controls'!G15 -> 0 | H17: ='Advanced RTU Controls'!H15 -> 0 | I17: ='Advanced RTU Controls'!I15 -> 0 | J17: =_xlfn.XLOOKUP(D17,ControlMethod,'ARC Validation'!$M$2:$M$4) ->  | K17: =IFERROR(_xlfn.XLOOKUP($K$7,Validation!$B$116:$B$515,Validation!$D$116:$D$515),0) -> 0 | L17: =_xlfn.XLOOKUP(E17,HtgType,'ARC Validation'!$P$2:$P$4) ->  | M17: =IF(OR(E17=0,E17="Other"),0,IF(K17="Charleston",INDEX('ARC Validation'!$B$20:$D$32,MATCH(A17,ARCBusType,0),MATCH(J17,'ARC Validation'!$B$2:$D$2,0)),IF(K17="Columbia",INDEX('ARC Validation'!$E$20:$G$32,MATCH(A17,ARCBusType,0),MATCH(J17,'ARC Validation'!$B$2:$D$2,0))))) -> 0 | N17: =IF(OR(E17=0,E17="Other"),0,IF(K17="Charleston",INDEX('ARC Validation'!$B$3:$D$15,MATCH(A17,ARCBusType,0),MATCH(J17,'ARC Validation'!$B$2:$D$2,0)),IF(K17="Columbia",INDEX('ARC Validation'!$E$3:$G$15,MATCH(A17,ARCBusType,0),MATCH(J17,'ARC Validation'!$B$2:$D$2,0))))) -> 0 | P17: =IF(K17="Charleston",INDEX('ARC Validation'!$B$37:$D$49,MATCH(A17,ARCBusType,0),MATCH(J17,'ARC Validation'!$B$2:$D$2,0)),IF(K17="Columbia",INDEX('ARC Validation'!$E$37:$G$49,MATCH(A17,ARCBusType,0),MATCH(J17,'ARC Validation'!$B$2:$D$2,0)))) -> FALSE | Q17: =_xlfn.XLOOKUP(J17,'ARC Validation'!$J$8:$J$10,'ARC Validation'!$I$8:$I$10) ->  | R17: No | S17: No | T17: 1 | U17: =IF(SUM(A17:I17)=0,"",_xlfn.XLOOKUP(T17,'ARC Validation'!$A$53:$A$55,'ARC Validation'!$B$53:$B$55)) ->  | V17: =IF(U17="Yes",'ARC Validation'!$J$13,0) -> 0 | W17: 0 | X17: 0 | Y17: 0
A18: ='Advanced RTU Controls'!A16 -> 0 | B18: ='Advanced RTU Controls'!B16 -> 0 | C18: ='Advanced RTU Controls'!C16 -> 0 | D18: ='Advanced RTU Controls'!D16 -> 0 | E18: ='Advanced RTU Controls'!E16 -> 0 | F18: ='Advanced RTU Controls'!F16 -> 0 | G18: ='Advanced RTU Controls'!G16 -> 0 | H18: ='Advanced RTU Controls'!H16 -> 0 | I18: ='Advanced RTU Controls'!I16 -> 0 | J18: =_xlfn.XLOOKUP(D18,ControlMethod,'ARC Validation'!$M$2:$M$4) ->  | K18: =IFERROR(_xlfn.XLOOKUP($K$7,Validation!$B$116:$B$515,Validation!$D$116:$D$515),0) -> 0 | L18: =_xlfn.XLOOKUP(E18,HtgType,'ARC Validation'!$P$2:$P$4) ->  | M18: =IF(OR(E18=0,E18="Other"),0,IF(K18="Charleston",INDEX('ARC Validation'!$B$20:$D$32,MATCH(A18,ARCBusType,0),MATCH(J18,'ARC Validation'!$B$2:$D$2,0)),IF(K18="Columbia",INDEX('ARC Validation'!$E$20:$G$32,MATCH(A18,ARCBusType,0),MATCH(J18,'ARC Validation'!$B$2:$D$2,0))))) -> 0 | N18: =IF(OR(E18=0,E18="Other"),0,IF(K18="Charleston",INDEX('ARC Validation'!$B$3:$D$15,MATCH(A18,ARCBusType,0),MATCH(J18,'ARC Validation'!$B$2:$D$2,0)),IF(K18="Columbia",INDEX('ARC Validation'!$E$3:$G$15,MATCH(A18,ARCBusType,0),MATCH(J18,'ARC Validation'!$B$2:$D$2,0))))) -> 0 | P18: =IF(K18="Charleston",INDEX('ARC Validation'!$B$37:$D$49,MATCH(A18,ARCBusType,0),MATCH(J18,'ARC Validation'!$B$2:$D$2,0)),IF(K18="Columbia",INDEX('ARC Validation'!$E$37:$G$49,MATCH(A18,ARCBusType,0),MATCH(J18,'ARC Validation'!$B$2:$D$2,0)))) -> FALSE | Q18: =_xlfn.XLOOKUP(J18,'ARC Validation'!$J$8:$J$10,'ARC Validation'!$I$8:$I$10) ->  | R18: No | S18: No | T18: 1 | U18: =IF(SUM(A18:I18)=0,"",_xlfn.XLOOKUP(T18,'ARC Validation'!$A$53:$A$55,'ARC Validation'!$B$53:$B$55)) ->  | V18: =IF(U18="Yes",'ARC Validation'!$J$13,0) -> 0 | W18: 0 | X18: 0 | Y18: 0
A19: ='Advanced RTU Controls'!A17 -> 0 | B19: ='Advanced RTU Controls'!B17 -> 0 | C19: ='Advanced RTU Controls'!C17 -> 0 | D19: ='Advanced RTU Controls'!D17 -> 0 | E19: ='Advanced RTU Controls'!E17 -> 0 | F19: ='Advanced RTU Controls'!F17 -> 0 | G19: ='Advanced RTU Controls'!G17 -> 0 | H19: ='Advanced RTU Controls'!H17 -> 0 | I19: ='Advanced RTU Controls'!I17 -> 0 | J19: =_xlfn.XLOOKUP(D19,ControlMethod,'ARC Validation'!$M$2:$M$4) ->  | K19: =IFERROR(_xlfn.XLOOKUP($K$7,Validation!$B$116:$B$515,Validation!$D$116:$D$515),0) -> 0 | L19: =_xlfn.XLOOKUP(E19,HtgType,'ARC Validation'!$P$2:$P$4) ->  | M19: =IF(OR(E19=0,E19="Other"),0,IF(K19="Charleston",INDEX('ARC Validation'!$B$20:$D$32,MATCH(A19,ARCBusType,0),MATCH(J19,'ARC Validation'!$B$2:$D$2,0)),IF(K19="Columbia",INDEX('ARC Validation'!$E$20:$G$32,MATCH(A19,ARCBusType,0),MATCH(J19,'ARC Validation'!$B$2:$D$2,0))))) -> 0 | N19: =IF(OR(E19=0,E19="Other"),0,IF(K19="Charleston",INDEX('ARC Validation'!$B$3:$D$15,MATCH(A19,ARCBusType,0),MATCH(J19,'ARC Validation'!$B$2:$D$2,0)),IF(K19="Columbia",INDEX('ARC Validation'!$E$3:$G$15,MATCH(A19,ARCBusType,0),MATCH(J19,'ARC Validation'!$B$2:$D$2,0))))) -> 0 | P19: =IF(K19="Charleston",INDEX('ARC Validation'!$B$37:$D$49,MATCH(A19,ARCBusType,0),MATCH(J19,'ARC Validation'!$B$2:$D$2,0)),IF(K19="Columbia",INDEX('ARC Validation'!$E$37:$G$49,MATCH(A19,ARCBusType,0),MATCH(J19,'ARC Validation'!$B$2:$D$2,0)))) -> FALSE | Q19: =_xlfn.XLOOKUP(J19,'ARC Validation'!$J$8:$J$10,'ARC Validation'!$I$8:$I$10) ->  | R19: No | S19: No | T19: 1 | U19: =IF(SUM(A19:I19)=0,"",_xlfn.XLOOKUP(T19,'ARC Validation'!$A$53:$A$55,'ARC Validation'!$B$53:$B$55)) ->  | V19: =IF(U19="Yes",'ARC Validation'!$J$13,0) -> 0 | W19: 0 | X19: 0 | Y19: 0
A20: ='Advanced RTU Controls'!A18 -> 0 | B20: ='Advanced RTU Controls'!B18 -> 0 | C20: ='Advanced RTU Controls'!C18 -> 0 | D20: ='Advanced RTU Controls'!D18 -> 0 | E20: ='Advanced RTU Controls'!E18 -> 0 | F20: ='Advanced RTU Controls'!F18 -> 0 | G20: ='Advanced RTU Controls'!G18 -> 0 | H20: ='Advanced RTU Controls'!H18 -> 0 | I20: ='Advanced RTU Controls'!I18 -> 0 | J20: =_xlfn.XLOOKUP(D20,ControlMethod,'ARC Validation'!$M$2:$M$4) ->  | K20: =IFERROR(_xlfn.XLOOKUP($K$7,Validation!$B$116:$B$515,Validation!$D$116:$D$515),0) -> 0 | L20: =_xlfn.XLOOKUP(E20,HtgType,'ARC Validation'!$P$2:$P$4) ->  | M20: =IF(OR(E20=0,E20="Other"),0,IF(K20="Charleston",INDEX('ARC Validation'!$B$20:$D$32,MATCH(A20,ARCBusType,0),MATCH(J20,'ARC Validation'!$B$2:$D$2,0)),IF(K20="Columbia",INDEX('ARC Validation'!$E$20:$G$32,MATCH(A20,ARCBusType,0),MATCH(J20,'ARC Validation'!$B$2:$D$2,0))))) -> 0 | N20: =IF(OR(E20=0,E20="Other"),0,IF(K20="Charleston",INDEX('ARC Validation'!$B$3:$D$15,MATCH(A20,ARCBusType,0),MATCH(J20,'ARC Validation'!$B$2:$D$2,0)),IF(K20="Columbia",INDEX('ARC Validation'!$E$3:$G$15,MATCH(A20,ARCBusType,0),MATCH(J20,'ARC Validation'!$B$2:$D$2,0))))) -> 0 | P20: =IF(K20="Charleston",INDEX('ARC Validation'!$B$37:$D$49,MATCH(A20,ARCBusType,0),MATCH(J20,'ARC Validation'!$B$2:$D$2,0)),IF(K20="Columbia",INDEX('ARC Validation'!$E$37:$G$49,MATCH(A20,ARCBusType,0),MATCH(J20,'ARC Validation'!$B$2:$D$2,0)))) -> FALSE | Q20: =_xlfn.XLOOKUP(J20,'ARC Validation'!$J$8:$J$10,'ARC Validation'!$I$8:$I$10) ->  | R20: No | S20: No | T20: 1 | U20: =IF(SUM(A20:I20)=0,"",_xlfn.XLOOKUP(T20,'ARC Validation'!$A$53:$A$55,'ARC Validation'!$B$53:$B$55)) ->  | V20: =IF(U20="Yes",'ARC Validation'!$J$13,0) -> 0 | W20: 0 | X20: 0 | Y20: 0
A21: ='Advanced RTU Controls'!A19 -> 0 | B21: ='Advanced RTU Controls'!B19 -> 0 | C21: ='Advanced RTU Controls'!C19 -> 0 | D21: ='Advanced RTU Controls'!D19 -> 0 | E21: ='Advanced RTU Controls'!E19 -> 0 | F21: ='Advanced RTU Controls'!F19 -> 0 | G21: ='Advanced RTU Controls'!G19 -> 0 | H21: ='Advanced RTU Controls'!H19 -> 0 | I21: ='Advanced RTU Controls'!I19 -> 0 | J21: =_xlfn.XLOOKUP(D21,ControlMethod,'ARC Validation'!$M$2:$M$4) ->  | K21: =IFERROR(_xlfn.XLOOKUP($K$7,Validation!$B$116:$B$515,Validation!$D$116:$D$515),0) -> 0 | L21: =_xlfn.XLOOKUP(E21,HtgType,'ARC Validation'!$P$2:$P$4) ->  | M21: =IF(OR(E21=0,E21="Other"),0,IF(K21="Charleston",INDEX('ARC Validation'!$B$20:$D$32,MATCH(A21,ARCBusType,0),MATCH(J21,'ARC Validation'!$B$2:$D$2,0)),IF(K21="Columbia",INDEX('ARC Validation'!$E$20:$G$32,MATCH(A21,ARCBusType,0),MATCH(J21,'ARC Validation'!$B$2:$D$2,0))))) -> 0 | N21: =IF(OR(E21=0,E21="Other"),0,IF(K21="Charleston",INDEX('ARC Validation'!$B$3:$D$15,MATCH(A21,ARCBusType,0),MATCH(J21,'ARC Validation'!$B$2:$D$2,0)),IF(K21="Columbia",INDEX('ARC Validation'!$E$3:$G$15,MATCH(A21,ARCBusType,0),MATCH(J21,'ARC Validation'!$B$2:$D$2,0))))) -> 0 | P21: =IF(K21="Charleston",INDEX('ARC Validation'!$B$37:$D$49,MATCH(A21,ARCBusType,0),MATCH(J21,'ARC Validation'!$B$2:$D$2,0)),IF(K21="Columbia",INDEX('ARC Validation'!$E$37:$G$49,MATCH(A21,ARCBusType,0),MATCH(J21,'ARC Validation'!$B$2:$D$2,0)))) -> FALSE | Q21: =_xlfn.XLOOKUP(J21,'ARC Validation'!$J$8:$J$10,'ARC Validation'!$I$8:$I$10) ->  | R21: No | S21: No | T21: 1 | U21: =IF(SUM(A21:I21)=0,"",_xlfn.XLOOKUP(T21,'ARC Validation'!$A$53:$A$55,'ARC Validation'!$B$53:$B$55)) ->  | V21: =IF(U21="Yes",'ARC Validation'!$J$13,0) -> 0 | W21: 0 | X21: 0 | Y21: 0
A22: ='Advanced RTU Controls'!A20 -> 0 | B22: ='Advanced RTU Controls'!B20 -> 0 | C22: ='Advanced RTU Controls'!C20 -> 0 | D22: ='Advanced RTU Controls'!D20 -> 0 | E22: ='Advanced RTU Controls'!E20 -> 0 | F22: ='Advanced RTU Controls'!F20 -> 0 | G22: ='Advanced RTU Controls'!G20 -> 0 | H22: ='Advanced RTU Controls'!H20 -> 0 | I22: ='Advanced RTU Controls'!I20 -> 0 | J22: =_xlfn.XLOOKUP(D22,ControlMethod,'ARC Validation'!$M$2:$M$4) ->  | K22: =IFERROR(_xlfn.XLOOKUP($K$7,Validation!$B$116:$B$515,Validation!$D$116:$D$515),0) -> 0 | L22: =_xlfn.XLOOKUP(E22,HtgType,'ARC Validation'!$P$2:$P$4) ->  | M22: =IF(OR(E22=0,E22="Other"),0,IF(K22="Charleston",INDEX('ARC Validation'!$B$20:$D$32,MATCH(A22,ARCBusType,0),MATCH(J22,'ARC Validation'!$B$2:$D$2,0)),IF(K22="Columbia",INDEX('ARC Validation'!$E$20:$G$32,MATCH(A22,ARCBusType,0),MATCH(J22,'ARC Validation'!$B$2:$D$2,0))))) -> 0 | N22: =IF(OR(E22=0,E22="Other"),0,IF(K22="Charleston",INDEX('ARC Validation'!$B$3:$D$15,MATCH(A22,ARCBusType,0),MATCH(J22,'ARC Validation'!$B$2:$D$2,0)),IF(K22="Columbia",INDEX('ARC Validation'!$E$3:$G$15,MATCH(A22,ARCBusType,0),MATCH(J22,'ARC Validation'!$B$2:$D$2,0))))) -> 0 | P22: =IF(K22="Charleston",INDEX('ARC Validation'!$B$37:$D$49,MATCH(A22,ARCBusType,0),MATCH(J22,'ARC Validation'!$B$2:$D$2,0)),IF(K22="Columbia",INDEX('ARC Validation'!$E$37:$G$49,MATCH(A22,ARCBusType,0),MATCH(J22,'ARC Validation'!$B$2:$D$2,0)))) -> FALSE | Q22: =_xlfn.XLOOKUP(J22,'ARC Validation'!$J$8:$J$10,'ARC Validation'!$I$8:$I$10) ->  | R22: No | S22: No | T22: 1 | U22: =IF(SUM(A22:I22)=0,"",_xlfn.XLOOKUP(T22,'ARC Validation'!$A$53:$A$55,'ARC Validation'!$B$53:$B$55)) ->  | V22: =IF(U22="Yes",'ARC Validation'!$J$13,0) -> 0 | W22: 0 | X22: 0 | Y22: 0
A23: ='Advanced RTU Controls'!A21 -> 0 | B23: ='Advanced RTU Controls'!B21 -> 0 | C23: ='Advanced RTU Controls'!C21 -> 0 | D23: ='Advanced RTU Controls'!D21 -> 0 | E23: ='Advanced RTU Controls'!E21 -> 0 | F23: ='Advanced RTU Controls'!F21 -> 0 | G23: ='Advanced RTU Controls'!G21 -> 0 | H23: ='Advanced RTU Controls'!H21 -> 0 | I23: ='Advanced RTU Controls'!I21 -> 0 | J23: =_xlfn.XLOOKUP(D23,ControlMethod,'ARC Validation'!$M$2:$M$4) ->  | K23: =IFERROR(_xlfn.XLOOKUP($K$7,Validation!$B$116:$B$515,Validation!$D$116:$D$515),0) -> 0 | L23: =_xlfn.XLOOKUP(E23,HtgType,'ARC Validation'!$P$2:$P$4) ->  | M23: =IF(OR(E23=0,E23="Other"),0,IF(K23="Charleston",INDEX('ARC Validation'!$B$20:$D$32,MATCH(A23,ARCBusType,0),MATCH(J23,'ARC Validation'!$B$2:$D$2,0)),IF(K23="Columbia",INDEX('ARC Validation'!$E$20:$G$32,MATCH(A23,ARCBusType,0),MATCH(J23,'ARC Validation'!$B$2:$D$2,0))))) -> 0 | N23: =IF(OR(E23=0,E23="Other"),0,IF(K23="Charleston",INDEX('ARC Validation'!$B$3:$D$15,MATCH(A23,ARCBusType,0),MATCH(J23,'ARC Validation'!$B$2:$D$2,0)),IF(K23="Columbia",INDEX('ARC Validation'!$E$3:$G$15,MATCH(A23,ARCBusType,0),MATCH(J23,'ARC Validation'!$B$2:$D$2,0))))) -> 0 | P23: =IF(K23="Charleston",INDEX('ARC Validation'!$B$37:$D$49,MATCH(A23,ARCBusType,0),MATCH(J23,'ARC Validation'!$B$2:$D$2,0)),IF(K23="Columbia",INDEX('ARC Validation'!$E$37:$G$49,MATCH(A23,ARCBusType,0),MATCH(J23,'ARC Validation'!$B$2:$D$2,0)))) -> FALSE | Q23: =_xlfn.XLOOKUP(J23,'ARC Validation'!$J$8:$J$10,'ARC Validation'!$I$8:$I$10) ->  | R23: No | S23: No | T23: 1 | U23: =IF(SUM(A23:I23)=0,"",_xlfn.XLOOKUP(T23,'ARC Validation'!$A$53:$A$55,'ARC Validation'!$B$53:$B$55)) ->  | V23: =IF(U23="Yes",'ARC Validation'!$J$13,0) -> 0 | W23: 0 | X23: 0 | Y23: 0
A24: ='Advanced RTU Controls'!A22 -> 0 | B24: ='Advanced RTU Controls'!B22 -> 0 | C24: ='Advanced RTU Controls'!C22 -> 0 | D24: ='Advanced RTU Controls'!D22 -> 0 | E24: ='Advanced RTU Controls'!E22 -> 0 | F24: ='Advanced RTU Controls'!F22 -> 0 | G24: ='Advanced RTU Controls'!G22 -> 0 | H24: ='Advanced RTU Controls'!H22 -> 0 | I24: ='Advanced RTU Controls'!I22 -> 0 | J24: =_xlfn.XLOOKUP(D24,ControlMethod,'ARC Validation'!$M$2:$M$4) ->  | K24: =IFERROR(_xlfn.XLOOKUP($K$7,Validation!$B$116:$B$515,Validation!$D$116:$D$515),0) -> 0 | L24: =_xlfn.XLOOKUP(E24,HtgType,'ARC Validation'!$P$2:$P$4) ->  | M24: =IF(OR(E24=0,E24="Other"),0,IF(K24="Charleston",INDEX('ARC Validation'!$B$20:$D$32,MATCH(A24,ARCBusType,0),MATCH(J24,'ARC Validation'!$B$2:$D$2,0)),IF(K24="Columbia",INDEX('ARC Validation'!$E$20:$G$32,MATCH(A24,ARCBusType,0),MATCH(J24,'ARC Validation'!$B$2:$D$2,0))))) -> 0 | N24: =IF(OR(E24=0,E24="Other"),0,IF(K24="Charleston",INDEX('ARC Validation'!$B$3:$D$15,MATCH(A24,ARCBusType,0),MATCH(J24,'ARC Validation'!$B$2:$D$2,0)),IF(K24="Columbia",INDEX('ARC Validation'!$E$3:$G$15,MATCH(A24,ARCBusType,0),MATCH(J24,'ARC Validation'!$B$2:$D$2,0))))) -> 0 | P24: =IF(K24="Charleston",INDEX('ARC Validation'!$B$37:$D$49,MATCH(A24,ARCBusType,0),MATCH(J24,'ARC Validation'!$B$2:$D$2,0)),IF(K24="Columbia",INDEX('ARC Validation'!$E$37:$G$49,MATCH(A24,ARCBusType,0),MATCH(J24,'ARC Validation'!$B$2:$D$2,0)))) -> FALSE | Q24: =_xlfn.XLOOKUP(J24,'ARC Validation'!$J$8:$J$10,'ARC Validation'!$I$8:$I$10) ->  | R24: No | S24: No | T24: 1 | U24: =IF(SUM(A24:I24)=0,"",_xlfn.XLOOKUP(T24,'ARC Validation'!$A$53:$A$55,'ARC Validation'!$B$53:$B$55)) ->  | V24: =IF(U24="Yes",'ARC Validation'!$J$13,0) -> 0 | W24: 0 | X24: 0 | Y24: 0
A25: ='Advanced RTU Controls'!A23 -> 0 | B25: ='Advanced RTU Controls'!B23 -> 0 | C25: ='Advanced RTU Controls'!C23 -> 0 | D25: ='Advanced RTU Controls'!D23 -> 0 | E25: ='Advanced RTU Controls'!E23 -> 0 | F25: ='Advanced RTU Controls'!F23 -> 0 | G25: ='Advanced RTU Controls'!G23 -> 0 | H25: ='Advanced RTU Controls'!H23 -> 0 | I25: ='Advanced RTU Controls'!I23 -> 0 | J25: =_xlfn.XLOOKUP(D25,ControlMethod,'ARC Validation'!$M$2:$M$4) ->  | K25: =IFERROR(_xlfn.XLOOKUP($K$7,Validation!$B$116:$B$515,Validation!$D$116:$D$515),0) -> 0 | L25: =_xlfn.XLOOKUP(E25,HtgType,'ARC Validation'!$P$2:$P$4) ->  | M25: =IF(OR(E25=0,E25="Other"),0,IF(K25="Charleston",INDEX('ARC Validation'!$B$20:$D$32,MATCH(A25,ARCBusType,0),MATCH(J25,'ARC Validation'!$B$2:$D$2,0)),IF(K25="Columbia",INDEX('ARC Validation'!$E$20:$G$32,MATCH(A25,ARCBusType,0),MATCH(J25,'ARC Validation'!$B$2:$D$2,0))))) -> 0 | N25: =IF(OR(E25=0,E25="Other"),0,IF(K25="Charleston",INDEX('ARC Validation'!$B$3:$D$15,MATCH(A25,ARCBusType,0),MATCH(J25,'ARC Validation'!$B$2:$D$2,0)),IF(K25="Columbia",INDEX('ARC Validation'!$E$3:$G$15,MATCH(A25,ARCBusType,0),MATCH(J25,'ARC Validation'!$B$2:$D$2,0))))) -> 0 | P25: =IF(K25="Charleston",INDEX('ARC Validation'!$B$37:$D$49,MATCH(A25,ARCBusType,0),MATCH(J25,'ARC Validation'!$B$2:$D$2,0)),IF(K25="Columbia",INDEX('ARC Validation'!$E$37:$G$49,MATCH(A25,ARCBusType,0),MATCH(J25,'ARC Validation'!$B$2:$D$2,0)))) -> FALSE | Q25: =_xlfn.XLOOKUP(J25,'ARC Validation'!$J$8:$J$10,'ARC Validation'!$I$8:$I$10) ->  | R25: No | S25: No | T25: 1 | U25: =IF(SUM(A25:I25)=0,"",_xlfn.XLOOKUP(T25,'ARC Validation'!$A$53:$A$55,'ARC Validation'!$B$53:$B$55)) ->  | V25: =IF(U25="Yes",'ARC Validation'!$J$13,0) -> 0 | W25: 0 | X25: 0 | Y25: 0
A26: ='Advanced RTU Controls'!A24 -> 0 | B26: ='Advanced RTU Controls'!B24 -> 0 | C26: ='Advanced RTU Controls'!C24 -> 0 | D26: ='Advanced RTU Controls'!D24 -> 0 | E26: ='Advanced RTU Controls'!E24 -> 0 | F26: ='Advanced RTU Controls'!F24 -> 0 | G26: ='Advanced RTU Controls'!G24 -> 0 | H26: ='Advanced RTU Controls'!H24 -> 0 | I26: ='Advanced RTU Controls'!I24 -> 0 | J26: =_xlfn.XLOOKUP(D26,ControlMethod,'ARC Validation'!$M$2:$M$4) ->  | K26: =IFERROR(_xlfn.XLOOKUP($K$7,Validation!$B$116:$B$515,Validation!$D$116:$D$515),0) -> 0 | L26: =_xlfn.XLOOKUP(E26,HtgType,'ARC Validation'!$P$2:$P$4) ->  | M26: =IF(OR(E26=0,E26="Other"),0,IF(K26="Charleston",INDEX('ARC Validation'!$B$20:$D$32,MATCH(A26,ARCBusType,0),MATCH(J26,'ARC Validation'!$B$2:$D$2,0)),IF(K26="Columbia",INDEX('ARC Validation'!$E$20:$G$32,MATCH(A26,ARCBusType,0),MATCH(J26,'ARC Validation'!$B$2:$D$2,0))))) -> 0 | N26: =IF(OR(E26=0,E26="Other"),0,IF(K26="Charleston",INDEX('ARC Validation'!$B$3:$D$15,MATCH(A26,ARCBusType,0),MATCH(J26,'ARC Validation'!$B$2:$D$2,0)),IF(K26="Columbia",INDEX('ARC Validation'!$E$3:$G$15,MATCH(A26,ARCBusType,0),MATCH(J26,'ARC Validation'!$B$2:$D$2,0))))) -> 0 | P26: =IF(K26="Charleston",INDEX('ARC Validation'!$B$37:$D$49,MATCH(A26,ARCBusType,0),MATCH(J26,'ARC Validation'!$B$2:$D$2,0)),IF(K26="Columbia",INDEX('ARC Validation'!$E$37:$G$49,MATCH(A26,ARCBusType,0),MATCH(J26,'ARC Validation'!$B$2:$D$2,0)))) -> FALSE | Q26: =_xlfn.XLOOKUP(J26,'ARC Validation'!$J$8:$J$10,'ARC Validation'!$I$8:$I$10) ->  | R26: No | S26: No | T26: 1 | U26: =IF(SUM(A26:I26)=0,"",_xlfn.XLOOKUP(T26,'ARC Validation'!$A$53:$A$55,'ARC Validation'!$B$53:$B$55)) ->  | V26: =IF(U26="Yes",'ARC Validation'!$J$13,0) -> 0 | W26: 0 | X26: 0 | Y26: 0
A27: ='Advanced RTU Controls'!A25 -> 0 | B27: ='Advanced RTU Controls'!B25 -> 0 | C27: ='Advanced RTU Controls'!C25 -> 0 | D27: ='Advanced RTU Controls'!D25 -> 0 | E27: ='Advanced RTU Controls'!E25 -> 0 | F27: ='Advanced RTU Controls'!F25 -> 0 | G27: ='Advanced RTU Controls'!G25 -> 0 | H27: ='Advanced RTU Controls'!H25 -> 0 | I27: ='Advanced RTU Controls'!I25 -> 0 | J27: =_xlfn.XLOOKUP(D27,ControlMethod,'ARC Validation'!$M$2:$M$4) ->  | K27: =IFERROR(_xlfn.XLOOKUP($K$7,Validation!$B$116:$B$515,Validation!$D$116:$D$515),0) -> 0 | L27: =_xlfn.XLOOKUP(E27,HtgType,'ARC Validation'!$P$2:$P$4) ->  | M27: =IF(OR(E27=0,E27="Other"),0,IF(K27="Charleston",INDEX('ARC Validation'!$B$20:$D$32,MATCH(A27,ARCBusType,0),MATCH(J27,'ARC Validation'!$B$2:$D$2,0)),IF(K27="Columbia",INDEX('ARC Validation'!$E$20:$G$32,MATCH(A27,ARCBusType,0),MATCH(J27,'ARC Validation'!$B$2:$D$2,0))))) -> 0 | N27: =IF(OR(E27=0,E27="Other"),0,IF(K27="Charleston",INDEX('ARC Validation'!$B$3:$D$15,MATCH(A27,ARCBusType,0),MATCH(J27,'ARC Validation'!$B$2:$D$2,0)),IF(K27="Columbia",INDEX('ARC Validation'!$E$3:$G$15,MATCH(A27,ARCBusType,0),MATCH(J27,'ARC Validation'!$B$2:$D$2,0))))) -> 0 | P27: =IF(K27="Charleston",INDEX('ARC Validation'!$B$37:$D$49,MATCH(A27,ARCBusType,0),MATCH(J27,'ARC Validation'!$B$2:$D$2,0)),IF(K27="Columbia",INDEX('ARC Validation'!$E$37:$G$49,MATCH(A27,ARCBusType,0),MATCH(J27,'ARC Validation'!$B$2:$D$2,0)))) -> FALSE | Q27: =_xlfn.XLOOKUP(J27,'ARC Validation'!$J$8:$J$10,'ARC Validation'!$I$8:$I$10) ->  | R27: No | S27: No | T27: 1 | U27: =IF(SUM(A27:I27)=0,"",_xlfn.XLOOKUP(T27,'ARC Validation'!$A$53:$A$55,'ARC Validation'!$B$53:$B$55)) ->  | V27: =IF(U27="Yes",'ARC Validation'!$J$13,0) -> 0 | W27: 0 | X27: 0 | Y27: 0
A28: ='Advanced RTU Controls'!A26 -> 0 | B28: ='Advanced RTU Controls'!B26 -> 0 | C28: ='Advanced RTU Controls'!C26 -> 0 | D28: ='Advanced RTU Controls'!D26 -> 0 | E28: ='Advanced RTU Controls'!E26 -> 0 | F28: ='Advanced RTU Controls'!F26 -> 0 | G28: ='Advanced RTU Controls'!G26 -> 0 | H28: ='Advanced RTU Controls'!H26 -> 0 | I28: ='Advanced RTU Controls'!I26 -> 0 | J28: =_xlfn.XLOOKUP(D28,ControlMethod,'ARC Validation'!$M$2:$M$4) ->  | K28: =IFERROR(_xlfn.XLOOKUP($K$7,Validation!$B$116:$B$515,Validation!$D$116:$D$515),0) -> 0 | L28: =_xlfn.XLOOKUP(E28,HtgType,'ARC Validation'!$P$2:$P$4) ->  | M28: =IF(OR(E28=0,E28="Other"),0,IF(K28="Charleston",INDEX('ARC Validation'!$B$20:$D$32,MATCH(A28,ARCBusType,0),MATCH(J28,'ARC Validation'!$B$2:$D$2,0)),IF(K28="Columbia",INDEX('ARC Validation'!$E$20:$G$32,MATCH(A28,ARCBusType,0),MATCH(J28,'ARC Validation'!$B$2:$D$2,0))))) -> 0 | N28: =IF(OR(E28=0,E28="Other"),0,IF(K28="Charleston",INDEX('ARC Validation'!$B$3:$D$15,MATCH(A28,ARCBusType,0),MATCH(J28,'ARC Validation'!$B$2:$D$2,0)),IF(K28="Columbia",INDEX('ARC Validation'!$E$3:$G$15,MATCH(A28,ARCBusType,0),MATCH(J28,'ARC Validation'!$B$2:$D$2,0))))) -> 0 | P28: =IF(K28="Charleston",INDEX('ARC Validation'!$B$37:$D$49,MATCH(A28,ARCBusType,0),MATCH(J28,'ARC Validation'!$B$2:$D$2,0)),IF(K28="Columbia",INDEX('ARC Validation'!$E$37:$G$49,MATCH(A28,ARCBusType,0),MATCH(J28,'ARC Validation'!$B$2:$D$2,0)))) -> FALSE | Q28: =_xlfn.XLOOKUP(J28,'ARC Validation'!$J$8:$J$10,'ARC Validation'!$I$8:$I$10) ->  | R28: No | S28: No | T28: 1 | U28: =IF(SUM(A28:I28)=0,"",_xlfn.XLOOKUP(T28,'ARC Validation'!$A$53:$A$55,'ARC Validation'!$B$53:$B$55)) ->  | V28: =IF(U28="Yes",'ARC Validation'!$J$13,0) -> 0 | W28: 0 | X28: 0 | Y28: 0

Sheet ARC Validation (hidden)
A1: Electric HP Heating kWh/ton1 | B1: Charleston, SC | E1: Columbia, SC | I1: From ICF analysis on 2/25/2025 | L1: Control Methods | O1: Htg Type | P1: Htg Type | R1: Building Type
A2: Building Type | B2: 1 | C2: 2 | D2: 3 | E2: 1 | F2: 2 | G2: 3 | I2: DCV Only: | L2: DCV Only | M2: 1 | O2: Electric Resistance Heat | P2: 1 | R2: Assembly
A3: Assembly | B3: 547.8555895 | C3: 664.0421065 | D3: 634.3756339 | E3: 587.9791235 | F3: 692.2290041 | G3: 666.2574692 | I3: CFw = 0.000700 kW/kWh | L3: DCV and VFD w/2-speed fan control | M3: 2 | O3: Heat Pump | P3: 2 | R3: Assisted Living
A4: Assisted Living | B4: 24.39001804 | C4: 52.08132829 | D4: 22.04346219 | E4: 35.35742235 | F4: 52.14399687 | G4: 21.55633153 | I4: DCV and Fan Speed Control: | L4: DCV and VFD w/multi-speed fan control | M4: 3 | O4: Other | P4: 3 | R4: Convenience Store
A5: College | B5: -128.9717674 | C5: -104.5026696 | D5: -106.8922029 | E5: -2.752785806 | F5: 12.80782186 | G5: 7.576648304 | I5: CFw = 0.000194 kW/kWh | R5: Garage
A6: Conditioned Storage | B6: 80.69201498 | C6: -53.98800703 | D6: -62.21374938 | E6: 108.2318392 | F6: -26.42500977 | G6: -36.93695388 | R6: Grocery
A7: Convenience Store | B7: 135.6031634 | C7: 82.86429222 | D7: 64.36505217 | E7: 190.9080295 | F7: 129.0766317 | G7: 109.9947207 | I7: Winter CF values: | J7: Control Scenario | R7: Religious Building
A8: Garage | B8: 34.56066151 | C8: 22.66066151 | D8: 22.66913662 | E8: 37.129047 | F8: 25.229047 | G8: 24.05447943 | I8: 0.0006998994346 | J8: 1 | R8: Restaurant
A9: Grocery | B9: 133.2755041 | C9: 125.9142036 | D9: 121.4540406 | E9: 227.6849876 | F9: 213.6478015 | G9: 207.1619967 | I9: 0.0001940272603 | J9: 2 | R9: Retail - Department Store
A10: Manufacturing Facility | B10: -4.382623815 | C10: -0.5376103213 | D10: 6.924123125 | E10: 3.449072124 | F10: 5.08223189 | G10: 10.52131967 | I10: =I9 -> 0.0001940272603 | J10: 3 | R10: Retail - Strip Mall
A11: Office - Low Rise | B11: -11.39933451 | C11: -70.64545545 | D11: -55.53256273 | E11: 31.55002785 | F11: -44.34395854 | G11: -34.49596625
A12: Religious Building | B12: 30.07609819 | C12: 20.51276473 | D12: 15.43681663 | E12: 39.31472002 | F12: 33.70066824 | G12: 32.23185822
A13: Restaurant | B13: 64.89805119 | C13: 56.80278277 | D13: 38.69920631 | E13: 98.77205602 | F13: 80.9580906 | G13: 61.11409011 | I13: Incentive | J13: 350
A14: Retail - Department Store | B14: 67.32443914 | C14: 39.33688785 | D14: 23.72009668 | E14: 96.05708694 | F14: 56.12198791 | G14: 40.32593021
A15: Retail - Strip Mall | B15: 69.28067501 | C15: 61.89747814 | D15: 63.13681663 | E15: 95.32298389 | F15: 81.26090522 | G15: 79.93185822
A16: 1- Per IL TRM values were calculated using an assumed 2.3 COP for the heat pump which aligns with the 7.7 HSPF value in the HP/AC tune-up measure in the CEAM. ER values below calculated based on this same assumption.
A18: Electric ER Heating kWh/ton2 | B18: Charleston, SC | E18: Columbia, SC
A19: Building Type | B19: 1 | C19: 2 | D19: 3 | E19: 1 | F19: 2 | G19: 3 | J19: System Type | K19: COP | L19: HSPF - Assumed from AC/HP Tune-up Measure | M19: COP
A20: Assembly | B20: =B3*$K$20/$K$21 -> 1260.067856 | C20: 1527.296845 | D20: 1459.063958 | E20: 1352.351984 | F20: 1592.12671 | G20: 1532.392179 | J20: HP | K20: 2.3 | L20: 7.7 | M20: =L20/3.412 -> 2.256740914
A21: Assisted Living | B21: 56.09704149 | C21: 119.7870551 | D21: 50.69996304 | E21: 81.32207141 | F21: 119.9311928 | G21: 49.57956252 | J21: ER | K21: 1
A22: College | B22: -296.635065 | C22: -240.3561401 | D22: -245.8520666 | E22: -6.331407353 | F22: 29.45799028 | G22: 17.4262911
A23: Conditioned Storage | B23: 185.5916345 | C23: -124.1724162 | D23: -143.0916236 | E23: 248.9332301 | F23: -60.77752247 | G23: -84.95499392
A24: Convenience Store | B24: 311.8872759 | C24: 190.5878721 | D24: 148.03962 | E24: 439.0884679 | F24: 296.876253 | G24: 252.9878576
A25: Garage | B25: 79.48952147 | C25: 52.11952147 | D25: 52.13901422 | E25: 85.39680809 | F25: 58.02680809 | G25: 55.32530269
A26: Grocery | B26: 306.5336593 | C26: 289.6026683 | D26: 279.3442934 | E26: 523.6754716 | F26: 491.3899434 | G26: 476.4725925
A27: Manufacturing Facility | B27: -10.08003478 | C27: -1.236503739 | D27: 15.92548319 | E27: 7.932865886 | F27: 11.68913335 | G27: 24.19903523
A28: Office - Low Rise | B28: -26.21846938 | C28: -162.4845475 | D28: -127.7248943 | E28: 72.56506406 | F28: -101.9911046 | G28: -79.34072238
A29: Religious Building | B29: 69.17502585 | C29: 47.17935887 | D29: 35.50467825 | E29: 90.42385604 | F29: 77.51153695 | G29: 74.13327391
A30: Restaurant | B30: 149.2655177 | C30: 130.6464004 | D30: 89.00817452 | E30: 227.1757288 | F30: 186.2036084 | G30: 140.5624073
A31: Retail - Department Store | B31: 154.84621 | C31: 90.47484206 | D31: 54.55622236 | E31: 220.9313 | F31: 129.0805722 | G31: 92.74963949
A32: Retail - Strip Mall | B32: 159.3455525 | C32: 142.3641997 | D32: 145.2146783 | E32: 219.242863 | F32: 186.900082 | G32: 183.8432739
A33: 2- ER heating calculated using the 2.3 COP assumption for the HP scenario
A35: Electric Cooling kWh/ton | B35: Charleston, SC | E35: Columbia, SC
A36: Building Type | B36: 1 | C36: 2 | D36: 3 | E36: 1 | F36: 2 | G36: 3
A37: Assembly | B37: 178.1871729 | C37: 303.8140363 | D37: 296.7041881 | E37: 161.7478642 | F37: 283.8055138 | G37: 280.5038648
A38: Assisted Living | B38: 32.07082525 | C38: 622.3224309 | D38: 619.005296 | E38: 28.99390398 | F38: 616.3274715 | G38: 617.0582053
A39: College | B39: 333.6242474 | C39: 705.4474839 | D39: 693.9333801 | E39: 296.7338929 | F39: 666.7852742 | G39: 661.3347689
A40: Conditioned Storage | B40: 23.14677482 | C40: 353.1939174 | D40: 340.4314868 | E40: 20.45529512 | F40: 352.3744073 | G40: 348.0874489
A41: Convenience Store | B41: 190.369559 | C41: 1138.925946 | D41: 1115.228268 | E41: 171.8405157 | F41: 1110.14469 | G41: 1097.510367
A42: Garage | B42: 108.1451973 | C42: 748.2220945 | D42: 753.9781956 | E42: 96.07890168 | F42: 712.9539562 | G42: 730.3786283
A43: Grocery | B43: 170.0423311 | C43: 634.6751242 | D43: 624.2005351 | E43: 153.3939027 | F43: 614.7014103 | G43: 608.6368216
A44: Manufacturing Facility | B44: 76.90408173 | C44: 834.1756669 | D44: 814.6623214 | E44: 67.89726278 | F44: 825.3291932 | G44: 814.7637169
A45: Office - Low Rise | B45: 57.98272282 | C45: 1060.494594 | D45: 1035.493714 | E45: 52.49017989 | F45: 1061.459037 | G45: 1049.064391
A46: Religious Building | B46: 31.9058615 | C46: 1284.759308 | D46: 1286.327379 | E46: 28.56259734 | F46: 1231.577858 | G46: 1251.48136
A47: Restaurant | B47: 54.06666844 | C47: 668.7469238 | D47: 671.2727963 | E47: 48.92331405 | F47: 654.7150242 | G47: 662.2009887
A48: Retail - Department Store | B48: 120.1797653 | C48: 782.7593882 | D48: 761.7686578 | E48: 108.9856931 | F48: 771.3141446 | G48: 760.2980543
A49: Retail - Strip Mall | B49: 109.9824957 | C49: 798.2616225 | D49: 776.2512275 | E49: 99.80881585 | F49: 790.2314991 | G49: 776.3066848
A52: Error Number | B52: Error Message | C52: Qualifies
A53: 0 | B53: Yes | C53: Yes
A54: 1 | B54: Error message 1 - See below | C54: No. Please fill in all blue cells.
A55: 2 | B55: Error message 2 - See below | C55: No. Please fill in zip code on Project Information tab

Sheet Inventory Instructions (hidden)
B4: C&I Prescriptive Program
B5: Unitary HVAC
D7: Copyright © 2010 ICF Resources, LLC, All Rights Reserved. Do not copy, distribute or quote without ICF’s written permission.
C10: Instructions
C11: 1. Read "Eligibility Requirements" for detailed information on participation for this program
C12: 2. This worksheet is required for all VFD Instllation projects.The completed application must be completed and submitted electronically to the email address below or may be submitted in writing either by mail or fax.
D13: Mailing Address: | F13: Fax Number: | G13: Email Address:
D14: SCE&G - EnergyWise for Your Business | F14: 877-646-7234 | G14: EnergyExperts@sceg.com
D15: Mail Code: DSM
D16: 220 Operation Way
D17: Cayce, SC 29033
C18: 3. Enter the required project information in the shaded areas only. A description of this information is provided below in the Inputs section.
D19: - All other information will be populated automatically.
C20: 4. Save file with a project name and date using the naming convention: project name_YY_MM_DD.xls
C21: 5. Email the renamed Excel spreadsheet and the completed project application form to EnergyExperts@sceg.com
C23: Inputs
C24: Building Method Fields | E24: Unit | F24: Input Range | G24: Description
C25: 1. | D25: Building Type | E25: n/a | F25: Select from Building Types | G25: Enter the building type that most closely matches where the installation of the HVAC system is taking place
C26: 2. | D26: Device Type | E26: n/a | F26: Select From HVAC Type | G26: Types include Unitary A/C, Split System A/C, Heat Pump, Packaged Terminal HP, Packaged Terminal AC, Water Cooled
C27: 3. | D27: Manufacturer | E27: n/a | F27: Any | G27: Enter the manufacturer of the HVAC unit
C28: 4. | D28: Model Number | E28: n/a | F28: Any | G28: Enter the model number of the HVAC unit
C29: 5. | D29: Size | E29: Tons | F29: Any | G29: Enter the size in tons of the HVAC unit
C30: 6. | D30: Cooling Efficiency | E30: EER | F30: Any | G30: Enter the efficiency in tons of the HVAC unit
C31: 7. | D31: Quantity | E31: Whole Number | F31: Any | G31: Enter the quantity of HVAC units being installed

Sheet Input Key (hidden)
B3: Building Type | D3: Device Type | E3: Measure code
B4: Office | D4: Split System A/C | E4: S
B5: Retail | D5: Unitary A/C | E5: U
B6: School | D6: Split System Heat Pump | E6: SH
B7: University | D7: Unitary Heat Pump | E7: UH
B8: Religious Facility | D8: Packaged Terminal A/C | E8: PTAC
B9: Grocery | D9: Packaged Terminal Heat Pump | E9: PTHP
B10: Lodging
B11: Industrial
B12: Warehouse
B13: Health Facility
B14: Multifamily
B15: Fitness/Recreation
B16: Restaurant
B17: Other

Sheet HVAC Unitary-old (hidden)
A1: Fill in Blue Cells Only!
A2: HVAC UNITARY TECHNICAL REQUIREMENTS
A3: § Unitary and split system cooling equipment must meet Air-Conditioning and Refrigeration Institute (ARI) standards (210/240, 320, or 340/360), be certified by a Nationally Recognized Testing Laboratory (NRTL), and use a minimum ozone-depleting refrigerant (e.g., HCFC or HFC). § Electric heat pumps, single packaged units, and split systems are eligible systems. § Qualifying split systems must have both a new condenser and a new coil that meet ARI specifications, and matched system performance (condenser and coil) must meet or exceed the minimum SEER/EER/COP outlined in Table 2. § Units being installed must meet both EER and IEER efficiency values to fulfill the requirements.
A4: TABLE 1: HVAC EQUIPMENT INFORMATION
A5: S = Split A/C | B5: U = Unitary A/C | D5: H = Split or Unitary Heat Pump | G5: P = PTAC | I5: T = PTHP | K5: W = Water and Evaporative
A7: Equipment Type | B7: Manufacturer | D7: Model # | E7: Unit Size (Tons) | F7: Unit Efficiency | J7: Quantity | K7: Incentive $ / Ton | M7: Subtotal Incentive
F8: SEER | G8: EER | H8: IEER | I8: COP | V8: Tier 1 | W8: Tier 2
A9: S | B9: 12 | D9: 12 | E9: 5 | G9: 18 | H9: 18 | J9: 1 | K9: =IF(OR(AND(W9="Yes", E9<63.3)),75,IF(OR(AND(W9="No",V9="Yes", E9<63.3)),50,IF(OR(AND(W9="Yes", E9>=63.3)),20,IF(OR(AND(W9="No", V9="Yes", E9>=63.3)),15,IF(OR(AND(W9="N/A",V9="Yes",A9="W")),60,IF(OR(AND(W9="N/A",V9="Yes",A9="P",E9<0.75)),20,IF(OR(AND(W9="N/A",V9="Yes",A9="P",E9>=0.75,E9<1)),25,IF(OR(AND(W9="N/A",V9="Yes",A9="P",E9>=1)),35,IF(OR(AND(W9="N/A",V9="Yes",A9="T",E9<0.75)),20,IF(OR(AND(W9="N/A",V9="Yes",A9="T",E9>=0.75,E9<1)),25,IF(OR(AND(W9="N/A",V9="Yes",A9="T",E9>=1)),30,0))))))))))) -> 0 | M9: =IF(OR(AND(A9="P")),J9*K9,IF(OR(AND(A9="T")),J9*K9,E9*J9*K9)) -> 0 | U9: S | V9: =IF(OR(AND(A9="S", E9<5.4, F9>=15, G9>=12),AND(A9="U", E9<5.4, F9>=15, G9>=11.6),AND(A9="H", E9<5.4, F9>=15, G9>=14.3),AND(A9="S", E9>=5.4, E9<11.25, G9>=12, H9>=13.4),AND(A9="U", E9>=5.4, E9<11.25, G9>=12, H9>=13.4),AND(A9="H", E9>=5.4, E9<11.25, G9>=12, H9>=13.4),AND(A9="S",E9>=11.25,E9<20,G9>=11.8,H9>=12.8),AND(A9="U",E9>=11.25,E9<20,G9>=11.8,H9>=12.8),AND(A9="H",E9>=11.25,E9<20,G9>=11.8,H9>=12.8),AND(A9="S", E9>=20, E9<63.3, G9>=10.6, H9>=12.1),AND(A9="U", E9>=20, E9<63.3, G9>=10.6, H9>=12.1),AND(A9="H", E9>=20, E9<63.3, G9>=10.6, H9>=12.1),AND(A9="S", E9>=63.3, G9>=10.3, H9>=12),AND(A9="U", E9>=63.3, G9>=10.3, H9>=12),AND(A9="H", E9>=63.3, G9>=10.3, H9>=12),AND(A9="W", E9<5.4,G9>=14,H9>=13.4),AND(A9="W",E9>=5.4,E9<11.25,G9>=12.8,H9>=13.1),AND(A9="W",E9>=11.25,G9>=12,H9>=12.4),AND(A9="P", E9<0.75, G9>=12),AND(A9="P", E9>=0.75, E9<1, G9>=11.5),AND(A9="P", E9>=1, G9>=10.5),AND(A9="T", E9<0.75, G9>=12, I9>=3.3),AND(A9="T", E9>=0.75, E9<1, G9>=11.5, I9>=3.2),AND(A9="T", E9>=1, G9>=10.3, I9>=3.2)),"Yes","No") -> No | W9: =IF(OR(AND(A9="S", E9<5.4, F9>=16, G9>=12.5),AND(A9="U", E9<5.4, F9>=16, G9>=12),AND(A9="H", E9<5.4, F9>=16, G9>=14.6),AND(A9="S", E9>=5.4, E9<11.25, G9>=12, H9>=13.8),AND(A9="U", E9>=5.4, E9<11.25, G9>=12, H9>=13.8),AND(A9="H", E9>=5.4, E9<11.25, G9>=12, H9>=13.8),AND(A9="S",E9>=11.25,E9<20,G9>=11.8,H9>=13.2),AND(A9="U",E9>=11.25,E9<20,G9>=11.8,H9>=13.2),AND(A9="H",E9>=11.25,E9<20,G9>=11.8,H9>=13.2),AND(A9="S", E9>=20, E9<63.3, G9>=10.6, H9>=12.4),AND(A9="U", E9>=20, E9<63.3, G9>=10.6, H9>=12.4),AND(A9="H", E9>=20, E9<63.3, G9>=10.6, H9>=12.4),AND(A9="S", E9>=63.3, G9>=10.3, H9>=12.3),AND(A9="U", E9>=63.3, G9>=10.3, H9>=12.3),AND(A9="H", E9>=63.3, G9>=10.3, H9>=12.3)),"Yes",IF(OR(AND(A9="W"),AND(A9="P"),AND(A9="T")),"N/A","No")) -> No | Y9: =IF(OR(A9=#REF!,'HVAC Unitary'!D23=#REF!),'HVAC Unitary'!T23*'HVAC Unitary'!M23,R23*'HVAC Unitary'!M23*'HVAC Unitary'!G23) -> 
A10: U | B10: 2 | D10: 2 | E10: 2 | F10: 15 | G10: 15 | J10: 2 | K10: =IF(OR(AND(W10="Yes", E10<63.3)),75,IF(OR(AND(W10="No",V10="Yes", E10<63.3)),50,IF(OR(AND(W10="Yes", E10>=63.3)),20,IF(OR(AND(W10="No", V10="Yes", E10>=63.3)),15,IF(OR(AND(W10="N/A",V10="Yes",A10="W")),60,IF(OR(AND(W10="N/A",V10="Yes",A10="P",E10<0.75)),20,IF(OR(AND(W10="N/A",V10="Yes",A10="P",E10>=0.75,E10<1)),25,IF(OR(AND(W10="N/A",V10="Yes",A10="P",E10>=1)),35,IF(OR(AND(W10="N/A",V10="Yes",A10="T",E10<0.75)),20,IF(OR(AND(W10="N/A",V10="Yes",A10="T",E10>=0.75,E10<1)),25,IF(OR(AND(W10="N/A",V10="Yes",A10="T",E10>=1)),30,0))))))))))) -> 50 | M10: =IF(OR(AND(A10="P")),J10*K10,IF(OR(AND(A10="T")),J10*K10,E10*J10*K10)) -> 200 | U10: U | V10: =IF(OR(AND(A10="S", E10<5.4, F10>=15, G10>=12),AND(A10="U", E10<5.4, F10>=15, G10>=11.6),AND(A10="H", E10<5.4, F10>=15, G10>=14.3),AND(A10="S", E10>=5.4, E10<11.25, G10>=12, H10>=13.4),AND(A10="U", E10>=5.4, E10<11.25, G10>=12, H10>=13.4),AND(A10="H", E10>=5.4, E10<11.25, G10>=12, H10>=13.4),AND(A10="S",E10>=11.25,E10<20,G10>=11.8,H10>=12.8),AND(A10="U",E10>=11.25,E10<20,G10>=11.8,H10>=12.8),AND(A10="H",E10>=11.25,E10<20,G10>=11.8,H10>=12.8),AND(A10="S", E10>=20, E10<63.3, G10>=10.6, H10>=12.1),AND(A10="U", E10>=20, E10<63.3, G10>=10.6, H10>=12.1),AND(A10="H", E10>=20, E10<63.3, G10>=10.6, H10>=12.1),AND(A10="S", E10>=63.3, G10>=10.3, H10>=12),AND(A10="U", E10>=63.3, G10>=10.3, H10>=12),AND(A10="H", E10>=63.3, G10>=10.3, H10>=12),AND(A10="W", E10<5.4,G10>=14,H10>=13.4),AND(A10="W",E10>=5.4,E10<11.25,G10>=12.8,H10>=13.1),AND(A10="W",E10>=11.25,G10>=12,H10>=12.4),AND(A10="P", E10<0.75, G10>=12),AND(A10="P", E10>=0.75, E10<1, G10>=11.5),AND(A10="P", E10>=1, G10>=10.5),AND(A10="T", E10<0.75, G10>=12, I10>=3.3),AND(A10="T", E10>=0.75, E10<1, G10>=11.5, I10>=3.2),AND(A10="T", E10>=1, G10>=10.3, I10>=3.2)),"Yes","No") -> Yes | W10: =IF(OR(AND(A10="S", E10<5.4, F10>=16, G10>=12.5),AND(A10="U", E10<5.4, F10>=16, G10>=12),AND(A10="H", E10<5.4, F10>=16, G10>=14.6),AND(A10="S", E10>=5.4, E10<11.25, G10>=12, H10>=13.8),AND(A10="U", E10>=5.4, E10<11.25, G10>=12, H10>=13.8),AND(A10="H", E10>=5.4, E10<11.25, G10>=12, H10>=13.8),AND(A10="S",E10>=11.25,E10<20,G10>=11.8,H10>=13.2),AND(A10="U",E10>=11.25,E10<20,G10>=11.8,H10>=13.2),AND(A10="H",E10>=11.25,E10<20,G10>=11.8,H10>=13.2),AND(A10="S", E10>=20, E10<63.3, G10>=10.6, H10>=12.4),AND(A10="U", E10>=20, E10<63.3, G10>=10.6, H10>=12.4),AND(A10="H", E10>=20, E10<63.3, G10>=10.6, H10>=12.4),AND(A10="S", E10>=63.3, G10>=10.3, H10>=12.3),AND(A10="U", E10>=63.3, G10>=10.3, H10>=12.3),AND(A10="H", E10>=63.3, G10>=10.3, H10>=12.3)),"Yes",IF(OR(AND(A10="W"),AND(A10="P"),AND(A10="T")),"N/A","No")) -> No
A11: P | B11: 2 | D11: 2 | E11: 2 | F11: 15 | G11: 15 | J11: 1 | K11: 35 | M11: 35 | U11: H | V11: Yes | W11: N/A
A12: T | B12: 1 | D12: 1 | E12: 3 | F12: 15 | G12: 15 | I12: 8 | J12: 1 | K12: 30 | M12: 30 | U12: P | V12: Yes | W12: N/A
A13: H | B13: 1 | D13: 1 | E13: 3 | F13: 15 | G13: 15 | I13: 8 | J13: 1 | K13: 50 | M13: 150 | U13: T | V13: Yes | W13: No
K14: 0 | M14: 0 | V14: No | W14: No
K15: 0 | M15: 0 | V15: No | W15: No
K16: 0 | M16: 0 | V16: No | W16: No
K17: 0 | M17: 0 | V17: No | W17: No
K18: 0 | M18: 0 | V18: No | W18: No
K19: 0 | M19: 0 | V19: No | W19: No
K20: 0 | M20: 0 | V20: No | W20: No
K21: 0 | M21: 0 | V21: No | W21: No
K22: 0 | M22: 0 | V22: No | W22: No
K23: 0 | M23: 0 | V23: No | W23: No
A24: Attach additional worksheets if needed | K24: Total Requested Incentive | M24: =SUM(M9:M23) -> 415
A27: TABLE 2: QUALIFYING EFFICIENCY AND INCENTIVES
A28: Size Category (tons) | D28: Sub-Category | G28: Tier 1 Minimum Requirement | I28: Tier 1 Incentive | J28: Tier 2 Minimum Requirement | L28: Tier 2 Incentive
A29: Air Conditioners (Cooling Mode) - Unitary and Split Systems
A30: < 5.4 | D30: Split System | G30: 15.0 SEER and 12.0 EER | I30: $75/ton | J30: 16.0 SEER and 12.5 EER | L30: $100/ton
D31: Single Package | G31: 15.0 SEER and 11.6 EER | J31: 16.0 SEER and 12.0 EER
A32: ≥ 5.4 and < 11.25 | D32: Split System and Single Package | G32: 12.0 EER and 13.4 IEER | I32: $60/ton | J32: 12.0 EER and 13.8 IEER | L32: $75/ton
A33: ≥ 11.25 and < 20 | D33: Split System and Single Package | G33: 11.8 EER and 12.8 IEER | I33: $50/ton | J33: 11.8 EER and 13.2 IEER | L33: $70/ton
A34: ≥ 20 and < 63.3 | D34: Split System and Single Package | G34: 10.6 EER and 12.1 IEER | I34: $40/ton | J34: 10.6 EER and 12.4 IEER | L34: $60/ton
A35: ≥ 63.3 | D35: Split System and Single Package | G35: 10.3 EER and 12.0 IEER | I35: $15/ton | J35: 10.3 EER and 12.3 IEER | L35: $20/ton
A36: Air Source Heat Pumps (Cooling Mode) - Unitary and Split Systems
A37: < 5.4 | D37: Split System and Single Package | G37: 15.0 SEER and 14.3 EER | I37: $100/ton | J37: 16.0 SEER and 14.6 EER | L37: $125/ton
A38: ≥ 5.4 and < 11.25 | D38: Split System and Single Package | G38: 12.0 EER and 13.4 IEER | I38: $75/ton | J38: 12.0 EER and 13.8 IEER | L38: $100/ton
A39: ≥ 11.25 and < 20 | D39: Split System and Single Package | G39: 11.8 EER and 12.8 IEER | I39: $55/ton | J39: 11.8 EER and 13.2 IEER | L39: $80/ton
A40: ≥ 20 and < 63.3 | D40: Split System and Single Package | G40: 10.6 EER and 12.1 IEER | I40: $50/ton | J40: 10.6 EER and 12.4 IEER | L40: $75/ton
A41: ≥ 63.3 | D41: Split System and Single Package | G41: 10.3 EER and 12.0 IEER | I41: $20/ton | J41: 10.3 EER and 12.3 IEER | L41: $25/ton
A42: Packaged Terminal Air Conditioner (PTAC)
A43: < 0.75 | D43: Single Package | G43: 12.0 EER | I43: $20/unit | J43: N/A | L43: N/A
A44: ≥ 0.75 and < 1.0 | G44: 11.5 EER | I44: $30/unit | J44: N/A | L44: N/A
A45: ≥ 1.0 | G45: 10.5 EER | I45: $40/unit | J45: N/A | L45: N/A
A46: Packaged Terminal Heat Pump (PTHP)
A47: < 0.75 | D47: Single Package | G47: 12.0 EER and 3.3 COP | I47: $40/unit | J47: N/A | L47: N/A
A48: ≥ 0.75 and < 1.0 | G48: 11.5 EER and 3.2 COP | I48: $50/unit | J48: N/A | L48: N/A
A49: ≥ 1.0 | G49: 10.3 EER and 3.2 COP | I49: $60/unit | J49: N/A | L49: N/A
A50: Note: Tons are based on 12,000 BTUH net output per ton.
M51: ="Version " & 'Version Tracking'!C4 -> Version 15.2

Sheet Measure Code Summary (hidden)
B4: Measure Summary
B5: ="Version # "&'Version Tracking'!C4 -> Version # 15.2
B7: Copyright © 2015 ICF Resources, LLC, All Rights Reserved. Do not copy, distribute or quote without ICF’s written permission.
B9: Required General Project Information
C11: Project Name | D11: =#REF! ->  | G11: Prepared By
C12: Project Address | D12: =#REF! ->  | G12: Contact Person | H12: =#REF! -> 
C13: City | D13: =#REF! ->  | G13: Phone | H13: =#REF! -> 
C14: ZIP | D14: =#REF! ->  | G14: Email | H14: =#REF! -> 
B17: Unitary HVAC Equipment Information
B18: Equipment | C18: Manufacturer | D18: Model Number | E18: Unit Size (Tons) | F18: Unit Efficiency | I18: Incentive $/Ton | J18: Quantity | K18: Subtotal Incentive
F19: SEER or IEER | G19: EER | H19: COP
B20: =IF('HVAC Unitary'!D23="","",'HVAC Unitary'!D23) ->  | C20: =IF('HVAC Unitary'!E23="","",'HVAC Unitary'!E23) ->  | D20: =IF('HVAC Unitary'!F23="","",'HVAC Unitary'!F23) ->  | E20: =IF('HVAC Unitary'!G23="","",'HVAC Unitary'!G23) ->  | F20: =IF('HVAC Unitary'!K23="","",'HVAC Unitary'!K23) ->  | G20: =IF('HVAC Unitary'!J23="","",'HVAC Unitary'!J23) ->  | H20: =IF('HVAC Unitary'!L23="","",'HVAC Unitary'!L23) ->  | I20: =IF(OR(K20="",E20=""),"",K20/E20/J20) ->  | J20: =IF('HVAC Unitary'!M23="","",'HVAC Unitary'!M23) ->  | K20: =IF('HVAC Unitary'!N23="","",'HVAC Unitary'!N23) -> 0
B21: =IF('HVAC Unitary'!D24="","",'HVAC Unitary'!D24) ->  | C21: =IF('HVAC Unitary'!E24="","",'HVAC Unitary'!E24) ->  | D21: =IF('HVAC Unitary'!F24="","",'HVAC Unitary'!F24) ->  | E21: =IF('HVAC Unitary'!G24="","",'HVAC Unitary'!G24) ->  | F21: =IF('HVAC Unitary'!K24="","",'HVAC Unitary'!K24) ->  | G21: =IF('HVAC Unitary'!J24="","",'HVAC Unitary'!J24) ->  | H21: =IF('HVAC Unitary'!L24="","",'HVAC Unitary'!L24) ->  | I21: =IF(OR(K21="",E21=""),"",K21/E21/J21) ->  | J21: =IF('HVAC Unitary'!M24="","",'HVAC Unitary'!M24) ->  | K21: =IF('HVAC Unitary'!N24="","",'HVAC Unitary'!N24) -> 0
B22: =IF('HVAC Unitary'!D25="","",'HVAC Unitary'!D25) ->  | C22: =IF('HVAC Unitary'!E25="","",'HVAC Unitary'!E25) ->  | D22: =IF('HVAC Unitary'!F25="","",'HVAC Unitary'!F25) ->  | E22: =IF('HVAC Unitary'!G25="","",'HVAC Unitary'!G25) ->  | F22: =IF('HVAC Unitary'!K25="","",'HVAC Unitary'!K25) ->  | G22: =IF('HVAC Unitary'!J25="","",'HVAC Unitary'!J25) ->  | H22: =IF('HVAC Unitary'!L25="","",'HVAC Unitary'!L25) ->  | J22: =IF('HVAC Unitary'!M25="","",'HVAC Unitary'!M25) ->  | K22: =IF('HVAC Unitary'!N25="","",'HVAC Unitary'!N25) -> 0
B23: =IF('HVAC Unitary'!D26="","",'HVAC Unitary'!D26) ->  | C23: =IF('HVAC Unitary'!E26="","",'HVAC Unitary'!E26) ->  | D23: =IF('HVAC Unitary'!F26="","",'HVAC Unitary'!F26) ->  | E23: =IF('HVAC Unitary'!G26="","",'HVAC Unitary'!G26) ->  | F23: =IF('HVAC Unitary'!K26="","",'HVAC Unitary'!K26) ->  | G23: =IF('HVAC Unitary'!J26="","",'HVAC Unitary'!J26) ->  | H23: =IF('HVAC Unitary'!L26="","",'HVAC Unitary'!L26) ->  | J23: =IF('HVAC Unitary'!M26="","",'HVAC Unitary'!M26) ->  | K23: =IF('HVAC Unitary'!N26="","",'HVAC Unitary'!N26) -> 0
B24: =IF('HVAC Unitary'!D27="","",'HVAC Unitary'!D27) ->  | C24: =IF('HVAC Unitary'!E27="","",'HVAC Unitary'!E27) ->  | D24: =IF('HVAC Unitary'!F27="","",'HVAC Unitary'!F27) ->  | E24: =IF('HVAC Unitary'!G27="","",'HVAC Unitary'!G27) ->  | F24: =IF('HVAC Unitary'!K27="","",'HVAC Unitary'!K27) ->  | G24: =IF('HVAC Unitary'!J27="","",'HVAC Unitary'!J27) ->  | H24: =IF('HVAC Unitary'!L27="","",'HVAC Unitary'!L27) ->  | J24: =IF('HVAC Unitary'!M27="","",'HVAC Unitary'!M27) ->  | K24: =IF('HVAC Unitary'!N27="","",'HVAC Unitary'!N27) -> 0
B25: =IF('HVAC Unitary'!D28="","",'HVAC Unitary'!D28) ->  | C25: =IF('HVAC Unitary'!E28="","",'HVAC Unitary'!E28) ->  | D25: =IF('HVAC Unitary'!F28="","",'HVAC Unitary'!F28) ->  | E25: =IF('HVAC Unitary'!G28="","",'HVAC Unitary'!G28) ->  | F25: =IF('HVAC Unitary'!K28="","",'HVAC Unitary'!K28) ->  | G25: =IF('HVAC Unitary'!J28="","",'HVAC Unitary'!J28) ->  | H25: =IF('HVAC Unitary'!L28="","",'HVAC Unitary'!L28) ->  | J25: =IF('HVAC Unitary'!M28="","",'HVAC Unitary'!M28) ->  | K25: =IF('HVAC Unitary'!N28="","",'HVAC Unitary'!N28) -> 0
B26: =IF('HVAC Unitary'!D29="","",'HVAC Unitary'!D29) ->  | C26: =IF('HVAC Unitary'!E29="","",'HVAC Unitary'!E29) ->  | D26: =IF('HVAC Unitary'!F29="","",'HVAC Unitary'!F29) ->  | E26: =IF('HVAC Unitary'!G29="","",'HVAC Unitary'!G29) ->  | F26: =IF('HVAC Unitary'!K29="","",'HVAC Unitary'!K29) ->  | G26: =IF('HVAC Unitary'!J29="","",'HVAC Unitary'!J29) ->  | H26: =IF('HVAC Unitary'!L29="","",'HVAC Unitary'!L29) ->  | J26: =IF('HVAC Unitary'!M29="","",'HVAC Unitary'!M29) ->  | K26: =IF('HVAC Unitary'!N29="","",'HVAC Unitary'!N29) -> 0
B27: =IF('HVAC Unitary'!D30="","",'HVAC Unitary'!D30) ->  | C27: =IF('HVAC Unitary'!E30="","",'HVAC Unitary'!E30) ->  | D27: =IF('HVAC Unitary'!F30="","",'HVAC Unitary'!F30) ->  | E27: =IF('HVAC Unitary'!G30="","",'HVAC Unitary'!G30) ->  | F27: =IF('HVAC Unitary'!K30="","",'HVAC Unitary'!K30) ->  | G27: =IF('HVAC Unitary'!J30="","",'HVAC Unitary'!J30) ->  | H27: =IF('HVAC Unitary'!L30="","",'HVAC Unitary'!L30) ->  | J27: =IF('HVAC Unitary'!M30="","",'HVAC Unitary'!M30) ->  | K27: =IF('HVAC Unitary'!N30="","",'HVAC Unitary'!N30) -> 0
B28: =IF('HVAC Unitary'!D31="","",'HVAC Unitary'!D31) ->  | C28: =IF('HVAC Unitary'!E31="","",'HVAC Unitary'!E31) ->  | D28: =IF('HVAC Unitary'!F31="","",'HVAC Unitary'!F31) ->  | E28: =IF('HVAC Unitary'!G31="","",'HVAC Unitary'!G31) ->  | F28: =IF('HVAC Unitary'!K31="","",'HVAC Unitary'!K31) ->  | G28: =IF('HVAC Unitary'!J31="","",'HVAC Unitary'!J31) ->  | H28: =IF('HVAC Unitary'!L31="","",'HVAC Unitary'!L31) ->  | J28: =IF('HVAC Unitary'!M31="","",'HVAC Unitary'!M31) ->  | K28: =IF('HVAC Unitary'!N31="","",'HVAC Unitary'!N31) -> 0
B29: =IF('HVAC Unitary'!D32="","",'HVAC Unitary'!D32) ->  | C29: =IF('HVAC Unitary'!E32="","",'HVAC Unitary'!E32) ->  | D29: =IF('HVAC Unitary'!F32="","",'HVAC Unitary'!F32) ->  | E29: =IF('HVAC Unitary'!G32="","",'HVAC Unitary'!G32) ->  | F29: =IF('HVAC Unitary'!K32="","",'HVAC Unitary'!K32) ->  | G29: =IF('HVAC Unitary'!J32="","",'HVAC Unitary'!J32) ->  | H29: =IF('HVAC Unitary'!L32="","",'HVAC Unitary'!L32) ->  | J29: =IF('HVAC Unitary'!M32="","",'HVAC Unitary'!M32) ->  | K29: =IF('HVAC Unitary'!N32="","",'HVAC Unitary'!N32) -> 0
I30: Total Pre-approved Incentive | K30: =SUM(K20:K29) -> 0

Sheet Version Tracking (hidden)
B4: Current: | C4: =LOOKUP(2,1/(B1:B49991<>""),B1:B49991) -> 15.2
B5: Version | C5: Notes | D5: Date | E5: Updated By
B6: 2.1 | C6: All editing and revisions required | D6: 2015-09-24 | E6: JZ
B7: 2.2 | C7: Added formulas to calculate incentives | D7: 2015-09-25 | E7: RC
B8: 2.3 | C8: Removed link to external workbook | D8: 2015-09-29 | E8: RM
B9: 2.4 | C9: Formatting, added buttons for tab, adjusted based on Jennifer's feedback | D9: 2015-10-21 | E9: RM
B10: 2.5 | C10: Added equipment tab instructions, changed tab colors, minor edits | D10: 2015-10-22 | E10: JZ
B11: 2.6 | C11: Added equipment buttons | D11: 2015-10-22 | E11: RM
B12: 2.7 | C12: Minor content edits | D12: 2015-10-27 | E12: Jennifer Mosser
B13: 2.8 | C13: Minor edits and fix radio button on CI tab | D13: 2015-11-20 | E13: JZ and RM
B14: 2.9 | C14: Additional minor edits | D14: 2015-11-20 | E14: JZ and RC
B15: 3 | C15: Increased >1 ton PTHP COP requirement and adjusted formulas | D15: 2016-02-29 | E15: RC
B16: 3.1 | C16: Fixed text on Equipment Input Instructions tab | D16: 2016-09-14 | E16: RC
B17: 3.2 | C17: Updated unitary and chiller incentives for 2017 | D17: 2017-01-18 | E17: RC
B18: 3.3 | C18: Added additonal contact. Changed Project Informaiton tab title from Customer Information tab. Formatting | D18: 2017-01-20 | E18: JZ
B19: 3.4 | C19: Increased ACC VFD performance incentive cap | D19: 2017-01-23 | E19: RC
B20: 3.5 | C20: reduced incentives, increased ACC VFD IPLV | D20: 2017-02-02 | E20: RC
B21: 3.6 | C21: Revisions requested by Annika Goodson | D21: 2017-02-02 | E21: Mary Freibert
B22: 3.7 | C22: Language revisions and fixed buttons | D22: 2017-11-13 | E22: RC
B23: 3.8 | C23: Updated efficiency requirements | D23: 2018-07-17 | E23: RC
B24: 3.9 | C24: Final efficiency requirements | D24: 2018-07-31 | E24: RC
B25: 10.1 | C25: Updated Dominion Branding and T&Cs | D25: 2020-08-27 | E25: JSE
B26: 10.2 | C26: Updated Cap, and adjusted incentive ammounts | D26: 2021-02-16 | E26: JSE
B27: 10.3 | C27: fixed incentive calculator | D27: 2021-03-19 | E27: JSE
B28: 10.3 | C28: I renamed the Input tab to HVAC Unitary, and moved the incentive guidance to this tab. This will allow input data to nom longer need to be transcribed. Also removed many of the superflous fields on the AEG import tab | D28: 3/99/2021 | E28: mds
B29: 10.4 | C29: Fixed incentives for Heatpump up dated PY11 Table | D29: 2021-03-26 | E29: JSE
B30: 10.5 | C30: Sixed incentive for VFDs < 1HP | D30: 2021-03-31
B31: 10.6 | C31: Added Cool Roof calculator tab | D31: 2021-07-27 | E31: Sean Creel
B32: 10.7 | C32: Added cool roof savings calculations and AEG import for cool roof and window film. | D32: 2022-03-22 | E32: JME
B33: 10.8 | C33: Updated AEG import to be total savings and incentives and not based on a per unit amount / Updated Eligibility language on T&Cs and added w-9 and invoicing requirements | D33: 2022-09-15 | E33: JME / LS
B34: 10.9 | C34: Updated efficiency requirements on HVAC application. Added model request on VFD/Cool Roof/Window Film tabs. Reworked HVAC measures to be calculated savings and incorporate new SEER ratings | D34: 2023-03-22 | E34: LS / JME
B35: 10.10 | C35: Fixed formula for HSPF conversion to COP on min requirements | D35: 2023-05-21 | E35: JME
B36: 10.11 | C36: Fixed proposed PTHP heating efficiency calcs | D36: 2023-08-09 | E36: JME
B37: 10.12 | C37: Updated Email and Website. Updated Cool Roof requirements. Fixed incentive calculation error in table on HVAC unitary tab | D37: 2023-09-14 | E37: LS / JME
B38: 14.1 | C38: Updated the calculator to reflect latest TRM changes | D38: 2023-11-20 | E38: Thomaskutty Jaison
B39: 14.2 | C39: Fixed email and radio buttons. | D39: 2024-02-16 | E39: LS
B40: 14.3 | C40: Fixed Email, MC Summary, added IF statement to HVAC calcs for negative kW, Updated Technical Req for HVAC unitary tab. | D40: 2024-03-25 | E40: LS
B41: 15.1 | C41: Updated workbook formatting and added HPWH, ARC, and GREM measures. | D41: 2025-03-09 | E41: LS / JME
B42: 15.2 | C42: Added savings calc for Chiller and VFD and have updated AEG import tab as well. Updated PTAC/PTHP baselines to align with CEAM for size ranges but left qualification requirements as per current offerings | D42: 2025-06-13 | E42: TKJ/JME

Sheet Old Summary (hidden)
B4: Measure Summary
B5: ="Version # "&'Version Tracking'!C4 -> Version # 15.2
B7: Copyright © 2010 ICF Resources, LLC, All Rights Reserved. Do not copy, distribute or quote without ICF’s written permission.
B9: Required General Project Information
C11: Project Name | D11: =IF('HVAC Unitary'!D11="","",'HVAC Unitary'!D11) ->  | G11: Prepared By | H11: =IF('HVAC Unitary'!G11="","",'HVAC Unitary'!G11) -> 
C12: Project Address | D12: =IF('HVAC Unitary'!D12="","",'HVAC Unitary'!D12) ->  | G12: Contact Person | H12: =IF('HVAC Unitary'!G12="","",'HVAC Unitary'!G12) -> 
C13: City | D13: =IF('HVAC Unitary'!D13="","",'HVAC Unitary'!D13) ->  | G13: Phone | H13: =IF('HVAC Unitary'!G13="","",'HVAC Unitary'!G13) -> 
C14: ZIP | D14: =IF('HVAC Unitary'!D14="","",'HVAC Unitary'!D14) ->  | G14: Email | H14: =IF('HVAC Unitary'!G14="","",'HVAC Unitary'!G14) -> 
B17: Unitary HVAC Measures and Incentives
B18: Size Category (Tons) | D18: Sub-Category | E18: Tier 1 Minimum Requirement | F18: Tier 1 Quantity | G18: Tier 1 Incentive | H18: Tier 2 Minimum Requirement | I18: Tier 2 Quantity | J18: Tier 2 Incentive | K18: Total Incentive
B20: Minimum Size (Greater Than or Equal To) | C20: Maximum Size (Less Than, Not Equal To)
B21: Air Conditioners and Heat Pumps (Cooling Mode) - Unitary and Matched Split Systems
B22: 0 | C22: 5.4 | D22: Split System | E22: 14.0 SEER and 12.0 EER | F22: =SUMIF('HVAC Unitary'!#REF!,"Tier 1_Unitary_"&$B22,'HVAC Unitary'!$M$23:$M$32) ->  | G22: $20 / ton | H22: 15.0 SEER and 12.5 EER | I22: =SUMIF('HVAC Unitary'!#REF!,"Tier 2_Unitary_"&$B22,'HVAC Unitary'!$M$23:$M$32) ->  | J22: $30 / ton | K22: =SUMIF('HVAC Unitary'!#REF!,"Tier 1_Unitary_"&$B22,'HVAC Unitary'!$S$23:$S$32)+SUMIF('HVAC Unitary'!#REF!,"Tier 2_Unitary_"&$B22,'HVAC Unitary'!$S$23:$S$32) -> 
D23: Single Package | E23: 14.0 SEER and 11.6 EER | H23: 15.0 SEER and 12.0 EER
B24: 5.4 | C24: 20 | D24: Split System and Single Package | E24: 11.5 EER and 11.7 IEER | F24: =SUMIF('HVAC Unitary'!#REF!,"Tier 1_Unitary_"&$B24,'HVAC Unitary'!$M$23:$M$32) ->  | G24: $20 / ton | H24: 12.0 EER and 12.2 IEER | I24: =SUMIF('HVAC Unitary'!#REF!,"Tier 2_Unitary_"&$B24,'HVAC Unitary'!$M$23:$M$32) ->  | J24: $30 / ton | K24: =SUMIF('HVAC Unitary'!#REF!,"Tier 1_Unitary_"&$B24,'HVAC Unitary'!$S$23:$S$32)+SUMIF('HVAC Unitary'!#REF!,"Tier 2_Unitary_"&$B24,'HVAC Unitary'!$S$23:$S$32) -> 
B25: 20 | C25: 63 | D25: Split System and Single Package | E25: 10.5 EER and 10.6 IEER | F25: =SUMIF('HVAC Unitary'!#REF!,"Tier 1_Unitary_"&$B25,'HVAC Unitary'!$M$23:$M$32) ->  | G25: $20 / ton | H25: 10.85 EER and 11.0 IEER | I25: =SUMIF('HVAC Unitary'!#REF!,"Tier 2_Unitary_"&$B25,'HVAC Unitary'!$M$23:$M$32) ->  | J25: $30 / ton | K25: =SUMIF('HVAC Unitary'!#REF!,"Tier 1_Unitary_"&$B25,'HVAC Unitary'!$S$23:$S$32)+SUMIF('HVAC Unitary'!#REF!,"Tier 2_Unitary_"&$B25,'HVAC Unitary'!$S$23:$S$32) -> 
B26: 63 | D26: Split System and Single Package | E26: 9.7 EER and 9.8 IEER | F26: =SUMIF('HVAC Unitary'!#REF!,"Tier 1_Unitary_"&$B26,'HVAC Unitary'!$M$23:$M$32) ->  | G26: $10 / ton | H26: 10.2 EER and 10.3 IEER | I26: =SUMIF('HVAC Unitary'!#REF!,"Tier 2_Unitary_"&$B26,'HVAC Unitary'!$M$23:$M$32) ->  | J26: $15 / ton | K26: =SUMIF('HVAC Unitary'!#REF!,"Tier 1_Unitary_"&$B26,'HVAC Unitary'!$S$23:$S$32)+SUMIF('HVAC Unitary'!#REF!,"Tier 2_Unitary_"&$B26,'HVAC Unitary'!$S$23:$S$32) -> 
B28: Air Conditioners and Heat Pumps (Cooling Mode) - Water and Evaporative
B29: 0 | C29: 5.4 | D29: Split System and Single Package | E29: 14.0 EER and 14.2 IEER | F29: =SUMIF('HVAC Unitary'!#REF!,"Tier 1_Water_"&$B29,'HVAC Unitary'!$M$23:$M$32) ->  | G29: $30 / ton | H29: N/A | I29: =SUMIF('HVAC Unitary'!#REF!,"Tier 2_Water_"&$B29,'HVAC Unitary'!$M$23:$M$32) ->  | J29: N/A | K29: =SUMIF('HVAC Unitary'!#REF!,"Tier 1_Water_"&$B29,'HVAC Unitary'!$S$23:$S$32)+SUMIF('HVAC Unitary'!#REF!,"Tier 2_Water_"&$B29,'HVAC Unitary'!$S$23:$S$32) -> 
B30: 5.4 | C30: 11.25 | D30: Split System and Single Package | E30: 14.0 EER and 14.2 IEER | F30: =SUMIF('HVAC Unitary'!#REF!,"Tier 1_Water_"&$B30,'HVAC Unitary'!$M$23:$M$32) ->  | G30: $30 / ton | H30: N/A | I30: =SUMIF('HVAC Unitary'!#REF!,"Tier 2_Water_"&$B30,'HVAC Unitary'!$M$23:$M$32) ->  | J30: N/A | K30: =SUMIF('HVAC Unitary'!#REF!,"Tier 1_Water_"&$B30,'HVAC Unitary'!$S$23:$S$32)+SUMIF('HVAC Unitary'!#REF!,"Tier 2_Water_"&$B30,'HVAC Unitary'!$S$23:$S$32) -> 
B31: 11.25 | D31: Split System and Single Package | E31: 14.0 EER and 14.2 IEER | F31: =SUMIF('HVAC Unitary'!#REF!,"Tier 1_Water_"&$B31,'HVAC Unitary'!$M$23:$M$32) ->  | G31: $30 / ton | H31: N/A | I31: =SUMIF('HVAC Unitary'!#REF!,"Tier 2_Water_"&$B31,'HVAC Unitary'!$M$23:$M$32) ->  | J31: N/A | K31: =SUMIF('HVAC Unitary'!#REF!,"Tier 1_Water_"&$B31,'HVAC Unitary'!$S$23:$S$32)+SUMIF('HVAC Unitary'!#REF!,"Tier 2_Water_"&$B31,'HVAC Unitary'!$S$23:$S$32) -> 
B33: Packaged Terminal Air Conditioner (PTAC)
B34: 0 | C34: 0.75 | D34: Single Package | E34: 11.8 EER | F34: =SUMIF('HVAC Unitary'!#REF!,"Tier 1_PTAC_"&$B34,'HVAC Unitary'!$M$23:$M$32) ->  | G34: $10 / ton | H34: N/A | I34: =SUMIF('HVAC Unitary'!#REF!,"Tier 2_PTAC_"&$B34,'HVAC Unitary'!$M$23:$M$32) ->  | J34: N/A | K34: =SUMIF('HVAC Unitary'!#REF!,"Tier 1_PTAC_"&$B34,'HVAC Unitary'!$S$23:$S$32)+SUMIF('HVAC Unitary'!#REF!,"Tier 2_PTAC_"&$B34,'HVAC Unitary'!$S$23:$S$32) -> 
B35: 0.75 | C35: 1 | E35: 11.0 EER | F35: =SUMIF('HVAC Unitary'!#REF!,"Tier 1_PTAC_"&$B35,'HVAC Unitary'!$M$23:$M$32) ->  | G35: $15 / ton | H35: N/A | I35: =SUMIF('HVAC Unitary'!#REF!,"Tier 2_PTAC_"&$B35,'HVAC Unitary'!$M$23:$M$32) ->  | J35: N/A | K35: =SUMIF('HVAC Unitary'!#REF!,"Tier 1_PTAC_"&$B35,'HVAC Unitary'!$S$23:$S$32)+SUMIF('HVAC Unitary'!#REF!,"Tier 2_PTAC_"&$B35,'HVAC Unitary'!$S$23:$S$32) -> 
B36: 1 | E36: 10.3 EER | F36: =SUMIF('HVAC Unitary'!#REF!,"Tier 1_PTAC_"&$B36,'HVAC Unitary'!$M$23:$M$32) ->  | G36: $20 / ton | H36: N/A | I36: =SUMIF('HVAC Unitary'!#REF!,"Tier 2_PTAC_"&$B36,'HVAC Unitary'!$M$23:$M$32) ->  | J36: N/A | K36: =SUMIF('HVAC Unitary'!#REF!,"Tier 1_PTAC_"&$B36,'HVAC Unitary'!$S$23:$S$32)+SUMIF('HVAC Unitary'!#REF!,"Tier 2_PTAC_"&$B36,'HVAC Unitary'!$S$23:$S$32) -> 
B38: Packaged Terminal Heat Pump (PTHP)
B39: 0 | C39: 0.75 | D39: Single Package | E39: 11.5 EER and 3.3 COP | F39: =SUMIF('HVAC Unitary'!#REF!,"Tier 1_PTHP_"&$B39,'HVAC Unitary'!$M$23:$M$32) ->  | G39: $10 / ton | H39: N/A | I39: =SUMIF('HVAC Unitary'!#REF!,"Tier 2_PTHP_"&$B39,'HVAC Unitary'!$M$23:$M$32) ->  | J39: N/A | K39: =SUMIF('HVAC Unitary'!#REF!,"Tier 1_PTHP_"&$B39,'HVAC Unitary'!$S$23:$S$32)+SUMIF('HVAC Unitary'!#REF!,"Tier 2_PTHP_"&$B39,'HVAC Unitary'!$S$23:$S$32) -> 
B40: 0.75 | C40: 1 | E40: 10.8 EER and 3.2 COP | F40: =SUMIF('HVAC Unitary'!#REF!,"Tier 1_PTHP_"&$B40,'HVAC Unitary'!$M$23:$M$32) ->  | G40: $15 / ton | H40: N/A | I40: =SUMIF('HVAC Unitary'!#REF!,"Tier 2_PTHP_"&$B40,'HVAC Unitary'!$M$23:$M$32) ->  | J40: N/A | K40: =SUMIF('HVAC Unitary'!#REF!,"Tier 1_PTHP_"&$B40,'HVAC Unitary'!$S$23:$S$32)+SUMIF('HVAC Unitary'!#REF!,"Tier 2_PTHP_"&$B40,'HVAC Unitary'!$S$23:$S$32) -> 
B41: 1 | E41: 10.1 EER and 3.1 COP | F41: =SUMIF('HVAC Unitary'!#REF!,"Tier 1_PTHP_"&$B41,'HVAC Unitary'!$M$23:$M$32) ->  | G41: $20 / ton | H41: N/A | I41: =SUMIF('HVAC Unitary'!#REF!,"Tier 2_PTHP_"&$B41,'HVAC Unitary'!$M$23:$M$32) ->  | J41: N/A | K41: =SUMIF('HVAC Unitary'!#REF!,"Tier 1_PTHP_"&$B41,'HVAC Unitary'!$S$23:$S$32)+SUMIF('HVAC Unitary'!#REF!,"Tier 2_PTHP_"&$B41,'HVAC Unitary'!$S$23:$S$32) -> 
J42: Total Incentive | K42: =SUM(K22:K41) -> 

Sheet Attribute Crosswalk (hidden)
A1: Product Name | B1: Attribute | C1: Plain English Description | D1: Default Value | E1: Validation Type | G1: In AEG Import Template
A2: Heat-pump Water Heater | B2: ELEC_UTIL_CUST_INCENTIVE | C2: Incentive per Unit | E2: Numeric | G2: New attributes needed
B3: KWH_IMPACT | C3: kWh Savings per Unit | E3: Numeric
B4: MODEL | C4: Model | E4: Text
B5: INSTALL_TYPE_SEL | C5: Control Type | E5: Text
B6: CUSTOMER_REFID | C6: Measure Code | D6: HPWH | E6: Text
B7: KW_WINTER_1 | C7: Winter Peak Demand Savings | E7: Numeric
B8: KW_SUMMER_GROSS
B9: UEF | C9: UEF | E9: Numeric
B10: BUILDING_TYPE_SEL | C10: Building Type | E10: Text
B11: BACKUP_TANK_GALLON | C11: Storage size | E11: Numeric
B12: CALCULATOR_VERSION | C12: Calculator Version | E12: Text
B13: Quantity | C13: Quantity | E13: Numeric
B14: MANUFACTURER | C14: Manufacturer | E14: Text
B15: INCENTIVE_PER_UNIT | C15: Incentive per Unit | E15: Numeric
B16: KW_IMPACT | C16: Winter Peak Demand Savings | E16: Numeric
B17: NATURAL_GAS_SAVINGS_MMBTU | E17: Numeric
B18: MEASURE_LIFE | C18: Measure Life | E18: Numeric
B19: Draw_Pattern | C19: Draw Pattern | E19: Text
B20: Location | C20: HPWH Location | E20: Text
A22: Product Name | B22: Attribute | C22: Plain English Description | D22: Default Value | E22: Validation Type
A23: Advanced Rooftop Control (ARC) | B23: MEASURE_LIFE | C23: Measure Life | E23: Numeric
B24: CALCULATOR_VERSION | C24: Calculator Version | E24: Text
B25: CUSTOMER_REFID | C25: Measure Code | D25: ARC | E25: Text
B26: TONS
B27: KWH_IMPACT | C27: kWh Savings per Unit | E27: Numeric
B28: INCENTIVE_PER_UNIT | C28: Incentive per Unit | E28: Numeric
B29: ELEC_UTIL_CUST_INCENTIVE | C29: Incentive per Unit | E29: Numeric
B30: MANUFACTURER | C30: Manufacturer | E30: Text
B31: KW_SUMMER_GROSS
B32: KW_IMPACT | C32: Winter Peak Demand Savings | E32: Numeric
B33: NATURAL_GAS_SAVINGS_MMBTU | E33: Numeric
B34: BUILDING_TYPE_SEL | C34: Building Type | E34: Text
B35: INSTALL_TYPE_SEL | C35: Control Type | E35: Text
B36: MODEL | C36: Model | E36: Text
B37: KW_WINTER_1 | C37: Winter Peak Demand Savings | E37: Numeric
B38: Quantity | C38: Quantity | E38: Numeric
B39: heating_cap_btuh | C39: Heating Capacity (btuh) | E39: Numeric
B40: cooling_cap_btuh | C40: Cooling Capacity (btuh) | E40: Numeric
B41: heating_type | C41: Heating Type | E41: Text
A43: Product Name | B43: Attribute | C43: Plain English Description | D43: Default Value | E43: Validation Type
A44: Guestroom Controls | B44: NATURAL_GAS_SAVINGS_MMBTU | E44: Numeric
B45: BUILDING_TYPE_SEL | C45: Building Type | E45: Text
B46: Quantity | C46: Quantity | E46: Numeric
B47: KW_SUMMER_GROSS
B48: KWH_IMPACT | C48: kWh Savings per Unit | E48: Numeric
B49: CONTROL_TYPE | C49: Temperature Control Setback/Setup
B50: TYPE_SEL | C50: HVAC Type
B51: INCENTIVE_PER_UNIT | C51: Incentive per Unit | E51: Numeric
B52: KW_WINTER_1 | C52: Winter Peak Demand Savings | E52: Numeric
B53: MANUFACTURER | C53: Manufacturer | E53: Text
B54: INSTALL_TYPE_SEL | C54: Controlled Equipment | E54: Text
B55: KW_IMPACT | C55: Winter Peak Demand Savings | E55: Numeric
B56: ELEC_UTIL_CUST_INCENTIVE | C56: Incentive per Unit | E56: Numeric
B57: CALCULATOR_VERSION | C57: Calculator Version | E57: Text
B58: CUSTOMER_REFID | C58: Measure Code | D58: GRC | E58: Text
B59: MODEL | C59: Model | E59: Text
B60: MEASURE_LIFE | C60: Measure Life | E60: Numeric

Sheet AEG Import (hidden)
A1: Measure # | B1: Import? | C1: CALCULATOR_VERSION | D1: building_type_sel | E1: EER | F1: SEER | G1: COP | H1: EER_2 | I1: SEER_2 | J1: HSPF_2 | K1: Full_Load | L1: Half_Load | M1: Base_incentive_Per_Unit | N1: Base_Total_incentive_Per_Unit | O1: Performance_Incentive_Per_Unit | P1: Performance_Total_Incentive_Per_Unit | Q1: Elec_Util_cust_Incentive | R1: Incentive_Per_Unit | S1: kW_Impact | T1: kW_Summer_Gross | U1: KW_WINTER_1 | V1: kWh_Impact | W1: Manufacturer | X1: Measure_Life | Y1: Model | Z1: name | AA1: quantity | AB1: Tons | AC1: SUB_COMPONENT_1 | AD1: SUB_COMPONENT_2 | AE1: Square_feet | AF1: SHGC | AG1: INSTALL_TYPE_SEL | AH1: Horse_Power | AI1: heating_cap_btuh | AJ1: cooling_cap_btuh | AK1: heating_type | AL1: CUSTOMER_REFID | AM1: Control_Type | AN1: Control_Type | AO1: UEF | AP1: BACKUP_TANK_GALLON | AQ1: Location | AR1: Control_Type_sel | AS1: Draw_Pattern
B2: No | C2: HVAC Unitary
A3: =VLOOKUP(Z3,Validation!$C$3:$D$9,2,FALSE) ->  | B3: =IF(Q3=0,"No","Yes") -> No | C3: ='Version Tracking'!$C$4 -> 15.2 | D3: ='HVAC Unitary'!C23 -> 0 | E3: =IF(IF(OR(HVACCalcs!$K5="Old",HVACCalcs!$K5=""),'HVAC Unitary'!J23,"")=0,"",IF(OR(HVACCalcs!$K5="Old",HVACCalcs!$K5=""),'HVAC Unitary'!J23,"")) ->  | F3: =IF(IF(OR(HVACCalcs!$K5="Old",HVACCalcs!$K5=""),'HVAC Unitary'!K23,"")=0,"",IF(OR(HVACCalcs!$K5="Old",HVACCalcs!$K5=""),'HVAC Unitary'!K23,"")) ->  | G3: =IF(IF(OR(HVACCalcs!$K5="Old",HVACCalcs!$K5=""),'HVAC Unitary'!L23,"")=0,"",IF(OR(HVACCalcs!$K5="Old",HVACCalcs!$K5=""),'HVAC Unitary'!L23,"")) ->  | H3: =IF(IF(HVACCalcs!$K5="New",'HVAC Unitary'!J23,"")=0,"",IF(HVACCalcs!$K5="New",'HVAC Unitary'!J23,"")) ->  | I3: =IF(IF(HVACCalcs!$K5="New",'HVAC Unitary'!K23,"")=0,"",IF(HVACCalcs!$K5="New",'HVAC Unitary'!K23,"")) ->  | J3: =IF(IF(HVACCalcs!$K5="New",'HVAC Unitary'!L23,"")=0,"",IF(HVACCalcs!$K5="New",'HVAC Unitary'!L23,"")) ->  | Q3: =IF(ISERROR('HVAC Unitary'!S23/IF(AA3=0,1,AA3))," ",'HVAC Unitary'!S23/IF(AA3=0,1,AA3)) -> 0 | R3: ='HVAC Unitary'!T23 -> 0 | S3: =U3 -> 0 | T3: ='HVAC Unitary'!Q23/IF(AA3=0,1,AA3) -> 0 | U3: ='HVAC Unitary'!R23/IF(AA3=0,1,AA3) -> 0 | V3: ='HVAC Unitary'!P23/IF(AA3=0,1,AA3) -> 0 | W3: ='HVAC Unitary'!E23 -> 0 | X3: 15 | Y3: ='HVAC Unitary'!F23 -> 0 | Z3: ='HVAC Unitary'!D23 -> 0 | AA3: ='HVAC Unitary'!M23 -> 0 | AB3: ='HVAC Unitary'!G23 -> 0
A4: =VLOOKUP(Z4,Validation!$C$3:$D$9,2,FALSE) ->  | B4: =IF(Q4=0,"No","Yes") -> No | C4: ='Version Tracking'!$C$4 -> 15.2 | D4: ='HVAC Unitary'!C24 -> 0 | E4: =IF(IF(OR(HVACCalcs!$K6="Old",HVACCalcs!$K6=""),'HVAC Unitary'!J24,"")=0,"",IF(OR(HVACCalcs!$K6="Old",HVACCalcs!$K6=""),'HVAC Unitary'!J24,"")) ->  | F4: =IF(IF(OR(HVACCalcs!$K6="Old",HVACCalcs!$K6=""),'HVAC Unitary'!K24,"")=0,"",IF(OR(HVACCalcs!$K6="Old",HVACCalcs!$K6=""),'HVAC Unitary'!K24,"")) ->  | G4: =IF(IF(OR(HVACCalcs!$K6="Old",HVACCalcs!$K6=""),'HVAC Unitary'!L24,"")=0,"",IF(OR(HVACCalcs!$K6="Old",HVACCalcs!$K6=""),'HVAC Unitary'!L24,"")) ->  | H4: =IF(IF(HVACCalcs!$K6="New",'HVAC Unitary'!J24,"")=0,"",IF(HVACCalcs!$K6="New",'HVAC Unitary'!J24,"")) ->  | I4: =IF(IF(HVACCalcs!$K6="New",'HVAC Unitary'!K24,"")=0,"",IF(HVACCalcs!$K6="New",'HVAC Unitary'!K24,"")) ->  | J4: =IF(IF(HVACCalcs!$K6="New",'HVAC Unitary'!L24,"")=0,"",IF(HVACCalcs!$K6="New",'HVAC Unitary'!L24,"")) ->  | Q4: =IF(ISERROR('HVAC Unitary'!S24/IF(AA4=0,1,AA4))," ",'HVAC Unitary'!S24/IF(AA4=0,1,AA4)) -> 0 | R4: ='HVAC Unitary'!T24 -> 0 | S4: 0 | T4: ='HVAC Unitary'!Q24/IF(AA4=0,1,AA4) -> 0 | U4: ='HVAC Unitary'!R24/IF(AA4=0,1,AA4) -> 0 | V4: ='HVAC Unitary'!P24/IF(AA4=0,1,AA4) -> 0 | W4: ='HVAC Unitary'!E24 -> 0 | X4: 15 | Y4: ='HVAC Unitary'!F24 -> 0 | Z4: ='HVAC Unitary'!D24 -> 0 | AA4: ='HVAC Unitary'!M24 -> 0 | AB4: ='HVAC Unitary'!G24 -> 0
A5: =VLOOKUP(Z5,Validation!$C$3:$D$9,2,FALSE) ->  | B5: No | C5: ='Version Tracking'!$C$4 -> 15.2 | D5: ='HVAC Unitary'!C25 -> 0 | E5: =IF(IF(OR(HVACCalcs!$K7="Old",HVACCalcs!$K7=""),'HVAC Unitary'!J25,"")=0,"",IF(OR(HVACCalcs!$K7="Old",HVACCalcs!$K7=""),'HVAC Unitary'!J25,"")) ->  | F5: =IF(IF(OR(HVACCalcs!$K7="Old",HVACCalcs!$K7=""),'HVAC Unitary'!K25,"")=0,"",IF(OR(HVACCalcs!$K7="Old",HVACCalcs!$K7=""),'HVAC Unitary'!K25,"")) ->  | G5: =IF(IF(OR(HVACCalcs!$K7="Old",HVACCalcs!$K7=""),'HVAC Unitary'!L25,"")=0,"",IF(OR(HVACCalcs!$K7="Old",HVACCalcs!$K7=""),'HVAC Unitary'!L25,"")) ->  | H5: =IF(IF(HVACCalcs!$K7="New",'HVAC Unitary'!J25,"")=0,"",IF(HVACCalcs!$K7="New",'HVAC Unitary'!J25,"")) ->  | I5: =IF(IF(HVACCalcs!$K7="New",'HVAC Unitary'!K25,"")=0,"",IF(HVACCalcs!$K7="New",'HVAC Unitary'!K25,"")) ->  | J5: =IF(IF(HVACCalcs!$K7="New",'HVAC Unitary'!L25,"")=0,"",IF(HVACCalcs!$K7="New",'HVAC Unitary'!L25,"")) ->  | Q5: =IF(ISERROR('HVAC Unitary'!S25/IF(AA5=0,1,AA5))," ",'HVAC Unitary'!S25/IF(AA5=0,1,AA5)) -> 0 | R5: ='HVAC Unitary'!T25 -> 0 | S5: 0 | T5: ='HVAC Unitary'!Q25/IF(AA5=0,1,AA5) -> 0 | U5: ='HVAC Unitary'!R25/IF(AA5=0,1,AA5) -> 0 | V5: ='HVAC Unitary'!P25/IF(AA5=0,1,AA5) -> 0 | W5: ='HVAC Unitary'!E25 -> 0 | X5: 15 | Y5: ='HVAC Unitary'!F25 -> 0 | Z5: ='HVAC Unitary'!D25 -> 0 | AA5: ='HVAC Unitary'!M25 -> 0 | AB5: ='HVAC Unitary'!G25 -> 0
A6: =VLOOKUP(Z6,Validation!$C$3:$D$9,2,FALSE) ->  | B6: No | C6: ='Version Tracking'!$C$4 -> 15.2 | D6: ='HVAC Unitary'!C26 -> 0 | E6: =IF(IF(OR(HVACCalcs!$K8="Old",HVACCalcs!$K8=""),'HVAC Unitary'!J26,"")=0,"",IF(OR(HVACCalcs!$K8="Old",HVACCalcs!$K8=""),'HVAC Unitary'!J26,"")) ->  | F6: =IF(IF(OR(HVACCalcs!$K8="Old",HVACCalcs!$K8=""),'HVAC Unitary'!K26,"")=0,"",IF(OR(HVACCalcs!$K8="Old",HVACCalcs!$K8=""),'HVAC Unitary'!K26,"")) ->  | G6: =IF(IF(OR(HVACCalcs!$K8="Old",HVACCalcs!$K8=""),'HVAC Unitary'!L26,"")=0,"",IF(OR(HVACCalcs!$K8="Old",HVACCalcs!$K8=""),'HVAC Unitary'!L26,"")) ->  | H6: =IF(IF(HVACCalcs!$K8="New",'HVAC Unitary'!J26,"")=0,"",IF(HVACCalcs!$K8="New",'HVAC Unitary'!J26,"")) ->  | I6: =IF(IF(HVACCalcs!$K8="New",'HVAC Unitary'!K26,"")=0,"",IF(HVACCalcs!$K8="New",'HVAC Unitary'!K26,"")) ->  | J6: =IF(IF(HVACCalcs!$K8="New",'HVAC Unitary'!L26,"")=0,"",IF(HVACCalcs!$K8="New",'HVAC Unitary'!L26,"")) ->  | Q6: =IF(ISERROR('HVAC Unitary'!S26/IF(AA6=0,1,AA6))," ",'HVAC Unitary'!S26/IF(AA6=0,1,AA6)) -> 0 | R6: ='HVAC Unitary'!T26 -> 0 | S6: 0 | T6: ='HVAC Unitary'!Q26/IF(AA6=0,1,AA6) -> 0 | U6: ='HVAC Unitary'!R26/IF(AA6=0,1,AA6) -> 0 | V6: ='HVAC Unitary'!P26/IF(AA6=0,1,AA6) -> 0 | W6: ='HVAC Unitary'!E26 -> 0 | X6: 15 | Y6: ='HVAC Unitary'!F26 -> 0 | Z6: ='HVAC Unitary'!D26 -> 0 | AA6: ='HVAC Unitary'!M26 -> 0 | AB6: ='HVAC Unitary'!G26 -> 0
A7: =VLOOKUP(Z7,Validation!$C$3:$D$9,2,FALSE) ->  | B7: No | C7: ='Version Tracking'!$C$4 -> 15.2 | D7: ='HVAC Unitary'!C27 -> 0 | E7: =IF(IF(OR(HVACCalcs!$K9="Old",HVACCalcs!$K9=""),'HVAC Unitary'!J27,"")=0,"",IF(OR(HVACCalcs!$K9="Old",HVACCalcs!$K9=""),'HVAC Unitary'!J27,"")) ->  | F7: =IF(IF(OR(HVACCalcs!$K9="Old",HVACCalcs!$K9=""),'HVAC Unitary'!K27,"")=0,"",IF(OR(HVACCalcs!$K9="Old",HVACCalcs!$K9=""),'HVAC Unitary'!K27,"")) ->  | G7: =IF(IF(OR(HVACCalcs!$K9="Old",HVACCalcs!$K9=""),'HVAC Unitary'!L27,"")=0,"",IF(OR(HVACCalcs!$K9="Old",HVACCalcs!$K9=""),'HVAC Unitary'!L27,"")) ->  | H7: =IF(IF(HVACCalcs!$K9="New",'HVAC Unitary'!J27,"")=0,"",IF(HVACCalcs!$K9="New",'HVAC Unitary'!J27,"")) ->  | I7: =IF(IF(HVACCalcs!$K9="New",'HVAC Unitary'!K27,"")=0,"",IF(HVACCalcs!$K9="New",'HVAC Unitary'!K27,"")) ->  | J7: =IF(IF(HVACCalcs!$K9="New",'HVAC Unitary'!L27,"")=0,"",IF(HVACCalcs!$K9="New",'HVAC Unitary'!L27,"")) ->  | Q7: =IF(ISERROR('HVAC Unitary'!S27/IF(AA7=0,1,AA7))," ",'HVAC Unitary'!S27/IF(AA7=0,1,AA7)) -> 0 | R7: ='HVAC Unitary'!T27 -> 0 | S7: 0 | T7: ='HVAC Unitary'!Q27/IF(AA7=0,1,AA7) -> 0 | U7: ='HVAC Unitary'!R27/IF(AA7=0,1,AA7) -> 0 | V7: ='HVAC Unitary'!P27/IF(AA7=0,1,AA7) -> 0 | W7: ='HVAC Unitary'!E27 -> 0 | X7: 15 | Y7: ='HVAC Unitary'!F27 -> 0 | Z7: ='HVAC Unitary'!D27 -> 0 | AA7: ='HVAC Unitary'!M27 -> 0 | AB7: ='HVAC Unitary'!G27 -> 0
A8: =VLOOKUP(Z8,Validation!$C$3:$D$9,2,FALSE) ->  | B8: No | C8: ='Version Tracking'!$C$4 -> 15.2 | D8: ='HVAC Unitary'!C28 -> 0 | E8: =IF(IF(OR(HVACCalcs!$K10="Old",HVACCalcs!$K10=""),'HVAC Unitary'!J28,"")=0,"",IF(OR(HVACCalcs!$K10="Old",HVACCalcs!$K10=""),'HVAC Unitary'!J28,"")) ->  | F8: =IF(IF(OR(HVACCalcs!$K10="Old",HVACCalcs!$K10=""),'HVAC Unitary'!K28,"")=0,"",IF(OR(HVACCalcs!$K10="Old",HVACCalcs!$K10=""),'HVAC Unitary'!K28,"")) ->  | G8: =IF(IF(OR(HVACCalcs!$K10="Old",HVACCalcs!$K10=""),'HVAC Unitary'!L28,"")=0,"",IF(OR(HVACCalcs!$K10="Old",HVACCalcs!$K10=""),'HVAC Unitary'!L28,"")) ->  | H8: =IF(IF(HVACCalcs!$K10="New",'HVAC Unitary'!J28,"")=0,"",IF(HVACCalcs!$K10="New",'HVAC Unitary'!J28,"")) ->  | I8: =IF(IF(HVACCalcs!$K10="New",'HVAC Unitary'!K28,"")=0,"",IF(HVACCalcs!$K10="New",'HVAC Unitary'!K28,"")) ->  | J8: =IF(IF(HVACCalcs!$K10="New",'HVAC Unitary'!L28,"")=0,"",IF(HVACCalcs!$K10="New",'HVAC Unitary'!L28,"")) ->  | Q8: =IF(ISERROR('HVAC Unitary'!S28/IF(AA8=0,1,AA8))," ",'HVAC Unitary'!S28/IF(AA8=0,1,AA8)) -> 0 | R8: ='HVAC Unitary'!T28 -> 0 | S8: 0 | T8: ='HVAC Unitary'!Q28/IF(AA8=0,1,AA8) -> 0 | U8: ='HVAC Unitary'!R28/IF(AA8=0,1,AA8) -> 0 | V8: ='HVAC Unitary'!P28/IF(AA8=0,1,AA8) -> 0 | W8: ='HVAC Unitary'!E28 -> 0 | X8: 15 | Y8: ='HVAC Unitary'!F28 -> 0 | Z8: ='HVAC Unitary'!D28 -> 0 | AA8: ='HVAC Unitary'!M28 -> 0 | AB8: ='HVAC Unitary'!G28 -> 0
A9: =VLOOKUP(Z9,Validation!$C$3:$D$9,2,FALSE) ->  | B9: No | C9: ='Version Tracking'!$C$4 -> 15.2 | D9: ='HVAC Unitary'!C29 -> 0 | E9: =IF(IF(OR(HVACCalcs!$K11="Old",HVACCalcs!$K11=""),'HVAC Unitary'!J29,"")=0,"",IF(OR(HVACCalcs!$K11="Old",HVACCalcs!$K11=""),'HVAC Unitary'!J29,"")) ->  | F9: =IF(IF(OR(HVACCalcs!$K11="Old",HVACCalcs!$K11=""),'HVAC Unitary'!K29,"")=0,"",IF(OR(HVACCalcs!$K11="Old",HVACCalcs!$K11=""),'HVAC Unitary'!K29,"")) ->  | G9: =IF(IF(OR(HVACCalcs!$K11="Old",HVACCalcs!$K11=""),'HVAC Unitary'!L29,"")=0,"",IF(OR(HVACCalcs!$K11="Old",HVACCalcs!$K11=""),'HVAC Unitary'!L29,"")) ->  | H9: =IF(IF(HVACCalcs!$K11="New",'HVAC Unitary'!J29,"")=0,"",IF(HVACCalcs!$K11="New",'HVAC Unitary'!J29,"")) ->  | I9: =IF(IF(HVACCalcs!$K11="New",'HVAC Unitary'!K29,"")=0,"",IF(HVACCalcs!$K11="New",'HVAC Unitary'!K29,"")) ->  | J9: =IF(IF(HVACCalcs!$K11="New",'HVAC Unitary'!L29,"")=0,"",IF(HVACCalcs!$K11="New",'HVAC Unitary'!L29,"")) ->  | Q9: =IF(ISERROR('HVAC Unitary'!S29/IF(AA9=0,1,AA9))," ",'HVAC Unitary'!S29/IF(AA9=0,1,AA9)) -> 0 | R9: ='HVAC Unitary'!T29 -> 0 | S9: 0 | T9: ='HVAC Unitary'!Q29/IF(AA9=0,1,AA9) -> 0 | U9: ='HVAC Unitary'!R29/IF(AA9=0,1,AA9) -> 0 | V9: ='HVAC Unitary'!P29/IF(AA9=0,1,AA9) -> 0 | W9: ='HVAC Unitary'!E29 -> 0 | X9: 15 | Y9: ='HVAC Unitary'!F29 -> 0 | Z9: ='HVAC Unitary'!D29 -> 0 | AA9: ='HVAC Unitary'!M29 -> 0 | AB9: ='HVAC Unitary'!G29 -> 0
A10: =VLOOKUP(Z10,Validation!$C$3:$D$9,2,FALSE) ->  | B10: No | C10: ='Version Tracking'!$C$4 -> 15.2 | D10: ='HVAC Unitary'!C30 -> 0 | E10: =IF(IF(OR(HVACCalcs!$K12="Old",HVACCalcs!$K12=""),'HVAC Unitary'!J30,"")=0,"",IF(OR(HVACCalcs!$K12="Old",HVACCalcs!$K12=""),'HVAC Unitary'!J30,"")) ->  | F10: =IF(IF(OR(HVACCalcs!$K12="Old",HVACCalcs!$K12=""),'HVAC Unitary'!K30,"")=0,"",IF(OR(HVACCalcs!$K12="Old",HVACCalcs!$K12=""),'HVAC Unitary'!K30,"")) ->  | G10: =IF(IF(OR(HVACCalcs!$K12="Old",HVACCalcs!$K12=""),'HVAC Unitary'!L30,"")=0,"",IF(OR(HVACCalcs!$K12="Old",HVACCalcs!$K12=""),'HVAC Unitary'!L30,"")) ->  | H10: =IF(IF(HVACCalcs!$K12="New",'HVAC Unitary'!J30,"")=0,"",IF(HVACCalcs!$K12="New",'HVAC Unitary'!J30,"")) ->  | I10: =IF(IF(HVACCalcs!$K12="New",'HVAC Unitary'!K30,"")=0,"",IF(HVACCalcs!$K12="New",'HVAC Unitary'!K30,"")) ->  | J10: =IF(IF(HVACCalcs!$K12="New",'HVAC Unitary'!L30,"")=0,"",IF(HVACCalcs!$K12="New",'HVAC Unitary'!L30,"")) ->  | Q10: =IF(ISERROR('HVAC Unitary'!S30/IF(AA10=0,1,AA10))," ",'HVAC Unitary'!S30/IF(AA10=0,1,AA10)) -> 0 | R10: ='HVAC Unitary'!T30 -> 0 | S10: 0 | T10: ='HVAC Unitary'!Q30/IF(AA10=0,1,AA10) -> 0 | U10: ='HVAC Unitary'!R30/IF(AA10=0,1,AA10) -> 0 | V10: ='HVAC Unitary'!P30/IF(AA10=0,1,AA10) -> 0 | W10: ='HVAC Unitary'!E30 -> 0 | X10: 15 | Y10: ='HVAC Unitary'!F30 -> 0 | Z10: ='HVAC Unitary'!D30 -> 0 | AA10: ='HVAC Unitary'!M30 -> 0 | AB10: ='HVAC Unitary'!G30 -> 0
A11: =VLOOKUP(Z11,Validation!$C$3:$D$9,2,FALSE) ->  | B11: No | C11: ='Version Tracking'!$C$4 -> 15.2 | D11: ='HVAC Unitary'!C31 -> 0 | E11: =IF(IF(OR(HVACCalcs!$K13="Old",HVACCalcs!$K13=""),'HVAC Unitary'!J31,"")=0,"",IF(OR(HVACCalcs!$K13="Old",HVACCalcs!$K13=""),'HVAC Unitary'!J31,"")) ->  | F11: =IF(IF(OR(HVACCalcs!$K13="Old",HVACCalcs!$K13=""),'HVAC Unitary'!K31,"")=0,"",IF(OR(HVACCalcs!$K13="Old",HVACCalcs!$K13=""),'HVAC Unitary'!K31,"")) ->  | G11: =IF(IF(OR(HVACCalcs!$K13="Old",HVACCalcs!$K13=""),'HVAC Unitary'!L31,"")=0,"",IF(OR(HVACCalcs!$K13="Old",HVACCalcs!$K13=""),'HVAC Unitary'!L31,"")) ->  | H11: =IF(IF(HVACCalcs!$K13="New",'HVAC Unitary'!J31,"")=0,"",IF(HVACCalcs!$K13="New",'HVAC Unitary'!J31,"")) ->  | I11: =IF(IF(HVACCalcs!$K13="New",'HVAC Unitary'!K31,"")=0,"",IF(HVACCalcs!$K13="New",'HVAC Unitary'!K31,"")) ->  | J11: =IF(IF(HVACCalcs!$K13="New",'HVAC Unitary'!L31,"")=0,"",IF(HVACCalcs!$K13="New",'HVAC Unitary'!L31,"")) ->  | Q11: =IF(ISERROR('HVAC Unitary'!S31/IF(AA11=0,1,AA11))," ",'HVAC Unitary'!S31/IF(AA11=0,1,AA11)) -> 0 | R11: ='HVAC Unitary'!T31 -> 0 | S11: 0 | T11: ='HVAC Unitary'!Q31/IF(AA11=0,1,AA11) -> 0 | U11: ='HVAC Unitary'!R31/IF(AA11=0,1,AA11) -> 0 | V11: ='HVAC Unitary'!P31/IF(AA11=0,1,AA11) -> 0 | W11: ='HVAC Unitary'!E31 -> 0 | X11: 15 | Y11: ='HVAC Unitary'!F31 -> 0 | Z11: ='HVAC Unitary'!D31 -> 0 | AA11: ='HVAC Unitary'!M31 -> 0 | AB11: ='HVAC Unitary'!G31 -> 0
A12: =VLOOKUP(Z12,Validation!$C$3:$D$9,2,FALSE) ->  | B12: No | C12: ='Version Tracking'!$C$4 -> 15.2 | D12: ='HVAC Unitary'!C32 -> 0 | E12: =IF(IF(OR(HVACCalcs!$K14="Old",HVACCalcs!$K14=""),'HVAC Unitary'!J32,"")=0,"",IF(OR(HVACCalcs!$K14="Old",HVACCalcs!$K14=""),'HVAC Unitary'!J32,"")) ->  | F12: =IF(IF(OR(HVACCalcs!$K14="Old",HVACCalcs!$K14=""),'HVAC Unitary'!K32,"")=0,"",IF(OR(HVACCalcs!$K14="Old",HVACCalcs!$K14=""),'HVAC Unitary'!K32,"")) ->  | G12: =IF(IF(OR(HVACCalcs!$K14="Old",HVACCalcs!$K14=""),'HVAC Unitary'!L32,"")=0,"",IF(OR(HVACCalcs!$K14="Old",HVACCalcs!$K14=""),'HVAC Unitary'!L32,"")) ->  | H12: =IF(IF(HVACCalcs!$K14="New",'HVAC Unitary'!J32,"")=0,"",IF(HVACCalcs!$K14="New",'HVAC Unitary'!J32,"")) ->  | I12: =IF(IF(HVACCalcs!$K14="New",'HVAC Unitary'!K32,"")=0,"",IF(HVACCalcs!$K14="New",'HVAC Unitary'!K32,"")) ->  | J12: =IF(IF(HVACCalcs!$K14="New",'HVAC Unitary'!L32,"")=0,"",IF(HVACCalcs!$K14="New",'HVAC Unitary'!L32,"")) ->  | Q12: =IF(ISERROR('HVAC Unitary'!S32/IF(AA12=0,1,AA12))," ",'HVAC Unitary'!S32/IF(AA12=0,1,AA12)) -> 0 | R12: ='HVAC Unitary'!T32 -> 0 | S12: 0 | T12: ='HVAC Unitary'!Q32/IF(AA12=0,1,AA12) -> 0 | U12: ='HVAC Unitary'!R32/IF(AA12=0,1,AA12) -> 0 | V12: ='HVAC Unitary'!P32/IF(AA12=0,1,AA12) -> 0 | W12: ='HVAC Unitary'!E32 -> 0 | X12: 15 | Y12: ='HVAC Unitary'!F32 -> 0 | Z12: ='HVAC Unitary'!D32 -> 0 | AA12: ='HVAC Unitary'!M32 -> 0 | AB12: ='HVAC Unitary'!G32 -> 0
B13: No | C13: Cool Roof Measures
A14: CR | B14: =IF(OR('Cool Roof'!H5=0,'Cool Roof'!H5="Fill in zip code in cell L6 on Project Information tab"),"No","Yes") -> No | C14: ='Version Tracking'!$C$4 -> 15.2 | D14: ='Cool Roof'!A5 -> 0 | Q14: ='Cool Roof'!G5*'Cool Roof'!F5 -> 0 | R14: 0.1 | S14: ='Cool Roof'!O5 -> 0 | T14: =S14 -> 0 | U14: =T14 -> 0 | V14: ='Cool Roof'!N5 -> 0 | W14: ='Cool Roof'!B5 -> 0 | X14: =IF('Cool Roof'!C5="New Roof",15,10) -> 10 | Z14: Cool Roof | AA14: =IF(B14="Yes", 1, "") ->  | AC14: ='Cool Roof'!D5 -> 0 | AD14: ='Cool Roof'!E5 -> 0 | AE14: ='Cool Roof'!F5 -> 0 | AQ14: ='Cool Roof'!K5 -> 
A15: CR | B15: =IF('Cool Roof'!H6=0,"No","Yes") -> No | C15: ='Version Tracking'!$C$4 -> 15.2 | D15: ='Cool Roof'!A6 -> 0 | Q15: ='Cool Roof'!G6*'Cool Roof'!F6 -> 0 | R15: 0.1 | S15: ='Cool Roof'!O6 -> 0 | T15: =S15 -> 0 | U15: =T15 -> 0 | V15: ='Cool Roof'!N6 -> 0 | W15: ='Cool Roof'!B6 -> 0 | X15: =IF('Cool Roof'!C6="New Roof",15,10) -> 10 | Z15: Cool Roof | AA15: =IF(B15="Yes", 1, "") ->  | AC15: ='Cool Roof'!D6 -> 0 | AD15: ='Cool Roof'!E6 -> 0 | AE15: ='Cool Roof'!F6 -> 0 | AQ15: ='Cool Roof'!K6 -> 
A16: CR | B16: =IF('Cool Roof'!H7=0,"No","Yes") -> No | C16: ='Version Tracking'!$C$4 -> 15.2 | D16: ='Cool Roof'!A7 -> 0 | Q16: ='Cool Roof'!G7*'Cool Roof'!F7 -> 0 | R16: 0.1 | S16: ='Cool Roof'!O7 -> 0 | T16: =S16 -> 0 | U16: 0 | V16: ='Cool Roof'!N7 -> 0 | W16: ='Cool Roof'!B7 -> 0 | X16: =IF('Cool Roof'!C7="New Roof",15,10) -> 10 | Z16: Cool Roof | AA16: =IF(B16="Yes", 1, "") ->  | AC16: ='Cool Roof'!D7 -> 0 | AD16: ='Cool Roof'!E7 -> 0 | AE16: ='Cool Roof'!F7 -> 0 | AQ16: ='Cool Roof'!K7 -> 
A17: CR | B17: =IF('Cool Roof'!H8=0,"No","Yes") -> No | C17: ='Version Tracking'!$C$4 -> 15.2 | D17: ='Cool Roof'!A8 -> 0 | Q17: ='Cool Roof'!G8*'Cool Roof'!F8 -> 0 | R17: 0.1 | S17: ='Cool Roof'!O8 -> 0 | T17: =S17 -> 0 | U17: 0 | V17: ='Cool Roof'!N8 -> 0 | W17: ='Cool Roof'!B8 -> 0 | X17: =IF('Cool Roof'!C8="New Roof",15,10) -> 10 | Z17: Cool Roof | AA17: =IF(B17="Yes", 1, "") ->  | AC17: ='Cool Roof'!D8 -> 0 | AD17: ='Cool Roof'!E8 -> 0 | AE17: ='Cool Roof'!F8 -> 0 | AQ17: ='Cool Roof'!K8 -> 
B18: No | C18: Window Film Measures
A19: WF | B19: =IF('Window Film'!I5=0,"No","Yes") -> No | C19: ='Version Tracking'!$C$4 -> 15.2 | D19: ='Window Film'!A5 -> 0 | Q19: ='Window Film'!L5*'Window Film'!C5 -> 0 | R19: 1 | S19: ='Window Film'!R5 -> 0 | T19: =S19 -> 0 | U19: 0 | V19: ='Window Film'!Q5 -> 0 | W19: ='Window Film'!E5 -> 0 | X19: 15 | Z19: Window Film | AA19: =IF(B19="Yes", 1, "") ->  | AE19: ='Window Film'!C5 -> 0 | AF19: ='Window Film'!F5 -> 0
A20: WF | B20: =IF('Window Film'!I6=0,"No","Yes") -> No | C20: ='Version Tracking'!$C$4 -> 15.2 | D20: ='Window Film'!A6 -> 0 | Q20: ='Window Film'!L6*'Window Film'!C6 -> 0 | R20: 1 | S20: ='Window Film'!R6 -> 0 | T20: 0 | U20: 0 | V20: ='Window Film'!Q6 -> 0 | W20: ='Window Film'!E6 -> 0 | X20: 15 | Z20: Window Film | AA20: =IF(B20="Yes", 1, "") ->  | AE20: ='Window Film'!C6 -> 0 | AF20: ='Window Film'!F6 -> 0
A21: WF | B21: =IF('Window Film'!I7=0,"No","Yes") -> No | C21: ='Version Tracking'!$C$4 -> 15.2 | D21: ='Window Film'!A7 -> 0 | Q21: ='Window Film'!L7*'Window Film'!C7 -> 0 | R21: 1 | S21: ='Window Film'!R7 -> 0 | T21: 0 | U21: 0 | V21: ='Window Film'!Q7 -> 0 | W21: ='Window Film'!E7 -> 0 | X21: 15 | Z21: Window Film | AA21: =IF(B21="Yes", 1, "") ->  | AE21: ='Window Film'!C7 -> 0 | AF21: ='Window Film'!F7 -> 0
A22: WF | B22: =IF('Window Film'!I8=0,"No","Yes") -> No | C22: ='Version Tracking'!$C$4 -> 15.2 | D22: ='Window Film'!A8 -> 0 | Q22: ='Window Film'!L8*'Window Film'!C8 -> 0 | R22: 1 | S22: ='Window Film'!R8 -> 0 | T22: 0 | U22: 0 | V22: ='Window Film'!Q8 -> 0 | W22: ='Window Film'!E8 -> 0 | X22: 15 | Z22: Window Film | AA22: =IF(B22="Yes", 1, "") ->  | AE22: ='Window Film'!C8 -> 0 | AF22: ='Window Film'!F8 -> 0
B23: No | C23: Advanced RTU Controls
A24: ARC | B24: =IF('ARC Calculations'!U9="Yes","Yes","No") -> No | C24: ='Version Tracking'!$C$4 -> 15.2 | D24: ='ARC Calculations'!A9 -> 0 | Q24: ='ARC Calculations'!V9 -> 0 | R24: =Q24 -> 0 | S24: =U24 ->  | U24: ='ARC Calculations'!AA9 ->  | V24: ='ARC Calculations'!Z9 ->  | W24: ='ARC Calculations'!B9 -> 0 | X24: 10 | Y24: ='ARC Calculations'!C9 -> 0 | AA24: ='ARC Calculations'!I9 -> 0 | AG24: ='ARC Calculations'!D9 -> 0 | AI24: ='ARC Calculations'!G9 -> 0 | AJ24: ='ARC Calculations'!H9 -> 0 | AK24: ='ARC Calculations'!E9 -> 0 | AL24: ARC
A25: ARC | B25: =IF('ARC Calculations'!U10="Yes","Yes","No") -> No | C25: ='Version Tracking'!$C$4 -> 15.2 | D25: ='ARC Calculations'!A10 -> 0 | Q25: ='ARC Calculations'!V10 -> 0 | R25: =Q25 -> 0 | S25: =U25 ->  | U25: ='ARC Calculations'!AA10 ->  | V25: ='ARC Calculations'!Z10 ->  | W25: ='ARC Calculations'!B10 -> 0 | X25: 10 | Y25: ='ARC Calculations'!C10 -> 0 | AA25: ='ARC Calculations'!I10 -> 0 | AG25: ='ARC Calculations'!D10 -> 0 | AI25: ='ARC Calculations'!G10 -> 0 | AJ25: ='ARC Calculations'!H10 -> 0 | AK25: ='ARC Calculations'!E10 -> 0 | AL25: ARC
A26: ARC | B26: =IF('ARC Calculations'!U11="Yes","Yes","No") -> No | C26: ='Version Tracking'!$C$4 -> 15.2 | D26: ='ARC Calculations'!A11 -> 0 | Q26: ='ARC Calculations'!V11 -> 0 | R26: 0 | U26: ='ARC Calculations'!AA11 ->  | V26: ='ARC Calculations'!Z11 ->  | W26: ='ARC Calculations'!B11 -> 0 | X26: 10 | Y26: ='ARC Calculations'!C11 -> 0 | AA26: ='ARC Calculations'!I11 -> 0 | AG26: ='ARC Calculations'!D11 -> 0 | AI26: ='ARC Calculations'!G11 -> 0 | AJ26: ='ARC Calculations'!H11 -> 0 | AK26: ='ARC Calculations'!E11 -> 0 | AL26: ARC
A27: ARC | B27: =IF('ARC Calculations'!U12="Yes","Yes","No") -> No | C27: ='Version Tracking'!$C$4 -> 15.2 | D27: ='ARC Calculations'!A12 -> 0 | Q27: ='ARC Calculations'!V12 -> 0 | R27: 0 | U27: ='ARC Calculations'!AA12 ->  | V27: ='ARC Calculations'!Z12 ->  | W27: ='ARC Calculations'!B12 -> 0 | X27: 10 | Y27: ='ARC Calculations'!C12 -> 0 | AA27: ='ARC Calculations'!I12 -> 0 | AG27: ='ARC Calculations'!D12 -> 0 | AI27: ='ARC Calculations'!G12 -> 0 | AJ27: ='ARC Calculations'!H12 -> 0 | AK27: ='ARC Calculations'!E12 -> 0 | AL27: ARC
A28: ARC | B28: =IF('ARC Calculations'!U13="Yes","Yes","No") -> No | C28: ='Version Tracking'!$C$4 -> 15.2 | D28: ='ARC Calculations'!A13 -> 0 | Q28: ='ARC Calculations'!V13 -> 0 | R28: 0 | U28: ='ARC Calculations'!AA13 ->  | V28: ='ARC Calculations'!Z13 ->  | W28: ='ARC Calculations'!B13 -> 0 | X28: 10 | Y28: ='ARC Calculations'!C13 -> 0 | AA28: ='ARC Calculations'!I13 -> 0 | AG28: ='ARC Calculations'!D13 -> 0 | AI28: ='ARC Calculations'!G13 -> 0 | AJ28: ='ARC Calculations'!H13 -> 0 | AK28: ='ARC Calculations'!E13 -> 0 | AL28: ARC
A29: ARC | B29: =IF('ARC Calculations'!U14="Yes","Yes","No") -> No | C29: ='Version Tracking'!$C$4 -> 15.2 | D29: ='ARC Calculations'!A14 -> 0 | Q29: ='ARC Calculations'!V14 -> 0 | R29: 0 | U29: ='ARC Calculations'!AA14 ->  | V29: ='ARC Calculations'!Z14 ->  | W29: ='ARC Calculations'!B14 -> 0 | X29: 10 | Y29: ='ARC Calculations'!C14 -> 0 | AA29: ='ARC Calculations'!I14 -> 0 | AG29: ='ARC Calculations'!D14 -> 0 | AI29: ='ARC Calculations'!G14 -> 0 | AJ29: ='ARC Calculations'!H14 -> 0 | AK29: ='ARC Calculations'!E14 -> 0 | AL29: ARC
A30: ARC | B30: =IF('ARC Calculations'!U15="Yes","Yes","No") -> No | C30: ='Version Tracking'!$C$4 -> 15.2 | D30: ='ARC Calculations'!A15 -> 0 | Q30: ='ARC Calculations'!V15 -> 0 | R30: 0 | U30: ='ARC Calculations'!AA15 ->  | V30: ='ARC Calculations'!Z15 ->  | W30: ='ARC Calculations'!B15 -> 0 | X30: 10 | Y30: ='ARC Calculations'!C15 -> 0 | AA30: ='ARC Calculations'!I15 -> 0 | AG30: ='ARC Calculations'!D15 -> 0 | AI30: ='ARC Calculations'!G15 -> 0 | AJ30: ='ARC Calculations'!H15 -> 0 | AK30: ='ARC Calculations'!E15 -> 0 | AL30: ARC
A31: ARC | B31: =IF('ARC Calculations'!U16="Yes","Yes","No") -> No | C31: ='Version Tracking'!$C$4 -> 15.2 | D31: ='ARC Calculations'!A16 -> 0 | Q31: ='ARC Calculations'!V16 -> 0 | R31: 0 | U31: ='ARC Calculations'!AA16 ->  | V31: ='ARC Calculations'!Z16 ->  | W31: ='ARC Calculations'!B16 -> 0 | X31: 10 | Y31: ='ARC Calculations'!C16 -> 0 | AA31: ='ARC Calculations'!I16 -> 0 | AG31: ='ARC Calculations'!D16 -> 0 | AI31: ='ARC Calculations'!G16 -> 0 | AJ31: ='ARC Calculations'!H16 -> 0 | AK31: ='ARC Calculations'!E16 -> 0 | AL31: ARC
A32: ARC | B32: =IF('ARC Calculations'!U17="Yes","Yes","No") -> No | C32: ='Version Tracking'!$C$4 -> 15.2 | D32: ='ARC Calculations'!A17 -> 0 | Q32: ='ARC Calculations'!V17 -> 0 | R32: 0 | U32: ='ARC Calculations'!AA17 ->  | V32: ='ARC Calculations'!Z17 ->  | W32: ='ARC Calculations'!B17 -> 0 | X32: 10 | Y32: ='ARC Calculations'!C17 -> 0 | AA32: ='ARC Calculations'!I17 -> 0 | AG32: ='ARC Calculations'!D17 -> 0 | AI32: ='ARC Calculations'!G17 -> 0 | AJ32: ='ARC Calculations'!H17 -> 0 | AK32: ='ARC Calculations'!E17 -> 0 | AL32: ARC
A33: ARC | B33: =IF('ARC Calculations'!U18="Yes","Yes","No") -> No | C33: ='Version Tracking'!$C$4 -> 15.2 | D33: ='ARC Calculations'!A18 -> 0 | Q33: ='ARC Calculations'!V18 -> 0 | R33: 0 | U33: ='ARC Calculations'!AA18 ->  | V33: ='ARC Calculations'!Z18 ->  | W33: ='ARC Calculations'!B18 -> 0 | X33: 10 | Y33: ='ARC Calculations'!C18 -> 0 | AA33: ='ARC Calculations'!I18 -> 0 | AG33: ='ARC Calculations'!D18 -> 0 | AI33: ='ARC Calculations'!G18 -> 0 | AJ33: ='ARC Calculations'!H18 -> 0 | AK33: ='ARC Calculations'!E18 -> 0 | AL33: ARC
